Workbook

Sheet Age profile chart

Sheet Forecast Ch1

Sheet Age profile summary
A1: Asset calcs | R1: Remaining life | W1: RC ($ millions) | AB1: RC (%)
R2: Very old | S2: Old | T2: moderate | U2: young | V2: new | W2: =R2 -> Very old | X2: =S2 -> Old | Y2: moderate | Z2: young | AA2: new | AB2: Very old | AC2: Old | AD2: moderate | AE2: young | AF2: new
M3: WARL | O3: WAL | Q3: WAA | R3: > | S3: > | T3: > | U3: > | V3: <=0.2 | W3: =R3 -> > | X3: > | Y3: > | Z3: > | AA3: <=0.2 | AB3: > | AC3: > | AD3: > | AE3: > | AF3: <=0.2
F4: Quantity | G4: Unit | H4: RC | I4: prop total | J4: Rank | K4: prop cat | L4: RC / unit | M4: (Rep life) | O4: Rep life | Q4: % Rep life | R4: =W4 -> 0.9 | S4: =X4 -> 0.8 | T4: =Y4 -> 0.4 | U4: =Z4 -> 0.2 | W4: 0.9 | X4: 0.8 | Y4: 0.4 | Z4: 0.2 | AA4: 0 | AB4: 0.9 | AC4: 0.8 | AD4: 0.4 | AE4: 0.2 | AF4: 0 | AG4: Std life | AH4: Std life | AI4: rep life
G5: Cost | H5: $ millions | I5: % | J5: total | K5: % | L5: $ ('000) | AG5: max | AH5: min
A6: 1 | D6: =VLOOKUP(A6,IDtable,2) -> POLES | F6: =SUMIF($A$21:$A$205,$A6,F$21:F$205) -> 745785.5206 | H6: =SUMIF($A$21:$A$205,$A6,H$21:H$205)/1000 -> 3740.212484 | I6: =H6/($H$18) -> 0.1779174469 | J6: =RANK(I6,I$6:I$17) -> 3 | L6: =H6*1000/(F6+0.001) -> 5.015131531 | M6: =SUMIF($A$21:$A$205,$A6,N$21:N$205)/(H6*1000+0.000001) -> 29.85194095 | O6: =SUMIF($A$21:$A$205,$A6,P$21:P$205)/(H6*1000+0.000001) -> 74.29052639 | Q6: =(O6-M6)/(O6+0.000001) -> 0.5981729704 | R6: =$O6-R$4*$O6 -> 7.429052639 | S6: =$O6-S$4*$O6 -> 14.85810528 | T6: =$O6-T$4*$O6 -> 44.57431584 | U6: =$O6-U$4*$O6 -> 59.43242111 | V6: =$O6-V$4*$O6 -> 74.29052639 | W6: =SUMIF($A$21:$A$205,$A6,W$21:W$205)/1000 -> 182.5507518 | X6: 241.5781877 | Y6: 2621.36924 | Z6: 435.6877845 | AA6: 259.0265202 | AB6: =IF($H6=0,0,W6/$H6) -> 0.04880758849 | AC6: =IF($H6=0,0,X6/$H6) -> 0.06458942872 | AD6: =IF($H6=0,0,Y6/$H6) -> 0.7008610476 | AE6: =IF($H6=0,0,Z6/$H6) -> 0.1164874419 | AF6: =IF($H6=0,0,AA6/$H6) -> 0.06925449323 | AG6: =MAX(IF($A$21:$A$205=$A6,$O$21:$O$205)) -> 82.29113699 | AH6: =MIN(IF($A$21:$A$205=$A6,$O$21:$O$205)) -> 20 | AI6: =IF(H6=0,0,SUMIF($A$21:$A$205,$A6,$AJ$21:$AJ$205)/(H6*1000)) -> 74.29052639
A7: 2 | D7: OVERHEAD CONDUCTORS | F7: =SUMIF($A$21:$A$205,$A7,F$21:F$205) -> 174420.2209 | H7: =SUMIF($A$21:$A$205,$A7,H$21:H$205)/1000 -> 5368.576789 | I7: =H7/($H$18) -> 0.2553767947 | J7: 2 | L7: 30.77955486 | M7: 31.216791 | O7: 82.80926196 | Q7: 0.6230277763 | R7: =$O7-R$4*$O7 -> 8.280926196 | S7: 16.56185239 | T7: 49.68555718 | U7: 66.24740957 | V7: 82.80926196 | W7: 8.027092657 | X7: 153.3142461 | Y7: 4842.481607 | Z7: 231.9321826 | AA7: 132.8216609 | AB7: =IF($H7=0,0,W7/$H7) -> 0.001495199374 | AC7: =IF($H7=0,0,X7/$H7) -> 0.02855770758 | AD7: =IF($H7=0,0,Y7/$H7) -> 0.9020047206 | AE7: =IF($H7=0,0,Z7/$H7) -> 0.04320180034 | AF7: =IF($H7=0,0,AA7/$H7) -> 0.02474057206 | AG7: =MAX(IF($A$21:$A$205=$A7,$O$21:$O$205)) -> 90.12092955 | AH7: =MIN(IF($A$21:$A$205=$A7,$O$21:$O$205)) -> 74.64392567 | AI7: =IF(H7=0,0,SUMIF($A$21:$A$205,$A7,$AJ$21:$AJ$205)/(H7*1000)) -> 82.80926196
A8: 3 | D8: UNDERGROUND CABLES | F8: 16970.20022 | H8: 7881.13824 | I8: 0.3748963461 | J8: 1 | L8: 464.4104179 | M8: 39.3404809 | O8: 72.30352364 | Q8: 0.4558981448 | R8: 7.230352364 | S8: 14.46070473 | T8: 43.38211419 | U8: 57.84281892 | V8: 72.30352364 | W8: 5.096227426 | X8: 232.3936651 | Y8: 4811.592196 | Z8: 811.2655676 | AA8: 2020.790584 | AB8: 0.0006466359644 | AC8: 0.02948732252 | AD8: 0.6105199591 | AE8: 0.1029376142 | AF8: 0.2564084682 | AG8: =MAX(IF($A$21:$A$205=$A8,$O$21:$O$205)) -> 109.0543379 | AH8: =MIN(IF($A$21:$A$205=$A8,$O$21:$O$205)) -> 68.74756675 | AI8: 72.30352364
A9: 4 | D9: SERVICE LINES | F9: 758917 | H9: 407.6254617 | I9: 0.01939025703 | J9: 6 | L9: 0.5371146794 | M9: 27.23119955 | O9: 56.09166107 | Q9: 0.5145232011 | R9: 5.609166107 | S9: 11.21833221 | T9: 33.65499664 | U9: 44.87332885 | V9: 56.09166107 | W9: 43.51540169 | X9: 28.53655379 | Y9: 190.5553048 | Z9: 86.22591459 | AA9: 58.79228683 | AB9: 0.1067533944 | AC9: 0.07000679906 | AD9: 0.4674764526 | AE9: 0.2115322096 | AF9: 0.1442311444 | AG9: =MAX(IF($A$21:$A$205=$A9,$O$21:$O$205)) -> 56.26862234 | AH9: =MIN(IF($A$21:$A$205=$A9,$O$21:$O$205)) -> 54.77280954 | AI9: 56.09166107
A10: 5 | D10: TRANSFORMERS | F10: 77238 | H10: 2259.888079 | I10: 0.1075001805 | J10: 4 | L10: 29.25875928 | M10: 36.98363356 | O10: 65.66623228 | Q10: 0.4367937263 | R10: 6.566623228 | S10: 13.13324646 | T10: 39.39973937 | U10: 52.53298583 | V10: 65.66623228 | W10: 79.08160406 | X10: 144.9614002 | Y10: 1006.168417 | Z10: 522.9196441 | AA10: 506.7570134 | AB10: 0.03499359318 | AC10: 0.06414538911 | AD10: 0.4452293132 | AE10: 0.2313918326 | AF10: 0.2242398719 | AG10: =MAX(IF($A$21:$A$205=$A10,$O$21:$O$205)) -> 74.29379035 | AH10: =MIN(IF($A$21:$A$205=$A10,$O$21:$O$205)) -> 54.42428181 | AI10: 65.66623228
A11: 6 | D11: SWITCHGEAR | F11: 16084.43573 | H11: 1364.738334 | I11: 0.06491897479 | J11: 5 | L11: 84.84837591 | M11: 33.49951114 | O11: 61.67091846 | Q11: 0.4568021291 | R11: 6.167091846 | S11: 12.33418369 | T11: 37.00255107 | U11: 49.33673476 | V11: 61.67091846 | W11: 113.7946063 | X11: 140.1760891 | Y11: 458.0064084 | Z11: 151.9274062 | AA11: 500.8338237 | AB11: 0.083381996 | AC11: 0.1027127953 | AD11: 0.3356001638 | AE11: 0.1113234695 | AF11: 0.3669815754 | AG11: =MAX(IF($A$21:$A$205=$A11,$O$21:$O$205)) -> 81.25574535 | AH11: =MIN(IF($A$21:$A$205=$A11,$O$21:$O$205)) -> 36.38920012 | AI11: 61.67091846
A12: 7 | D12: PUBLIC LIGHTING | F12: 0 | H12: 0 | I12: 0 | J12: 7 | L12: 0 | M12: 0 | O12: 0 | Q12: 0 | R12: 0 | S12: 0 | T12: 0 | U12: 0 | V12: 0 | W12: 0 | X12: 0 | Y12: 0 | Z12: 0 | AA12: 0 | AB12: 0 | AC12: 0 | AD12: 0 | AE12: 0 | AF12: 0 | AG12: =MAX(IF($A$21:$A$205=$A12,$O$21:$O$205)) -> 0 | AH12: =MIN(IF($A$21:$A$205=$A12,$O$21:$O$205)) -> 0 | AI12: 0
A13: 8 | D13: SCADA, NETWORK CONTROL AND PROTECTION | F13: 0 | H13: 0 | I13: 0 | J13: 7 | L13: 0 | M13: 0 | O13: 0 | Q13: 0 | R13: 0 | S13: 0 | T13: 0 | U13: 0 | V13: 0 | W13: 0 | X13: 0 | Y13: 0 | Z13: 0 | AA13: 0 | AB13: 0 | AC13: 0 | AD13: 0 | AE13: 0 | AF13: 0 | AG13: =MAX(IF($A$21:$A$205=$A13,$O$21:$O$205)) -> 0 | AH13: =MIN(IF($A$21:$A$205=$A13,$O$21:$O$205)) -> 0 | AI13: 0
A14: 9 | D14: =VLOOKUP(A14,IDtable,2) -> OTHER | F14: =SUMIF($A$21:$A$205,$A14,F$21:F$205) -> 0 | H14: =SUMIF($A$21:$A$205,$A14,H$21:H$205)/1000 -> 0 | I14: =H14/($H$18) -> 0 | J14: 7 | L14: 0 | M14: 0 | O14: 0 | Q14: 0 | R14: =$O14-R$4*$O14 -> 0 | S14: 0 | T14: 0 | U14: 0 | V14: 0 | W14: 0 | X14: 0 | Y14: 0 | Z14: 0 | AA14: 0 | AB14: 0 | AC14: 0 | AD14: 0 | AE14: 0 | AF14: 0 | AG14: =MAX(IF($A$21:$A$205=$A14,$O$21:$O$205)) -> 0 | AH14: =MIN(IF($A$21:$A$205=$A14,$O$21:$O$205)) -> 0 | AI14: 0
A15: 10 | D15: =VLOOKUP(A15,IDtable,2) -> unused | F15: =SUMIF($A$21:$A$205,$A15,F$21:F$205) -> 0 | H15: =SUMIF($A$21:$A$205,$A15,H$21:H$205)/1000 -> 0 | I15: =H15/($H$18) -> 0 | J15: 7 | L15: 0 | M15: 0 | O15: 0 | Q15: 0 | R15: 0 | S15: 0 | T15: 0 | U15: 0 | V15: 0 | W15: 0 | X15: 0 | Y15: 0 | Z15: 0 | AA15: 0 | AB15: 0 | AC15: 0 | AD15: 0 | AE15: 0 | AF15: 0 | AG15: =MAX(IF($A$21:$A$205=$A15,$O$21:$O$205)) -> 0 | AH15: =MIN(IF($A$21:$A$205=$A15,$O$21:$O$205)) -> 0 | AI15: 0
A16: 11 | D16: =VLOOKUP(A16,IDtable,2) -> unused | F16: =SUMIF($A$21:$A$205,$A16,F$21:F$205) -> 0 | H16: =SUMIF($A$21:$A$205,$A16,H$21:H$205)/1000 -> 0 | I16: =H16/($H$18) -> 0 | J16: 7 | L16: 0 | M16: 0 | O16: 0 | Q16: 0 | R16: 0 | S16: 0 | T16: 0 | U16: 0 | V16: 0 | W16: 0 | X16: 0 | Y16: 0 | Z16: 0 | AA16: 0 | AB16: 0 | AC16: 0 | AD16: 0 | AE16: 0 | AF16: 0 | AG16: =MAX(IF($A$21:$A$205=$A16,$O$21:$O$205)) -> 0 | AH16: =MIN(IF($A$21:$A$205=$A16,$O$21:$O$205)) -> 0 | AI16: 0
A17: 12 | D17: =VLOOKUP(A17,IDtable,2) -> unused | F17: =SUMIF($A$21:$A$205,$A17,F$21:F$205) -> 0 | H17: =SUMIF($A$21:$A$205,$A17,H$21:H$205)/1000 -> 0 | I17: =H17/($H$18) -> 0 | J17: =RANK(I17,I$6:I$17) -> 7 | L17: =H17*1000/(F17+0.001) -> 0 | M17: =SUMIF($A$21:$A$205,$A17,N$21:N$205)/(H17*1000+0.000001) -> 0 | O17: =SUMIF($A$21:$A$205,$A17,P$21:P$205)/(H17*1000+0.000001) -> 0 | Q17: =(O17-M17)/(O17+0.000001) -> 0 | R17: 0 | S17: 0 | T17: 0 | U17: 0 | V17: 0 | W17: 0 | X17: 0 | Y17: 0 | Z17: 0 | AA17: 0 | AB17: 0 | AC17: 0 | AD17: 0 | AE17: 0 | AF17: 0 | AG17: =MAX(IF($A$21:$A$205=$A17,$O$21:$O$205)) -> 0 | AH17: =MIN(IF($A$21:$A$205=$A17,$O$21:$O$205)) -> 0 | AI17: 0
D18: Total | H18: =SUM(H6:H17) -> 21022.17939 | M18: =SUMPRODUCT(M6:M17,$H6:$H17)/$H18 -> 34.71034885 | O18: =SUMPRODUCT(O6:O17,$H6:$H17)/$H18 -> 73.62184785 | Q18: =SUMPRODUCT(Q6:Q17,$H6:$H17)/$H18 -> 0.5230340603 | W18: =SUM(W6:W17) -> 432.0656839 | X18: =SUM(X6:X17) -> 940.9601418 | Y18: =SUM(Y6:Y17) -> 13930.17317 | Z18: =SUM(Z6:Z17) -> 2239.9585 | AA18: =SUM(AA6:AA17) -> 3479.021889 | AB18: =W18/$H18 -> 0.02055284925 | AC18: =X18/$H18 -> 0.04476035165 | AD18: =Y18/$H18 -> 0.6626417231 | AE18: =Z18/$H18 -> 0.1065521542 | AF18: =AA18/$H18 -> 0.1654929218
D20: EDB categories
A21: ='Asset data'!A21 -> 1 | B21: ='Asset data'!B21 -> 0 | C21: ='Asset data'!C21 -> 0 | D21: ='Asset data'!E21 -> Pole Refurbished; STOBIE | E21: =IF(A21>0,VLOOKUP(A21,IDtable,2),0) -> POLES | F21: =IF(A21>0,SUM('Asset data'!J21:CV21),0) -> 21699 | G21: =IF(A21>0,'Asset data'!F21,0) -> 8.833848673 | H21: =IF(A21>0,SUM('Asset data'!CX21:GJ21),0) -> 191685.6824 | I21: =H21/$H$18/1000 -> 0.009118259283 | J21: =IF(RANK(0,I$21:I$205)=RANK(I21,I$21:I$205),0,RANK(I21,I$21:I$205)) -> 17 | K21: =IF(A21>0,H21/(VLOOKUP(A21,$A$6:$H$17,8)*1000),0) -> 0.05124994453 | L21: =IF($A21>0,H21/F21,0) -> 8.833848673 | M21: =IF($A21>0,SUMPRODUCT('Age profile (years)'!$CT21:$GF21,'Asset data'!$CX21:$GJ21)/H21-0.5,0) -> 15.93909858 | N21: =IF($A21>0,M21*H21,0) -> 3055296.987 | O21: =IF($A21>0,'Asset data'!G21,0) -> 20 | P21: =IF($A21>0,H21*O21,0) -> 3833713.647 | Q21: =IF($A21>0,(O21-M21)/O21,0) -> 0.2030450712 | R21: =IF($A21>0,$O21-R$4*$O21,0) -> 2 | S21: 4 | T21: 12 | U21: 16 | W21: =IF($A21>0,SUMIF('Age profile (years)'!$CT21:$GF21,"<" & R21+0.5,'Asset data'!$CX21:$GJ21),0) -> 0 | X21: =IF($A21>0,SUMIF('Age profile (years)'!$CT21:$GF21,"<" & S21+0.5,'Asset data'!$CX21:$GJ21)-W21,0) -> 0 | Y21: =IF($A21>0,SUMIF('Age profile (years)'!$CT21:$GF21,"<" & T21+0.5,'Asset data'!$CX21:$GJ21)-X21-W21,0) -> 25591.65961 | Z21: =IF($A21>0,SUMIF('Age profile (years)'!$CT21:$GF21,"<" & U21+0.5,'Asset data'!$CX21:$GJ21)-Y21-X21-W21,0) -> 55732.75128 | AA21: =IF($A21>0,H21-Z21-Y21-X21-W21,0) -> 110361.2715 | AB21: =IF($A21>0,W21/$H21,0) -> 0 | AC21: 0 | AD21: 0.1335084566 | AE21: 0.2907507258 | AF21: 0.5757408175 | AI21: =IF($A21>0,'RRR hist-forc'!K21,0) -> 20 | AJ21: =IF($A21>0,AI21*H21,0) -> 3833713.647
A22: ='Asset data'!A22 -> 0 | B22: ='Asset data'!B22 -> 0 | C22: ='Asset data'!C22 -> 0 | D22: ='Asset data'!E22 -> Unused | E22: 0 | F22: =IF(A22>0,SUM('Asset data'!J22:CV22),0) -> 0 | G22: =IF(A22>0,'Asset data'!F22,0) -> 0 | H22: =IF(A22>0,SUM('Asset data'!CX22:GJ22),0) -> 0 | I22: 0 | J22: 0 | K22: =IF(A22>0,H22/(VLOOKUP(A22,$A$6:$H$17,8)*1000),0) -> 0 | L22: =IF($A22>0,H22/F22,0) -> 0 | M22: =IF($A22>0,SUMPRODUCT('Age profile (years)'!$CT22:$GF22,'Asset data'!$CX22:$GJ22)/H22-0.5,0) -> 0 | N22: =IF($A22>0,M22*H22,0) -> 0 | O22: =IF($A22>0,'Asset data'!G22,0) -> 0 | P22: =IF($A22>0,H22*O22,0) -> 0 | Q22: =IF($A22>0,(O22-M22)/O22,0) -> 0 | R22: 0 | S22: 0 | T22: 0 | U22: 0 | W22: =IF($A22>0,SUMIF('Age profile (years)'!$CT22:$GF22,"<" & R22+0.5,'Asset data'!$CX22:$GJ22),0) -> 0 | X22: =IF($A22>0,SUMIF('Age profile (years)'!$CT22:$GF22,"<" & S22+0.5,'Asset data'!$CX22:$GJ22)-W22,0) -> 0 | Y22: =IF($A22>0,SUMIF('Age profile (years)'!$CT22:$GF22,"<" & T22+0.5,'Asset data'!$CX22:$GJ22)-X22-W22,0) -> 0 | Z22: =IF($A22>0,SUMIF('Age profile (years)'!$CT22:$GF22,"<" & U22+0.5,'Asset data'!$CX22:$GJ22)-Y22-X22-W22,0) -> 0 | AA22: =IF($A22>0,H22-Z22-Y22-X22-W22,0) -> 0 | AB22: 0 | AC22: 0 | AD22: 0 | AE22: 0 | AF22: 0 | AI22: =IF($A22>0,'RRR hist-forc'!K22,0) -> 0 | AJ22: =IF($A22>0,AI22*H22,0) -> 0
A23: ='Asset data'!A23 -> 1 | B23: ='Asset data'!B23 -> 0 | C23: ='Asset data'!C23 -> 0 | D23: ='Asset data'!E23 -> ˂ = 11 kV ; STOBIE | E23: =IF(A23>0,VLOOKUP(A23,IDtable,2),0) -> POLES | F23: =IF(A23>0,SUM('Asset data'!J23:CV23),0) -> 533021.6892 | G23: =IF(A23>0,'Asset data'!F23,0) -> 4.921259486 | H23: =IF(A23>0,SUM('Asset data'!CX23:GJ23),0) -> 2623138.044 | I23: =H23/$H$18/1000 -> 0.1247795481 | J23: =IF(RANK(0,I$21:I$205)=RANK(I23,I$21:I$205),0,RANK(I23,I$21:I$205)) -> 3 | K23: =IF(A23>0,H23/(VLOOKUP(A23,$A$6:$H$17,8)*1000),0) -> 0.701333963 | L23: =IF($A23>0,H23/F23,0) -> 4.921259486 | M23: =IF($A23>0,SUMPRODUCT('Age profile (years)'!$CT23:$GF23,'Asset data'!$CX23:$GJ23)/H23-0.5,0) -> 29.55388422 | N23: =IF($A23>0,M23*H23,0) -> 77523918.06 | O23: =IF($A23>0,'Asset data'!G23,0) -> 76.00445522 | P23: =IF($A23>0,H23*O23,0) -> 199370178 | Q23: =IF($A23>0,(O23-M23)/O23,0) -> 0.6111558968 | R23: 7.600445522 | S23: 15.20089104 | T23: 45.60267313 | U23: 60.80356417 | W23: =IF($A23>0,SUMIF('Age profile (years)'!$CT23:$GF23,"<" & R23+0.5,'Asset data'!$CX23:$GJ23),0) -> 146130.2729 | X23: =IF($A23>0,SUMIF('Age profile (years)'!$CT23:$GF23,"<" & S23+0.5,'Asset data'!$CX23:$GJ23)-W23,0) -> 211687.7696 | Y23: =IF($A23>0,SUMIF('Age profile (years)'!$CT23:$GF23,"<" & T23+0.5,'Asset data'!$CX23:$GJ23)-X23-W23,0) -> 1871349.778 | Z23: =IF($A23>0,SUMIF('Age profile (years)'!$CT23:$GF23,"<" & U23+0.5,'Asset data'!$CX23:$GJ23)-Y23-X23-W23,0) -> 267472.4368 | AA23: =IF($A23>0,H23-Z23-Y23-X23-W23,0) -> 126497.787 | AB23: =IF($A23>0,W23/$H23,0) -> 0.05570819013 | AC23: =IF($A23>0,X23/$H23,0) -> 0.08070020185 | AD23: =IF($A23>0,Y23/$H23,0) -> 0.7134011807 | AE23: =IF($A23>0,Z23/$H23,0) -> 0.1019665882 | AF23: =IF($A23>0,AA23/$H23,0) -> 0.04822383912 | AI23: =IF($A23>0,'RRR hist-forc'!K23,0) -> 76.00445522 | AJ23: =IF($A23>0,AI23*H23,0) -> 199370178
A24: ='Asset data'!A24 -> 1 | B24: ='Asset data'!B24 -> 0 | C24: ='Asset data'!C24 -> 0 | D24: ='Asset data'!E24 -> > 11 kV & <= 33 kV ; STOBIE | E24: POLES | F24: =IF(A24>0,SUM('Asset data'!J24:CV24),0) -> 157827.4771 | G24: =IF(A24>0,'Asset data'!F24,0) -> 4.43153808 | H24: =IF(A24>0,SUM('Asset data'!CX24:GJ24),0) -> 699418.4747 | I24: 0.03327050264 | J24: 7 | K24: 0.1869996632 | L24: 4.43153808 | M24: =IF($A24>0,SUMPRODUCT('Age profile (years)'!$CT24:$GF24,'Asset data'!$CX24:$GJ24)/H24-0.5,0) -> 34.09825301 | N24: 23848948.11 | O24: =IF($A24>0,'Asset data'!G24,0) -> 80.15674898 | P24: 56063111.11 | Q24: 0.5746053396 | R24: 8.015674898 | S24: 16.0313498 | T24: 48.09404939 | U24: 64.12539919 | W24: =IF($A24>0,SUMIF('Age profile (years)'!$CT24:$GF24,"<" & R24+0.5,'Asset data'!$CX24:$GJ24),0) -> 19972.82968 | X24: =IF($A24>0,SUMIF('Age profile (years)'!$CT24:$GF24,"<" & S24+0.5,'Asset data'!$CX24:$GJ24)-W24,0) -> 16627.72501 | Y24: =IF($A24>0,SUMIF('Age profile (years)'!$CT24:$GF24,"<" & T24+0.5,'Asset data'!$CX24:$GJ24)-X24-W24,0) -> 562867.3227 | Z24: =IF($A24>0,SUMIF('Age profile (years)'!$CT24:$GF24,"<" & U24+0.5,'Asset data'!$CX24:$GJ24)-Y24-X24-W24,0) -> 84116.95287 | AA24: 15833.64449 | AB24: 0.02855633702 | AC24: 0.02377364284 | AD24: 0.8047647339 | AE24: 0.1202669874 | AF24: 0.0226382989 | AI24: =IF($A24>0,'RRR hist-forc'!K24,0) -> 80.15674898 | AJ24: 56063111.11
A25: ='Asset data'!A25 -> 1 | B25: ='Asset data'!B25 -> 0 | C25: ='Asset data'!C25 -> 0 | D25: ='Asset data'!E25 -> > 33 kV & <= 66 kV ; STOBIE | E25: POLES | F25: =IF(A25>0,SUM('Asset data'!J25:CV25),0) -> 33237.35433 | G25: =IF(A25>0,'Asset data'!F25,0) -> 6.798684425 | H25: =IF(A25>0,SUM('Asset data'!CX25:GJ25),0) -> 225970.2832 | I25: 0.01074913685 | J25: 16 | K25: 0.06041642932 | L25: 6.798684425 | M25: =IF($A25>0,SUMPRODUCT('Age profile (years)'!$CT25:$GF25,'Asset data'!$CX25:$GJ25)/H25-0.5,0) -> 31.97074838 | N25: 7224439.065 | O25: =IF($A25>0,'Asset data'!G25,0) -> 82.29113699 | P25: 18595351.53 | Q25: 0.6114922026 | R25: 8.229113699 | S25: 16.4582274 | T25: 49.37468219 | U25: 65.83290959 | W25: =IF($A25>0,SUMIF('Age profile (years)'!$CT25:$GF25,"<" & R25+0.5,'Asset data'!$CX25:$GJ25),0) -> 16447.64923 | X25: =IF($A25>0,SUMIF('Age profile (years)'!$CT25:$GF25,"<" & S25+0.5,'Asset data'!$CX25:$GJ25)-W25,0) -> 13262.69301 | Y25: =IF($A25>0,SUMIF('Age profile (years)'!$CT25:$GF25,"<" & T25+0.5,'Asset data'!$CX25:$GJ25)-X25-W25,0) -> 161560.4802 | Z25: =IF($A25>0,SUMIF('Age profile (years)'!$CT25:$GF25,"<" & U25+0.5,'Asset data'!$CX25:$GJ25)-Y25-X25-W25,0) -> 28365.64356 | AA25: 6333.817193 | AB25: 0.07278677972 | AC25: 0.05869219982 | AD25: 0.7149633922 | AE25: 0.1255282029 | AF25: 0.02802942539 | AI25: =IF($A25>0,'RRR hist-forc'!K25,0) -> 82.29113699 | AJ25: 18595351.53
A26: ='Asset data'!A26 -> 0 | B26: ='Asset data'!B26 -> 0 | C26: ='Asset data'!C26 -> 0 | D26: ='Asset data'!E26 -> > 66 kV & < = 132 kV; Wood | E26: 0 | F26: =IF(A26>0,SUM('Asset data'!J26:CV26),0) -> 0 | G26: =IF(A26>0,'Asset data'!F26,0) -> 0 | H26: =IF(A26>0,SUM('Asset data'!CX26:GJ26),0) -> 0 | I26: 0 | J26: 0 | K26: 0 | L26: 0 | M26: =IF($A26>0,SUMPRODUCT('Age profile (years)'!$CT26:$GF26,'Asset data'!$CX26:$GJ26)/H26-0.5,0) -> 0 | N26: 0 | O26: =IF($A26>0,'Asset data'!G26,0) -> 0 | P26: 0 | Q26: 0 | R26: 0 | S26: 0 | T26: 0 | U26: 0 | W26: =IF($A26>0,SUMIF('Age profile (years)'!$CT26:$GF26,"<" & R26+0.5,'Asset data'!$CX26:$GJ26),0) -> 0 | X26: =IF($A26>0,SUMIF('Age profile (years)'!$CT26:$GF26,"<" & S26+0.5,'Asset data'!$CX26:$GJ26)-W26,0) -> 0 | Y26: =IF($A26>0,SUMIF('Age profile (years)'!$CT26:$GF26,"<" & T26+0.5,'Asset data'!$CX26:$GJ26)-X26-W26,0) -> 0 | Z26: =IF($A26>0,SUMIF('Age profile (years)'!$CT26:$GF26,"<" & U26+0.5,'Asset data'!$CX26:$GJ26)-Y26-X26-W26,0) -> 0 | AA26: 0 | AB26: 0 | AC26: 0 | AD26: 0 | AE26: 0 | AF26: 0 | AI26: =IF($A26>0,'RRR hist-forc'!K26,0) -> 0 | AJ26: 0
A27: ='Asset data'!A27 -> 0 | B27: ='Asset data'!B27 -> 0 | C27: ='Asset data'!C27 -> 0 | D27: ='Asset data'!E27 -> > 132 kV; Wood | E27: 0 | F27: =IF(A27>0,SUM('Asset data'!J27:CV27),0) -> 0 | G27: =IF(A27>0,'Asset data'!F27,0) -> 0 | H27: =IF(A27>0,SUM('Asset data'!CX27:GJ27),0) -> 0 | I27: 0 | J27: 0 | K27: 0 | L27: 0 | M27: =IF($A27>0,SUMPRODUCT('Age profile (years)'!$CT27:$GF27,'Asset data'!$CX27:$GJ27)/H27-0.5,0) -> 0 | N27: 0 | O27: =IF($A27>0,'Asset data'!G27,0) -> 0 | P27: 0 | Q27: 0 | R27: 0 | S27: 0 | T27: 0 | U27: 0 | W27: =IF($A27>0,SUMIF('Age profile (years)'!$CT27:$GF27,"<" & R27+0.5,'Asset data'!$CX27:$GJ27),0) -> 0 | X27: =IF($A27>0,SUMIF('Age profile (years)'!$CT27:$GF27,"<" & S27+0.5,'Asset data'!$CX27:$GJ27)-W27,0) -> 0 | Y27: =IF($A27>0,SUMIF('Age profile (years)'!$CT27:$GF27,"<" & T27+0.5,'Asset data'!$CX27:$GJ27)-X27-W27,0) -> 0 | Z27: =IF($A27>0,SUMIF('Age profile (years)'!$CT27:$GF27,"<" & U27+0.5,'Asset data'!$CX27:$GJ27)-Y27-X27-W27,0) -> 0 | AA27: 0 | AB27: 0 | AC27: 0 | AD27: 0 | AE27: 0 | AF27: 0 | AI27: =IF($A27>0,'RRR hist-forc'!K27,0) -> 0 | AJ27: 0
A28: ='Asset data'!A28 -> 0 | B28: ='Asset data'!B28 -> 0 | C28: ='Asset data'!C28 -> 0 | D28: ='Asset data'!E28 -> ˂ = 1 kV; Concrete | E28: 0 | F28: =IF(A28>0,SUM('Asset data'!J28:CV28),0) -> 0 | G28: =IF(A28>0,'Asset data'!F28,0) -> 0 | H28: =IF(A28>0,SUM('Asset data'!CX28:GJ28),0) -> 0 | I28: 0 | J28: 0 | K28: 0 | L28: 0 | M28: =IF($A28>0,SUMPRODUCT('Age profile (years)'!$CT28:$GF28,'Asset data'!$CX28:$GJ28)/H28-0.5,0) -> 0 | N28: 0 | O28: =IF($A28>0,'Asset data'!G28,0) -> 0 | P28: 0 | Q28: 0 | R28: 0 | S28: 0 | T28: 0 | U28: 0 | W28: =IF($A28>0,SUMIF('Age profile (years)'!$CT28:$GF28,"<" & R28+0.5,'Asset data'!$CX28:$GJ28),0) -> 0 | X28: =IF($A28>0,SUMIF('Age profile (years)'!$CT28:$GF28,"<" & S28+0.5,'Asset data'!$CX28:$GJ28)-W28,0) -> 0 | Y28: =IF($A28>0,SUMIF('Age profile (years)'!$CT28:$GF28,"<" & T28+0.5,'Asset data'!$CX28:$GJ28)-X28-W28,0) -> 0 | Z28: =IF($A28>0,SUMIF('Age profile (years)'!$CT28:$GF28,"<" & U28+0.5,'Asset data'!$CX28:$GJ28)-Y28-X28-W28,0) -> 0 | AA28: 0 | AB28: 0 | AC28: 0 | AD28: 0 | AE28: 0 | AF28: 0 | AI28: =IF($A28>0,'RRR hist-forc'!K28,0) -> 0 | AJ28: 0
A29: ='Asset data'!A29 -> 0 | B29: ='Asset data'!B29 -> 0 | C29: ='Asset data'!C29 -> 0 | D29: ='Asset data'!E29 -> > 1 kV & < = 11 kV; Concrete | E29: 0 | F29: =IF(A29>0,SUM('Asset data'!J29:CV29),0) -> 0 | G29: =IF(A29>0,'Asset data'!F29,0) -> 0 | H29: =IF(A29>0,SUM('Asset data'!CX29:GJ29),0) -> 0 | I29: 0 | J29: 0 | K29: 0 | L29: 0 | M29: =IF($A29>0,SUMPRODUCT('Age profile (years)'!$CT29:$GF29,'Asset data'!$CX29:$GJ29)/H29-0.5,0) -> 0 | N29: 0 | O29: =IF($A29>0,'Asset data'!G29,0) -> 0 | P29: 0 | Q29: 0 | R29: 0 | S29: 0 | T29: 0 | U29: 0 | W29: =IF($A29>0,SUMIF('Age profile (years)'!$CT29:$GF29,"<" & R29+0.5,'Asset data'!$CX29:$GJ29),0) -> 0 | X29: =IF($A29>0,SUMIF('Age profile (years)'!$CT29:$GF29,"<" & S29+0.5,'Asset data'!$CX29:$GJ29)-W29,0) -> 0 | Y29: =IF($A29>0,SUMIF('Age profile (years)'!$CT29:$GF29,"<" & T29+0.5,'Asset data'!$CX29:$GJ29)-X29-W29,0) -> 0 | Z29: =IF($A29>0,SUMIF('Age profile (years)'!$CT29:$GF29,"<" & U29+0.5,'Asset data'!$CX29:$GJ29)-Y29-X29-W29,0) -> 0 | AA29: 0 | AB29: 0 | AC29: 0 | AD29: 0 | AE29: 0 | AF29: 0 | AI29: =IF($A29>0,'RRR hist-forc'!K29,0) -> 0 | AJ29: 0
A30: ='Asset data'!A30 -> 0 | B30: ='Asset data'!B30 -> 0 | C30: ='Asset data'!C30 -> 0 | D30: ='Asset data'!E30 -> ˃ 11 kV & < = 22 kV; Concrete | E30: 0 | F30: =IF(A30>0,SUM('Asset data'!J30:CV30),0) -> 0 | G30: =IF(A30>0,'Asset data'!F30,0) -> 0 | H30: =IF(A30>0,SUM('Asset data'!CX30:GJ30),0) -> 0 | I30: 0 | J30: 0 | K30: 0 | L30: 0 | M30: =IF($A30>0,SUMPRODUCT('Age profile (years)'!$CT30:$GF30,'Asset data'!$CX30:$GJ30)/H30-0.5,0) -> 0 | N30: 0 | O30: =IF($A30>0,'Asset data'!G30,0) -> 0 | P30: 0 | Q30: 0 | R30: 0 | S30: 0 | T30: 0 | U30: 0 | W30: =IF($A30>0,SUMIF('Age profile (years)'!$CT30:$GF30,"<" & R30+0.5,'Asset data'!$CX30:$GJ30),0) -> 0 | X30: =IF($A30>0,SUMIF('Age profile (years)'!$CT30:$GF30,"<" & S30+0.5,'Asset data'!$CX30:$GJ30)-W30,0) -> 0 | Y30: =IF($A30>0,SUMIF('Age profile (years)'!$CT30:$GF30,"<" & T30+0.5,'Asset data'!$CX30:$GJ30)-X30-W30,0) -> 0 | Z30: =IF($A30>0,SUMIF('Age profile (years)'!$CT30:$GF30,"<" & U30+0.5,'Asset data'!$CX30:$GJ30)-Y30-X30-W30,0) -> 0 | AA30: 0 | AB30: 0 | AC30: 0 | AD30: 0 | AE30: 0 | AF30: 0 | AI30: =IF($A30>0,'RRR hist-forc'!K30,0) -> 0 | AJ30: 0
A31: ='Asset data'!A31 -> 0 | B31: ='Asset data'!B31 -> 0 | C31: ='Asset data'!C31 -> 0 | D31: ='Asset data'!E31 -> > 22 kV & < = 66 kV; Concrete | E31: 0 | F31: =IF(A31>0,SUM('Asset data'!J31:CV31),0) -> 0 | G31: =IF(A31>0,'Asset data'!F31,0) -> 0 | H31: =IF(A31>0,SUM('Asset data'!CX31:GJ31),0) -> 0 | I31: 0 | J31: 0 | K31: 0 | L31: 0 | M31: =IF($A31>0,SUMPRODUCT('Age profile (years)'!$CT31:$GF31,'Asset data'!$CX31:$GJ31)/H31-0.5,0) -> 0 | N31: 0 | O31: =IF($A31>0,'Asset data'!G31,0) -> 0 | P31: 0 | Q31: 0 | R31: 0 | S31: 0 | T31: 0 | U31: 0 | W31: =IF($A31>0,SUMIF('Age profile (years)'!$CT31:$GF31,"<" & R31+0.5,'Asset data'!$CX31:$GJ31),0) -> 0 | X31: =IF($A31>0,SUMIF('Age profile (years)'!$CT31:$GF31,"<" & S31+0.5,'Asset data'!$CX31:$GJ31)-W31,0) -> 0 | Y31: =IF($A31>0,SUMIF('Age profile (years)'!$CT31:$GF31,"<" & T31+0.5,'Asset data'!$CX31:$GJ31)-X31-W31,0) -> 0 | Z31: =IF($A31>0,SUMIF('Age profile (years)'!$CT31:$GF31,"<" & U31+0.5,'Asset data'!$CX31:$GJ31)-Y31-X31-W31,0) -> 0 | AA31: 0 | AB31: 0 | AC31: 0 | AD31: 0 | AE31: 0 | AF31: 0 | AI31: =IF($A31>0,'RRR hist-forc'!K31,0) -> 0 | AJ31: 0
A32: ='Asset data'!A32 -> 0 | B32: ='Asset data'!B32 -> 0 | C32: ='Asset data'!C32 -> 0 | D32: ='Asset data'!E32 -> > 66 kV & < = 132 kV; Concrete | E32: 0 | F32: =IF(A32>0,SUM('Asset data'!J32:CV32),0) -> 0 | G32: =IF(A32>0,'Asset data'!F32,0) -> 0 | H32: =IF(A32>0,SUM('Asset data'!CX32:GJ32),0) -> 0 | I32: 0 | J32: 0 | K32: 0 | L32: 0 | M32: =IF($A32>0,SUMPRODUCT('Age profile (years)'!$CT32:$GF32,'Asset data'!$CX32:$GJ32)/H32-0.5,0) -> 0 | N32: 0 | O32: =IF($A32>0,'Asset data'!G32,0) -> 0 | P32: 0 | Q32: 0 | R32: 0 | S32: 0 | T32: 0 | U32: 0 | W32: =IF($A32>0,SUMIF('Age profile (years)'!$CT32:$GF32,"<" & R32+0.5,'Asset data'!$CX32:$GJ32),0) -> 0 | X32: =IF($A32>0,SUMIF('Age profile (years)'!$CT32:$GF32,"<" & S32+0.5,'Asset data'!$CX32:$GJ32)-W32,0) -> 0 | Y32: =IF($A32>0,SUMIF('Age profile (years)'!$CT32:$GF32,"<" & T32+0.5,'Asset data'!$CX32:$GJ32)-X32-W32,0) -> 0 | Z32: =IF($A32>0,SUMIF('Age profile (years)'!$CT32:$GF32,"<" & U32+0.5,'Asset data'!$CX32:$GJ32)-Y32-X32-W32,0) -> 0 | AA32: 0 | AB32: 0 | AC32: 0 | AD32: 0 | AE32: 0 | AF32: 0 | AI32: =IF($A32>0,'RRR hist-forc'!K32,0) -> 0 | AJ32: 0
A33: ='Asset data'!A33 -> 0 | B33: ='Asset data'!B33 -> 0 | C33: ='Asset data'!C33 -> 0 | D33: ='Asset data'!E33 -> > 132 kV; Concrete | E33: 0 | F33: =IF(A33>0,SUM('Asset data'!J33:CV33),0) -> 0 | G33: =IF(A33>0,'Asset data'!F33,0) -> 0 | H33: =IF(A33>0,SUM('Asset data'!CX33:GJ33),0) -> 0 | I33: 0 | J33: 0 | K33: 0 | L33: 0 | M33: =IF($A33>0,SUMPRODUCT('Age profile (years)'!$CT33:$GF33,'Asset data'!$CX33:$GJ33)/H33-0.5,0) -> 0 | N33: 0 | O33: =IF($A33>0,'Asset data'!G33,0) -> 0 | P33: 0 | Q33: 0 | R33: 0 | S33: 0 | T33: 0 | U33: 0 | W33: =IF($A33>0,SUMIF('Age profile (years)'!$CT33:$GF33,"<" & R33+0.5,'Asset data'!$CX33:$GJ33),0) -> 0 | X33: =IF($A33>0,SUMIF('Age profile (years)'!$CT33:$GF33,"<" & S33+0.5,'Asset data'!$CX33:$GJ33)-W33,0) -> 0 | Y33: =IF($A33>0,SUMIF('Age profile (years)'!$CT33:$GF33,"<" & T33+0.5,'Asset data'!$CX33:$GJ33)-X33-W33,0) -> 0 | Z33: =IF($A33>0,SUMIF('Age profile (years)'!$CT33:$GF33,"<" & U33+0.5,'Asset data'!$CX33:$GJ33)-Y33-X33-W33,0) -> 0 | AA33: 0 | AB33: 0 | AC33: 0 | AD33: 0 | AE33: 0 | AF33: 0 | AI33: =IF($A33>0,'RRR hist-forc'!K33,0) -> 0 | AJ33: 0
A34: ='Asset data'!A34 -> 0 | B34: ='Asset data'!B34 -> 0 | C34: ='Asset data'!C34 -> 0 | D34: ='Asset data'!E34 -> ˂ = 1 kV; Steel | E34: 0 | F34: =IF(A34>0,SUM('Asset data'!J34:CV34),0) -> 0 | G34: =IF(A34>0,'Asset data'!F34,0) -> 0 | H34: =IF(A34>0,SUM('Asset data'!CX34:GJ34),0) -> 0 | I34: 0 | J34: 0 | K34: 0 | L34: 0 | M34: =IF($A34>0,SUMPRODUCT('Age profile (years)'!$CT34:$GF34,'Asset data'!$CX34:$GJ34)/H34-0.5,0) -> 0 | N34: 0 | O34: =IF($A34>0,'Asset data'!G34,0) -> 0 | P34: 0 | Q34: 0 | R34: 0 | S34: 0 | T34: 0 | U34: 0 | W34: =IF($A34>0,SUMIF('Age profile (years)'!$CT34:$GF34,"<" & R34+0.5,'Asset data'!$CX34:$GJ34),0) -> 0 | X34: =IF($A34>0,SUMIF('Age profile (years)'!$CT34:$GF34,"<" & S34+0.5,'Asset data'!$CX34:$GJ34)-W34,0) -> 0 | Y34: =IF($A34>0,SUMIF('Age profile (years)'!$CT34:$GF34,"<" & T34+0.5,'Asset data'!$CX34:$GJ34)-X34-W34,0) -> 0 | Z34: =IF($A34>0,SUMIF('Age profile (years)'!$CT34:$GF34,"<" & U34+0.5,'Asset data'!$CX34:$GJ34)-Y34-X34-W34,0) -> 0 | AA34: 0 | AB34: 0 | AC34: 0 | AD34: 0 | AE34: 0 | AF34: 0 | AI34: =IF($A34>0,'RRR hist-forc'!K34,0) -> 0 | AJ34: 0
A35: ='Asset data'!A35 -> 0 | B35: ='Asset data'!B35 -> 0 | C35: ='Asset data'!C35 -> 0 | D35: ='Asset data'!E35 -> > 1 kV & < = 11 kV; Steel | E35: 0 | F35: =IF(A35>0,SUM('Asset data'!J35:CV35),0) -> 0 | G35: =IF(A35>0,'Asset data'!F35,0) -> 0 | H35: =IF(A35>0,SUM('Asset data'!CX35:GJ35),0) -> 0 | I35: 0 | J35: 0 | K35: 0 | L35: 0 | M35: =IF($A35>0,SUMPRODUCT('Age profile (years)'!$CT35:$GF35,'Asset data'!$CX35:$GJ35)/H35-0.5,0) -> 0 | N35: 0 | O35: =IF($A35>0,'Asset data'!G35,0) -> 0 | P35: 0 | Q35: 0 | R35: 0 | S35: 0 | T35: 0 | U35: 0 | W35: =IF($A35>0,SUMIF('Age profile (years)'!$CT35:$GF35,"<" & R35+0.5,'Asset data'!$CX35:$GJ35),0) -> 0 | X35: =IF($A35>0,SUMIF('Age profile (years)'!$CT35:$GF35,"<" & S35+0.5,'Asset data'!$CX35:$GJ35)-W35,0) -> 0 | Y35: =IF($A35>0,SUMIF('Age profile (years)'!$CT35:$GF35,"<" & T35+0.5,'Asset data'!$CX35:$GJ35)-X35-W35,0) -> 0 | Z35: =IF($A35>0,SUMIF('Age profile (years)'!$CT35:$GF35,"<" & U35+0.5,'Asset data'!$CX35:$GJ35)-Y35-X35-W35,0) -> 0 | AA35: 0 | AB35: 0 | AC35: 0 | AD35: 0 | AE35: 0 | AF35: 0 | AI35: =IF($A35>0,'RRR hist-forc'!K35,0) -> 0 | AJ35: 0
A36: ='Asset data'!A36 -> 0 | B36: ='Asset data'!B36 -> 0 | C36: ='Asset data'!C36 -> 0 | D36: ='Asset data'!E36 -> ˃ 11 kV & < = 22 kV; Steel | E36: 0 | F36: =IF(A36>0,SUM('Asset data'!J36:CV36),0) -> 0 | G36: =IF(A36>0,'Asset data'!F36,0) -> 0 | H36: =IF(A36>0,SUM('Asset data'!CX36:GJ36),0) -> 0 | I36: 0 | J36: 0 | K36: 0 | L36: 0 | M36: =IF($A36>0,SUMPRODUCT('Age profile (years)'!$CT36:$GF36,'Asset data'!$CX36:$GJ36)/H36-0.5,0) -> 0 | N36: 0 | O36: =IF($A36>0,'Asset data'!G36,0) -> 0 | P36: 0 | Q36: 0 | R36: 0 | S36: 0 | T36: 0 | U36: 0 | W36: =IF($A36>0,SUMIF('Age profile (years)'!$CT36:$GF36,"<" & R36+0.5,'Asset data'!$CX36:$GJ36),0) -> 0 | X36: =IF($A36>0,SUMIF('Age profile (years)'!$CT36:$GF36,"<" & S36+0.5,'Asset data'!$CX36:$GJ36)-W36,0) -> 0 | Y36: =IF($A36>0,SUMIF('Age profile (years)'!$CT36:$GF36,"<" & T36+0.5,'Asset data'!$CX36:$GJ36)-X36-W36,0) -> 0 | Z36: =IF($A36>0,SUMIF('Age profile (years)'!$CT36:$GF36,"<" & U36+0.5,'Asset data'!$CX36:$GJ36)-Y36-X36-W36,0) -> 0 | AA36: 0 | AB36: 0 | AC36: 0 | AD36: 0 | AE36: 0 | AF36: 0 | AI36: =IF($A36>0,'RRR hist-forc'!K36,0) -> 0 | AJ36: 0
A37: ='Asset data'!A37 -> 0 | B37: ='Asset data'!B37 -> 0 | C37: ='Asset data'!C37 -> 0 | D37: ='Asset data'!E37 -> > 22 kV & < = 66 kV; Steel | E37: 0 | F37: =IF(A37>0,SUM('Asset data'!J37:CV37),0) -> 0 | G37: =IF(A37>0,'Asset data'!F37,0) -> 0 | H37: =IF(A37>0,SUM('Asset data'!CX37:GJ37),0) -> 0 | I37: 0 | J37: 0 | K37: 0 | L37: 0 | M37: =IF($A37>0,SUMPRODUCT('Age profile (years)'!$CT37:$GF37,'Asset data'!$CX37:$GJ37)/H37-0.5,0) -> 0 | N37: 0 | O37: =IF($A37>0,'Asset data'!G37,0) -> 0 | P37: 0 | Q37: 0 | R37: =IF($A37>0,$O37-R$4*$O37,0) -> 0 | S37: 0 | T37: 0 | U37: 0 | W37: =IF($A37>0,SUMIF('Age profile (years)'!$CT37:$GF37,"<" & R37+0.5,'Asset data'!$CX37:$GJ37),0) -> 0 | X37: =IF($A37>0,SUMIF('Age profile (years)'!$CT37:$GF37,"<" & S37+0.5,'Asset data'!$CX37:$GJ37)-W37,0) -> 0 | Y37: =IF($A37>0,SUMIF('Age profile (years)'!$CT37:$GF37,"<" & T37+0.5,'Asset data'!$CX37:$GJ37)-X37-W37,0) -> 0 | Z37: =IF($A37>0,SUMIF('Age profile (years)'!$CT37:$GF37,"<" & U37+0.5,'Asset data'!$CX37:$GJ37)-Y37-X37-W37,0) -> 0 | AA37: 0 | AB37: 0 | AC37: 0 | AD37: 0 | AE37: 0 | AF37: 0 | AI37: =IF($A37>0,'RRR hist-forc'!K37,0) -> 0 | AJ37: 0
A38: ='Asset data'!A38 -> 0 | B38: ='Asset data'!B38 -> 0 | C38: ='Asset data'!C38 -> 0 | D38: ='Asset data'!E38 -> > 66 kV & < = 132 kV; Steel | E38: 0 | F38: =IF(A38>0,SUM('Asset data'!J38:CV38),0) -> 0 | G38: =IF(A38>0,'Asset data'!F38,0) -> 0 | H38: =IF(A38>0,SUM('Asset data'!CX38:GJ38),0) -> 0 | I38: 0 | J38: 0 | K38: 0 | L38: 0 | M38: =IF($A38>0,SUMPRODUCT('Age profile (years)'!$CT38:$GF38,'Asset data'!$CX38:$GJ38)/H38-0.5,0) -> 0 | N38: 0 | O38: =IF($A38>0,'Asset data'!G38,0) -> 0 | P38: 0 | Q38: 0 | R38: 0 | S38: 0 | T38: 0 | U38: 0 | W38: =IF($A38>0,SUMIF('Age profile (years)'!$CT38:$GF38,"<" & R38+0.5,'Asset data'!$CX38:$GJ38),0) -> 0 | X38: =IF($A38>0,SUMIF('Age profile (years)'!$CT38:$GF38,"<" & S38+0.5,'Asset data'!$CX38:$GJ38)-W38,0) -> 0 | Y38: =IF($A38>0,SUMIF('Age profile (years)'!$CT38:$GF38,"<" & T38+0.5,'Asset data'!$CX38:$GJ38)-X38-W38,0) -> 0 | Z38: =IF($A38>0,SUMIF('Age profile (years)'!$CT38:$GF38,"<" & U38+0.5,'Asset data'!$CX38:$GJ38)-Y38-X38-W38,0) -> 0 | AA38: 0 | AB38: 0 | AC38: 0 | AD38: 0 | AE38: 0 | AF38: 0 | AI38: =IF($A38>0,'RRR hist-forc'!K38,0) -> 0 | AJ38: 0
A39: ='Asset data'!A39 -> 0 | B39: ='Asset data'!B39 -> 0 | C39: ='Asset data'!C39 -> 0 | D39: ='Asset data'!E39 -> > 132 kV; Steel | E39: 0 | F39: =IF(A39>0,SUM('Asset data'!J39:CV39),0) -> 0 | G39: =IF(A39>0,'Asset data'!F39,0) -> 0 | H39: =IF(A39>0,SUM('Asset data'!CX39:GJ39),0) -> 0 | I39: 0 | J39: 0 | K39: 0 | L39: 0 | M39: =IF($A39>0,SUMPRODUCT('Age profile (years)'!$CT39:$GF39,'Asset data'!$CX39:$GJ39)/H39-0.5,0) -> 0 | N39: 0 | O39: =IF($A39>0,'Asset data'!G39,0) -> 0 | P39: 0 | Q39: 0 | R39: 0 | S39: 0 | T39: 0 | U39: 0 | W39: =IF($A39>0,SUMIF('Age profile (years)'!$CT39:$GF39,"<" & R39+0.5,'Asset data'!$CX39:$GJ39),0) -> 0 | X39: =IF($A39>0,SUMIF('Age profile (years)'!$CT39:$GF39,"<" & S39+0.5,'Asset data'!$CX39:$GJ39)-W39,0) -> 0 | Y39: =IF($A39>0,SUMIF('Age profile (years)'!$CT39:$GF39,"<" & T39+0.5,'Asset data'!$CX39:$GJ39)-X39-W39,0) -> 0 | Z39: =IF($A39>0,SUMIF('Age profile (years)'!$CT39:$GF39,"<" & U39+0.5,'Asset data'!$CX39:$GJ39)-Y39-X39-W39,0) -> 0 | AA39: 0 | AB39: 0 | AC39: 0 | AD39: 0 | AE39: 0 | AF39: 0 | AI39: =IF($A39>0,'RRR hist-forc'!K39,0) -> 0 | AJ39: 0
A40: ='Asset data'!A40 -> 0 | B40: ='Asset data'!B40 -> 0 | C40: ='Asset data'!C40 -> 0 | D40: ='Asset data'!E40 -> Other | E40: 0 | F40: =IF(A40>0,SUM('Asset data'!J40:CV40),0) -> 0 | G40: =IF(A40>0,'Asset data'!F40,0) -> 0 | H40: =IF(A40>0,SUM('Asset data'!CX40:GJ40),0) -> 0 | I40: 0 | J40: 0 | K40: 0 | L40: 0 | M40: =IF($A40>0,SUMPRODUCT('Age profile (years)'!$CT40:$GF40,'Asset data'!$CX40:$GJ40)/H40-0.5,0) -> 0 | N40: 0 | O40: =IF($A40>0,'Asset data'!G40,0) -> 0 | P40: 0 | Q40: 0 | R40: 0 | S40: 0 | T40: 0 | U40: 0 | W40: =IF($A40>0,SUMIF('Age profile (years)'!$CT40:$GF40,"<" & R40+0.5,'Asset data'!$CX40:$GJ40),0) -> 0 | X40: =IF($A40>0,SUMIF('Age profile (years)'!$CT40:$GF40,"<" & S40+0.5,'Asset data'!$CX40:$GJ40)-W40,0) -> 0 | Y40: =IF($A40>0,SUMIF('Age profile (years)'!$CT40:$GF40,"<" & T40+0.5,'Asset data'!$CX40:$GJ40)-X40-W40,0) -> 0 | Z40: =IF($A40>0,SUMIF('Age profile (years)'!$CT40:$GF40,"<" & U40+0.5,'Asset data'!$CX40:$GJ40)-Y40-X40-W40,0) -> 0 | AA40: 0 | AB40: 0 | AC40: 0 | AD40: 0 | AE40: 0 | AF40: 0 | AI40: =IF($A40>0,'RRR hist-forc'!K40,0) -> 0 | AJ40: 0
A41: ='Asset data'!A41 -> 0 | B41: ='Asset data'!B41 -> 0 | C41: ='Asset data'!C41 -> 0 | D41: ='Asset data'!E41 -> ˂ = 1 kV | E41: 0 | F41: =IF(A41>0,SUM('Asset data'!J41:CV41),0) -> 0 | G41: =IF(A41>0,'Asset data'!F41,0) -> 0 | H41: =IF(A41>0,SUM('Asset data'!CX41:GJ41),0) -> 0 | I41: 0 | J41: 0 | K41: 0 | L41: 0 | M41: =IF($A41>0,SUMPRODUCT('Age profile (years)'!$CT41:$GF41,'Asset data'!$CX41:$GJ41)/H41-0.5,0) -> 0 | N41: 0 | O41: =IF($A41>0,'Asset data'!G41,0) -> 0 | P41: 0 | Q41: 0 | R41: 0 | S41: 0 | T41: 0 | U41: 0 | W41: =IF($A41>0,SUMIF('Age profile (years)'!$CT41:$GF41,"<" & R41+0.5,'Asset data'!$CX41:$GJ41),0) -> 0 | X41: =IF($A41>0,SUMIF('Age profile (years)'!$CT41:$GF41,"<" & S41+0.5,'Asset data'!$CX41:$GJ41)-W41,0) -> 0 | Y41: =IF($A41>0,SUMIF('Age profile (years)'!$CT41:$GF41,"<" & T41+0.5,'Asset data'!$CX41:$GJ41)-X41-W41,0) -> 0 | Z41: =IF($A41>0,SUMIF('Age profile (years)'!$CT41:$GF41,"<" & U41+0.5,'Asset data'!$CX41:$GJ41)-Y41-X41-W41,0) -> 0 | AA41: 0 | AB41: 0 | AC41: 0 | AD41: 0 | AE41: 0 | AF41: 0 | AI41: =IF($A41>0,'RRR hist-forc'!K41,0) -> 0 | AJ41: 0
A42: ='Asset data'!A42 -> 0 | B42: ='Asset data'!B42 -> 0 | C42: ='Asset data'!C42 -> 0 | D42: ='Asset data'!E42 -> > 1 kV & < = 11 kV | E42: 0 | F42: =IF(A42>0,SUM('Asset data'!J42:CV42),0) -> 0 | G42: =IF(A42>0,'Asset data'!F42,0) -> 0 | H42: =IF(A42>0,SUM('Asset data'!CX42:GJ42),0) -> 0 | I42: 0 | J42: 0 | K42: 0 | L42: 0 | M42: =IF($A42>0,SUMPRODUCT('Age profile (years)'!$CT42:$GF42,'Asset data'!$CX42:$GJ42)/H42-0.5,0) -> 0 | N42: 0 | O42: =IF($A42>0,'Asset data'!G42,0) -> 0 | P42: 0 | Q42: 0 | R42: 0 | S42: 0 | T42: 0 | U42: 0 | W42: =IF($A42>0,SUMIF('Age profile (years)'!$CT42:$GF42,"<" & R42+0.5,'Asset data'!$CX42:$GJ42),0) -> 0 | X42: =IF($A42>0,SUMIF('Age profile (years)'!$CT42:$GF42,"<" & S42+0.5,'Asset data'!$CX42:$GJ42)-W42,0) -> 0 | Y42: =IF($A42>0,SUMIF('Age profile (years)'!$CT42:$GF42,"<" & T42+0.5,'Asset data'!$CX42:$GJ42)-X42-W42,0) -> 0 | Z42: =IF($A42>0,SUMIF('Age profile (years)'!$CT42:$GF42,"<" & U42+0.5,'Asset data'!$CX42:$GJ42)-Y42-X42-W42,0) -> 0 | AA42: 0 | AB42: 0 | AC42: 0 | AD42: 0 | AE42: 0 | AF42: 0 | AI42: =IF($A42>0,'RRR hist-forc'!K42,0) -> 0 | AJ42: 0
A43: ='Asset data'!A43 -> 0 | B43: ='Asset data'!B43 -> 0 | C43: ='Asset data'!C43 -> 0 | D43: ='Asset data'!E43 -> ˃ 11 kV & < = 22 kV | E43: 0 | F43: =IF(A43>0,SUM('Asset data'!J43:CV43),0) -> 0 | G43: =IF(A43>0,'Asset data'!F43,0) -> 0 | H43: =IF(A43>0,SUM('Asset data'!CX43:GJ43),0) -> 0 | I43: 0 | J43: 0 | K43: 0 | L43: 0 | M43: =IF($A43>0,SUMPRODUCT('Age profile (years)'!$CT43:$GF43,'Asset data'!$CX43:$GJ43)/H43-0.5,0) -> 0 | N43: 0 | O43: =IF($A43>0,'Asset data'!G43,0) -> 0 | P43: 0 | Q43: 0 | R43: 0 | S43: 0 | T43: 0 | U43: 0 | W43: =IF($A43>0,SUMIF('Age profile (years)'!$CT43:$GF43,"<" & R43+0.5,'Asset data'!$CX43:$GJ43),0) -> 0 | X43: =IF($A43>0,SUMIF('Age profile (years)'!$CT43:$GF43,"<" & S43+0.5,'Asset data'!$CX43:$GJ43)-W43,0) -> 0 | Y43: =IF($A43>0,SUMIF('Age profile (years)'!$CT43:$GF43,"<" & T43+0.5,'Asset data'!$CX43:$GJ43)-X43-W43,0) -> 0 | Z43: =IF($A43>0,SUMIF('Age profile (years)'!$CT43:$GF43,"<" & U43+0.5,'Asset data'!$CX43:$GJ43)-Y43-X43-W43,0) -> 0 | AA43: 0 | AB43: 0 | AC43: 0 | AD43: 0 | AE43: 0 | AF43: 0 | AI43: =IF($A43>0,'RRR hist-forc'!K43,0) -> 0 | AJ43: 0
A44: ='Asset data'!A44 -> 0 | B44: ='Asset data'!B44 -> 0 | C44: ='Asset data'!C44 -> 0 | D44: ='Asset data'!E44 -> > 22 kV & < = 66 kV | E44: 0 | F44: =IF(A44>0,SUM('Asset data'!J44:CV44),0) -> 0 | G44: =IF(A44>0,'Asset data'!F44,0) -> 0 | H44: =IF(A44>0,SUM('Asset data'!CX44:GJ44),0) -> 0 | I44: 0 | J44: 0 | K44: 0 | L44: 0 | M44: =IF($A44>0,SUMPRODUCT('Age profile (years)'!$CT44:$GF44,'Asset data'!$CX44:$GJ44)/H44-0.5,0) -> 0 | N44: 0 | O44: =IF($A44>0,'Asset data'!G44,0) -> 0 | P44: 0 | Q44: 0 | R44: 0 | S44: 0 | T44: 0 | U44: 0 | W44: =IF($A44>0,SUMIF('Age profile (years)'!$CT44:$GF44,"<" & R44+0.5,'Asset data'!$CX44:$GJ44),0) -> 0 | X44: =IF($A44>0,SUMIF('Age profile (years)'!$CT44:$GF44,"<" & S44+0.5,'Asset data'!$CX44:$GJ44)-W44,0) -> 0 | Y44: =IF($A44>0,SUMIF('Age profile (years)'!$CT44:$GF44,"<" & T44+0.5,'Asset data'!$CX44:$GJ44)-X44-W44,0) -> 0 | Z44: =IF($A44>0,SUMIF('Age profile (years)'!$CT44:$GF44,"<" & U44+0.5,'Asset data'!$CX44:$GJ44)-Y44-X44-W44,0) -> 0 | AA44: 0 | AB44: 0 | AC44: 0 | AD44: 0 | AE44: 0 | AF44: 0 | AI44: =IF($A44>0,'RRR hist-forc'!K44,0) -> 0 | AJ44: 0
A45: ='Asset data'!A45 -> 0 | B45: ='Asset data'!B45 -> 0 | C45: ='Asset data'!C45 -> 0 | D45: ='Asset data'!E45 -> > 66 kV & < = 132 kV | E45: 0 | F45: =IF(A45>0,SUM('Asset data'!J45:CV45),0) -> 0 | G45: =IF(A45>0,'Asset data'!F45,0) -> 0 | H45: =IF(A45>0,SUM('Asset data'!CX45:GJ45),0) -> 0 | I45: 0 | J45: 0 | K45: 0 | L45: 0 | M45: =IF($A45>0,SUMPRODUCT('Age profile (years)'!$CT45:$GF45,'Asset data'!$CX45:$GJ45)/H45-0.5,0) -> 0 | N45: 0 | O45: =IF($A45>0,'Asset data'!G45,0) -> 0 | P45: 0 | Q45: 0 | R45: 0 | S45: 0 | T45: 0 | U45: 0 | W45: =IF($A45>0,SUMIF('Age profile (years)'!$CT45:$GF45,"<" & R45+0.5,'Asset data'!$CX45:$GJ45),0) -> 0 | X45: =IF($A45>0,SUMIF('Age profile (years)'!$CT45:$GF45,"<" & S45+0.5,'Asset data'!$CX45:$GJ45)-W45,0) -> 0 | Y45: =IF($A45>0,SUMIF('Age profile (years)'!$CT45:$GF45,"<" & T45+0.5,'Asset data'!$CX45:$GJ45)-X45-W45,0) -> 0 | Z45: =IF($A45>0,SUMIF('Age profile (years)'!$CT45:$GF45,"<" & U45+0.5,'Asset data'!$CX45:$GJ45)-Y45-X45-W45,0) -> 0 | AA45: 0 | AB45: 0 | AC45: 0 | AD45: 0 | AE45: 0 | AF45: 0 | AI45: =IF($A45>0,'RRR hist-forc'!K45,0) -> 0 | AJ45: 0
A46: ='Asset data'!A46 -> 0 | B46: ='Asset data'!B46 -> 0 | C46: ='Asset data'!C46 -> 0 | D46: ='Asset data'!E46 -> > 132 kV | E46: 0 | F46: =IF(A46>0,SUM('Asset data'!J46:CV46),0) -> 0 | G46: =IF(A46>0,'Asset data'!F46,0) -> 0 | H46: =IF(A46>0,SUM('Asset data'!CX46:GJ46),0) -> 0 | I46: 0 | J46: 0 | K46: 0 | L46: 0 | M46: =IF($A46>0,SUMPRODUCT('Age profile (years)'!$CT46:$GF46,'Asset data'!$CX46:$GJ46)/H46-0.5,0) -> 0 | N46: 0 | O46: =IF($A46>0,'Asset data'!G46,0) -> 0 | P46: 0 | Q46: 0 | R46: 0 | S46: 0 | T46: 0 | U46: 0 | W46: =IF($A46>0,SUMIF('Age profile (years)'!$CT46:$GF46,"<" & R46+0.5,'Asset data'!$CX46:$GJ46),0) -> 0 | X46: =IF($A46>0,SUMIF('Age profile (years)'!$CT46:$GF46,"<" & S46+0.5,'Asset data'!$CX46:$GJ46)-W46,0) -> 0 | Y46: =IF($A46>0,SUMIF('Age profile (years)'!$CT46:$GF46,"<" & T46+0.5,'Asset data'!$CX46:$GJ46)-X46-W46,0) -> 0 | Z46: =IF($A46>0,SUMIF('Age profile (years)'!$CT46:$GF46,"<" & U46+0.5,'Asset data'!$CX46:$GJ46)-Y46-X46-W46,0) -> 0 | AA46: 0 | AB46: 0 | AC46: 0 | AD46: 0 | AE46: 0 | AF46: 0 | AI46: =IF($A46>0,'RRR hist-forc'!K46,0) -> 0 | AJ46: 0
A47: ='Asset data'!A47 -> 0 | B47: ='Asset data'!B47 -> 0 | C47: ='Asset data'!C47 -> 0 | D47: ='Asset data'!E47 -> Other | E47: 0 | F47: =IF(A47>0,SUM('Asset data'!J47:CV47),0) -> 0 | G47: =IF(A47>0,'Asset data'!F47,0) -> 0 | H47: =IF(A47>0,SUM('Asset data'!CX47:GJ47),0) -> 0 | I47: 0 | J47: 0 | K47: 0 | L47: 0 | M47: =IF($A47>0,SUMPRODUCT('Age profile (years)'!$CT47:$GF47,'Asset data'!$CX47:$GJ47)/H47-0.5,0) -> 0 | N47: 0 | O47: =IF($A47>0,'Asset data'!G47,0) -> 0 | P47: 0 | Q47: 0 | R47: 0 | S47: 0 | T47: 0 | U47: 0 | W47: =IF($A47>0,SUMIF('Age profile (years)'!$CT47:$GF47,"<" & R47+0.5,'Asset data'!$CX47:$GJ47),0) -> 0 | X47: =IF($A47>0,SUMIF('Age profile (years)'!$CT47:$GF47,"<" & S47+0.5,'Asset data'!$CX47:$GJ47)-W47,0) -> 0 | Y47: =IF($A47>0,SUMIF('Age profile (years)'!$CT47:$GF47,"<" & T47+0.5,'Asset data'!$CX47:$GJ47)-X47-W47,0) -> 0 | Z47: =IF($A47>0,SUMIF('Age profile (years)'!$CT47:$GF47,"<" & U47+0.5,'Asset data'!$CX47:$GJ47)-Y47-X47-W47,0) -> 0 | AA47: 0 | AB47: 0 | AC47: 0 | AD47: 0 | AE47: 0 | AF47: 0 | AI47: =IF($A47>0,'RRR hist-forc'!K47,0) -> 0 | AJ47: 0
A48: ='Asset data'!A48 -> 2 | B48: ='Asset data'!B48 -> 0 | C48: ='Asset data'!C48 -> 0 | D48: ='Asset data'!E48 -> ˂ = 1 kV | E48: OVERHEAD CONDUCTORS | F48: =IF(A48>0,SUM('Asset data'!J48:CV48),0) -> 75728 | G48: =IF(A48>0,'Asset data'!F48,0) -> 42.40554609 | H48: =IF(A48>0,SUM('Asset data'!CX48:GJ48),0) -> 3211287.195 | I48: 0.1527571017 | J48: 2 | K48: 0.5981635954 | L48: 42.40554609 | M48: =IF($A48>0,SUMPRODUCT('Age profile (years)'!$CT48:$GF48,'Asset data'!$CX48:$GJ48)/H48-0.5,0) -> 33.25998659 | N48: 106807369 | O48: =IF($A48>0,'Asset data'!G48,0) -> 85.88511198 | P48: 275801760.3 | Q48: 0.6127386247 | R48: 8.588511198 | S48: 17.1770224 | T48: 51.53106719 | U48: 68.70808958 | W48: =IF($A48>0,SUMIF('Age profile (years)'!$CT48:$GF48,"<" & R48+0.5,'Asset data'!$CX48:$GJ48),0) -> 0 | X48: =IF($A48>0,SUMIF('Age profile (years)'!$CT48:$GF48,"<" & S48+0.5,'Asset data'!$CX48:$GJ48)-W48,0) -> 9555.757265 | Y48: =IF($A48>0,SUMIF('Age profile (years)'!$CT48:$GF48,"<" & T48+0.5,'Asset data'!$CX48:$GJ48)-X48-W48,0) -> 2990752.379 | Z48: =IF($A48>0,SUMIF('Age profile (years)'!$CT48:$GF48,"<" & U48+0.5,'Asset data'!$CX48:$GJ48)-Y48-X48-W48,0) -> 129844.1105 | AA48: 81134.94828 | AB48: 0 | AC48: 0.002975678189 | AD48: 0.9313251034 | AE48: 0.04043366494 | AF48: 0.02526555346 | AI48: =IF($A48>0,'RRR hist-forc'!K48,0) -> 85.88511198 | AJ48: 275801760.3
A49: ='Asset data'!A49 -> 2 | B49: ='Asset data'!B49 -> 0 | C49: ='Asset data'!C49 -> 0 | D49: ='Asset data'!E49 -> > 1 kV & < = 11 kV | E49: OVERHEAD CONDUCTORS | F49: =IF(A49>0,SUM('Asset data'!J49:CV49),0) -> 53380.7382 | G49: =IF(A49>0,'Asset data'!F49,0) -> 19.38532173 | H49: =IF(A49>0,SUM('Asset data'!CX49:GJ49),0) -> 1034802.784 | I49: 0.04922433421 | J49: 5 | K49: 0.1927517896 | L49: 19.38532173 | M49: =IF($A49>0,SUMPRODUCT('Age profile (years)'!$CT49:$GF49,'Asset data'!$CX49:$GJ49)/H49-0.5,0) -> 22.82510975 | N49: 23619487.12 | O49: =IF($A49>0,'Asset data'!G49,0) -> 74.64392567 | P49: 77241742.09 | Q49: 0.6942134333 | R49: 7.464392567 | S49: 14.92878513 | T49: 44.7863554 | U49: 59.71514054 | W49: =IF($A49>0,SUMIF('Age profile (years)'!$CT49:$GF49,"<" & R49+0.5,'Asset data'!$CX49:$GJ49),0) -> 0 | X49: =IF($A49>0,SUMIF('Age profile (years)'!$CT49:$GF49,"<" & S49+0.5,'Asset data'!$CX49:$GJ49)-W49,0) -> 129827.3251 | Y49: =IF($A49>0,SUMIF('Age profile (years)'!$CT49:$GF49,"<" & T49+0.5,'Asset data'!$CX49:$GJ49)-X49-W49,0) -> 853020.0423 | Z49: =IF($A49>0,SUMIF('Age profile (years)'!$CT49:$GF49,"<" & U49+0.5,'Asset data'!$CX49:$GJ49)-Y49-X49-W49,0) -> 31019.24854 | AA49: 20936.16802 | AB49: 0 | AC49: 0.1254609353 | AD49: 0.8243310277 | AE49: 0.02997600028 | AF49: 0.02023203681 | AI49: =IF($A49>0,'RRR hist-forc'!K49,0) -> 74.64392567 | AJ49: 77241742.09
A50: ='Asset data'!A50 -> 2 | B50: ='Asset data'!B50 -> 0 | C50: ='Asset data'!C50 -> 0 | D50: ='Asset data'!E50 -> ˃ 11 kV & < = 22 kV ; SWER | E50: OVERHEAD CONDUCTORS | F50: =IF(A50>0,SUM('Asset data'!J50:CV50),0) -> 29118 | G50: =IF(A50>0,'Asset data'!F50,0) -> 28.77972266 | H50: =IF(A50>0,SUM('Asset data'!CX50:GJ50),0) -> 838007.9644 | I50: 0.03986303936 | J50: 6 | K50: 0.1560949945 | L50: 28.77972266 | M50: =IF($A50>0,SUMPRODUCT('Age profile (years)'!$CT50:$GF50,'Asset data'!$CX50:$GJ50)/H50-0.5,0) -> 30.05403224 | N50: 25185518.38 | O50: =IF($A50>0,'Asset data'!G50,0) -> 78.73157027 | P50: 65977682.94 | Q50: 0.6182721602 | R50: 7.873157027 | S50: 15.74631405 | T50: 47.23894216 | U50: 62.98525622 | W50: =IF($A50>0,SUMIF('Age profile (years)'!$CT50:$GF50,"<" & R50+0.5,'Asset data'!$CX50:$GJ50),0) -> 0 | X50: =IF($A50>0,SUMIF('Age profile (years)'!$CT50:$GF50,"<" & S50+0.5,'Asset data'!$CX50:$GJ50)-W50,0) -> 0 | Y50: =IF($A50>0,SUMIF('Age profile (years)'!$CT50:$GF50,"<" & T50+0.5,'Asset data'!$CX50:$GJ50)-X50-W50,0) -> 798357.6582 | Z50: =IF($A50>0,SUMIF('Age profile (years)'!$CT50:$GF50,"<" & U50+0.5,'Asset data'!$CX50:$GJ50)-Y50-X50-W50,0) -> 35534.25863 | AA50: 4116.047615 | AB50: 0 | AC50: 0 | AD50: 0.9526850484 | AE50: 0.04240324691 | AF50: 0.00491170465 | AI50: =IF($A50>0,'RRR hist-forc'!K50,0) -> 78.73157027 | AJ50: 65977682.94
A51: ='Asset data'!A51 -> 0 | B51: ='Asset data'!B51 -> 0 | C51: ='Asset data'!C51 -> 0 | D51: ='Asset data'!E51 -> ˃ 11 kV & < = 22 kV ; Single-Phase | E51: 0 | F51: =IF(A51>0,SUM('Asset data'!J51:CV51),0) -> 0 | G51: =IF(A51>0,'Asset data'!F51,0) -> 0 | H51: =IF(A51>0,SUM('Asset data'!CX51:GJ51),0) -> 0 | I51: 0 | J51: 0 | K51: 0 | L51: 0 | M51: =IF($A51>0,SUMPRODUCT('Age profile (years)'!$CT51:$GF51,'Asset data'!$CX51:$GJ51)/H51-0.5,0) -> 0 | N51: 0 | O51: =IF($A51>0,'Asset data'!G51,0) -> 0 | P51: 0 | Q51: 0 | R51: 0 | S51: 0 | T51: 0 | U51: 0 | W51: =IF($A51>0,SUMIF('Age profile (years)'!$CT51:$GF51,"<" & R51+0.5,'Asset data'!$CX51:$GJ51),0) -> 0 | X51: =IF($A51>0,SUMIF('Age profile (years)'!$CT51:$GF51,"<" & S51+0.5,'Asset data'!$CX51:$GJ51)-W51,0) -> 0 | Y51: =IF($A51>0,SUMIF('Age profile (years)'!$CT51:$GF51,"<" & T51+0.5,'Asset data'!$CX51:$GJ51)-X51-W51,0) -> 0 | Z51: =IF($A51>0,SUMIF('Age profile (years)'!$CT51:$GF51,"<" & U51+0.5,'Asset data'!$CX51:$GJ51)-Y51-X51-W51,0) -> 0 | AA51: 0 | AB51: 0 | AC51: 0 | AD51: 0 | AE51: 0 | AF51: 0 | AI51: =IF($A51>0,'RRR hist-forc'!K51,0) -> 0 | AJ51: 0
A52: ='Asset data'!A52 -> 0 | B52: ='Asset data'!B52 -> 0 | C52: ='Asset data'!C52 -> 0 | D52: ='Asset data'!E52 -> ˃ 11 kV & < = 22 kV ; Multiple-Phase | E52: 0 | F52: =IF(A52>0,SUM('Asset data'!J52:CV52),0) -> 0 | G52: =IF(A52>0,'Asset data'!F52,0) -> 0 | H52: =IF(A52>0,SUM('Asset data'!CX52:GJ52),0) -> 0 | I52: 0 | J52: 0 | K52: 0 | L52: 0 | M52: =IF($A52>0,SUMPRODUCT('Age profile (years)'!$CT52:$GF52,'Asset data'!$CX52:$GJ52)/H52-0.5,0) -> 0 | N52: 0 | O52: =IF($A52>0,'Asset data'!G52,0) -> 0 | P52: 0 | Q52: 0 | R52: 0 | S52: 0 | T52: 0 | U52: 0 | W52: =IF($A52>0,SUMIF('Age profile (years)'!$CT52:$GF52,"<" & R52+0.5,'Asset data'!$CX52:$GJ52),0) -> 0 | X52: =IF($A52>0,SUMIF('Age profile (years)'!$CT52:$GF52,"<" & S52+0.5,'Asset data'!$CX52:$GJ52)-W52,0) -> 0 | Y52: =IF($A52>0,SUMIF('Age profile (years)'!$CT52:$GF52,"<" & T52+0.5,'Asset data'!$CX52:$GJ52)-X52-W52,0) -> 0 | Z52: =IF($A52>0,SUMIF('Age profile (years)'!$CT52:$GF52,"<" & U52+0.5,'Asset data'!$CX52:$GJ52)-Y52-X52-W52,0) -> 0 | AA52: 0 | AB52: 0 | AC52: 0 | AD52: 0 | AE52: 0 | AF52: 0 | AI52: =IF($A52>0,'RRR hist-forc'!K52,0) -> 0 | AJ52: 0
A53: ='Asset data'!A53 -> 2 | B53: ='Asset data'!B53 -> 0 | C53: ='Asset data'!C53 -> 0 | D53: ='Asset data'!E53 -> > 22 kV & < = 66 kV | E53: OVERHEAD CONDUCTORS | F53: =IF(A53>0,SUM('Asset data'!J53:CV53),0) -> 16160.48273 | G53: =IF(A53>0,'Asset data'!F53,0) -> 17.00630529 | H53: =IF(A53>0,SUM('Asset data'!CX53:GJ53),0) -> 274830.1028 | I53: 0.0130733402 | J53: 13 | K53: 0.0511923576 | L53: 17.00630529 | M53: =IF($A53>0,SUMPRODUCT('Age profile (years)'!$CT53:$GF53,'Asset data'!$CX53:$GJ53)/H53-0.5,0) -> 41.03564739 | N53: 11277831.19 | O53: =IF($A53>0,'Asset data'!G53,0) -> 90.12092955 | P53: 24767944.33 | Q53: 0.544660185 | R53: 9.012092955 | S53: 18.02418591 | T53: 54.07255773 | U53: 72.09674364 | W53: =IF($A53>0,SUMIF('Age profile (years)'!$CT53:$GF53,"<" & R53+0.5,'Asset data'!$CX53:$GJ53),0) -> 8027.092657 | X53: =IF($A53>0,SUMIF('Age profile (years)'!$CT53:$GF53,"<" & S53+0.5,'Asset data'!$CX53:$GJ53)-W53,0) -> 13931.16371 | Y53: =IF($A53>0,SUMIF('Age profile (years)'!$CT53:$GF53,"<" & T53+0.5,'Asset data'!$CX53:$GJ53)-X53-W53,0) -> 200351.5281 | Z53: =IF($A53>0,SUMIF('Age profile (years)'!$CT53:$GF53,"<" & U53+0.5,'Asset data'!$CX53:$GJ53)-Y53-X53-W53,0) -> 35534.56497 | AA53: 16985.75337 | AB53: 0.02920747245 | AC53: 0.05069009389 | AD53: 0.7290013941 | AE53: 0.1292964803 | AF53: 0.06180455924 | AI53: =IF($A53>0,'RRR hist-forc'!K53,0) -> 90.12092955 | AJ53: 24767944.33
A54: ='Asset data'!A54 -> 2 | B54: ='Asset data'!B54 -> 0 | C54: ='Asset data'!C54 -> 0 | D54: ='Asset data'!E54 -> > 66 kV & < = 132 kV | E54: OVERHEAD CONDUCTORS | F54: =IF(A54>0,SUM('Asset data'!J54:CV54),0) -> 33 | G54: =IF(A54>0,'Asset data'!F54,0) -> 292.3861714 | H54: =IF(A54>0,SUM('Asset data'!CX54:GJ54),0) -> 9648.743656 | I54: 0.0004589792275 | J54: 41 | K54: 0.001797262856 | L54: 292.3861714 | M54: =IF($A54>0,SUMPRODUCT('Age profile (years)'!$CT54:$GF54,'Asset data'!$CX54:$GJ54)/H54-0.5,0) -> 72.5 | N54: 699533.915 | O54: =IF($A54>0,'Asset data'!G54,0) -> 80.71020121 | P54: 778752.0418 | Q54: 0.1017244547 | R54: 8.071020121 | S54: 16.14204024 | T54: 48.42612072 | U54: 64.56816096 | W54: =IF($A54>0,SUMIF('Age profile (years)'!$CT54:$GF54,"<" & R54+0.5,'Asset data'!$CX54:$GJ54),0) -> 0 | X54: =IF($A54>0,SUMIF('Age profile (years)'!$CT54:$GF54,"<" & S54+0.5,'Asset data'!$CX54:$GJ54)-W54,0) -> 0 | Y54: =IF($A54>0,SUMIF('Age profile (years)'!$CT54:$GF54,"<" & T54+0.5,'Asset data'!$CX54:$GJ54)-X54-W54,0) -> 0 | Z54: =IF($A54>0,SUMIF('Age profile (years)'!$CT54:$GF54,"<" & U54+0.5,'Asset data'!$CX54:$GJ54)-Y54-X54-W54,0) -> 0 | AA54: 9648.743656 | AB54: 0 | AC54: 0 | AD54: 0 | AE54: 0 | AF54: 1 | AI54: =IF($A54>0,'RRR hist-forc'!K54,0) -> 80.71020121 | AJ54: 778752.0418
A55: ='Asset data'!A55 -> 0 | B55: ='Asset data'!B55 -> 0 | C55: ='Asset data'!C55 -> 0 | D55: ='Asset data'!E55 -> > 132 kV | E55: 0 | F55: =IF(A55>0,SUM('Asset data'!J55:CV55),0) -> 0 | G55: =IF(A55>0,'Asset data'!F55,0) -> 0 | H55: =IF(A55>0,SUM('Asset data'!CX55:GJ55),0) -> 0 | I55: 0 | J55: 0 | K55: 0 | L55: 0 | M55: =IF($A55>0,SUMPRODUCT('Age profile (years)'!$CT55:$GF55,'Asset data'!$CX55:$GJ55)/H55-0.5,0) -> 0 | N55: 0 | O55: =IF($A55>0,'Asset data'!G55,0) -> 0 | P55: 0 | Q55: 0 | R55: 0 | S55: 0 | T55: 0 | U55: 0 | W55: =IF($A55>0,SUMIF('Age profile (years)'!$CT55:$GF55,"<" & R55+0.5,'Asset data'!$CX55:$GJ55),0) -> 0 | X55: =IF($A55>0,SUMIF('Age profile (years)'!$CT55:$GF55,"<" & S55+0.5,'Asset data'!$CX55:$GJ55)-W55,0) -> 0 | Y55: =IF($A55>0,SUMIF('Age profile (years)'!$CT55:$GF55,"<" & T55+0.5,'Asset data'!$CX55:$GJ55)-X55-W55,0) -> 0 | Z55: =IF($A55>0,SUMIF('Age profile (years)'!$CT55:$GF55,"<" & U55+0.5,'Asset data'!$CX55:$GJ55)-Y55-X55-W55,0) -> 0 | AA55: 0 | AB55: 0 | AC55: 0 | AD55: 0 | AE55: 0 | AF55: 0 | AI55: =IF($A55>0,'RRR hist-forc'!K55,0) -> 0 | AJ55: 0
A56: ='Asset data'!A56 -> 0 | B56: ='Asset data'!B56 -> 0 | C56: ='Asset data'!C56 -> 0 | D56: ='Asset data'!E56 -> Other | E56: 0 | F56: =IF(A56>0,SUM('Asset data'!J56:CV56),0) -> 0 | G56: =IF(A56>0,'Asset data'!F56,0) -> 0 | H56: =IF(A56>0,SUM('Asset data'!CX56:GJ56),0) -> 0 | I56: 0 | J56: 0 | K56: 0 | L56: 0 | M56: =IF($A56>0,SUMPRODUCT('Age profile (years)'!$CT56:$GF56,'Asset data'!$CX56:$GJ56)/H56-0.5,0) -> 0 | N56: 0 | O56: =IF($A56>0,'Asset data'!G56,0) -> 0 | P56: 0 | Q56: 0 | R56: 0 | S56: 0 | T56: 0 | U56: 0 | W56: =IF($A56>0,SUMIF('Age profile (years)'!$CT56:$GF56,"<" & R56+0.5,'Asset data'!$CX56:$GJ56),0) -> 0 | X56: =IF($A56>0,SUMIF('Age profile (years)'!$CT56:$GF56,"<" & S56+0.5,'Asset data'!$CX56:$GJ56)-W56,0) -> 0 | Y56: =IF($A56>0,SUMIF('Age profile (years)'!$CT56:$GF56,"<" & T56+0.5,'Asset data'!$CX56:$GJ56)-X56-W56,0) -> 0 | Z56: =IF($A56>0,SUMIF('Age profile (years)'!$CT56:$GF56,"<" & U56+0.5,'Asset data'!$CX56:$GJ56)-Y56-X56-W56,0) -> 0 | AA56: 0 | AB56: 0 | AC56: 0 | AD56: 0 | AE56: 0 | AF56: 0 | AI56: =IF($A56>0,'RRR hist-forc'!K56,0) -> 0 | AJ56: 0
A57: ='Asset data'!A57 -> 3 | B57: ='Asset data'!B57 -> 0 | C57: ='Asset data'!C57 -> 0 | D57: ='Asset data'!E57 -> ˂ = 1 kV | E57: UNDERGROUND CABLES | F57: =IF(A57>0,SUM('Asset data'!J57:CV57),0) -> 12851.06 | G57: =IF(A57>0,'Asset data'!F57,0) -> 180.9344896 | H57: =IF(A57>0,SUM('Asset data'!CX57:GJ57),0) -> 2325199.982 | I57: 0.1106069898 | J57: 4 | K57: 0.2950335232 | L57: 180.9344896 | M57: =IF($A57>0,SUMPRODUCT('Age profile (years)'!$CT57:$GF57,'Asset data'!$CX57:$GJ57)/H57-0.5,0) -> 34.70421878 | N57: 80694248.88 | O57: =IF($A57>0,'Asset data'!G57,0) -> 74.63653217 | P57: 173544863.2 | Q57: 0.5350236972 | R57: 7.463653217 | S57: 14.92730643 | T57: 44.7819193 | U57: 59.70922574 | W57: =IF($A57>0,SUMIF('Age profile (years)'!$CT57:$GF57,"<" & R57+0.5,'Asset data'!$CX57:$GJ57),0) -> 3256.363259 | X57: =IF($A57>0,SUMIF('Age profile (years)'!$CT57:$GF57,"<" & S57+0.5,'Asset data'!$CX57:$GJ57)-W57,0) -> 12822.44228 | Y57: =IF($A57>0,SUMIF('Age profile (years)'!$CT57:$GF57,"<" & T57+0.5,'Asset data'!$CX57:$GJ57)-X57-W57,0) -> 1907179.95 | Z57: =IF($A57>0,SUMIF('Age profile (years)'!$CT57:$GF57,"<" & U57+0.5,'Asset data'!$CX57:$GJ57)-Y57-X57-W57,0) -> 247332.8195 | AA57: 154608.407 | AB57: 0.001400465889 | AC57: 0.005514554609 | AD57: 0.8202219012 | AE57: 0.106370558 | AF57: 0.06649252031 | AI57: =IF($A57>0,'RRR hist-forc'!K57,0) -> 74.63653217 | AJ57: 173544863.2
A58: ='Asset data'!A58 -> 3 | B58: ='Asset data'!B58 -> 0 | C58: ='Asset data'!C58 -> 0 | D58: ='Asset data'!E58 -> > 1 kV & < = 11 kV | E58: UNDERGROUND CABLES | F58: =IF(A58>0,SUM('Asset data'!J58:CV58),0) -> 3890.690329 | G58: =IF(A58>0,'Asset data'!F58,0) -> 1299.105317 | H58: =IF(A58>0,SUM('Asset data'!CX58:GJ58),0) -> 5054416.494 | I58: 0.2404325642 | J58: 1 | K58: 0.6413307749 | L58: 1299.105317 | M58: =IF($A58>0,SUMPRODUCT('Age profile (years)'!$CT58:$GF58,'Asset data'!$CX58:$GJ58)/H58-0.5,0) -> 38.61522268 | N58: 195177418.5 | O58: =IF($A58>0,'Asset data'!G58,0) -> 68.74756675 | P58: 347478835.3 | Q58: 0.4383041538 | R58: 6.874756675 | S58: 13.74951335 | T58: 41.24854005 | U58: 54.9980534 | W58: =IF($A58>0,SUMIF('Age profile (years)'!$CT58:$GF58,"<" & R58+0.5,'Asset data'!$CX58:$GJ58),0) -> 248.6830968 | X58: =IF($A58>0,SUMIF('Age profile (years)'!$CT58:$GF58,"<" & S58+0.5,'Asset data'!$CX58:$GJ58)-W58,0) -> 209276.7335 | Y58: =IF($A58>0,SUMIF('Age profile (years)'!$CT58:$GF58,"<" & T58+0.5,'Asset data'!$CX58:$GJ58)-X58-W58,0) -> 2750936.773 | Z58: =IF($A58>0,SUMIF('Age profile (years)'!$CT58:$GF58,"<" & U58+0.5,'Asset data'!$CX58:$GJ58)-Y58-X58-W58,0) -> 429985.0057 | AA58: 1663969.299 | AB58: 4.920114855e-05 | AC58: 0.04140472669 | AD58: 0.5442639672 | AE58: 0.08507114643 | AF58: 0.3292109586 | AI58: =IF($A58>0,'RRR hist-forc'!K58,0) -> 68.74756675 | AJ58: 347478835.3
A59: ='Asset data'!A59 -> 3 | B59: ='Asset data'!B59 -> 0 | C59: ='Asset data'!C59 -> 0 | D59: ='Asset data'!E59 -> > 11 kV & < = 22 kV | E59: UNDERGROUND CABLES | F59: =IF(A59>0,SUM('Asset data'!J59:CV59),0) -> 59.07 | G59: =IF(A59>0,'Asset data'!F59,0) -> 1397.986578 | H59: =IF(A59>0,SUM('Asset data'!CX59:GJ59),0) -> 82579.06719 | I59: 0.003928187733 | J59: 24 | K59: 0.01047806353 | L59: 1397.986578 | M59: =IF($A59>0,SUMPRODUCT('Age profile (years)'!$CT59:$GF59,'Asset data'!$CX59:$GJ59)/H59-0.5,0) -> 33.09134507 | N59: 2732652.408 | O59: =IF($A59>0,'Asset data'!G59,0) -> 74.26148457 | P59: 6132444.124 | Q59: 0.5543942427 | R59: 7.426148457 | S59: 14.85229691 | T59: 44.55689074 | U59: 59.40918766 | W59: =IF($A59>0,SUMIF('Age profile (years)'!$CT59:$GF59,"<" & R59+0.5,'Asset data'!$CX59:$GJ59),0) -> 0 | X59: =IF($A59>0,SUMIF('Age profile (years)'!$CT59:$GF59,"<" & S59+0.5,'Asset data'!$CX59:$GJ59)-W59,0) -> 494.9848845 | Y59: =IF($A59>0,SUMIF('Age profile (years)'!$CT59:$GF59,"<" & T59+0.5,'Asset data'!$CX59:$GJ59)-X59-W59,0) -> 63752.23914 | Z59: =IF($A59>0,SUMIF('Age profile (years)'!$CT59:$GF59,"<" & U59+0.5,'Asset data'!$CX59:$GJ59)-Y59-X59-W59,0) -> 6102.622779 | AA59: 12229.22038 | AB59: 0 | AC59: 0.005994072122 | AD59: 0.7720145227 | AE59: 0.07390035983 | AF59: 0.1480910453 | AI59: =IF($A59>0,'RRR hist-forc'!K59,0) -> 74.26148457 | AJ59: 6132444.124
A60: ='Asset data'!A60 -> 3 | B60: ='Asset data'!B60 -> 0 | C60: ='Asset data'!C60 -> 0 | D60: ='Asset data'!E60 -> > 22 kV & < = 33 kV | E60: UNDERGROUND CABLES | F60: =IF(A60>0,SUM('Asset data'!J60:CV60),0) -> 115.379891 | G60: =IF(A60>0,'Asset data'!F60,0) -> 1614.496146 | H60: =IF(A60>0,SUM('Asset data'!CX60:GJ60),0) -> 186280.3893 | I60: 0.008861135938 | J60: 18 | K60: 0.02363622913 | L60: 1614.496146 | M60: =IF($A60>0,SUMPRODUCT('Age profile (years)'!$CT60:$GF60,'Asset data'!$CX60:$GJ60)/H60-0.5,0) -> 63.20781955 | N60: 11774377.23 | O60: =IF($A60>0,'Asset data'!G60,0) -> 92.8980692 | P60: 17305088.49 | Q60: 0.3196002878 | R60: 9.28980692 | S60: 18.57961384 | T60: 55.73884152 | U60: 74.31845536 | W60: =IF($A60>0,SUMIF('Age profile (years)'!$CT60:$GF60,"<" & R60+0.5,'Asset data'!$CX60:$GJ60),0) -> 1591.18107 | X60: =IF($A60>0,SUMIF('Age profile (years)'!$CT60:$GF60,"<" & S60+0.5,'Asset data'!$CX60:$GJ60)-W60,0) -> 9799.504395 | Y60: =IF($A60>0,SUMIF('Age profile (years)'!$CT60:$GF60,"<" & T60+0.5,'Asset data'!$CX60:$GJ60)-X60-W60,0) -> 69983.01335 | Z60: =IF($A60>0,SUMIF('Age profile (years)'!$CT60:$GF60,"<" & U60+0.5,'Asset data'!$CX60:$GJ60)-Y60-X60-W60,0) -> 11715.99891 | AA60: 93190.69156 | AB60: 0.008541860345 | AC60: 0.05260620526 | AD60: 0.3756864242 | AE60: 0.06289443003 | AF60: 0.5002710802 | AI60: =IF($A60>0,'RRR hist-forc'!K60,0) -> 92.8980692 | AJ60: 17305088.49
A61: ='Asset data'!A61 -> 3 | B61: ='Asset data'!B61 -> 0 | C61: ='Asset data'!C61 -> 0 | D61: ='Asset data'!E61 -> > 33 kV & < = 66 kV | E61: UNDERGROUND CABLES | F61: =IF(A61>0,SUM('Asset data'!J61:CV61),0) -> 54 | G61: =IF(A61>0,'Asset data'!F61,0) -> 4308.561242 | H61: =IF(A61>0,SUM('Asset data'!CX61:GJ61),0) -> 232662.3071 | I61: 0.01106746845 | J61: 15 | K61: 0.02952140922 | L61: 4308.561242 | M61: =IF($A61>0,SUMPRODUCT('Age profile (years)'!$CT61:$GF61,'Asset data'!$CX61:$GJ61)/H61-0.5,0) -> 84.53914018 | N61: 19669071.39 | O61: =IF($A61>0,'Asset data'!G61,0) -> 109.0543379 | P61: 25372833.86 | Q61: 0.2247980064 | R61: 10.90543379 | S61: 21.81086759 | T61: 65.43260276 | U61: 87.24347035 | W61: =IF($A61>0,SUMIF('Age profile (years)'!$CT61:$GF61,"<" & R61+0.5,'Asset data'!$CX61:$GJ61),0) -> 0 | X61: =IF($A61>0,SUMIF('Age profile (years)'!$CT61:$GF61,"<" & S61+0.5,'Asset data'!$CX61:$GJ61)-W61,0) -> 0 | Y61: =IF($A61>0,SUMIF('Age profile (years)'!$CT61:$GF61,"<" & T61+0.5,'Asset data'!$CX61:$GJ61)-X61-W61,0) -> 19740.22073 | Z61: =IF($A61>0,SUMIF('Age profile (years)'!$CT61:$GF61,"<" & U61+0.5,'Asset data'!$CX61:$GJ61)-Y61-X61-W61,0) -> 116129.1207 | AA61: 96792.96566 | AB61: 0 | AC61: 0 | AD61: 0.08484494536 | AE61: 0.4991316477 | AF61: 0.416023407 | AI61: =IF($A61>0,'RRR hist-forc'!K61,0) -> 109.0543379 | AJ61: 25372833.86
A62: ='Asset data'!A62 -> 0 | B62: ='Asset data'!B62 -> 0 | C62: ='Asset data'!C62 -> 0 | D62: ='Asset data'!E62 -> > 66 kV & < = 132 kV | E62: 0 | F62: =IF(A62>0,SUM('Asset data'!J62:CV62),0) -> 0 | G62: =IF(A62>0,'Asset data'!F62,0) -> 0 | H62: =IF(A62>0,SUM('Asset data'!CX62:GJ62),0) -> 0 | I62: 0 | J62: 0 | K62: 0 | L62: 0 | M62: =IF($A62>0,SUMPRODUCT('Age profile (years)'!$CT62:$GF62,'Asset data'!$CX62:$GJ62)/H62-0.5,0) -> 0 | N62: 0 | O62: =IF($A62>0,'Asset data'!G62,0) -> 0 | P62: 0 | Q62: 0 | R62: 0 | S62: 0 | T62: 0 | U62: 0 | W62: =IF($A62>0,SUMIF('Age profile (years)'!$CT62:$GF62,"<" & R62+0.5,'Asset data'!$CX62:$GJ62),0) -> 0 | X62: =IF($A62>0,SUMIF('Age profile (years)'!$CT62:$GF62,"<" & S62+0.5,'Asset data'!$CX62:$GJ62)-W62,0) -> 0 | Y62: =IF($A62>0,SUMIF('Age profile (years)'!$CT62:$GF62,"<" & T62+0.5,'Asset data'!$CX62:$GJ62)-X62-W62,0) -> 0 | Z62: =IF($A62>0,SUMIF('Age profile (years)'!$CT62:$GF62,"<" & U62+0.5,'Asset data'!$CX62:$GJ62)-Y62-X62-W62,0) -> 0 | AA62: 0 | AB62: 0 | AC62: 0 | AD62: 0 | AE62: 0 | AF62: 0 | AI62: =IF($A62>0,'RRR hist-forc'!K62,0) -> 0 | AJ62: 0
A63: ='Asset data'!A63 -> 0 | B63: ='Asset data'!B63 -> 0 | C63: ='Asset data'!C63 -> 0 | D63: ='Asset data'!E63 -> > 132 kV | E63: 0 | F63: =IF(A63>0,SUM('Asset data'!J63:CV63),0) -> 0 | G63: =IF(A63>0,'Asset data'!F63,0) -> 0 | H63: =IF(A63>0,SUM('Asset data'!CX63:GJ63),0) -> 0 | I63: 0 | J63: 0 | K63: 0 | L63: 0 | M63: =IF($A63>0,SUMPRODUCT('Age profile (years)'!$CT63:$GF63,'Asset data'!$CX63:$GJ63)/H63-0.5,0) -> 0 | N63: 0 | O63: =IF($A63>0,'Asset data'!G63,0) -> 0 | P63: 0 | Q63: 0 | R63: 0 | S63: 0 | T63: 0 | U63: 0 | W63: =IF($A63>0,SUMIF('Age profile (years)'!$CT63:$GF63,"<" & R63+0.5,'Asset data'!$CX63:$GJ63),0) -> 0 | X63: =IF($A63>0,SUMIF('Age profile (years)'!$CT63:$GF63,"<" & S63+0.5,'Asset data'!$CX63:$GJ63)-W63,0) -> 0 | Y63: =IF($A63>0,SUMIF('Age profile (years)'!$CT63:$GF63,"<" & T63+0.5,'Asset data'!$CX63:$GJ63)-X63-W63,0) -> 0 | Z63: =IF($A63>0,SUMIF('Age profile (years)'!$CT63:$GF63,"<" & U63+0.5,'Asset data'!$CX63:$GJ63)-Y63-X63-W63,0) -> 0 | AA63: 0 | AB63: 0 | AC63: 0 | AD63: 0 | AE63: 0 | AF63: 0 | AI63: =IF($A63>0,'RRR hist-forc'!K63,0) -> 0 | AJ63: 0
A64: ='Asset data'!A64 -> 0 | B64: ='Asset data'!B64 -> 0 | C64: ='Asset data'!C64 -> 0 | D64: ='Asset data'!E64 -> Other | E64: 0 | F64: =IF(A64>0,SUM('Asset data'!J64:CV64),0) -> 0 | G64: =IF(A64>0,'Asset data'!F64,0) -> 0 | H64: =IF(A64>0,SUM('Asset data'!CX64:GJ64),0) -> 0 | I64: 0 | J64: 0 | K64: 0 | L64: 0 | M64: =IF($A64>0,SUMPRODUCT('Age profile (years)'!$CT64:$GF64,'Asset data'!$CX64:$GJ64)/H64-0.5,0) -> 0 | N64: 0 | O64: =IF($A64>0,'Asset data'!G64,0) -> 0 | P64: 0 | Q64: 0 | R64: 0 | S64: 0 | T64: 0 | U64: 0 | W64: =IF($A64>0,SUMIF('Age profile (years)'!$CT64:$GF64,"<" & R64+0.5,'Asset data'!$CX64:$GJ64),0) -> 0 | X64: =IF($A64>0,SUMIF('Age profile (years)'!$CT64:$GF64,"<" & S64+0.5,'Asset data'!$CX64:$GJ64)-W64,0) -> 0 | Y64: =IF($A64>0,SUMIF('Age profile (years)'!$CT64:$GF64,"<" & T64+0.5,'Asset data'!$CX64:$GJ64)-X64-W64,0) -> 0 | Z64: =IF($A64>0,SUMIF('Age profile (years)'!$CT64:$GF64,"<" & U64+0.5,'Asset data'!$CX64:$GJ64)-Y64-X64-W64,0) -> 0 | AA64: 0 | AB64: 0 | AC64: 0 | AD64: 0 | AE64: 0 | AF64: 0 | AI64: =IF($A64>0,'RRR hist-forc'!K64,0) -> 0 | AJ64: 0
A65: ='Asset data'!A65 -> 4 | B65: ='Asset data'!B65 -> 0 | C65: ='Asset data'!C65 -> 0 | D65: ='Asset data'!E65 -> ˂ = 11 kV ; Residential ; Simple Type | E65: SERVICE LINES | F65: =IF(A65>0,SUM('Asset data'!J65:CV65),0) -> 675383 | G65: =IF(A65>0,'Asset data'!F65,0) -> 0.5321448202 | H65: =IF(A65>0,SUM('Asset data'!CX65:GJ65),0) -> 359401.5651 | I65: 0.01709630379 | J65: 11 | K65: 0.8816955732 | L65: 0.5321448202 | M65: =IF($A65>0,SUMPRODUCT('Age profile (years)'!$CT65:$GF65,'Asset data'!$CX65:$GJ65)/H65-0.5,0) -> 27.08052626 | N65: 9732783.521 | O65: =IF($A65>0,'Asset data'!G65,0) -> 56.26862234 | P65: 20223030.94 | Q65: 0.5187277539 | R65: 5.626862234 | S65: 11.25372447 | T65: 33.7611734 | U65: 45.01489787 | W65: =IF($A65>0,SUMIF('Age profile (years)'!$CT65:$GF65,"<" & R65+0.5,'Asset data'!$CX65:$GJ65),0) -> 39918.84369 | X65: =IF($A65>0,SUMIF('Age profile (years)'!$CT65:$GF65,"<" & S65+0.5,'Asset data'!$CX65:$GJ65)-W65,0) -> 25028.89947 | Y65: =IF($A65>0,SUMIF('Age profile (years)'!$CT65:$GF65,"<" & T65+0.5,'Asset data'!$CX65:$GJ65)-X65-W65,0) -> 168897.4445 | Z65: =IF($A65>0,SUMIF('Age profile (years)'!$CT65:$GF65,"<" & U65+0.5,'Asset data'!$CX65:$GJ65)-Y65-X65-W65,0) -> 73491.32825 | AA65: 52065.04921 | AB65: 0.1110703112 | AC65: 0.06964048547 | AD65: 0.4699407595 | AE65: 0.2044824936 | AF65: 0.1448659501 | AI65: =IF($A65>0,'RRR hist-forc'!K65,0) -> 56.26862234 | AJ65: 20223030.94
A66: ='Asset data'!A66 -> 0 | B66: ='Asset data'!B66 -> 0 | C66: ='Asset data'!C66 -> 0 | D66: ='Asset data'!E66 -> ˂ = 11 kV ; Commercial & Industrial ; Simple Type | E66: 0 | F66: =IF(A66>0,SUM('Asset data'!J66:CV66),0) -> 0 | G66: =IF(A66>0,'Asset data'!F66,0) -> 0 | H66: =IF(A66>0,SUM('Asset data'!CX66:GJ66),0) -> 0 | I66: 0 | J66: 0 | K66: 0 | L66: 0 | M66: =IF($A66>0,SUMPRODUCT('Age profile (years)'!$CT66:$GF66,'Asset data'!$CX66:$GJ66)/H66-0.5,0) -> 0 | N66: 0 | O66: =IF($A66>0,'Asset data'!G66,0) -> 0 | P66: 0 | Q66: 0 | R66: 0 | S66: 0 | T66: 0 | U66: 0 | W66: =IF($A66>0,SUMIF('Age profile (years)'!$CT66:$GF66,"<" & R66+0.5,'Asset data'!$CX66:$GJ66),0) -> 0 | X66: =IF($A66>0,SUMIF('Age profile (years)'!$CT66:$GF66,"<" & S66+0.5,'Asset data'!$CX66:$GJ66)-W66,0) -> 0 | Y66: =IF($A66>0,SUMIF('Age profile (years)'!$CT66:$GF66,"<" & T66+0.5,'Asset data'!$CX66:$GJ66)-X66-W66,0) -> 0 | Z66: =IF($A66>0,SUMIF('Age profile (years)'!$CT66:$GF66,"<" & U66+0.5,'Asset data'!$CX66:$GJ66)-Y66-X66-W66,0) -> 0 | AA66: 0 | AB66: 0 | AC66: 0 | AD66: 0 | AE66: 0 | AF66: 0 | AI66: =IF($A66>0,'RRR hist-forc'!K66,0) -> 0 | AJ66: 0
A67: ='Asset data'!A67 -> 0 | B67: ='Asset data'!B67 -> 0 | C67: ='Asset data'!C67 -> 0 | D67: ='Asset data'!E67 -> ˂ = 11 kV ; Residential ; Complex Type | E67: 0 | F67: =IF(A67>0,SUM('Asset data'!J67:CV67),0) -> 0 | G67: =IF(A67>0,'Asset data'!F67,0) -> 0 | H67: =IF(A67>0,SUM('Asset data'!CX67:GJ67),0) -> 0 | I67: 0 | J67: 0 | K67: 0 | L67: 0 | M67: =IF($A67>0,SUMPRODUCT('Age profile (years)'!$CT67:$GF67,'Asset data'!$CX67:$GJ67)/H67-0.5,0) -> 0 | N67: 0 | O67: =IF($A67>0,'Asset data'!G67,0) -> 0 | P67: 0 | Q67: 0 | R67: 0 | S67: 0 | T67: 0 | U67: 0 | W67: =IF($A67>0,SUMIF('Age profile (years)'!$CT67:$GF67,"<" & R67+0.5,'Asset data'!$CX67:$GJ67),0) -> 0 | X67: =IF($A67>0,SUMIF('Age profile (years)'!$CT67:$GF67,"<" & S67+0.5,'Asset data'!$CX67:$GJ67)-W67,0) -> 0 | Y67: =IF($A67>0,SUMIF('Age profile (years)'!$CT67:$GF67,"<" & T67+0.5,'Asset data'!$CX67:$GJ67)-X67-W67,0) -> 0 | Z67: =IF($A67>0,SUMIF('Age profile (years)'!$CT67:$GF67,"<" & U67+0.5,'Asset data'!$CX67:$GJ67)-Y67-X67-W67,0) -> 0 | AA67: 0 | AB67: 0 | AC67: 0 | AD67: 0 | AE67: 0 | AF67: 0 | AI67: =IF($A67>0,'RRR hist-forc'!K67,0) -> 0 | AJ67: 0
A68: ='Asset data'!A68 -> 4 | B68: ='Asset data'!B68 -> 0 | C68: ='Asset data'!C68 -> 0 | D68: ='Asset data'!E68 -> ˂ = 11 kV ; Commercial & Industrial ; Complex Type | E68: SERVICE LINES | F68: =IF(A68>0,SUM('Asset data'!J68:CV68),0) -> 83534 | G68: =IF(A68>0,'Asset data'!F68,0) -> 0.5772966287 | H68: =IF(A68>0,SUM('Asset data'!CX68:GJ68),0) -> 48223.89658 | I68: 0.002293953243 | J68: 30 | K68: 0.1183044268 | L68: 0.5772966287 | M68: =IF($A68>0,SUMPRODUCT('Age profile (years)'!$CT68:$GF68,'Asset data'!$CX68:$GJ68)/H68-0.5,0) -> 28.35413277 | N68: 1367346.766 | O68: =IF($A68>0,'Asset data'!G68,0) -> 54.77280954 | P68: 2641358.303 | Q68: 0.4823319635 | R68: 5.477280954 | S68: 10.95456191 | T68: 32.86368573 | U68: 43.81824764 | W68: =IF($A68>0,SUMIF('Age profile (years)'!$CT68:$GF68,"<" & R68+0.5,'Asset data'!$CX68:$GJ68),0) -> 3596.557997 | X68: =IF($A68>0,SUMIF('Age profile (years)'!$CT68:$GF68,"<" & S68+0.5,'Asset data'!$CX68:$GJ68)-W68,0) -> 3507.654316 | Y68: =IF($A68>0,SUMIF('Age profile (years)'!$CT68:$GF68,"<" & T68+0.5,'Asset data'!$CX68:$GJ68)-X68-W68,0) -> 21657.86032 | Z68: =IF($A68>0,SUMIF('Age profile (years)'!$CT68:$GF68,"<" & U68+0.5,'Asset data'!$CX68:$GJ68)-Y68-X68-W68,0) -> 12734.58633 | AA68: 6727.237614 | AB68: 0.07458041037 | AC68: 0.07273684967 | AD68: 0.4491105418 | AE68: 0.2640721143 | AF68: 0.1395000838 | AI68: =IF($A68>0,'RRR hist-forc'!K68,0) -> 54.77280954 | AJ68: 2641358.303
A69: ='Asset data'!A69 -> 0 | B69: ='Asset data'!B69 -> 0 | C69: ='Asset data'!C69 -> 0 | D69: ='Asset data'!E69 -> ˂ = 11 kV ; Subdivision ; Complex Type | E69: 0 | F69: =IF(A69>0,SUM('Asset data'!J69:CV69),0) -> 0 | G69: =IF(A69>0,'Asset data'!F69,0) -> 0 | H69: =IF(A69>0,SUM('Asset data'!CX69:GJ69),0) -> 0 | I69: 0 | J69: 0 | K69: 0 | L69: 0 | M69: =IF($A69>0,SUMPRODUCT('Age profile (years)'!$CT69:$GF69,'Asset data'!$CX69:$GJ69)/H69-0.5,0) -> 0 | N69: 0 | O69: =IF($A69>0,'Asset data'!G69,0) -> 0 | P69: 0 | Q69: 0 | R69: 0 | S69: 0 | T69: 0 | U69: 0 | W69: =IF($A69>0,SUMIF('Age profile (years)'!$CT69:$GF69,"<" & R69+0.5,'Asset data'!$CX69:$GJ69),0) -> 0 | X69: =IF($A69>0,SUMIF('Age profile (years)'!$CT69:$GF69,"<" & S69+0.5,'Asset data'!$CX69:$GJ69)-W69,0) -> 0 | Y69: =IF($A69>0,SUMIF('Age profile (years)'!$CT69:$GF69,"<" & T69+0.5,'Asset data'!$CX69:$GJ69)-X69-W69,0) -> 0 | Z69: =IF($A69>0,SUMIF('Age profile (years)'!$CT69:$GF69,"<" & U69+0.5,'Asset data'!$CX69:$GJ69)-Y69-X69-W69,0) -> 0 | AA69: 0 | AB69: 0 | AC69: 0 | AD69: 0 | AE69: 0 | AF69: 0 | AI69: =IF($A69>0,'RRR hist-forc'!K69,0) -> 0 | AJ69: 0
A70: ='Asset data'!A70 -> 0 | B70: ='Asset data'!B70 -> 0 | C70: ='Asset data'!C70 -> 0 | D70: ='Asset data'!E70 -> > 11 kV & < = 22 kV ; Commercial & Industrial | E70: 0 | F70: =IF(A70>0,SUM('Asset data'!J70:CV70),0) -> 0 | G70: =IF(A70>0,'Asset data'!F70,0) -> 0 | H70: =IF(A70>0,SUM('Asset data'!CX70:GJ70),0) -> 0 | I70: 0 | J70: 0 | K70: 0 | L70: 0 | M70: =IF($A70>0,SUMPRODUCT('Age profile (years)'!$CT70:$GF70,'Asset data'!$CX70:$GJ70)/H70-0.5,0) -> 0 | N70: 0 | O70: =IF($A70>0,'Asset data'!G70,0) -> 0 | P70: 0 | Q70: 0 | R70: 0 | S70: 0 | T70: 0 | U70: 0 | W70: =IF($A70>0,SUMIF('Age profile (years)'!$CT70:$GF70,"<" & R70+0.5,'Asset data'!$CX70:$GJ70),0) -> 0 | X70: =IF($A70>0,SUMIF('Age profile (years)'!$CT70:$GF70,"<" & S70+0.5,'Asset data'!$CX70:$GJ70)-W70,0) -> 0 | Y70: =IF($A70>0,SUMIF('Age profile (years)'!$CT70:$GF70,"<" & T70+0.5,'Asset data'!$CX70:$GJ70)-X70-W70,0) -> 0 | Z70: =IF($A70>0,SUMIF('Age profile (years)'!$CT70:$GF70,"<" & U70+0.5,'Asset data'!$CX70:$GJ70)-Y70-X70-W70,0) -> 0 | AA70: 0 | AB70: 0 | AC70: 0 | AD70: 0 | AE70: 0 | AF70: 0 | AI70: =IF($A70>0,'RRR hist-forc'!K70,0) -> 0 | AJ70: 0
A71: ='Asset data'!A71 -> 0 | B71: ='Asset data'!B71 -> 0 | C71: ='Asset data'!C71 -> 0 | D71: ='Asset data'!E71 -> > 11 kV & < = 22 kV ; Subdivision | E71: 0 | F71: =IF(A71>0,SUM('Asset data'!J71:CV71),0) -> 0 | G71: =IF(A71>0,'Asset data'!F71,0) -> 0 | H71: =IF(A71>0,SUM('Asset data'!CX71:GJ71),0) -> 0 | I71: 0 | J71: 0 | K71: 0 | L71: 0 | M71: =IF($A71>0,SUMPRODUCT('Age profile (years)'!$CT71:$GF71,'Asset data'!$CX71:$GJ71)/H71-0.5,0) -> 0 | N71: 0 | O71: =IF($A71>0,'Asset data'!G71,0) -> 0 | P71: 0 | Q71: 0 | R71: 0 | S71: 0 | T71: 0 | U71: 0 | W71: =IF($A71>0,SUMIF('Age profile (years)'!$CT71:$GF71,"<" & R71+0.5,'Asset data'!$CX71:$GJ71),0) -> 0 | X71: =IF($A71>0,SUMIF('Age profile (years)'!$CT71:$GF71,"<" & S71+0.5,'Asset data'!$CX71:$GJ71)-W71,0) -> 0 | Y71: =IF($A71>0,SUMIF('Age profile (years)'!$CT71:$GF71,"<" & T71+0.5,'Asset data'!$CX71:$GJ71)-X71-W71,0) -> 0 | Z71: =IF($A71>0,SUMIF('Age profile (years)'!$CT71:$GF71,"<" & U71+0.5,'Asset data'!$CX71:$GJ71)-Y71-X71-W71,0) -> 0 | AA71: 0 | AB71: 0 | AC71: 0 | AD71: 0 | AE71: 0 | AF71: 0 | AI71: =IF($A71>0,'RRR hist-forc'!K71,0) -> 0 | AJ71: 0
A72: ='Asset data'!A72 -> 0 | B72: ='Asset data'!B72 -> 0 | C72: ='Asset data'!C72 -> 0 | D72: ='Asset data'!E72 -> > 22 kV & < = 33 kV ; Commercial & Industrial | E72: 0 | F72: =IF(A72>0,SUM('Asset data'!J72:CV72),0) -> 0 | G72: =IF(A72>0,'Asset data'!F72,0) -> 0 | H72: =IF(A72>0,SUM('Asset data'!CX72:GJ72),0) -> 0 | I72: 0 | J72: 0 | K72: 0 | L72: 0 | M72: =IF($A72>0,SUMPRODUCT('Age profile (years)'!$CT72:$GF72,'Asset data'!$CX72:$GJ72)/H72-0.5,0) -> 0 | N72: 0 | O72: =IF($A72>0,'Asset data'!G72,0) -> 0 | P72: 0 | Q72: 0 | R72: 0 | S72: 0 | T72: 0 | U72: 0 | W72: =IF($A72>0,SUMIF('Age profile (years)'!$CT72:$GF72,"<" & R72+0.5,'Asset data'!$CX72:$GJ72),0) -> 0 | X72: =IF($A72>0,SUMIF('Age profile (years)'!$CT72:$GF72,"<" & S72+0.5,'Asset data'!$CX72:$GJ72)-W72,0) -> 0 | Y72: =IF($A72>0,SUMIF('Age profile (years)'!$CT72:$GF72,"<" & T72+0.5,'Asset data'!$CX72:$GJ72)-X72-W72,0) -> 0 | Z72: =IF($A72>0,SUMIF('Age profile (years)'!$CT72:$GF72,"<" & U72+0.5,'Asset data'!$CX72:$GJ72)-Y72-X72-W72,0) -> 0 | AA72: 0 | AB72: 0 | AC72: 0 | AD72: 0 | AE72: 0 | AF72: 0 | AI72: =IF($A72>0,'RRR hist-forc'!K72,0) -> 0 | AJ72: 0
A73: ='Asset data'!A73 -> 0 | B73: ='Asset data'!B73 -> 0 | C73: ='Asset data'!C73 -> 0 | D73: ='Asset data'!E73 -> > 22 kV & < = 33 kV ; Subdivision | E73: 0 | F73: =IF(A73>0,SUM('Asset data'!J73:CV73),0) -> 0 | G73: =IF(A73>0,'Asset data'!F73,0) -> 0 | H73: =IF(A73>0,SUM('Asset data'!CX73:GJ73),0) -> 0 | I73: 0 | J73: 0 | K73: 0 | L73: 0 | M73: =IF($A73>0,SUMPRODUCT('Age profile (years)'!$CT73:$GF73,'Asset data'!$CX73:$GJ73)/H73-0.5,0) -> 0 | N73: 0 | O73: =IF($A73>0,'Asset data'!G73,0) -> 0 | P73: 0 | Q73: 0 | R73: 0 | S73: 0 | T73: 0 | U73: 0 | W73: =IF($A73>0,SUMIF('Age profile (years)'!$CT73:$GF73,"<" & R73+0.5,'Asset data'!$CX73:$GJ73),0) -> 0 | X73: =IF($A73>0,SUMIF('Age profile (years)'!$CT73:$GF73,"<" & S73+0.5,'Asset data'!$CX73:$GJ73)-W73,0) -> 0 | Y73: =IF($A73>0,SUMIF('Age profile (years)'!$CT73:$GF73,"<" & T73+0.5,'Asset data'!$CX73:$GJ73)-X73-W73,0) -> 0 | Z73: =IF($A73>0,SUMIF('Age profile (years)'!$CT73:$GF73,"<" & U73+0.5,'Asset data'!$CX73:$GJ73)-Y73-X73-W73,0) -> 0 | AA73: 0 | AB73: 0 | AC73: 0 | AD73: 0 | AE73: 0 | AF73: 0 | AI73: =IF($A73>0,'RRR hist-forc'!K73,0) -> 0 | AJ73: 0
A74: ='Asset data'!A74 -> 0 | B74: ='Asset data'!B74 -> 0 | C74: ='Asset data'!C74 -> 0 | D74: ='Asset data'!E74 -> > 33 kV & < = 66 kV ; Commercial & Industrial | E74: 0 | F74: =IF(A74>0,SUM('Asset data'!J74:CV74),0) -> 0 | G74: =IF(A74>0,'Asset data'!F74,0) -> 0 | H74: =IF(A74>0,SUM('Asset data'!CX74:GJ74),0) -> 0 | I74: 0 | J74: 0 | K74: 0 | L74: 0 | M74: =IF($A74>0,SUMPRODUCT('Age profile (years)'!$CT74:$GF74,'Asset data'!$CX74:$GJ74)/H74-0.5,0) -> 0 | N74: 0 | O74: =IF($A74>0,'Asset data'!G74,0) -> 0 | P74: 0 | Q74: 0 | R74: 0 | S74: 0 | T74: 0 | U74: 0 | W74: =IF($A74>0,SUMIF('Age profile (years)'!$CT74:$GF74,"<" & R74+0.5,'Asset data'!$CX74:$GJ74),0) -> 0 | X74: =IF($A74>0,SUMIF('Age profile (years)'!$CT74:$GF74,"<" & S74+0.5,'Asset data'!$CX74:$GJ74)-W74,0) -> 0 | Y74: =IF($A74>0,SUMIF('Age profile (years)'!$CT74:$GF74,"<" & T74+0.5,'Asset data'!$CX74:$GJ74)-X74-W74,0) -> 0 | Z74: =IF($A74>0,SUMIF('Age profile (years)'!$CT74:$GF74,"<" & U74+0.5,'Asset data'!$CX74:$GJ74)-Y74-X74-W74,0) -> 0 | AA74: 0 | AB74: 0 | AC74: 0 | AD74: 0 | AE74: 0 | AF74: 0 | AI74: =IF($A74>0,'RRR hist-forc'!K74,0) -> 0 | AJ74: 0
A75: ='Asset data'!A75 -> 0 | B75: ='Asset data'!B75 -> 0 | C75: ='Asset data'!C75 -> 0 | D75: ='Asset data'!E75 -> > 33 kV & < = 66 kV ; Subdivision | E75: 0 | F75: =IF(A75>0,SUM('Asset data'!J75:CV75),0) -> 0 | G75: =IF(A75>0,'Asset data'!F75,0) -> 0 | H75: =IF(A75>0,SUM('Asset data'!CX75:GJ75),0) -> 0 | I75: 0 | J75: 0 | K75: 0 | L75: 0 | M75: =IF($A75>0,SUMPRODUCT('Age profile (years)'!$CT75:$GF75,'Asset data'!$CX75:$GJ75)/H75-0.5,0) -> 0 | N75: 0 | O75: =IF($A75>0,'Asset data'!G75,0) -> 0 | P75: 0 | Q75: 0 | R75: 0 | S75: 0 | T75: 0 | U75: 0 | W75: =IF($A75>0,SUMIF('Age profile (years)'!$CT75:$GF75,"<" & R75+0.5,'Asset data'!$CX75:$GJ75),0) -> 0 | X75: =IF($A75>0,SUMIF('Age profile (years)'!$CT75:$GF75,"<" & S75+0.5,'Asset data'!$CX75:$GJ75)-W75,0) -> 0 | Y75: =IF($A75>0,SUMIF('Age profile (years)'!$CT75:$GF75,"<" & T75+0.5,'Asset data'!$CX75:$GJ75)-X75-W75,0) -> 0 | Z75: =IF($A75>0,SUMIF('Age profile (years)'!$CT75:$GF75,"<" & U75+0.5,'Asset data'!$CX75:$GJ75)-Y75-X75-W75,0) -> 0 | AA75: 0 | AB75: 0 | AC75: 0 | AD75: 0 | AE75: 0 | AF75: 0 | AI75: =IF($A75>0,'RRR hist-forc'!K75,0) -> 0 | AJ75: 0
A76: ='Asset data'!A76 -> 0 | B76: ='Asset data'!B76 -> 0 | C76: ='Asset data'!C76 -> 0 | D76: ='Asset data'!E76 -> > 66 kV & < = 132 kV ; Commercial & Industrial | E76: 0 | F76: =IF(A76>0,SUM('Asset data'!J76:CV76),0) -> 0 | G76: =IF(A76>0,'Asset data'!F76,0) -> 0 | H76: =IF(A76>0,SUM('Asset data'!CX76:GJ76),0) -> 0 | I76: 0 | J76: 0 | K76: 0 | L76: 0 | M76: =IF($A76>0,SUMPRODUCT('Age profile (years)'!$CT76:$GF76,'Asset data'!$CX76:$GJ76)/H76-0.5,0) -> 0 | N76: 0 | O76: =IF($A76>0,'Asset data'!G76,0) -> 0 | P76: 0 | Q76: 0 | R76: 0 | S76: 0 | T76: 0 | U76: 0 | W76: =IF($A76>0,SUMIF('Age profile (years)'!$CT76:$GF76,"<" & R76+0.5,'Asset data'!$CX76:$GJ76),0) -> 0 | X76: =IF($A76>0,SUMIF('Age profile (years)'!$CT76:$GF76,"<" & S76+0.5,'Asset data'!$CX76:$GJ76)-W76,0) -> 0 | Y76: =IF($A76>0,SUMIF('Age profile (years)'!$CT76:$GF76,"<" & T76+0.5,'Asset data'!$CX76:$GJ76)-X76-W76,0) -> 0 | Z76: =IF($A76>0,SUMIF('Age profile (years)'!$CT76:$GF76,"<" & U76+0.5,'Asset data'!$CX76:$GJ76)-Y76-X76-W76,0) -> 0 | AA76: 0 | AB76: 0 | AC76: 0 | AD76: 0 | AE76: 0 | AF76: 0 | AI76: =IF($A76>0,'RRR hist-forc'!K76,0) -> 0 | AJ76: 0
A77: ='Asset data'!A77 -> 0 | B77: ='Asset data'!B77 -> 0 | C77: ='Asset data'!C77 -> 0 | D77: ='Asset data'!E77 -> > 66 kV & < = 132 kV ; Subdivision | E77: 0 | F77: =IF(A77>0,SUM('Asset data'!J77:CV77),0) -> 0 | G77: =IF(A77>0,'Asset data'!F77,0) -> 0 | H77: =IF(A77>0,SUM('Asset data'!CX77:GJ77),0) -> 0 | I77: 0 | J77: 0 | K77: 0 | L77: 0 | M77: =IF($A77>0,SUMPRODUCT('Age profile (years)'!$CT77:$GF77,'Asset data'!$CX77:$GJ77)/H77-0.5,0) -> 0 | N77: 0 | O77: =IF($A77>0,'Asset data'!G77,0) -> 0 | P77: 0 | Q77: 0 | R77: 0 | S77: 0 | T77: 0 | U77: 0 | W77: =IF($A77>0,SUMIF('Age profile (years)'!$CT77:$GF77,"<" & R77+0.5,'Asset data'!$CX77:$GJ77),0) -> 0 | X77: =IF($A77>0,SUMIF('Age profile (years)'!$CT77:$GF77,"<" & S77+0.5,'Asset data'!$CX77:$GJ77)-W77,0) -> 0 | Y77: =IF($A77>0,SUMIF('Age profile (years)'!$CT77:$GF77,"<" & T77+0.5,'Asset data'!$CX77:$GJ77)-X77-W77,0) -> 0 | Z77: =IF($A77>0,SUMIF('Age profile (years)'!$CT77:$GF77,"<" & U77+0.5,'Asset data'!$CX77:$GJ77)-Y77-X77-W77,0) -> 0 | AA77: 0 | AB77: 0 | AC77: 0 | AD77: 0 | AE77: 0 | AF77: 0 | AI77: =IF($A77>0,'RRR hist-forc'!K77,0) -> 0 | AJ77: 0
A78: ='Asset data'!A78 -> 0 | B78: ='Asset data'!B78 -> 0 | C78: ='Asset data'!C78 -> 0 | D78: ='Asset data'!E78 -> > 132 kV ; Commercial & Industrial | E78: 0 | F78: =IF(A78>0,SUM('Asset data'!J78:CV78),0) -> 0 | G78: =IF(A78>0,'Asset data'!F78,0) -> 0 | H78: =IF(A78>0,SUM('Asset data'!CX78:GJ78),0) -> 0 | I78: 0 | J78: 0 | K78: 0 | L78: 0 | M78: =IF($A78>0,SUMPRODUCT('Age profile (years)'!$CT78:$GF78,'Asset data'!$CX78:$GJ78)/H78-0.5,0) -> 0 | N78: 0 | O78: =IF($A78>0,'Asset data'!G78,0) -> 0 | P78: 0 | Q78: 0 | R78: 0 | S78: 0 | T78: 0 | U78: 0 | W78: =IF($A78>0,SUMIF('Age profile (years)'!$CT78:$GF78,"<" & R78+0.5,'Asset data'!$CX78:$GJ78),0) -> 0 | X78: =IF($A78>0,SUMIF('Age profile (years)'!$CT78:$GF78,"<" & S78+0.5,'Asset data'!$CX78:$GJ78)-W78,0) -> 0 | Y78: =IF($A78>0,SUMIF('Age profile (years)'!$CT78:$GF78,"<" & T78+0.5,'Asset data'!$CX78:$GJ78)-X78-W78,0) -> 0 | Z78: =IF($A78>0,SUMIF('Age profile (years)'!$CT78:$GF78,"<" & U78+0.5,'Asset data'!$CX78:$GJ78)-Y78-X78-W78,0) -> 0 | AA78: 0 | AB78: 0 | AC78: 0 | AD78: 0 | AE78: 0 | AF78: 0 | AI78: =IF($A78>0,'RRR hist-forc'!K78,0) -> 0 | AJ78: 0
A79: ='Asset data'!A79 -> 0 | B79: ='Asset data'!B79 -> 0 | C79: ='Asset data'!C79 -> 0 | D79: ='Asset data'!E79 -> > 132 kV ; Subdivision | E79: 0 | F79: =IF(A79>0,SUM('Asset data'!J79:CV79),0) -> 0 | G79: =IF(A79>0,'Asset data'!F79,0) -> 0 | H79: =IF(A79>0,SUM('Asset data'!CX79:GJ79),0) -> 0 | I79: 0 | J79: 0 | K79: 0 | L79: 0 | M79: =IF($A79>0,SUMPRODUCT('Age profile (years)'!$CT79:$GF79,'Asset data'!$CX79:$GJ79)/H79-0.5,0) -> 0 | N79: 0 | O79: =IF($A79>0,'Asset data'!G79,0) -> 0 | P79: 0 | Q79: 0 | R79: 0 | S79: 0 | T79: 0 | U79: 0 | W79: =IF($A79>0,SUMIF('Age profile (years)'!$CT79:$GF79,"<" & R79+0.5,'Asset data'!$CX79:$GJ79),0) -> 0 | X79: =IF($A79>0,SUMIF('Age profile (years)'!$CT79:$GF79,"<" & S79+0.5,'Asset data'!$CX79:$GJ79)-W79,0) -> 0 | Y79: =IF($A79>0,SUMIF('Age profile (years)'!$CT79:$GF79,"<" & T79+0.5,'Asset data'!$CX79:$GJ79)-X79-W79,0) -> 0 | Z79: =IF($A79>0,SUMIF('Age profile (years)'!$CT79:$GF79,"<" & U79+0.5,'Asset data'!$CX79:$GJ79)-Y79-X79-W79,0) -> 0 | AA79: 0 | AB79: 0 | AC79: 0 | AD79: 0 | AE79: 0 | AF79: 0 | AI79: =IF($A79>0,'RRR hist-forc'!K79,0) -> 0 | AJ79: 0
A80: ='Asset data'!A80 -> 0 | B80: ='Asset data'!B80 -> 0 | C80: ='Asset data'!C80 -> 0 | D80: ='Asset data'!E80 -> Other | E80: 0 | F80: =IF(A80>0,SUM('Asset data'!J80:CV80),0) -> 0 | G80: =IF(A80>0,'Asset data'!F80,0) -> 0 | H80: =IF(A80>0,SUM('Asset data'!CX80:GJ80),0) -> 0 | I80: 0 | J80: 0 | K80: 0 | L80: 0 | M80: =IF($A80>0,SUMPRODUCT('Age profile (years)'!$CT80:$GF80,'Asset data'!$CX80:$GJ80)/H80-0.5,0) -> 0 | N80: 0 | O80: =IF($A80>0,'Asset data'!G80,0) -> 0 | P80: 0 | Q80: 0 | R80: 0 | S80: 0 | T80: 0 | U80: 0 | W80: =IF($A80>0,SUMIF('Age profile (years)'!$CT80:$GF80,"<" & R80+0.5,'Asset data'!$CX80:$GJ80),0) -> 0 | X80: =IF($A80>0,SUMIF('Age profile (years)'!$CT80:$GF80,"<" & S80+0.5,'Asset data'!$CX80:$GJ80)-W80,0) -> 0 | Y80: =IF($A80>0,SUMIF('Age profile (years)'!$CT80:$GF80,"<" & T80+0.5,'Asset data'!$CX80:$GJ80)-X80-W80,0) -> 0 | Z80: =IF($A80>0,SUMIF('Age profile (years)'!$CT80:$GF80,"<" & U80+0.5,'Asset data'!$CX80:$GJ80)-Y80-X80-W80,0) -> 0 | AA80: 0 | AB80: 0 | AC80: 0 | AD80: 0 | AE80: 0 | AF80: 0 | AI80: =IF($A80>0,'RRR hist-forc'!K80,0) -> 0 | AJ80: 0
A81: ='Asset data'!A81 -> 5 | B81: ='Asset data'!B81 -> 0 | C81: ='Asset data'!C81 -> 0 | D81: ='Asset data'!E81 -> Pole Mounted ; < = 22kV ; < = 60 kVA ; Single Phase | E81: TRANSFORMERS | F81: =IF(A81>0,SUM('Asset data'!J81:CV81),0) -> 40965 | G81: =IF(A81>0,'Asset data'!F81,0) -> 11.95138222 | H81: =IF(A81>0,SUM('Asset data'!CX81:GJ81),0) -> 489588.3725 | I81: 0.02328913494 | J81: 10 | K81: 0.216642752 | L81: 11.95138222 | M81: =IF($A81>0,SUMPRODUCT('Age profile (years)'!$CT81:$GF81,'Asset data'!$CX81:$GJ81)/H81-0.5,0) -> 31.800891 | N81: 15569346.47 | O81: =IF($A81>0,'Asset data'!G81,0) -> 62.7123214 | P81: 30703223.37 | Q81: 0.4929084063 | R81: 6.27123214 | S81: 12.54246428 | T81: 37.62739284 | U81: 50.16985712 | W81: =IF($A81>0,SUMIF('Age profile (years)'!$CT81:$GF81,"<" & R81+0.5,'Asset data'!$CX81:$GJ81),0) -> 13517.01329 | X81: =IF($A81>0,SUMIF('Age profile (years)'!$CT81:$GF81,"<" & S81+0.5,'Asset data'!$CX81:$GJ81)-W81,0) -> 46000.87016 | Y81: =IF($A81>0,SUMIF('Age profile (years)'!$CT81:$GF81,"<" & T81+0.5,'Asset data'!$CX81:$GJ81)-X81-W81,0) -> 257827.1686 | Z81: =IF($A81>0,SUMIF('Age profile (years)'!$CT81:$GF81,"<" & U81+0.5,'Asset data'!$CX81:$GJ81)-Y81-X81-W81,0) -> 111446.6392 | AA81: 60796.68134 | AB81: 0.02760893446 | AC81: 0.09395825705 | AD81: 0.5266202856 | AE81: 0.2276333455 | AF81: 0.1241791773 | AI81: =IF($A81>0,'RRR hist-forc'!K81,0) -> 62.7123214 | AJ81: 30703223.37
A82: ='Asset data'!A82 -> 5 | B82: ='Asset data'!B82 -> 0 | C82: ='Asset data'!C82 -> 0 | D82: ='Asset data'!E82 -> Pole Mounted ; < = 22kV ; > 60 kVA and < = 600 kVA ; Single Phase | E82: TRANSFORMERS | F82: =IF(A82>0,SUM('Asset data'!J82:CV82),0) -> 12660 | G82: =IF(A82>0,'Asset data'!F82,0) -> 13.17130045 | H82: =IF(A82>0,SUM('Asset data'!CX82:GJ82),0) -> 166748.6636 | I82: 0.007932035046 | J82: 20 | K82: 0.07378624862 | L82: 13.17130045 | M82: =IF($A82>0,SUMPRODUCT('Age profile (years)'!$CT82:$GF82,'Asset data'!$CX82:$GJ82)/H82-0.5,0) -> 45.21666667 | N82: 7539818.741 | O82: =IF($A82>0,'Asset data'!G82,0) -> 71.88745398 | P82: 11987136.88 | Q82: 0.371007538 | R82: 7.188745398 | S82: 14.3774908 | T82: 43.13247239 | U82: 57.50996318 | W82: =IF($A82>0,SUMIF('Age profile (years)'!$CT82:$GF82,"<" & R82+0.5,'Asset data'!$CX82:$GJ82),0) -> 184.3982062 | X82: =IF($A82>0,SUMIF('Age profile (years)'!$CT82:$GF82,"<" & S82+0.5,'Asset data'!$CX82:$GJ82)-W82,0) -> 8693.058294 | Y82: =IF($A82>0,SUMIF('Age profile (years)'!$CT82:$GF82,"<" & T82+0.5,'Asset data'!$CX82:$GJ82)-X82-W82,0) -> 62695.39012 | Z82: =IF($A82>0,SUMIF('Age profile (years)'!$CT82:$GF82,"<" & U82+0.5,'Asset data'!$CX82:$GJ82)-Y82-X82-W82,0) -> 43122.83766 | AA82: 52052.97936 | AB82: 0.001105845182 | AC82: 0.05213270142 | AD82: 0.3759873618 | AE82: 0.2586097946 | AF82: 0.312164297 | AI82: =IF($A82>0,'RRR hist-forc'!K82,0) -> 71.88745398 | AJ82: 11987136.88
A83: ='Asset data'!A83 -> 5 | B83: ='Asset data'!B83 -> 0 | C83: ='Asset data'!C83 -> 0 | D83: ='Asset data'!E83 -> Pole Mounted ; < = 22kV ; > 600 kVA ; Single Phase | E83: TRANSFORMERS | F83: =IF(A83>0,SUM('Asset data'!J83:CV83),0) -> 221 | G83: =IF(A83>0,'Asset data'!F83,0) -> 13.17130045 | H83: =IF(A83>0,SUM('Asset data'!CX83:GJ83),0) -> 2910.857399 | I83: 0.0001384660146 | J83: 48 | K83: 0.001288053787 | L83: 13.17130045 | M83: =IF($A83>0,SUMPRODUCT('Age profile (years)'!$CT83:$GF83,'Asset data'!$CX83:$GJ83)/H83-0.5,0) -> 16.76244344 | N83: 48793.0825 | O83: =IF($A83>0,'Asset data'!G83,0) -> 63.48884422 | P83: 184806.9719 | Q83: 0.735978129 | R83: 6.348884422 | S83: 12.69776884 | T83: 38.09330653 | U83: 50.79107538 | W83: =IF($A83>0,SUMIF('Age profile (years)'!$CT83:$GF83,"<" & R83+0.5,'Asset data'!$CX83:$GJ83),0) -> 526.8520178 | X83: =IF($A83>0,SUMIF('Age profile (years)'!$CT83:$GF83,"<" & S83+0.5,'Asset data'!$CX83:$GJ83)-W83,0) -> 684.9076232 | Y83: =IF($A83>0,SUMIF('Age profile (years)'!$CT83:$GF83,"<" & T83+0.5,'Asset data'!$CX83:$GJ83)-X83-W83,0) -> 1514.699551 | Z83: =IF($A83>0,SUMIF('Age profile (years)'!$CT83:$GF83,"<" & U83+0.5,'Asset data'!$CX83:$GJ83)-Y83-X83-W83,0) -> 105.3704036 | AA83: 79.02780268 | AB83: 0.1809954751 | AC83: 0.2352941176 | AD83: 0.520361991 | AE83: 0.03619909502 | AF83: 0.02714932127 | AI83: =IF($A83>0,'RRR hist-forc'!K83,0) -> 63.48884422 | AJ83: 184806.9719
A84: ='Asset data'!A84 -> 5 | B84: ='Asset data'!B84 -> 0 | C84: ='Asset data'!C84 -> 0 | D84: ='Asset data'!E84 -> Pole Mounted ; < = 22kV ; < = 60 kVA ; Multiple Phase | E84: TRANSFORMERS | F84: =IF(A84>0,SUM('Asset data'!J84:CV84),0) -> 2620 | G84: =IF(A84>0,'Asset data'!F84,0) -> 16.82060787 | H84: =IF(A84>0,SUM('Asset data'!CX84:GJ84),0) -> 44069.99262 | I84: 0.002096356986 | J84: 32 | K84: 0.01950096248 | L84: 16.82060787 | M84: =IF($A84>0,SUMPRODUCT('Age profile (years)'!$CT84:$GF84,'Asset data'!$CX84:$GJ84)/H84-0.5,0) -> 25.50610687 | N84: 1124053.942 | O84: =IF($A84>0,'Asset data'!G84,0) -> 55.70732674 | P84: 2455021.479 | Q84: 0.5421408931 | R84: 5.570732674 | S84: 11.14146535 | T84: 33.42439604 | U84: 44.56586139 | W84: =IF($A84>0,SUMIF('Age profile (years)'!$CT84:$GF84,"<" & R84+0.5,'Asset data'!$CX84:$GJ84),0) -> 4642.487773 | X84: =IF($A84>0,SUMIF('Age profile (years)'!$CT84:$GF84,"<" & S84+0.5,'Asset data'!$CX84:$GJ84)-W84,0) -> 3027.709417 | Y84: =IF($A84>0,SUMIF('Age profile (years)'!$CT84:$GF84,"<" & T84+0.5,'Asset data'!$CX84:$GJ84)-X84-W84,0) -> 24759.93479 | Z84: =IF($A84>0,SUMIF('Age profile (years)'!$CT84:$GF84,"<" & U84+0.5,'Asset data'!$CX84:$GJ84)-Y84-X84-W84,0) -> 5651.724245 | AA84: 5988.136402 | AB84: 0.1053435115 | AC84: 0.06870229008 | AD84: 0.5618320611 | AE84: 0.1282442748 | AF84: 0.1358778626 | AI84: =IF($A84>0,'RRR hist-forc'!K84,0) -> 55.70732674 | AJ84: 2455021.479
A85: ='Asset data'!A85 -> 5 | B85: ='Asset data'!B85 -> 0 | C85: ='Asset data'!C85 -> 0 | D85: ='Asset data'!E85 -> Pole Mounted ; < = 22kV ; > 60 kVA and < = 600 kVA ; Multiple Phase | E85: TRANSFORMERS | F85: =IF(A85>0,SUM('Asset data'!J85:CV85),0) -> 3858 | G85: =IF(A85>0,'Asset data'!F85,0) -> 16.30476083 | H85: =IF(A85>0,SUM('Asset data'!CX85:GJ85),0) -> 62903.76727 | I85: 0.002992257183 | J85: 29 | K85: 0.0278349038 | L85: 16.30476083 | M85: =IF($A85>0,SUMPRODUCT('Age profile (years)'!$CT85:$GF85,'Asset data'!$CX85:$GJ85)/H85-0.5,0) -> 34.64437532 | N85: 2179261.722 | O85: =IF($A85>0,'Asset data'!G85,0) -> 54.85905948 | P85: 3450841.51 | Q85: 0.3684839723 | R85: 5.485905948 | S85: 10.9718119 | T85: 32.91543569 | U85: 43.88724758 | W85: =IF($A85>0,SUMIF('Age profile (years)'!$CT85:$GF85,"<" & R85+0.5,'Asset data'!$CX85:$GJ85),0) -> 5299.047268 | X85: =IF($A85>0,SUMIF('Age profile (years)'!$CT85:$GF85,"<" & S85+0.5,'Asset data'!$CX85:$GJ85)-W85,0) -> 2543.542689 | Y85: =IF($A85>0,SUMIF('Age profile (years)'!$CT85:$GF85,"<" & T85+0.5,'Asset data'!$CX85:$GJ85)-X85-W85,0) -> 21196.18907 | Z85: =IF($A85>0,SUMIF('Age profile (years)'!$CT85:$GF85,"<" & U85+0.5,'Asset data'!$CX85:$GJ85)-Y85-X85-W85,0) -> 4239.237815 | AA85: 29625.75042 | AB85: 0.08424053914 | AC85: 0.04043545879 | AD85: 0.3369621566 | AE85: 0.06739243131 | AF85: 0.4709694142 | AI85: =IF($A85>0,'RRR hist-forc'!K85,0) -> 54.85905948 | AJ85: 3450841.51
A86: ='Asset data'!A86 -> 5 | B86: ='Asset data'!B86 -> 0 | C86: ='Asset data'!C86 -> 0 | D86: ='Asset data'!E86 -> Pole Mounted ; < = 22kV ; > 600 kVA ; Multiple Phase | E86: TRANSFORMERS | F86: =IF(A86>0,SUM('Asset data'!J86:CV86),0) -> 25 | G86: =IF(A86>0,'Asset data'!F86,0) -> 46.04419824 | H86: =IF(A86>0,SUM('Asset data'!CX86:GJ86),0) -> 1151.104956 | I86: 5.475668982e-05 | J86: 54 | K86: 0.0005093637012 | L86: 46.04419824 | M86: =IF($A86>0,SUMPRODUCT('Age profile (years)'!$CT86:$GF86,'Asset data'!$CX86:$GJ86)/H86-0.5,0) -> 22.14 | N86: 25485.46373 | O86: =IF($A86>0,'Asset data'!G86,0) -> 63.48884422 | P86: 73082.32324 | Q86: 0.6512773186 | R86: 6.348884422 | S86: 12.69776884 | T86: 38.09330653 | U86: 50.79107538 | W86: =IF($A86>0,SUMIF('Age profile (years)'!$CT86:$GF86,"<" & R86+0.5,'Asset data'!$CX86:$GJ86),0) -> 184.176793 | X86: =IF($A86>0,SUMIF('Age profile (years)'!$CT86:$GF86,"<" & S86+0.5,'Asset data'!$CX86:$GJ86)-W86,0) -> 276.2651895 | Y86: =IF($A86>0,SUMIF('Age profile (years)'!$CT86:$GF86,"<" & T86+0.5,'Asset data'!$CX86:$GJ86)-X86-W86,0) -> 460.4419824 | Z86: =IF($A86>0,SUMIF('Age profile (years)'!$CT86:$GF86,"<" & U86+0.5,'Asset data'!$CX86:$GJ86)-Y86-X86-W86,0) -> 138.1325947 | AA86: 92.08839649 | AB86: 0.16 | AC86: 0.24 | AD86: 0.4 | AE86: 0.12 | AF86: 0.08 | AI86: =IF($A86>0,'RRR hist-forc'!K86,0) -> 63.48884422 | AJ86: 73082.32324
A87: ='Asset data'!A87 -> 5 | B87: ='Asset data'!B87 -> 0 | C87: ='Asset data'!C87 -> 0 | D87: ='Asset data'!E87 -> Kiosk Mounted ; < = 22kV ; < = 60 kVA ; Single Phase | E87: =IF(A87>0,VLOOKUP(A87,IDtable,2),0) -> TRANSFORMERS | F87: =IF(A87>0,SUM('Asset data'!J87:CV87),0) -> 314 | G87: =IF(A87>0,'Asset data'!F87,0) -> 47.71499164 | H87: =IF(A87>0,SUM('Asset data'!CX87:GJ87),0) -> 14982.50737 | I87: =H87/$H$18/1000 -> 0.0007127000059 | J87: =IF(RANK(0,I$21:I$205)=RANK(I87,I$21:I$205),0,RANK(I87,I$21:I$205)) -> 37 | K87: =IF(A87>0,H87/(VLOOKUP(A87,$A$6:$H$17,8)*1000),0) -> 0.006629756365 | L87: =IF($A87>0,H87/F87,0) -> 47.71499164 | M87: =IF($A87>0,SUMPRODUCT('Age profile (years)'!$CT87:$GF87,'Asset data'!$CX87:$GJ87)/H87-0.5,0) -> 36.71974522 | N87: =IF($A87>0,M87*H87,0) -> 550153.8536 | O87: =IF($A87>0,'Asset data'!G87,0) -> 59.70763576 | P87: =IF($A87>0,H87*O87,0) -> 894570.093 | Q87: =IF($A87>0,(O87-M87)/O87,0) -> 0.3850075496 | R87: 5.970763576 | S87: 11.94152715 | T87: 35.82458145 | U87: 47.76610861 | W87: =IF($A87>0,SUMIF('Age profile (years)'!$CT87:$GF87,"<" & R87+0.5,'Asset data'!$CX87:$GJ87),0) -> 572.5798997 | X87: =IF($A87>0,SUMIF('Age profile (years)'!$CT87:$GF87,"<" & S87+0.5,'Asset data'!$CX87:$GJ87)-W87,0) -> 334.0049415 | Y87: =IF($A87>0,SUMIF('Age profile (years)'!$CT87:$GF87,"<" & T87+0.5,'Asset data'!$CX87:$GJ87)-X87-W87,0) -> 6298.378896 | Z87: =IF($A87>0,SUMIF('Age profile (years)'!$CT87:$GF87,"<" & U87+0.5,'Asset data'!$CX87:$GJ87)-Y87-X87-W87,0) -> 5200.934089 | AA87: =IF($A87>0,H87-Z87-Y87-X87-W87,0) -> 2576.609548 | AB87: =IF($A87>0,W87/$H87,0) -> 0.03821656051 | AC87: =IF($A87>0,X87/$H87,0) -> 0.02229299363 | AD87: =IF($A87>0,Y87/$H87,0) -> 0.4203821656 | AE87: =IF($A87>0,Z87/$H87,0) -> 0.347133758 | AF87: =IF($A87>0,AA87/$H87,0) -> 0.1719745223 | AI87: =IF($A87>0,'RRR hist-forc'!K87,0) -> 59.70763576 | AJ87: =IF($A87>0,AI87*H87,0) -> 894570.093
A88: ='Asset data'!A88 -> 5 | B88: ='Asset data'!B88 -> 0 | C88: ='Asset data'!C88 -> 0 | D88: ='Asset data'!E88 -> Kiosk Mounted ; < = 22kV ; > 60 kVA and < = 600 kVA ; Single Phase | E88: TRANSFORMERS | F88: =IF(A88>0,SUM('Asset data'!J88:CV88),0) -> 8915 | G88: =IF(A88>0,'Asset data'!F88,0) -> 65.99544495 | H88: =IF(A88>0,SUM('Asset data'!CX88:GJ88),0) -> 588349.3917 | I88: 0.02798707883 | J88: 9 | K88: 0.2603444822 | L88: 65.99544495 | M88: =IF($A88>0,SUMPRODUCT('Age profile (years)'!$CT88:$GF88,'Asset data'!$CX88:$GJ88)/H88-0.5,0) -> 47.06264722 | N88: 27689279.87 | O88: =IF($A88>0,'Asset data'!G88,0) -> 72.70798188 | P88: 42777696.91 | Q88: 0.3527169094 | R88: 7.270798188 | S88: 14.54159638 | T88: 43.62478913 | U88: 58.1663855 | W88: =IF($A88>0,SUMIF('Age profile (years)'!$CT88:$GF88,"<" & R88+0.5,'Asset data'!$CX88:$GJ88),0) -> 0 | X88: =IF($A88>0,SUMIF('Age profile (years)'!$CT88:$GF88,"<" & S88+0.5,'Asset data'!$CX88:$GJ88)-W88,0) -> 15772.91134 | Y88: =IF($A88>0,SUMIF('Age profile (years)'!$CT88:$GF88,"<" & T88+0.5,'Asset data'!$CX88:$GJ88)-X88-W88,0) -> 210657.4603 | Z88: =IF($A88>0,SUMIF('Age profile (years)'!$CT88:$GF88,"<" & U88+0.5,'Asset data'!$CX88:$GJ88)-Y88-X88-W88,0) -> 214749.1779 | AA88: 147169.8422 | AB88: 0 | AC88: 0.0268087493 | AD88: 0.3580482333 | AE88: 0.3650028043 | AF88: 0.2501402131 | AI88: =IF($A88>0,'RRR hist-forc'!K88,0) -> 72.70798188 | AJ88: 42777696.91
A89: ='Asset data'!A89 -> 5 | B89: ='Asset data'!B89 -> 0 | C89: ='Asset data'!C89 -> 0 | D89: ='Asset data'!E89 -> Kiosk Mounted ; < = 22kV ; > 600 kVA ; Single Phase | E89: TRANSFORMERS | F89: =IF(A89>0,SUM('Asset data'!J89:CV89),0) -> 1298 | G89: =IF(A89>0,'Asset data'!F89,0) -> 65.99544495 | H89: =IF(A89>0,SUM('Asset data'!CX89:GJ89),0) -> 85662.08755 | I89: 0.004074843334 | J89: 23 | K89: 0.03790545574 | L89: 65.99544495 | M89: =IF($A89>0,SUMPRODUCT('Age profile (years)'!$CT89:$GF89,'Asset data'!$CX89:$GJ89)/H89-0.5,0) -> 36.85824345 | N89: 3157354.077 | O89: =IF($A89>0,'Asset data'!G89,0) -> 63.48884422 | P89: 5438586.932 | Q89: 0.4194532299 | R89: 6.348884422 | S89: 12.69776884 | T89: 38.09330653 | U89: 50.79107538 | W89: =IF($A89>0,SUMIF('Age profile (years)'!$CT89:$GF89,"<" & R89+0.5,'Asset data'!$CX89:$GJ89),0) -> 6071.580935 | X89: =IF($A89>0,SUMIF('Age profile (years)'!$CT89:$GF89,"<" & S89+0.5,'Asset data'!$CX89:$GJ89)-W89,0) -> 6533.54905 | Y89: =IF($A89>0,SUMIF('Age profile (years)'!$CT89:$GF89,"<" & T89+0.5,'Asset data'!$CX89:$GJ89)-X89-W89,0) -> 24418.31463 | Z89: =IF($A89>0,SUMIF('Age profile (years)'!$CT89:$GF89,"<" & U89+0.5,'Asset data'!$CX89:$GJ89)-Y89-X89-W89,0) -> 28840.00944 | AA89: 19798.63349 | AB89: 0.07087827427 | AC89: 0.07627118644 | AD89: 0.2850539291 | AE89: 0.3366718028 | AF89: 0.2311248074 | AI89: =IF($A89>0,'RRR hist-forc'!K89,0) -> 63.48884422 | AJ89: 5438586.932
A90: ='Asset data'!A90 -> 5 | B90: ='Asset data'!B90 -> 0 | C90: ='Asset data'!C90 -> 0 | D90: ='Asset data'!E90 -> Kiosk Mounted ; < = 22kV ; < = 60 kVA ; Multiple Phase | E90: TRANSFORMERS | F90: =IF(A90>0,SUM('Asset data'!J90:CV90),0) -> 20 | G90: =IF(A90>0,'Asset data'!F90,0) -> 98.19754384 | H90: =IF(A90>0,SUM('Asset data'!CX90:GJ90),0) -> 1963.950877 | I90: 9.342280077e-05 | J90: 51 | K90: 0.0008690478503 | L90: 98.19754384 | M90: =IF($A90>0,SUMPRODUCT('Age profile (years)'!$CT90:$GF90,'Asset data'!$CX90:$GJ90)/H90-0.5,0) -> 28.65 | N90: 56267.19262 | O90: =IF($A90>0,'Asset data'!G90,0) -> 55.79963172 | P90: 109587.7356 | Q90: 0.4865557511 | R90: 5.579963172 | S90: 11.15992634 | T90: 33.47977903 | U90: 44.63970538 | W90: =IF($A90>0,SUMIF('Age profile (years)'!$CT90:$GF90,"<" & R90+0.5,'Asset data'!$CX90:$GJ90),0) -> 785.5803507 | X90: =IF($A90>0,SUMIF('Age profile (years)'!$CT90:$GF90,"<" & S90+0.5,'Asset data'!$CX90:$GJ90)-W90,0) -> 0 | Y90: =IF($A90>0,SUMIF('Age profile (years)'!$CT90:$GF90,"<" & T90+0.5,'Asset data'!$CX90:$GJ90)-X90-W90,0) -> 294.5926315 | Z90: =IF($A90>0,SUMIF('Age profile (years)'!$CT90:$GF90,"<" & U90+0.5,'Asset data'!$CX90:$GJ90)-Y90-X90-W90,0) -> 0 | AA90: 883.7778946 | AB90: 0.4 | AC90: 0 | AD90: 0.15 | AE90: 0 | AF90: 0.45 | AI90: =IF($A90>0,'RRR hist-forc'!K90,0) -> 55.79963172 | AJ90: 109587.7356
A91: ='Asset data'!A91 -> 5 | B91: ='Asset data'!B91 -> 0 | C91: ='Asset data'!C91 -> 0 | D91: ='Asset data'!E91 -> Kiosk Mounted ; < = 22kV ; > 60 kVA and < = 600 kVA ; Multiple Phase | E91: TRANSFORMERS | F91: =IF(A91>0,SUM('Asset data'!J91:CV91),0) -> 2210 | G91: =IF(A91>0,'Asset data'!F91,0) -> 20.83127776 | H91: =IF(A91>0,SUM('Asset data'!CX91:GJ91),0) -> 46037.12386 | I91: 0.002189931073 | J91: 31 | K91: 0.02037141763 | L91: 20.83127776 | M91: =IF($A91>0,SUMPRODUCT('Age profile (years)'!$CT91:$GF91,'Asset data'!$CX91:$GJ91)/H91-0.5,0) -> 38.36425339 | N91: 1766179.885 | O91: =IF($A91>0,'Asset data'!G91,0) -> 55.38039241 | P91: 2549553.985 | Q91: 0.3072592713 | R91: 5.538039241 | S91: 11.07607848 | T91: 33.22823545 | U91: 44.30431393 | W91: =IF($A91>0,SUMIF('Age profile (years)'!$CT91:$GF91,"<" & R91+0.5,'Asset data'!$CX91:$GJ91),0) -> 2791.39122 | X91: =IF($A91>0,SUMIF('Age profile (years)'!$CT91:$GF91,"<" & S91+0.5,'Asset data'!$CX91:$GJ91)-W91,0) -> 645.7696107 | Y91: =IF($A91>0,SUMIF('Age profile (years)'!$CT91:$GF91,"<" & T91+0.5,'Asset data'!$CX91:$GJ91)-X91-W91,0) -> 13602.82438 | Z91: =IF($A91>0,SUMIF('Age profile (years)'!$CT91:$GF91,"<" & U91+0.5,'Asset data'!$CX91:$GJ91)-Y91-X91-W91,0) -> 4124.592997 | AA91: 24872.54565 | AB91: 0.06063348416 | AC91: 0.01402714932 | AD91: 0.2954751131 | AE91: 0.08959276018 | AF91: 0.5402714932 | AI91: =IF($A91>0,'RRR hist-forc'!K91,0) -> 55.38039241 | AJ91: 2549553.985
A92: ='Asset data'!A92 -> 5 | B92: ='Asset data'!B92 -> 0 | C92: ='Asset data'!C92 -> 0 | D92: ='Asset data'!E92 -> Kiosk Mounted ; < = 22kV ; > 600 kVA ; Multiple Phase | E92: TRANSFORMERS | F92: =IF(A92>0,SUM('Asset data'!J92:CV92),0) -> 379 | G92: =IF(A92>0,'Asset data'!F92,0) -> 69.67929396 | H92: =IF(A92>0,SUM('Asset data'!CX92:GJ92),0) -> 26408.45241 | I92: 0.001256218583 | J92: 34 | K92: 0.01168573464 | L92: 69.67929396 | M92: =IF($A92>0,SUMPRODUCT('Age profile (years)'!$CT92:$GF92,'Asset data'!$CX92:$GJ92)/H92-0.5,0) -> 48.85356201 | N92: 1290146.967 | O92: =IF($A92>0,'Asset data'!G92,0) -> 63.48884422 | P92: 1676642.121 | Q92: 0.230517383 | R92: 6.348884422 | S92: 12.69776884 | T92: 38.09330653 | U92: 50.79107538 | W92: =IF($A92>0,SUMIF('Age profile (years)'!$CT92:$GF92,"<" & R92+0.5,'Asset data'!$CX92:$GJ92),0) -> 1114.868703 | X92: =IF($A92>0,SUMIF('Age profile (years)'!$CT92:$GF92,"<" & S92+0.5,'Asset data'!$CX92:$GJ92)-W92,0) -> 1114.868703 | Y92: =IF($A92>0,SUMIF('Age profile (years)'!$CT92:$GF92,"<" & T92+0.5,'Asset data'!$CX92:$GJ92)-X92-W92,0) -> 3553.643992 | Z92: =IF($A92>0,SUMIF('Age profile (years)'!$CT92:$GF92,"<" & U92+0.5,'Asset data'!$CX92:$GJ92)-Y92-X92-W92,0) -> 3274.926816 | AA92: 17350.1442 | AB92: 0.04221635884 | AC92: 0.04221635884 | AD92: 0.1345646438 | AE92: 0.1240105541 | AF92: 0.6569920844 | AI92: =IF($A92>0,'RRR hist-forc'!K92,0) -> 63.48884422 | AJ92: 1676642.121
A93: ='Asset data'!A93 -> 5 | B93: ='Asset data'!B93 -> 0 | C93: ='Asset data'!C93 -> 0 | D93: ='Asset data'!E93 -> Ground Outdoor / Indoor Chamber Mounted; ˂ 22 kV ; < = 60 kVA ; Single Phase | E93: TRANSFORMERS | F93: =IF(A93>0,SUM('Asset data'!J93:CV93),0) -> 11 | G93: =IF(A93>0,'Asset data'!F93,0) -> 16.94501973 | H93: =IF(A93>0,SUM('Asset data'!CX93:GJ93),0) -> 186.395217 | I93: 8.866598156e-06 | J93: 56 | K93: 8.247984435e-05 | L93: 16.94501973 | M93: =IF($A93>0,SUMPRODUCT('Age profile (years)'!$CT93:$GF93,'Asset data'!$CX93:$GJ93)/H93-0.5,0) -> 19.04545455 | N93: 3549.981633 | O93: =IF($A93>0,'Asset data'!G93,0) -> 63.48884422 | P93: 11834.0169 | Q93: 0.7000188808 | R93: 6.348884422 | S93: 12.69776884 | T93: 38.09330653 | U93: 50.79107538 | W93: =IF($A93>0,SUMIF('Age profile (years)'!$CT93:$GF93,"<" & R93+0.5,'Asset data'!$CX93:$GJ93),0) -> 33.89003945 | X93: =IF($A93>0,SUMIF('Age profile (years)'!$CT93:$GF93,"<" & S93+0.5,'Asset data'!$CX93:$GJ93)-W93,0) -> 50.83505918 | Y93: =IF($A93>0,SUMIF('Age profile (years)'!$CT93:$GF93,"<" & T93+0.5,'Asset data'!$CX93:$GJ93)-X93-W93,0) -> 101.6701184 | Z93: =IF($A93>0,SUMIF('Age profile (years)'!$CT93:$GF93,"<" & U93+0.5,'Asset data'!$CX93:$GJ93)-Y93-X93-W93,0) -> 1.421085472e-14 | AA93: 1.421085472e-14 | AB93: 0.1818181818 | AC93: 0.2727272727 | AD93: 0.5454545455 | AE93: 7.624044728e-17 | AF93: 7.624044728e-17 | AI93: =IF($A93>0,'RRR hist-forc'!K93,0) -> 63.48884422 | AJ93: 11834.0169
A94: ='Asset data'!A94 -> 5 | B94: ='Asset data'!B94 -> 0 | C94: ='Asset data'!C94 -> 0 | D94: ='Asset data'!E94 -> Ground Outdoor / Indoor Chamber Mounted; ˂ 22 kV ; > 60 kVA and < = 600 kVA ; Single Phase | E94: TRANSFORMERS | F94: =IF(A94>0,SUM('Asset data'!J94:CV94),0) -> 390 | G94: =IF(A94>0,'Asset data'!F94,0) -> 80.43457638 | H94: =IF(A94>0,SUM('Asset data'!CX94:GJ94),0) -> 31369.48479 | I94: 0.001492208977 | J94: 33 | K94: 0.01388099043 | L94: 80.43457638 | M94: =IF($A94>0,SUMPRODUCT('Age profile (years)'!$CT94:$GF94,'Asset data'!$CX94:$GJ94)/H94-0.5,0) -> 34.45384615 | N94: 1080799.403 | O94: =IF($A94>0,'Asset data'!G94,0) -> 74.03917841 | P94: 2322570.881 | Q94: 0.5346538563 | R94: 7.403917841 | S94: 14.80783568 | T94: 44.42350704 | U94: 59.23134273 | W94: =IF($A94>0,SUMIF('Age profile (years)'!$CT94:$GF94,"<" & R94+0.5,'Asset data'!$CX94:$GJ94),0) -> 0 | X94: =IF($A94>0,SUMIF('Age profile (years)'!$CT94:$GF94,"<" & S94+0.5,'Asset data'!$CX94:$GJ94)-W94,0) -> 884.7803402 | Y94: =IF($A94>0,SUMIF('Age profile (years)'!$CT94:$GF94,"<" & T94+0.5,'Asset data'!$CX94:$GJ94)-X94-W94,0) -> 25095.58783 | Z94: =IF($A94>0,SUMIF('Age profile (years)'!$CT94:$GF94,"<" & U94+0.5,'Asset data'!$CX94:$GJ94)-Y94-X94-W94,0) -> 4102.163395 | AA94: 1286.953222 | AB94: 0 | AC94: 0.02820512821 | AD94: 0.8 | AE94: 0.1307692308 | AF94: 0.04102564103 | AI94: =IF($A94>0,'RRR hist-forc'!K94,0) -> 74.03917841 | AJ94: 2322570.881
A95: ='Asset data'!A95 -> 5 | B95: ='Asset data'!B95 -> 0 | C95: ='Asset data'!C95 -> 0 | D95: ='Asset data'!E95 -> Ground Outdoor / Indoor Chamber Mounted; ˂ 22 kV ; > 600 kVA ; Single Phase | E95: TRANSFORMERS | F95: =IF(A95>0,SUM('Asset data'!J95:CV95),0) -> 197 | G95: =IF(A95>0,'Asset data'!F95,0) -> 88.75628195 | H95: =IF(A95>0,SUM('Asset data'!CX95:GJ95),0) -> 17484.98754 | I95: 0.0008317400029 | J95: 35 | K95: 0.007737103314 | L95: 88.75628195 | M95: =IF($A95>0,SUMPRODUCT('Age profile (years)'!$CT95:$GF95,'Asset data'!$CX95:$GJ95)/H95-0.5,0) -> 26.75380711 | N95: 467789.984 | O95: =IF($A95>0,'Asset data'!G95,0) -> 63.48884422 | P95: 1110101.65 | Q95: 0.5786061719 | R95: 6.348884422 | S95: 12.69776884 | T95: 38.09330653 | U95: 50.79107538 | W95: =IF($A95>0,SUMIF('Age profile (years)'!$CT95:$GF95,"<" & R95+0.5,'Asset data'!$CX95:$GJ95),0) -> 887.5628195 | X95: =IF($A95>0,SUMIF('Age profile (years)'!$CT95:$GF95,"<" & S95+0.5,'Asset data'!$CX95:$GJ95)-W95,0) -> 1686.369357 | Y95: =IF($A95>0,SUMIF('Age profile (years)'!$CT95:$GF95,"<" & T95+0.5,'Asset data'!$CX95:$GJ95)-X95-W95,0) -> 11893.34178 | Z95: =IF($A95>0,SUMIF('Age profile (years)'!$CT95:$GF95,"<" & U95+0.5,'Asset data'!$CX95:$GJ95)-Y95-X95-W95,0) -> 2928.957304 | AA95: 88.75628195 | AB95: 0.05076142132 | AC95: 0.09644670051 | AD95: 0.6802030457 | AE95: 0.1675126904 | AF95: 0.005076142132 | AI95: =IF($A95>0,'RRR hist-forc'!K95,0) -> 63.48884422 | AJ95: 1110101.65
A96: ='Asset data'!A96 -> 0 | B96: ='Asset data'!B96 -> 0 | C96: ='Asset data'!C96 -> 0 | D96: ='Asset data'!E96 -> Ground Outdoor / Indoor Chamber Mounted; ˂ 22 kV ; < = 60 kVA ; Multiple Phase | E96: 0 | F96: =IF(A96>0,SUM('Asset data'!J96:CV96),0) -> 0 | G96: =IF(A96>0,'Asset data'!F96,0) -> 0 | H96: =IF(A96>0,SUM('Asset data'!CX96:GJ96),0) -> 0 | I96: 0 | J96: 0 | K96: 0 | L96: 0 | M96: =IF($A96>0,SUMPRODUCT('Age profile (years)'!$CT96:$GF96,'Asset data'!$CX96:$GJ96)/H96-0.5,0) -> 0 | N96: 0 | O96: =IF($A96>0,'Asset data'!G96,0) -> 0 | P96: 0 | Q96: 0 | R96: 0 | S96: 0 | T96: 0 | U96: 0 | W96: =IF($A96>0,SUMIF('Age profile (years)'!$CT96:$GF96,"<" & R96+0.5,'Asset data'!$CX96:$GJ96),0) -> 0 | X96: =IF($A96>0,SUMIF('Age profile (years)'!$CT96:$GF96,"<" & S96+0.5,'Asset data'!$CX96:$GJ96)-W96,0) -> 0 | Y96: =IF($A96>0,SUMIF('Age profile (years)'!$CT96:$GF96,"<" & T96+0.5,'Asset data'!$CX96:$GJ96)-X96-W96,0) -> 0 | Z96: =IF($A96>0,SUMIF('Age profile (years)'!$CT96:$GF96,"<" & U96+0.5,'Asset data'!$CX96:$GJ96)-Y96-X96-W96,0) -> 0 | AA96: 0 | AB96: 0 | AC96: 0 | AD96: 0 | AE96: 0 | AF96: 0 | AI96: =IF($A96>0,'RRR hist-forc'!K96,0) -> 0 | AJ96: 0
A97: ='Asset data'!A97 -> 5 | B97: ='Asset data'!B97 -> 0 | C97: ='Asset data'!C97 -> 0 | D97: ='Asset data'!E97 -> Ground Outdoor / Indoor Chamber Mounted; ˂ 22 kV ; > 60 kVA and < = 600 kVA ; Multiple Phase | E97: TRANSFORMERS | F97: =IF(A97>0,SUM('Asset data'!J97:CV97),0) -> 7 | G97: =IF(A97>0,'Asset data'!F97,0) -> 27.53077799 | H97: =IF(A97>0,SUM('Asset data'!CX97:GJ97),0) -> 192.7154459 | I97: 9.167243907e-06 | J97: 55 | K97: 8.527654431e-05 | L97: 27.53077799 | M97: =IF($A97>0,SUMPRODUCT('Age profile (years)'!$CT97:$GF97,'Asset data'!$CX97:$GJ97)/H97-0.5,0) -> 24.21428571 | N97: 4666.466869 | O97: =IF($A97>0,'Asset data'!G97,0) -> 67.38740508 | P97: 12986.59382 | Q97: 0.6406704534 | R97: 6.738740508 | S97: 13.47748102 | T97: 40.43244305 | U97: 53.90992406 | W97: =IF($A97>0,SUMIF('Age profile (years)'!$CT97:$GF97,"<" & R97+0.5,'Asset data'!$CX97:$GJ97),0) -> 55.06155597 | X97: =IF($A97>0,SUMIF('Age profile (years)'!$CT97:$GF97,"<" & S97+0.5,'Asset data'!$CX97:$GJ97)-W97,0) -> 55.06155597 | Y97: =IF($A97>0,SUMIF('Age profile (years)'!$CT97:$GF97,"<" & T97+0.5,'Asset data'!$CX97:$GJ97)-X97-W97,0) -> 27.53077799 | Z97: =IF($A97>0,SUMIF('Age profile (years)'!$CT97:$GF97,"<" & U97+0.5,'Asset data'!$CX97:$GJ97)-Y97-X97-W97,0) -> 1.421085472e-14 | AA97: 55.06155597 | AB97: 0.2857142857 | AC97: 0.2857142857 | AD97: 0.1428571429 | AE97: 7.374009202e-17 | AF97: 0.2857142857 | AI97: =IF($A97>0,'RRR hist-forc'!K97,0) -> 67.38740508 | AJ97: 12986.59382
A98: ='Asset data'!A98 -> 5 | B98: ='Asset data'!B98 -> 0 | C98: ='Asset data'!C98 -> 0 | D98: ='Asset data'!E98 -> Ground Outdoor / Indoor Chamber Mounted; ˂ 22 kV ; > 600 kVA ; Multiple Phase | E98: TRANSFORMERS | F98: =IF(A98>0,SUM('Asset data'!J98:CV98),0) -> 88 | G98: =IF(A98>0,'Asset data'!F98,0) -> 143.2830478 | H98: =IF(A98>0,SUM('Asset data'!CX98:GJ98),0) -> 12608.90821 | I98: 0.0005997907247 | J98: 39 | K98: 0.005579439233 | L98: 143.2830478 | M98: =IF($A98>0,SUMPRODUCT('Age profile (years)'!$CT98:$GF98,'Asset data'!$CX98:$GJ98)/H98-0.5,0) -> 22.15909091 | N98: 279401.9433 | O98: =IF($A98>0,'Asset data'!G98,0) -> 59.63000154 | P98: 751869.216 | Q98: 0.6283902342 | R98: 5.963000154 | S98: 11.92600031 | T98: 35.77800092 | U98: 47.70400123 | W98: =IF($A98>0,SUMIF('Age profile (years)'!$CT98:$GF98,"<" & R98+0.5,'Asset data'!$CX98:$GJ98),0) -> 0 | X98: =IF($A98>0,SUMIF('Age profile (years)'!$CT98:$GF98,"<" & S98+0.5,'Asset data'!$CX98:$GJ98)-W98,0) -> 2149.245718 | Y98: =IF($A98>0,SUMIF('Age profile (years)'!$CT98:$GF98,"<" & T98+0.5,'Asset data'!$CX98:$GJ98)-X98-W98,0) -> 9313.39811 | Z98: =IF($A98>0,SUMIF('Age profile (years)'!$CT98:$GF98,"<" & U98+0.5,'Asset data'!$CX98:$GJ98)-Y98-X98-W98,0) -> 716.4152392 | AA98: 429.8491435 | AB98: 0 | AC98: 0.1704545455 | AD98: 0.7386363636 | AE98: 0.05681818182 | AF98: 0.03409090909 | AI98: =IF($A98>0,'RRR hist-forc'!K98,0) -> 59.63000154 | AJ98: 751869.216
A99: ='Asset data'!A99 -> 5 | B99: ='Asset data'!B99 -> 0 | C99: ='Asset data'!C99 -> 0 | D99: ='Asset data'!E99 -> Ground Outdoor / Indoor Chamber Mounted; > = 22 kV & < = 33 kV ; < = 15 MVA | E99: TRANSFORMERS | F99: =IF(A99>0,SUM('Asset data'!J99:CV99),0) -> 436 | G99: =IF(A99>0,'Asset data'!F99,0) -> 378.646592 | H99: =IF(A99>0,SUM('Asset data'!CX99:GJ99),0) -> 165089.9141 | I99: 0.00785313031 | J99: 21 | K99: 0.07305225231 | L99: 378.646592 | M99: =IF($A99>0,SUMPRODUCT('Age profile (years)'!$CT99:$GF99,'Asset data'!$CX99:$GJ99)/H99-0.5,0) -> 29.58715596 | N99: 4884541.037 | O99: =IF($A99>0,'Asset data'!G99,0) -> 62.74431517 | P99: 10358453.6 | Q99: 0.5284488183 | R99: 6.274431517 | S99: 12.54886303 | T99: 37.6465891 | U99: 50.19545214 | W99: =IF($A99>0,SUMIF('Age profile (years)'!$CT99:$GF99,"<" & R99+0.5,'Asset data'!$CX99:$GJ99),0) -> 20068.26938 | X99: =IF($A99>0,SUMIF('Age profile (years)'!$CT99:$GF99,"<" & S99+0.5,'Asset data'!$CX99:$GJ99)-W99,0) -> 12873.98413 | Y99: =IF($A99>0,SUMIF('Age profile (years)'!$CT99:$GF99,"<" & T99+0.5,'Asset data'!$CX99:$GJ99)-X99-W99,0) -> 81409.01729 | Z99: =IF($A99>0,SUMIF('Age profile (years)'!$CT99:$GF99,"<" & U99+0.5,'Asset data'!$CX99:$GJ99)-Y99-X99-W99,0) -> 27641.20122 | AA99: 23097.44211 | AB99: 0.121559633 | AC99: 0.07798165138 | AD99: 0.4931192661 | AE99: 0.1674311927 | AF99: 0.1399082569 | AI99: =IF($A99>0,'RRR hist-forc'!K99,0) -> 62.74431517 | AJ99: 10358453.6
A100: ='Asset data'!A100 -> 5 | B100: ='Asset data'!B100 -> 0 | C100: ='Asset data'!C100 -> 0 | D100: ='Asset data'!E100 -> Ground Outdoor / Indoor Chamber Mounted; > = 22 kV & < = 33 kV ; > 15 MVA and < = 40 MVA | E100: TRANSFORMERS | F100: =IF(A100>0,SUM('Asset data'!J100:CV100),0) -> 5 | G100: =IF(A100>0,'Asset data'!F100,0) -> 1844.005796 | H100: =IF(A100>0,SUM('Asset data'!CX100:GJ100),0) -> 9220.028982 | I100: 0.0004385857818 | J100: 42 | K100: 0.004079860887 | L100: 1844.005796 | M100: =IF($A100>0,SUMPRODUCT('Age profile (years)'!$CT100:$GF100,'Asset data'!$CX100:$GJ100)/H100-0.5,0) -> 46.1 | N100: 425043.3361 | O100: =IF($A100>0,'Asset data'!G100,0) -> 63.48884422 | P100: 585368.9838 | Q100: 0.2738881836 | R100: 6.348884422 | S100: 12.69776884 | T100: 38.09330653 | U100: =IF($A100>0,$O100-U$4*$O100,0) -> 50.79107538 | W100: =IF($A100>0,SUMIF('Age profile (years)'!$CT100:$GF100,"<" & R100+0.5,'Asset data'!$CX100:$GJ100),0) -> 0 | X100: =IF($A100>0,SUMIF('Age profile (years)'!$CT100:$GF100,"<" & S100+0.5,'Asset data'!$CX100:$GJ100)-W100,0) -> 0 | Y100: =IF($A100>0,SUMIF('Age profile (years)'!$CT100:$GF100,"<" & T100+0.5,'Asset data'!$CX100:$GJ100)-X100-W100,0) -> 3688.011593 | Z100: =IF($A100>0,SUMIF('Age profile (years)'!$CT100:$GF100,"<" & U100+0.5,'Asset data'!$CX100:$GJ100)-Y100-X100-W100,0) -> 1844.005796 | AA100: 3688.011593 | AB100: 0 | AC100: 0 | AD100: 0.4 | AE100: 0.2 | AF100: 0.4 | AI100: =IF($A100>0,'RRR hist-forc'!K100,0) -> 63.48884422 | AJ100: 585368.9838
A101: ='Asset data'!A101 -> 0 | B101: ='Asset data'!B101 -> 0 | C101: ='Asset data'!C101 -> 0 | D101: ='Asset data'!E101 -> Ground Outdoor / Indoor Chamber Mounted; > = 22 kV & < = 33 kV ; > 40 MVA | E101: 0 | F101: =IF(A101>0,SUM('Asset data'!J101:CV101),0) -> 0 | G101: =IF(A101>0,'Asset data'!F101,0) -> 0 | H101: =IF(A101>0,SUM('Asset data'!CX101:GJ101),0) -> 0 | I101: 0 | J101: 0 | K101: 0 | L101: 0 | M101: =IF($A101>0,SUMPRODUCT('Age profile (years)'!$CT101:$GF101,'Asset data'!$CX101:$GJ101)/H101-0.5,0) -> 0 | N101: 0 | O101: =IF($A101>0,'Asset data'!G101,0) -> 0 | P101: 0 | Q101: 0 | R101: 0 | S101: 0 | T101: 0 | U101: 0 | W101: =IF($A101>0,SUMIF('Age profile (years)'!$CT101:$GF101,"<" & R101+0.5,'Asset data'!$CX101:$GJ101),0) -> 0 | X101: =IF($A101>0,SUMIF('Age profile (years)'!$CT101:$GF101,"<" & S101+0.5,'Asset data'!$CX101:$GJ101)-W101,0) -> 0 | Y101: =IF($A101>0,SUMIF('Age profile (years)'!$CT101:$GF101,"<" & T101+0.5,'Asset data'!$CX101:$GJ101)-X101-W101,0) -> 0 | Z101: =IF($A101>0,SUMIF('Age profile (years)'!$CT101:$GF101,"<" & U101+0.5,'Asset data'!$CX101:$GJ101)-Y101-X101-W101,0) -> 0 | AA101: 0 | AB101: 0 | AC101: 0 | AD101: 0 | AE101: 0 | AF101: 0 | AI101: =IF($A101>0,'RRR hist-forc'!K101,0) -> 0 | AJ101: 0
A102: ='Asset data'!A102 -> 5 | B102: ='Asset data'!B102 -> 0 | C102: ='Asset data'!C102 -> 0 | D102: ='Asset data'!E102 -> Ground Outdoor / Indoor Chamber Mounted; > 33 kV & < = 66 kV ; < = 15 MVA | E102: TRANSFORMERS | F102: =IF(A102>0,SUM('Asset data'!J102:CV102),0) -> 168 | G102: =IF(A102>0,'Asset data'!F102,0) -> 1099.038447 | H102: =IF(A102>0,SUM('Asset data'!CX102:GJ102),0) -> 184638.459 | I102: 0.008783031274 | J102: 19 | K102: 0.08170247931 | L102: 1099.038447 | M102: =IF($A102>0,SUMPRODUCT('Age profile (years)'!$CT102:$GF102,'Asset data'!$CX102:$GJ102)/H102-0.5,0) -> 26.82738095 | N102: 4953366.278 | O102: =IF($A102>0,'Asset data'!G102,0) -> 68.3493402 | P102: 12619916.85 | Q102: 0.607496124 | R102: 6.83493402 | S102: 13.66986804 | T102: 41.00960412 | U102: 54.67947216 | W102: =IF($A102>0,SUMIF('Age profile (years)'!$CT102:$GF102,"<" & R102+0.5,'Asset data'!$CX102:$GJ102),0) -> 6594.230679 | X102: =IF($A102>0,SUMIF('Age profile (years)'!$CT102:$GF102,"<" & S102+0.5,'Asset data'!$CX102:$GJ102)-W102,0) -> 21980.76893 | Y102: =IF($A102>0,SUMIF('Age profile (years)'!$CT102:$GF102,"<" & T102+0.5,'Asset data'!$CX102:$GJ102)-X102-W102,0) -> 121993.2676 | Z102: =IF($A102>0,SUMIF('Age profile (years)'!$CT102:$GF102,"<" & U102+0.5,'Asset data'!$CX102:$GJ102)-Y102-X102-W102,0) -> 14287.4998 | AA102: 19782.69204 | AB102: 0.03571428571 | AC102: 0.119047619 | AD102: 0.6607142857 | AE102: 0.07738095238 | AF102: 0.1071428571 | AI102: =IF($A102>0,'RRR hist-forc'!K102,0) -> 68.3493402 | AJ102: 12619916.85
A103: ='Asset data'!A103 -> 5 | B103: ='Asset data'!B103 -> 0 | C103: ='Asset data'!C103 -> 0 | D103: ='Asset data'!E103 -> Ground Outdoor / Indoor Chamber Mounted; > 33 kV & < = 66 kV ; > 15 MVA and < = 40 MVA | E103: TRANSFORMERS | F103: =IF(A103>0,SUM('Asset data'!J103:CV103),0) -> 118 | G103: =IF(A103>0,'Asset data'!F103,0) -> 2357.509795 | H103: =IF(A103>0,SUM('Asset data'!CX103:GJ103),0) -> 278186.1558 | I103: 0.01323298364 | J103: 12 | K103: 0.1230973155 | L103: 2357.509795 | M103: =IF($A103>0,SUMPRODUCT('Age profile (years)'!$CT103:$GF103,'Asset data'!$CX103:$GJ103)/H103-0.5,0) -> 34.11864407 | N103: 9491334.435 | O103: =IF($A103>0,'Asset data'!G103,0) -> 59.25724444 | P103: 16484545.03 | Q103: 0.424228305 | R103: 5.925724444 | S103: 11.85144889 | T103: 35.55434666 | U103: 47.40579555 | W103: =IF($A103>0,SUMIF('Age profile (years)'!$CT103:$GF103,"<" & R103+0.5,'Asset data'!$CX103:$GJ103),0) -> 14145.05877 | X103: =IF($A103>0,SUMIF('Age profile (years)'!$CT103:$GF103,"<" & S103+0.5,'Asset data'!$CX103:$GJ103)-W103,0) -> 16502.56857 | Y103: =IF($A103>0,SUMIF('Age profile (years)'!$CT103:$GF103,"<" & T103+0.5,'Asset data'!$CX103:$GJ103)-X103-W103,0) -> 113160.4702 | Z103: =IF($A103>0,SUMIF('Age profile (years)'!$CT103:$GF103,"<" & U103+0.5,'Asset data'!$CX103:$GJ103)-Y103-X103-W103,0) -> 44792.68611 | AA103: 89585.37221 | AB103: 0.05084745763 | AC103: 0.0593220339 | AD103: 0.406779661 | AE103: 0.1610169492 | AF103: 0.3220338983 | AI103: =IF($A103>0,'RRR hist-forc'!K103,0) -> 59.25724444 | AJ103: 16484545.03
A104: ='Asset data'!A104 -> 0 | B104: ='Asset data'!B104 -> 0 | C104: ='Asset data'!C104 -> 0 | D104: ='Asset data'!E104 -> Ground Outdoor / Indoor Chamber Mounted; > 33 kV & < = 66 kV ; > 40 MVA | E104: 0 | F104: =IF(A104>0,SUM('Asset data'!J104:CV104),0) -> 0 | G104: =IF(A104>0,'Asset data'!F104,0) -> 0 | H104: =IF(A104>0,SUM('Asset data'!CX104:GJ104),0) -> 0 | I104: 0 | J104: 0 | K104: 0 | L104: 0 | M104: =IF($A104>0,SUMPRODUCT('Age profile (years)'!$CT104:$GF104,'Asset data'!$CX104:$GJ104)/H104-0.5,0) -> 0 | N104: 0 | O104: =IF($A104>0,'Asset data'!G104,0) -> 0 | P104: 0 | Q104: 0 | R104: 0 | S104: 0 | T104: 0 | U104: 0 | W104: =IF($A104>0,SUMIF('Age profile (years)'!$CT104:$GF104,"<" & R104+0.5,'Asset data'!$CX104:$GJ104),0) -> 0 | X104: =IF($A104>0,SUMIF('Age profile (years)'!$CT104:$GF104,"<" & S104+0.5,'Asset data'!$CX104:$GJ104)-W104,0) -> 0 | Y104: =IF($A104>0,SUMIF('Age profile (years)'!$CT104:$GF104,"<" & T104+0.5,'Asset data'!$CX104:$GJ104)-X104-W104,0) -> 0 | Z104: =IF($A104>0,SUMIF('Age profile (years)'!$CT104:$GF104,"<" & U104+0.5,'Asset data'!$CX104:$GJ104)-Y104-X104-W104,0) -> 0 | AA104: 0 | AB104: 0 | AC104: 0 | AD104: 0 | AE104: 0 | AF104: 0 | AI104: =IF($A104>0,'RRR hist-forc'!K104,0) -> 0 | AJ104: 0
A105: ='Asset data'!A105 -> 0 | B105: ='Asset data'!B105 -> 0 | C105: ='Asset data'!C105 -> 0 | D105: ='Asset data'!E105 -> Ground Outdoor / Indoor Chamber Mounted; > 66 kV & < = 132 kV ; < = 100 MVA | E105: 0 | F105: =IF(A105>0,SUM('Asset data'!J105:CV105),0) -> 0 | G105: =IF(A105>0,'Asset data'!F105,0) -> 0 | H105: =IF(A105>0,SUM('Asset data'!CX105:GJ105),0) -> 0 | I105: 0 | J105: 0 | K105: 0 | L105: 0 | M105: =IF($A105>0,SUMPRODUCT('Age profile (years)'!$CT105:$GF105,'Asset data'!$CX105:$GJ105)/H105-0.5,0) -> 0 | N105: 0 | O105: =IF($A105>0,'Asset data'!G105,0) -> 0 | P105: 0 | Q105: 0 | R105: 0 | S105: 0 | T105: 0 | U105: 0 | W105: =IF($A105>0,SUMIF('Age profile (years)'!$CT105:$GF105,"<" & R105+0.5,'Asset data'!$CX105:$GJ105),0) -> 0 | X105: =IF($A105>0,SUMIF('Age profile (years)'!$CT105:$GF105,"<" & S105+0.5,'Asset data'!$CX105:$GJ105)-W105,0) -> 0 | Y105: =IF($A105>0,SUMIF('Age profile (years)'!$CT105:$GF105,"<" & T105+0.5,'Asset data'!$CX105:$GJ105)-X105-W105,0) -> 0 | Z105: =IF($A105>0,SUMIF('Age profile (years)'!$CT105:$GF105,"<" & U105+0.5,'Asset data'!$CX105:$GJ105)-Y105-X105-W105,0) -> 0 | AA105: 0 | AB105: 0 | AC105: 0 | AD105: 0 | AE105: 0 | AF105: 0 | AI105: =IF($A105>0,'RRR hist-forc'!K105,0) -> 0 | AJ105: 0
A106: ='Asset data'!A106 -> 0 | B106: ='Asset data'!B106 -> 0 | C106: ='Asset data'!C106 -> 0 | D106: ='Asset data'!E106 -> Ground Outdoor / Indoor Chamber Mounted; > 66 kV & < = 132 kV ; > 100 MVA | E106: 0 | F106: =IF(A106>0,SUM('Asset data'!J106:CV106),0) -> 0 | G106: =IF(A106>0,'Asset data'!F106,0) -> 0 | H106: =IF(A106>0,SUM('Asset data'!CX106:GJ106),0) -> 0 | I106: 0 | J106: 0 | K106: 0 | L106: 0 | M106: =IF($A106>0,SUMPRODUCT('Age profile (years)'!$CT106:$GF106,'Asset data'!$CX106:$GJ106)/H106-0.5,0) -> 0 | N106: 0 | O106: =IF($A106>0,'Asset data'!G106,0) -> 0 | P106: 0 | Q106: 0 | R106: 0 | S106: 0 | T106: 0 | U106: 0 | W106: =IF($A106>0,SUMIF('Age profile (years)'!$CT106:$GF106,"<" & R106+0.5,'Asset data'!$CX106:$GJ106),0) -> 0 | X106: =IF($A106>0,SUMIF('Age profile (years)'!$CT106:$GF106,"<" & S106+0.5,'Asset data'!$CX106:$GJ106)-W106,0) -> 0 | Y106: =IF($A106>0,SUMIF('Age profile (years)'!$CT106:$GF106,"<" & T106+0.5,'Asset data'!$CX106:$GJ106)-X106-W106,0) -> 0 | Z106: =IF($A106>0,SUMIF('Age profile (years)'!$CT106:$GF106,"<" & U106+0.5,'Asset data'!$CX106:$GJ106)-Y106-X106-W106,0) -> 0 | AA106: 0 | AB106: 0 | AC106: 0 | AD106: 0 | AE106: 0 | AF106: 0 | AI106: =IF($A106>0,'RRR hist-forc'!K106,0) -> 0 | AJ106: 0
A107: ='Asset data'!A107 -> 0 | B107: ='Asset data'!B107 -> 0 | C107: ='Asset data'!C107 -> 0 | D107: ='Asset data'!E107 -> Ground Outdoor / Indoor Chamber Mounted; > 132 kV ; < = 100 MVA | E107: 0 | F107: =IF(A107>0,SUM('Asset data'!J107:CV107),0) -> 0 | G107: =IF(A107>0,'Asset data'!F107,0) -> 0 | H107: =IF(A107>0,SUM('Asset data'!CX107:GJ107),0) -> 0 | I107: 0 | J107: 0 | K107: 0 | L107: 0 | M107: =IF($A107>0,SUMPRODUCT('Age profile (years)'!$CT107:$GF107,'Asset data'!$CX107:$GJ107)/H107-0.5,0) -> 0 | N107: 0 | O107: =IF($A107>0,'Asset data'!G107,0) -> 0 | P107: 0 | Q107: 0 | R107: 0 | S107: 0 | T107: 0 | U107: 0 | W107: =IF($A107>0,SUMIF('Age profile (years)'!$CT107:$GF107,"<" & R107+0.5,'Asset data'!$CX107:$GJ107),0) -> 0 | X107: =IF($A107>0,SUMIF('Age profile (years)'!$CT107:$GF107,"<" & S107+0.5,'Asset data'!$CX107:$GJ107)-W107,0) -> 0 | Y107: =IF($A107>0,SUMIF('Age profile (years)'!$CT107:$GF107,"<" & T107+0.5,'Asset data'!$CX107:$GJ107)-X107-W107,0) -> 0 | Z107: =IF($A107>0,SUMIF('Age profile (years)'!$CT107:$GF107,"<" & U107+0.5,'Asset data'!$CX107:$GJ107)-Y107-X107-W107,0) -> 0 | AA107: 0 | AB107: 0 | AC107: 0 | AD107: 0 | AE107: 0 | AF107: 0 | AI107: =IF($A107>0,'RRR hist-forc'!K107,0) -> 0 | AJ107: 0
A108: ='Asset data'!A108 -> 0 | B108: ='Asset data'!B108 -> 0 | C108: ='Asset data'!C108 -> 0 | D108: ='Asset data'!E108 -> Ground Outdoor / Indoor Chamber Mounted; > 132 kV ; > 100 MVA | E108: 0 | F108: =IF(A108>0,SUM('Asset data'!J108:CV108),0) -> 0 | G108: =IF(A108>0,'Asset data'!F108,0) -> 0 | H108: =IF(A108>0,SUM('Asset data'!CX108:GJ108),0) -> 0 | I108: 0 | J108: 0 | K108: 0 | L108: 0 | M108: =IF($A108>0,SUMPRODUCT('Age profile (years)'!$CT108:$GF108,'Asset data'!$CX108:$GJ108)/H108-0.5,0) -> 0 | N108: 0 | O108: =IF($A108>0,'Asset data'!G108,0) -> 0 | P108: 0 | Q108: 0 | R108: 0 | S108: 0 | T108: 0 | U108: 0 | W108: =IF($A108>0,SUMIF('Age profile (years)'!$CT108:$GF108,"<" & R108+0.5,'Asset data'!$CX108:$GJ108),0) -> 0 | X108: =IF($A108>0,SUMIF('Age profile (years)'!$CT108:$GF108,"<" & S108+0.5,'Asset data'!$CX108:$GJ108)-W108,0) -> 0 | Y108: =IF($A108>0,SUMIF('Age profile (years)'!$CT108:$GF108,"<" & T108+0.5,'Asset data'!$CX108:$GJ108)-X108-W108,0) -> 0 | Z108: =IF($A108>0,SUMIF('Age profile (years)'!$CT108:$GF108,"<" & U108+0.5,'Asset data'!$CX108:$GJ108)-Y108-X108-W108,0) -> 0 | AA108: 0 | AB108: 0 | AC108: 0 | AD108: 0 | AE108: 0 | AF108: 0 | AI108: =IF($A108>0,'RRR hist-forc'!K108,0) -> 0 | AJ108: 0
A109: ='Asset data'!A109 -> 0 | B109: ='Asset data'!B109 -> 0 | C109: ='Asset data'!C109 -> 0 | D109: ='Asset data'!E109 -> Other | E109: 0 | F109: =IF(A109>0,SUM('Asset data'!J109:CV109),0) -> 0 | G109: =IF(A109>0,'Asset data'!F109,0) -> 0 | H109: =IF(A109>0,SUM('Asset data'!CX109:GJ109),0) -> 0 | I109: 0 | J109: 0 | K109: 0 | L109: 0 | M109: =IF($A109>0,SUMPRODUCT('Age profile (years)'!$CT109:$GF109,'Asset data'!$CX109:$GJ109)/H109-0.5,0) -> 0 | N109: 0 | O109: =IF($A109>0,'Asset data'!G109,0) -> 0 | P109: 0 | Q109: 0 | R109: 0 | S109: 0 | T109: 0 | U109: 0 | W109: =IF($A109>0,SUMIF('Age profile (years)'!$CT109:$GF109,"<" & R109+0.5,'Asset data'!$CX109:$GJ109),0) -> 0 | X109: =IF($A109>0,SUMIF('Age profile (years)'!$CT109:$GF109,"<" & S109+0.5,'Asset data'!$CX109:$GJ109)-W109,0) -> 0 | Y109: =IF($A109>0,SUMIF('Age profile (years)'!$CT109:$GF109,"<" & T109+0.5,'Asset data'!$CX109:$GJ109)-X109-W109,0) -> 0 | Z109: =IF($A109>0,SUMIF('Age profile (years)'!$CT109:$GF109,"<" & U109+0.5,'Asset data'!$CX109:$GJ109)-Y109-X109-W109,0) -> 0 | AA109: 0 | AB109: 0 | AC109: 0 | AD109: 0 | AE109: 0 | AF109: 0 | AI109: =IF($A109>0,'RRR hist-forc'!K109,0) -> 0 | AJ109: 0
A110: ='Asset data'!A110 -> 0 | B110: ='Asset data'!B110 -> 0 | C110: ='Asset data'!C110 -> 0 | D110: ='Asset data'!E110 -> ˂ = 11 kV ; Fuse | E110: 0 | F110: =IF(A110>0,SUM('Asset data'!J110:CV110),0) -> 0 | G110: =IF(A110>0,'Asset data'!F110,0) -> 0 | H110: =IF(A110>0,SUM('Asset data'!CX110:GJ110),0) -> 0 | I110: 0 | J110: 0 | K110: 0 | L110: 0 | M110: =IF($A110>0,SUMPRODUCT('Age profile (years)'!$CT110:$GF110,'Asset data'!$CX110:$GJ110)/H110-0.5,0) -> 0 | N110: 0 | O110: =IF($A110>0,'Asset data'!G110,0) -> 0 | P110: 0 | Q110: 0 | R110: 0 | S110: 0 | T110: 0 | U110: 0 | W110: =IF($A110>0,SUMIF('Age profile (years)'!$CT110:$GF110,"<" & R110+0.5,'Asset data'!$CX110:$GJ110),0) -> 0 | X110: =IF($A110>0,SUMIF('Age profile (years)'!$CT110:$GF110,"<" & S110+0.5,'Asset data'!$CX110:$GJ110)-W110,0) -> 0 | Y110: =IF($A110>0,SUMIF('Age profile (years)'!$CT110:$GF110,"<" & T110+0.5,'Asset data'!$CX110:$GJ110)-X110-W110,0) -> 0 | Z110: =IF($A110>0,SUMIF('Age profile (years)'!$CT110:$GF110,"<" & U110+0.5,'Asset data'!$CX110:$GJ110)-Y110-X110-W110,0) -> 0 | AA110: 0 | AB110: 0 | AC110: 0 | AD110: 0 | AE110: 0 | AF110: 0 | AI110: =IF($A110>0,'RRR hist-forc'!K110,0) -> 0 | AJ110: 0
A111: ='Asset data'!A111 -> 6 | B111: ='Asset data'!B111 -> 0 | C111: ='Asset data'!C111 -> 0 | D111: ='Asset data'!E111 -> ˂ = 11 kV ; Switch | E111: SWITCHGEAR | F111: =IF(A111>0,SUM('Asset data'!J111:CV111),0) -> 1519 | G111: =IF(A111>0,'Asset data'!F111,0) -> 53.16708918 | H111: =IF(A111>0,SUM('Asset data'!CX111:GJ111),0) -> 80760.80846 | I111: 0.003841695334 | J111: 25 | K111: 0.05917677145 | L111: 53.16708918 | M111: =IF($A111>0,SUMPRODUCT('Age profile (years)'!$CT111:$GF111,'Asset data'!$CX111:$GJ111)/H111-0.5,0) -> 18.33607637 | N111: 1480836.351 | O111: =IF($A111>0,'Asset data'!G111,0) -> 59.60242287 | P111: 4813539.858 | Q111: 0.6923602182 | R111: 5.960242287 | S111: 11.92048457 | T111: 35.76145372 | U111: 47.6819383 | W111: =IF($A111>0,SUMIF('Age profile (years)'!$CT111:$GF111,"<" & R111+0.5,'Asset data'!$CX111:$GJ111),0) -> 7921.896288 | X111: =IF($A111>0,SUMIF('Age profile (years)'!$CT111:$GF111,"<" & S111+0.5,'Asset data'!$CX111:$GJ111)-W111,0) -> 18236.31159 | Y111: =IF($A111>0,SUMIF('Age profile (years)'!$CT111:$GF111,"<" & T111+0.5,'Asset data'!$CX111:$GJ111)-X111-W111,0) -> 46999.70683 | Z111: =IF($A111>0,SUMIF('Age profile (years)'!$CT111:$GF111,"<" & U111+0.5,'Asset data'!$CX111:$GJ111)-Y111-X111-W111,0) -> 1595.012675 | AA111: 6007.881077 | AB111: 0.09809084924 | AC111: 0.2258064516 | AD111: 0.581961817 | AE111: 0.01974983542 | AF111: 0.07439104674 | AI111: =IF($A111>0,'RRR hist-forc'!K111,0) -> 59.60242287 | AJ111: 4813539.858
A112: ='Asset data'!A112 -> 6 | B112: ='Asset data'!B112 -> 0 | C112: ='Asset data'!C112 -> 0 | D112: ='Asset data'!E112 -> ˂ = 11 kV ; Circuit Breaker | E112: SWITCHGEAR | F112: =IF(A112>0,SUM('Asset data'!J112:CV112),0) -> 1228 | G112: =IF(A112>0,'Asset data'!F112,0) -> 536.3196115 | H112: =IF(A112>0,SUM('Asset data'!CX112:GJ112),0) -> 658600.4829 | I112: 0.03132883945 | J112: 8 | K112: 0.4825837061 | L112: 536.3196115 | M112: =IF($A112>0,SUMPRODUCT('Age profile (years)'!$CT112:$GF112,'Asset data'!$CX112:$GJ112)/H112-0.5,0) -> 33.43159609 | N112: 22018065.33 | O112: =IF($A112>0,'Asset data'!G112,0) -> 63.345763 | P112: 41719550.1 | Q112: 0.4722362711 | R112: 6.3345763 | S112: 12.6691526 | T112: 38.0074578 | U112: 50.6766104 | W112: =IF($A112>0,SUMIF('Age profile (years)'!$CT112:$GF112,"<" & R112+0.5,'Asset data'!$CX112:$GJ112),0) -> 56313.5592 | X112: =IF($A112>0,SUMIF('Age profile (years)'!$CT112:$GF112,"<" & S112+0.5,'Asset data'!$CX112:$GJ112)-W112,0) -> 76693.70444 | Y112: =IF($A112>0,SUMIF('Age profile (years)'!$CT112:$GF112,"<" & T112+0.5,'Asset data'!$CX112:$GJ112)-X112-W112,0) -> 223645.278 | Z112: =IF($A112>0,SUMIF('Age profile (years)'!$CT112:$GF112,"<" & U112+0.5,'Asset data'!$CX112:$GJ112)-Y112-X112-W112,0) -> 89029.0555 | AA112: 212918.8858 | AB112: 0.08550488599 | AC112: 0.1164495114 | AD112: 0.3395765472 | AE112: 0.1351791531 | AF112: 0.3232899023 | AI112: =IF($A112>0,'RRR hist-forc'!K112,0) -> 63.345763 | AJ112: 41719550.1
A113: ='Asset data'!A113 -> 6 | B113: ='Asset data'!B113 -> 0 | C113: ='Asset data'!C113 -> 0 | D113: ='Asset data'!E113 -> > 11 kV & < = 22 kV ; Switch | E113: SWITCHGEAR | F113: =IF(A113>0,SUM('Asset data'!J113:CV113),0) -> 10 | G113: =IF(A113>0,'Asset data'!F113,0) -> 9.836411827 | H113: =IF(A113>0,SUM('Asset data'!CX113:GJ113),0) -> 98.36411827 | I113: 4.679063786e-06 | J113: 57 | K113: 7.207544175e-05 | L113: 9.836411827 | M113: =IF($A113>0,SUMPRODUCT('Age profile (years)'!$CT113:$GF113,'Asset data'!$CX113:$GJ113)/H113-0.5,0) -> 12.5 | N113: 1229.551478 | O113: =IF($A113>0,'Asset data'!G113,0) -> 61.02806033 | P113: 6002.971345 | Q113: 0.7951761873 | R113: 6.102806033 | S113: 12.20561207 | T113: 36.6168362 | U113: 48.82244827 | W113: =IF($A113>0,SUMIF('Age profile (years)'!$CT113:$GF113,"<" & R113+0.5,'Asset data'!$CX113:$GJ113),0) -> 0 | X113: =IF($A113>0,SUMIF('Age profile (years)'!$CT113:$GF113,"<" & S113+0.5,'Asset data'!$CX113:$GJ113)-W113,0) -> 0 | Y113: =IF($A113>0,SUMIF('Age profile (years)'!$CT113:$GF113,"<" & T113+0.5,'Asset data'!$CX113:$GJ113)-X113-W113,0) -> 98.36411827 | Z113: =IF($A113>0,SUMIF('Age profile (years)'!$CT113:$GF113,"<" & U113+0.5,'Asset data'!$CX113:$GJ113)-Y113-X113-W113,0) -> 0 | AA113: 0 | AB113: 0 | AC113: 0 | AD113: 1 | AE113: 0 | AF113: 0 | AI113: =IF($A113>0,'RRR hist-forc'!K113,0) -> 61.02806033 | AJ113: 6002.971345
A114: ='Asset data'!A114 -> 0 | B114: ='Asset data'!B114 -> 0 | C114: ='Asset data'!C114 -> 0 | D114: ='Asset data'!E114 -> > 11 kV & < = 22 kV ; Circuit Breaker | E114: 0 | F114: =IF(A114>0,SUM('Asset data'!J114:CV114),0) -> 0 | G114: =IF(A114>0,'Asset data'!F114,0) -> 0 | H114: =IF(A114>0,SUM('Asset data'!CX114:GJ114),0) -> 0 | I114: 0 | J114: 0 | K114: 0 | L114: 0 | M114: =IF($A114>0,SUMPRODUCT('Age profile (years)'!$CT114:$GF114,'Asset data'!$CX114:$GJ114)/H114-0.5,0) -> 0 | N114: 0 | O114: =IF($A114>0,'Asset data'!G114,0) -> 0 | P114: 0 | Q114: 0 | R114: 0 | S114: 0 | T114: 0 | U114: 0 | W114: =IF($A114>0,SUMIF('Age profile (years)'!$CT114:$GF114,"<" & R114+0.5,'Asset data'!$CX114:$GJ114),0) -> 0 | X114: =IF($A114>0,SUMIF('Age profile (years)'!$CT114:$GF114,"<" & S114+0.5,'Asset data'!$CX114:$GJ114)-W114,0) -> 0 | Y114: =IF($A114>0,SUMIF('Age profile (years)'!$CT114:$GF114,"<" & T114+0.5,'Asset data'!$CX114:$GJ114)-X114-W114,0) -> 0 | Z114: =IF($A114>0,SUMIF('Age profile (years)'!$CT114:$GF114,"<" & U114+0.5,'Asset data'!$CX114:$GJ114)-Y114-X114-W114,0) -> 0 | AA114: 0 | AB114: 0 | AC114: 0 | AD114: 0 | AE114: 0 | AF114: 0 | AI114: =IF($A114>0,'RRR hist-forc'!K114,0) -> 0 | AJ114: 0
A115: ='Asset data'!A115 -> 6 | B115: ='Asset data'!B115 -> 0 | C115: ='Asset data'!C115 -> 0 | D115: ='Asset data'!E115 -> > 22 kV & < = 33 kV ; Switch | E115: SWITCHGEAR | F115: =IF(A115>0,SUM('Asset data'!J115:CV115),0) -> 999 | G115: =IF(A115>0,'Asset data'!F115,0) -> 80.20714263 | H115: =IF(A115>0,SUM('Asset data'!CX115:GJ115),0) -> 80126.93549 | I115: 0.003811542753 | J115: 26 | K115: 0.05871230661 | L115: 80.20714263 | M115: =IF($A115>0,SUMPRODUCT('Age profile (years)'!$CT115:$GF115,'Asset data'!$CX115:$GJ115)/H115-0.5,0) -> 30.2037037 | N115: 2420130.218 | O115: =IF($A115>0,'Asset data'!G115,0) -> 62.58682533 | P115: 5014890.516 | Q115: 0.5174111557 | R115: 6.258682533 | S115: 12.51736507 | T115: 37.5520952 | U115: 50.06946026 | W115: =IF($A115>0,SUMIF('Age profile (years)'!$CT115:$GF115,"<" & R115+0.5,'Asset data'!$CX115:$GJ115),0) -> 8822.78569 | X115: =IF($A115>0,SUMIF('Age profile (years)'!$CT115:$GF115,"<" & S115+0.5,'Asset data'!$CX115:$GJ115)-W115,0) -> 5133.257128 | Y115: =IF($A115>0,SUMIF('Age profile (years)'!$CT115:$GF115,"<" & T115+0.5,'Asset data'!$CX115:$GJ115)-X115-W115,0) -> 36654.66418 | Z115: =IF($A115>0,SUMIF('Age profile (years)'!$CT115:$GF115,"<" & U115+0.5,'Asset data'!$CX115:$GJ115)-Y115-X115-W115,0) -> 5213.464271 | AA115: 24302.76422 | AB115: 0.1101101101 | AC115: 0.06406406406 | AD115: 0.4574574575 | AE115: 0.06506506507 | AF115: 0.3033033033 | AI115: =IF($A115>0,'RRR hist-forc'!K115,0) -> 62.58682533 | AJ115: 5014890.516
A116: ='Asset data'!A116 -> 6 | B116: ='Asset data'!B116 -> 0 | C116: ='Asset data'!C116 -> 0 | D116: ='Asset data'!E116 -> > 22 kV & < = 33 kV ; Circuit Breaker | E116: SWITCHGEAR | F116: =IF(A116>0,SUM('Asset data'!J116:CV116),0) -> 253 | G116: =IF(A116>0,'Asset data'!F116,0) -> 297.2391494 | H116: =IF(A116>0,SUM('Asset data'!CX116:GJ116),0) -> 75201.50481 | I116: 0.00357724589 | J116: 27 | K116: 0.05510324064 | L116: 297.2391494 | M116: =IF($A116>0,SUMPRODUCT('Age profile (years)'!$CT116:$GF116,'Asset data'!$CX116:$GJ116)/H116-0.5,0) -> 34.18379447 | N116: 2570672.784 | O116: =IF($A116>0,'Asset data'!G116,0) -> 64.17309546 | P116: 4825913.347 | Q116: 0.4673189096 | R116: 6.417309546 | S116: 12.83461909 | T116: 38.50385728 | U116: 51.33847637 | W116: =IF($A116>0,SUMIF('Age profile (years)'!$CT116:$GF116,"<" & R116+0.5,'Asset data'!$CX116:$GJ116),0) -> 9511.652782 | X116: =IF($A116>0,SUMIF('Age profile (years)'!$CT116:$GF116,"<" & S116+0.5,'Asset data'!$CX116:$GJ116)-W116,0) -> 12186.80513 | Y116: =IF($A116>0,SUMIF('Age profile (years)'!$CT116:$GF116,"<" & T116+0.5,'Asset data'!$CX116:$GJ116)-X116-W116,0) -> 16348.15322 | Z116: =IF($A116>0,SUMIF('Age profile (years)'!$CT116:$GF116,"<" & U116+0.5,'Asset data'!$CX116:$GJ116)-Y116-X116-W116,0) -> 1486.195747 | AA116: 35668.69793 | AB116: 0.1264822134 | AC116: 0.162055336 | AD116: 0.2173913043 | AE116: 0.01976284585 | AF116: 0.4743083004 | AI116: =IF($A116>0,'RRR hist-forc'!K116,0) -> 64.17309546 | AJ116: 4825913.347
A117: ='Asset data'!A117 -> 6 | B117: ='Asset data'!B117 -> 0 | C117: ='Asset data'!C117 -> 0 | D117: ='Asset data'!E117 -> > 33 kV & < = 66 kV ; Switch | E117: SWITCHGEAR | F117: =IF(A117>0,SUM('Asset data'!J117:CV117),0) -> 1425 | G117: =IF(A117>0,'Asset data'!F117,0) -> 81.45123703 | H117: =IF(A117>0,SUM('Asset data'!CX117:GJ117),0) -> 116068.0128 | I117: 0.005521216931 | J117: 22 | K117: 0.08504781459 | L117: 81.45123703 | M117: =IF($A117>0,SUMPRODUCT('Age profile (years)'!$CT117:$GF117,'Asset data'!$CX117:$GJ117)/H117-0.5,0) -> 37.84035088 | N117: 4392054.328 | O117: =IF($A117>0,'Asset data'!G117,0) -> 68.84719902 | P117: 7990957.574 | Q117: 0.4503719626 | R117: 6.884719902 | S117: 13.7694398 | T117: 41.30831941 | U117: 55.07775922 | W117: =IF($A117>0,SUMIF('Age profile (years)'!$CT117:$GF117,"<" & R117+0.5,'Asset data'!$CX117:$GJ117),0) -> 3746.756903 | X117: =IF($A117>0,SUMIF('Age profile (years)'!$CT117:$GF117,"<" & S117+0.5,'Asset data'!$CX117:$GJ117)-W117,0) -> 10181.40463 | Y117: =IF($A117>0,SUMIF('Age profile (years)'!$CT117:$GF117,"<" & T117+0.5,'Asset data'!$CX117:$GJ117)-X117-W117,0) -> 50173.96201 | Z117: =IF($A117>0,SUMIF('Age profile (years)'!$CT117:$GF117,"<" & U117+0.5,'Asset data'!$CX117:$GJ117)-Y117-X117-W117,0) -> 8959.636073 | AA117: 43006.25315 | AB117: 0.03228070175 | AC117: 0.08771929825 | AD117: 0.4322807018 | AE117: 0.07719298246 | AF117: 0.3705263158 | AI117: =IF($A117>0,'RRR hist-forc'!K117,0) -> 68.84719902 | AJ117: 7990957.574
A118: ='Asset data'!A118 -> 6 | B118: ='Asset data'!B118 -> 0 | C118: ='Asset data'!C118 -> 0 | D118: ='Asset data'!E118 -> > 33 kV & < = 66 kV ; Circuit Breaker | E118: SWITCHGEAR | F118: =IF(A118>0,SUM('Asset data'!J118:CV118),0) -> 467 | G118: =IF(A118>0,'Asset data'!F118,0) -> 510.4752431 | H118: =IF(A118>0,SUM('Asset data'!CX118:GJ118),0) -> 238391.9385 | I118: 0.01134002018 | J118: 14 | K118: 0.1746795943 | L118: 510.4752431 | M118: =IF($A118>0,SUMPRODUCT('Age profile (years)'!$CT118:$GF118,'Asset data'!$CX118:$GJ118)/H118-0.5,0) -> 35.51498929 | N118: 8466487.144 | O118: =IF($A118>0,'Asset data'!G118,0) -> 56.60315116 | P118: 13493734.93 | Q118: 0.372561623 | R118: 5.660315116 | S118: 11.32063023 | T118: 33.9618907 | U118: 45.28252093 | W118: =IF($A118>0,SUMIF('Age profile (years)'!$CT118:$GF118,"<" & R118+0.5,'Asset data'!$CX118:$GJ118),0) -> 21439.96021 | X118: =IF($A118>0,SUMIF('Age profile (years)'!$CT118:$GF118,"<" & S118+0.5,'Asset data'!$CX118:$GJ118)-W118,0) -> 15824.73253 | Y118: =IF($A118>0,SUMIF('Age profile (years)'!$CT118:$GF118,"<" & T118+0.5,'Asset data'!$CX118:$GJ118)-X118-W118,0) -> 58194.17771 | Z118: =IF($A118>0,SUMIF('Age profile (years)'!$CT118:$GF118,"<" & U118+0.5,'Asset data'!$CX118:$GJ118)-Y118-X118-W118,0) -> 26544.71264 | AA118: 116388.3554 | AB118: 0.08993576017 | AC118: 0.06638115632 | AD118: 0.244111349 | AE118: 0.1113490364 | AF118: 0.4882226981 | AI118: =IF($A118>0,'RRR hist-forc'!K118,0) -> 56.60315116 | AJ118: 13493734.93
A119: ='Asset data'!A119 -> 5 | B119: ='Asset data'!B119 -> 0 | C119: ='Asset data'!C119 -> 0 | D119: ='Asset data'!E119 -> POLE MOUNTED TRANSFORMER; > 22 kV ; < ≈ 60 kVA | E119: TRANSFORMERS | F119: =IF(A119>0,SUM('Asset data'!J119:CV119),0) -> 1014 | G119: =IF(A119>0,'Asset data'!F119,0) -> 8.673730944 | H119: =IF(A119>0,SUM('Asset data'!CX119:GJ119),0) -> 8795.163178 | I119: 0.0004183754222 | J119: 43 | K119: 0.003891857858 | L119: 8.673730944 | M119: =IF($A119>0,SUMPRODUCT('Age profile (years)'!$CT119:$GF119,'Asset data'!$CX119:$GJ119)/H119-0.5,0) -> 25.0443787 | N119: 220269.3973 | O119: =IF($A119>0,'Asset data'!G119,0) -> 54.42428181 | P119: 478670.4394 | Q119: 0.5398307913 | R119: 5.442428181 | S119: 10.88485636 | T119: 32.65456909 | U119: 43.53942545 | W119: =IF($A119>0,SUMIF('Age profile (years)'!$CT119:$GF119,"<" & R119+0.5,'Asset data'!$CX119:$GJ119),0) -> 1075.542637 | X119: =IF($A119>0,SUMIF('Age profile (years)'!$CT119:$GF119,"<" & S119+0.5,'Asset data'!$CX119:$GJ119)-W119,0) -> 1196.97487 | Y119: =IF($A119>0,SUMIF('Age profile (years)'!$CT119:$GF119,"<" & T119+0.5,'Asset data'!$CX119:$GJ119)-X119-W119,0) -> 3599.598342 | Z119: =IF($A119>0,SUMIF('Age profile (years)'!$CT119:$GF119,"<" & U119+0.5,'Asset data'!$CX119:$GJ119)-Y119-X119-W119,0) -> 1656.68261 | AA119: 1266.364718 | AB119: 0.1222879684 | AC119: 0.1360946746 | AD119: 0.409270217 | AE119: 0.1883629191 | AF119: 0.1439842209 | AI119: =IF($A119>0,'RRR hist-forc'!K119,0) -> 54.42428181 | AJ119: 478670.4394
A120: ='Asset data'!A120 -> 5 | B120: ='Asset data'!B120 -> 0 | C120: ='Asset data'!C120 -> 0 | D120: ='Asset data'!E120 -> POLE MOUNTED TRANSFORMER ; > 22 kV ; > 60 kVA and < ≈ 600 kVA | E120: TRANSFORMERS | F120: =IF(A120>0,SUM('Asset data'!J120:CV120),0) -> 670 | G120: =IF(A120>0,'Asset data'!F120,0) -> 14.78506616 | H120: =IF(A120>0,SUM('Asset data'!CX120:GJ120),0) -> 9905.994328 | I120: 0.0004712163351 | J120: 40 | K120: 0.004383400408 | L120: 14.78506616 | M120: =IF($A120>0,SUMPRODUCT('Age profile (years)'!$CT120:$GF120,'Asset data'!$CX120:$GJ120)/H120-0.5,0) -> 34.17462687 | N120: 338533.6599 | O120: =IF($A120>0,'Asset data'!G120,0) -> 57.6433487 | P120: 571014.6852 | Q120: 0.4071366838 | R120: 5.76433487 | S120: 11.52866974 | T120: 34.58600922 | U120: 46.11467896 | W120: =IF($A120>0,SUMIF('Age profile (years)'!$CT120:$GF120,"<" & R120+0.5,'Asset data'!$CX120:$GJ120),0) -> 384.4117202 | X120: =IF($A120>0,SUMIF('Age profile (years)'!$CT120:$GF120,"<" & S120+0.5,'Asset data'!$CX120:$GJ120)-W120,0) -> 1034.954631 | Y120: =IF($A120>0,SUMIF('Age profile (years)'!$CT120:$GF120,"<" & T120+0.5,'Asset data'!$CX120:$GJ120)-X120-W120,0) -> 3282.284688 | Z120: =IF($A120>0,SUMIF('Age profile (years)'!$CT120:$GF120,"<" & U120+0.5,'Asset data'!$CX120:$GJ120)-Y120-X120-W120,0) -> 2129.049527 | AA120: 3075.293761 | AB120: 0.03880597015 | AC120: 0.1044776119 | AD120: 0.3313432836 | AE120: 0.2149253731 | AF120: 0.3104477612 | AI120: =IF($A120>0,'RRR hist-forc'!K120,0) -> 57.6433487 | AJ120: 571014.6852
A121: ='Asset data'!A121 -> 5 | B121: ='Asset data'!B121 -> 0 | C121: ='Asset data'!C121 -> 0 | D121: ='Asset data'!E121 -> KIOSK MOUNTED TRANSFORMER; > 22 kV ; > 60 kVA and < ≈ 600 kVA | E121: TRANSFORMERS | F121: =IF(A121>0,SUM('Asset data'!J121:CV121),0) -> 50 | G121: =IF(A121>0,'Asset data'!F121,0) -> 32.2 | H121: =IF(A121>0,SUM('Asset data'!CX121:GJ121),0) -> 1610 | I121: 7.658577973e-05 | J121: 53 | K121: 0.0007124246617 | L121: 32.2 | M121: =IF($A121>0,SUMPRODUCT('Age profile (years)'!$CT121:$GF121,'Asset data'!$CX121:$GJ121)/H121-0.5,0) -> 49.48 | N121: 79662.8 | O121: =IF($A121>0,'Asset data'!G121,0) -> 63.48884422 | P121: 102217.0392 | Q121: 0.2206504843 | R121: 6.348884422 | S121: 12.69776884 | T121: 38.09330653 | U121: 50.79107538 | W121: =IF($A121>0,SUMIF('Age profile (years)'!$CT121:$GF121,"<" & R121+0.5,'Asset data'!$CX121:$GJ121),0) -> 0 | X121: =IF($A121>0,SUMIF('Age profile (years)'!$CT121:$GF121,"<" & S121+0.5,'Asset data'!$CX121:$GJ121)-W121,0) -> 0 | Y121: =IF($A121>0,SUMIF('Age profile (years)'!$CT121:$GF121,"<" & T121+0.5,'Asset data'!$CX121:$GJ121)-X121-W121,0) -> 257.6 | Z121: =IF($A121>0,SUMIF('Age profile (years)'!$CT121:$GF121,"<" & U121+0.5,'Asset data'!$CX121:$GJ121)-Y121-X121-W121,0) -> 418.6 | AA121: 933.8 | AB121: 0 | AC121: 0 | AD121: 0.16 | AE121: 0.26 | AF121: 0.58 | AI121: =IF($A121>0,'RRR hist-forc'!K121,0) -> 63.48884422 | AJ121: 102217.0392
A122: ='Asset data'!A122 -> 6 | B122: ='Asset data'!B122 -> 0 | C122: ='Asset data'!C122 -> 0 | D122: ='Asset data'!E122 -> Recloser ; SWITCHGEAR | E122: SWITCHGEAR | F122: =IF(A122>0,SUM('Asset data'!J122:CV122),0) -> 2097 | G122: =IF(A122>0,'Asset data'!F122,0) -> 3.872042685 | H122: =IF(A122>0,SUM('Asset data'!CX122:GJ122),0) -> 8119.673511 | I122: 0.0003862431845 | J122: 44 | K122: 0.005949619287 | L122: 3.872042685 | M122: =IF($A122>0,SUMPRODUCT('Age profile (years)'!$CT122:$GF122,'Asset data'!$CX122:$GJ122)/H122-0.5,0) -> 33.35407725 | N122: 270824.2176 | O122: =IF($A122>0,'Asset data'!G122,0) -> 43.66378535 | P122: 354535.6813 | Q122: 0.2361157654 | R122: 4.366378535 | S122: 8.73275707 | T122: 26.19827121 | U122: 34.93102828 | W122: =IF($A122>0,SUMIF('Age profile (years)'!$CT122:$GF122,"<" & R122+0.5,'Asset data'!$CX122:$GJ122),0) -> 487.8773783 | X122: =IF($A122>0,SUMIF('Age profile (years)'!$CT122:$GF122,"<" & S122+0.5,'Asset data'!$CX122:$GJ122)-W122,0) -> 92.92902445 | Y122: =IF($A122>0,SUMIF('Age profile (years)'!$CT122:$GF122,"<" & T122+0.5,'Asset data'!$CX122:$GJ122)-X122-W122,0) -> 983.4988421 | Z122: =IF($A122>0,SUMIF('Age profile (years)'!$CT122:$GF122,"<" & U122+0.5,'Asset data'!$CX122:$GJ122)-Y122-X122-W122,0) -> 1180.973019 | AA122: 5374.395247 | AB122: 0.06008583691 | AC122: 0.01144492132 | AD122: 0.1211254173 | AE122: 0.1454458751 | AF122: 0.6618979495 | AI122: =IF($A122>0,'RRR hist-forc'!K122,0) -> 43.66378535 | AJ122: 354535.6813
A123: ='Asset data'!A123 -> 6 | B123: ='Asset data'!B123 -> 0 | C123: ='Asset data'!C123 -> 0 | D123: ='Asset data'!E123 -> Sectionalizer ; SWITCHGEAR | E123: SWITCHGEAR | F123: =IF(A123>0,SUM('Asset data'!J123:CV123),0) -> 701.4357262 | G123: =IF(A123>0,'Asset data'!F123,0) -> 18.02476353 | H123: =IF(A123>0,SUM('Asset data'!CX123:GJ123),0) -> 12643.21309 | I123: 0.0006014225671 | J123: 38 | K123: 0.009264203095 | L123: 18.02476353 | M123: =IF($A123>0,SUMPRODUCT('Age profile (years)'!$CT123:$GF123,'Asset data'!$CX123:$GJ123)/H123-0.5,0) -> 16.1824067 | N123: 204597.6163 | O123: =IF($A123>0,'Asset data'!G123,0) -> 36.38920012 | P123: 460076.4115 | Q123: 0.5552964438 | R123: 3.638920012 | S123: 7.277840024 | T123: 21.83352007 | U123: 29.1113601 | W123: =IF($A123>0,SUMIF('Age profile (years)'!$CT123:$GF123,"<" & R123+0.5,'Asset data'!$CX123:$GJ123),0) -> 3748.518894 | X123: =IF($A123>0,SUMIF('Age profile (years)'!$CT123:$GF123,"<" & S123+0.5,'Asset data'!$CX123:$GJ123)-W123,0) -> 638.058574 | Y123: =IF($A123>0,SUMIF('Age profile (years)'!$CT123:$GF123,"<" & T123+0.5,'Asset data'!$CX123:$GJ123)-X123-W123,0) -> 2326.488426 | Z123: =IF($A123>0,SUMIF('Age profile (years)'!$CT123:$GF123,"<" & U123+0.5,'Asset data'!$CX123:$GJ123)-Y123-X123-W123,0) -> 1423.956319 | AA123: 4506.190882 | AB123: 0.2964846725 | AC123: 0.05046648896 | AD123: 0.184010853 | AE123: 0.1126261424 | AF123: 0.3564118431 | AI123: =IF($A123>0,'RRR hist-forc'!K123,0) -> 36.38920012 | AJ123: 460076.4115
A124: ='Asset data'!A124 -> 6 | B124: ='Asset data'!B124 -> 0 | C124: ='Asset data'!C124 -> 0 | D124: ='Asset data'!E124 -> >= 11 kV & < ≈ 22 kV ; LOAD BREAK SWITCH; GROUND LEVEL (Switching Cubical);SWITCHGEAR | E124: SWITCHGEAR | F124: =IF(A124>0,SUM('Asset data'!J124:CV124),0) -> 5383 | G124: =IF(A124>0,'Asset data'!F124,0) -> 12.2 | H124: =IF(A124>0,SUM('Asset data'!CX124:GJ124),0) -> 65672.6 | I124: 0.003123967253 | J124: 28 | K124: 0.04812101953 | L124: 12.2 | M124: =IF($A124>0,SUMPRODUCT('Age profile (years)'!$CT124:$GF124,'Asset data'!$CX124:$GJ124)/H124-0.5,0) -> 37.33840406 | N124: 2452110.074 | O124: =IF($A124>0,'Asset data'!G124,0) -> 49.93468162 | P124: 3279340.372 | Q124: 0.2522550892 | R124: 4.993468162 | S124: 9.986936325 | T124: 29.96080897 | U124: 39.9477453 | W124: =IF($A124>0,SUMIF('Age profile (years)'!$CT124:$GF124,"<" & R124+0.5,'Asset data'!$CX124:$GJ124),0) -> 1411.198925 | X124: =IF($A124>0,SUMIF('Age profile (years)'!$CT124:$GF124,"<" & S124+0.5,'Asset data'!$CX124:$GJ124)-W124,0) -> 173.6860215 | Y124: =IF($A124>0,SUMIF('Age profile (years)'!$CT124:$GF124,"<" & T124+0.5,'Asset data'!$CX124:$GJ124)-X124-W124,0) -> 12530.51505 | Z124: =IF($A124>0,SUMIF('Age profile (years)'!$CT124:$GF124,"<" & U124+0.5,'Asset data'!$CX124:$GJ124)-Y124-X124-W124,0) -> 12736.8 | AA124: 38820.4 | AB124: 0.02148839736 | AC124: 0.002644725829 | AD124: 0.1908027862 | AE124: 0.1939438975 | AF124: 0.5911201932 | AI124: =IF($A124>0,'RRR hist-forc'!K124,0) -> 49.93468162 | AJ124: 3279340.372
A125: ='Asset data'!A125 -> 6 | B125: ='Asset data'!B125 -> 0 | C125: ='Asset data'!C125 -> 0 | D125: ='Asset data'!E125 -> > 22 kV & < ≈ 33 kV ; LOAD BREAK SWITCH; GROUND LEVEL (Switching Cubical);SWITCHGEAR | E125: SWITCHGEAR | F125: =IF(A125>0,SUM('Asset data'!J125:CV125),0) -> 54 | G125: =IF(A125>0,'Asset data'!F125,0) -> 36.9 | H125: =IF(A125>0,SUM('Asset data'!CX125:GJ125),0) -> 1992.6 | I125: 9.478560539e-05 | J125: 50 | K125: 0.001460060109 | L125: 36.9 | M125: =IF($A125>0,SUMPRODUCT('Age profile (years)'!$CT125:$GF125,'Asset data'!$CX125:$GJ125)/H125-0.5,0) -> 56.7962963 | N125: 113172.3 | O125: =IF($A125>0,'Asset data'!G125,0) -> 61.02806033 | P125: 121604.513 | Q125: 0.06934128356 | R125: 6.102806033 | S125: 12.20561207 | T125: 36.6168362 | U125: 48.82244827 | W125: =IF($A125>0,SUMIF('Age profile (years)'!$CT125:$GF125,"<" & R125+0.5,'Asset data'!$CX125:$GJ125),0) -> 0 | X125: =IF($A125>0,SUMIF('Age profile (years)'!$CT125:$GF125,"<" & S125+0.5,'Asset data'!$CX125:$GJ125)-W125,0) -> 0 | Y125: =IF($A125>0,SUMIF('Age profile (years)'!$CT125:$GF125,"<" & T125+0.5,'Asset data'!$CX125:$GJ125)-X125-W125,0) -> 0 | Z125: =IF($A125>0,SUMIF('Age profile (years)'!$CT125:$GF125,"<" & U125+0.5,'Asset data'!$CX125:$GJ125)-Y125-X125-W125,0) -> 0 | AA125: 1992.6 | AB125: 0 | AC125: 0 | AD125: 0 | AE125: 0 | AF125: 1 | AI125: =IF($A125>0,'RRR hist-forc'!K125,0) -> 61.02806033 | AJ125: 121604.513
A126: ='Asset data'!A126 -> 5 | B126: ='Asset data'!B126 -> 0 | C126: ='Asset data'!C126 -> 0 | D126: ='Asset data'!E126 -> Ground Outdoor / Indoor Chamber Mounted; > = 22 kV & < = 33 kV ; < = 15 MVA REFURBISHED | E126: TRANSFORMERS | F126: =IF(A126>0,SUM('Asset data'!J126:CV126),0) -> 313 | G126: =IF(A126>0,'Asset data'!F126,0) -> 16.4 | H126: =IF(A126>0,SUM('Asset data'!CX126:GJ126),0) -> 5133.2 | I126: 0.0002441802016 | J126: 46 | K126: 0.002271439921 | L126: 16.4 | M126: =IF($A126>0,SUMPRODUCT('Age profile (years)'!$CT126:$GF126,'Asset data'!$CX126:$GJ126)/H126-0.5,0) -> 40.42332268 | N126: 207501 | O126: =IF($A126>0,'Asset data'!G126,0) -> 74.29379035 | P126: 381364.8846 | Q126: 0.4558990396 | R126: 7.429379035 | S126: 14.85875807 | T126: 44.57627421 | U126: 59.43503228 | W126: =IF($A126>0,SUMIF('Age profile (years)'!$CT126:$GF126,"<" & R126+0.5,'Asset data'!$CX126:$GJ126),0) -> 16.4 | X126: =IF($A126>0,SUMIF('Age profile (years)'!$CT126:$GF126,"<" & S126+0.5,'Asset data'!$CX126:$GJ126)-W126,0) -> 426.4 | Y126: =IF($A126>0,SUMIF('Age profile (years)'!$CT126:$GF126,"<" & T126+0.5,'Asset data'!$CX126:$GJ126)-X126-W126,0) -> 2558.4 | Z126: =IF($A126>0,SUMIF('Age profile (years)'!$CT126:$GF126,"<" & U126+0.5,'Asset data'!$CX126:$GJ126)-Y126-X126-W126,0) -> 869.2 | AA126: 1262.8 | AB126: 0.003194888179 | AC126: 0.08306709265 | AD126: 0.4984025559 | AE126: 0.1693290735 | AF126: 0.2460063898 | AI126: =IF($A126>0,'RRR hist-forc'!K126,0) -> 74.29379035 | AJ126: 381364.8846
A127: ='Asset data'!A127 -> 5 | B127: ='Asset data'!B127 -> 0 | C127: ='Asset data'!C127 -> 0 | D127: ='Asset data'!E127 -> Ground Outdoor / Indoor Chamber Mounted; > 33 kV & < = 66 kV ; < = 15 MVA REFURBISHED | E127: TRANSFORMERS | F127: =IF(A127>0,SUM('Asset data'!J127:CV127),0) -> 168 | G127: =IF(A127>0,'Asset data'!F127,0) -> 16.4 | H127: =IF(A127>0,SUM('Asset data'!CX127:GJ127),0) -> 2755.2 | I127: 0.0001310615778 | J127: 49 | K127: 0.001219175421 | L127: 16.4 | M127: =IF($A127>0,SUMPRODUCT('Age profile (years)'!$CT127:$GF127,'Asset data'!$CX127:$GJ127)/H127-0.5,0) -> 29.82738095 | N127: 82180.4 | O127: =IF($A127>0,'Asset data'!G127,0) -> 70.74638109 | P127: 194920.4292 | Q127: 0.578390011 | R127: 7.074638109 | S127: 14.14927622 | T127: 42.44782866 | U127: 56.59710487 | W127: =IF($A127>0,SUMIF('Age profile (years)'!$CT127:$GF127,"<" & R127+0.5,'Asset data'!$CX127:$GJ127),0) -> 32.8 | X127: =IF($A127>0,SUMIF('Age profile (years)'!$CT127:$GF127,"<" & S127+0.5,'Asset data'!$CX127:$GJ127)-W127,0) -> 278.8 | Y127: =IF($A127>0,SUMIF('Age profile (years)'!$CT127:$GF127,"<" & T127+0.5,'Asset data'!$CX127:$GJ127)-X127-W127,0) -> 1820.4 | Z127: =IF($A127>0,SUMIF('Age profile (years)'!$CT127:$GF127,"<" & U127+0.5,'Asset data'!$CX127:$GJ127)-Y127-X127-W127,0) -> 328 | AA127: 295.2 | AB127: 0.0119047619 | AC127: 0.1011904762 | AD127: 0.6607142857 | AE127: 0.119047619 | AF127: 0.1071428571 | AI127: =IF($A127>0,'RRR hist-forc'!K127,0) -> 70.74638109 | AJ127: 194920.4292
A128: ='Asset data'!A128 -> 5 | B128: ='Asset data'!B128 -> 0 | C128: ='Asset data'!C128 -> 0 | D128: ='Asset data'!E128 -> Ground Outdoor / Indoor Chamber Mounted; > 33 kV & < = 66 kV ; > 15 MVA and < = 40 MVA REFURBISHED | E128: TRANSFORMERS | F128: =IF(A128>0,SUM('Asset data'!J128:CV128),0) -> 118 | G128: =IF(A128>0,'Asset data'!F128,0) -> 16.4 | H128: =IF(A128>0,SUM('Asset data'!CX128:GJ128),0) -> 1935.2 | I128: 9.205515586e-05 | J128: 52 | K128: 0.0008563255933 | L128: 16.4 | M128: =IF($A128>0,SUMPRODUCT('Age profile (years)'!$CT128:$GF128,'Asset data'!$CX128:$GJ128)/H128-0.5,0) -> 33.11864407 | N128: 64091.2 | O128: =IF($A128>0,'Asset data'!G128,0) -> 57.74643006 | P128: 111750.8914 | Q128: 0.4264815325 | R128: 5.774643006 | S128: 11.54928601 | T128: 34.64785803 | U128: 46.19714404 | W128: =IF($A128>0,SUMIF('Age profile (years)'!$CT128:$GF128,"<" & R128+0.5,'Asset data'!$CX128:$GJ128),0) -> 98.4 | X128: =IF($A128>0,SUMIF('Age profile (years)'!$CT128:$GF128,"<" & S128+0.5,'Asset data'!$CX128:$GJ128)-W128,0) -> 213.2 | Y128: =IF($A128>0,SUMIF('Age profile (years)'!$CT128:$GF128,"<" & T128+0.5,'Asset data'!$CX128:$GJ128)-X128-W128,0) -> 688.8 | Z128: =IF($A128>0,SUMIF('Age profile (years)'!$CT128:$GF128,"<" & U128+0.5,'Asset data'!$CX128:$GJ128)-Y128-X128-W128,0) -> 311.6 | AA128: 623.2 | AB128: 0.05084745763 | AC128: 0.1101694915 | AD128: 0.3559322034 | AE128: 0.1610169492 | AF128: 0.3220338983 | AI128: =IF($A128>0,'RRR hist-forc'!K128,0) -> 57.74643006 | AJ128: 111750.8914
A129: ='Asset data'!A129 -> 6 | B129: ='Asset data'!B129 -> 0 | C129: ='Asset data'!C129 -> 0 | D129: ='Asset data'!E129 -> ˂ = 11 kV ; Circuit Breaker REFURBISHED | E129: SWITCHGEAR | F129: =IF(A129>0,SUM('Asset data'!J129:CV129),0) -> 1228 | G129: =IF(A129>0,'Asset data'!F129,0) -> 14.2 | H129: =IF(A129>0,SUM('Asset data'!CX129:GJ129),0) -> 17437.6 | I129: 0.0008294858339 | J129: 36 | K129: 0.01277724789 | L129: 14.2 | M129: =IF($A129>0,SUMPRODUCT('Age profile (years)'!$CT129:$GF129,'Asset data'!$CX129:$GJ129)/H129-0.5,0) -> 47.43159609 | N129: 827093.2 | O129: =IF($A129>0,'Asset data'!G129,0) -> 77.44919599 | P129: 1350528.1 | Q129: 0.3875779408 | R129: 7.744919599 | S129: 15.4898392 | T129: 46.46951759 | U129: 61.95935679 | W129: =IF($A129>0,SUMIF('Age profile (years)'!$CT129:$GF129,"<" & R129+0.5,'Asset data'!$CX129:$GJ129),0) -> 0 | X129: =IF($A129>0,SUMIF('Age profile (years)'!$CT129:$GF129,"<" & S129+0.5,'Asset data'!$CX129:$GJ129)-W129,0) -> 525.4 | Y129: =IF($A129>0,SUMIF('Age profile (years)'!$CT129:$GF129,"<" & T129+0.5,'Asset data'!$CX129:$GJ129)-X129-W129,0) -> 7710.6 | Z129: =IF($A129>0,SUMIF('Age profile (years)'!$CT129:$GF129,"<" & U129+0.5,'Asset data'!$CX129:$GJ129)-Y129-X129-W129,0) -> 2570.2 | AA129: 6631.4 | AB129: 0 | AC129: 0.03013029316 | AD129: 0.4421824104 | AE129: 0.1473941368 | AF129: 0.3802931596 | AI129: =IF($A129>0,'RRR hist-forc'!K129,0) -> 77.44919599 | AJ129: 1350528.1
A130: ='Asset data'!A130 -> 6 | B130: ='Asset data'!B130 -> 0 | C130: ='Asset data'!C130 -> 0 | D130: ='Asset data'!E130 -> > 22 kV & < = 33 kV ; Circuit Breaker REFURBISHED | E130: SWITCHGEAR | F130: =IF(A130>0,SUM('Asset data'!J130:CV130),0) -> 253 | G130: =IF(A130>0,'Asset data'!F130,0) -> 12.2 | H130: =IF(A130>0,SUM('Asset data'!CX130:GJ130),0) -> 3086.6 | I130: 0.0001468258806 | J130: 47 | K130: 0.002261678978 | L130: 12.2 | M130: =IF($A130>0,SUMPRODUCT('Age profile (years)'!$CT130:$GF130,'Asset data'!$CX130:$GJ130)/H130-0.5,0) -> 36.18379447 | N130: 111684.9 | O130: =IF($A130>0,'Asset data'!G130,0) -> 65.68458735 | P130: 202742.0473 | Q130: 0.4491280843 | R130: 6.568458735 | S130: 13.13691747 | T130: 39.41075241 | U130: 52.54766988 | W130: =IF($A130>0,SUMIF('Age profile (years)'!$CT130:$GF130,"<" & R130+0.5,'Asset data'!$CX130:$GJ130),0) -> 390.4 | X130: =IF($A130>0,SUMIF('Age profile (years)'!$CT130:$GF130,"<" & S130+0.5,'Asset data'!$CX130:$GJ130)-W130,0) -> 475.8 | Y130: =IF($A130>0,SUMIF('Age profile (years)'!$CT130:$GF130,"<" & T130+0.5,'Asset data'!$CX130:$GJ130)-X130-W130,0) -> 549 | Z130: =IF($A130>0,SUMIF('Age profile (years)'!$CT130:$GF130,"<" & U130+0.5,'Asset data'!$CX130:$GJ130)-Y130-X130-W130,0) -> 207.4 | AA130: 1464 | AB130: 0.1264822134 | AC130: 0.1541501976 | AD130: 0.1778656126 | AE130: 0.06719367589 | AF130: 0.4743083004 | AI130: =IF($A130>0,'RRR hist-forc'!K130,0) -> 65.68458735 | AJ130: 202742.0473
A131: ='Asset data'!A131 -> 6 | B131: ='Asset data'!B131 -> 0 | C131: ='Asset data'!C131 -> 0 | D131: ='Asset data'!E131 -> > 33 kV & < = 66 kV ; Circuit Breaker REFURBISHED | E131: SWITCHGEAR | F131: =IF(A131>0,SUM('Asset data'!J131:CV131),0) -> 467 | G131: =IF(A131>0,'Asset data'!F131,0) -> 14 | H131: =IF(A131>0,SUM('Asset data'!CX131:GJ131),0) -> 6538 | I131: 0.000311004862 | J131: 45 | K131: 0.004790661945 | L131: 14 | M131: =IF($A131>0,SUMPRODUCT('Age profile (years)'!$CT131:$GF131,'Asset data'!$CX131:$GJ131)/H131-0.5,0) -> 59.51498929 | N131: 389109 | O131: =IF($A131>0,'Asset data'!G131,0) -> 81.25574535 | P131: 531250.0631 | Q131: 0.2675596164 | R131: 8.125574535 | S131: 16.25114907 | T131: 48.75344721 | U131: 65.00459628 | W131: =IF($A131>0,SUMIF('Age profile (years)'!$CT131:$GF131,"<" & R131+0.5,'Asset data'!$CX131:$GJ131),0) -> 0 | X131: =IF($A131>0,SUMIF('Age profile (years)'!$CT131:$GF131,"<" & S131+0.5,'Asset data'!$CX131:$GJ131)-W131,0) -> 14 | Y131: =IF($A131>0,SUMIF('Age profile (years)'!$CT131:$GF131,"<" & T131+0.5,'Asset data'!$CX131:$GJ131)-X131-W131,0) -> 1792 | Z131: =IF($A131>0,SUMIF('Age profile (years)'!$CT131:$GF131,"<" & U131+0.5,'Asset data'!$CX131:$GJ131)-Y131-X131-W131,0) -> 980 | AA131: 3752 | AB131: 0 | AC131: 0.002141327623 | AD131: 0.2740899358 | AE131: 0.1498929336 | AF131: 0.573875803 | AI131: =IF($A131>0,'RRR hist-forc'!K131,0) -> 81.25574535 | AJ131: 531250.0631
A132: ='Asset data'!A132 -> 0 | B132: ='Asset data'!B132 -> 0 | C132: ='Asset data'!C132 -> 0 | D132: ='Asset data'!E132 -> 0 | E132: 0 | F132: =IF(A132>0,SUM('Asset data'!J132:CV132),0) -> 0 | G132: =IF(A132>0,'Asset data'!F132,0) -> 0 | H132: =IF(A132>0,SUM('Asset data'!CX132:GJ132),0) -> 0 | I132: 0 | J132: 0 | K132: 0 | L132: 0 | M132: =IF($A132>0,SUMPRODUCT('Age profile (years)'!$CT132:$GF132,'Asset data'!$CX132:$GJ132)/H132-0.5,0) -> 0 | N132: 0 | O132: =IF($A132>0,'Asset data'!G132,0) -> 0 | P132: 0 | Q132: 0 | R132: 0 | S132: 0 | T132: 0 | U132: 0 | W132: =IF($A132>0,SUMIF('Age profile (years)'!$CT132:$GF132,"<" & R132+0.5,'Asset data'!$CX132:$GJ132),0) -> 0 | X132: =IF($A132>0,SUMIF('Age profile (years)'!$CT132:$GF132,"<" & S132+0.5,'Asset data'!$CX132:$GJ132)-W132,0) -> 0 | Y132: =IF($A132>0,SUMIF('Age profile (years)'!$CT132:$GF132,"<" & T132+0.5,'Asset data'!$CX132:$GJ132)-X132-W132,0) -> 0 | Z132: =IF($A132>0,SUMIF('Age profile (years)'!$CT132:$GF132,"<" & U132+0.5,'Asset data'!$CX132:$GJ132)-Y132-X132-W132,0) -> 0 | AA132: 0 | AB132: 0 | AC132: 0 | AD132: 0 | AE132: 0 | AF132: 0 | AI132: =IF($A132>0,'RRR hist-forc'!K132,0) -> 0 | AJ132: 0
A133: ='Asset data'!A133 -> 0 | B133: ='Asset data'!B133 -> 0 | C133: ='Asset data'!C133 -> 0 | D133: ='Asset data'!E133 -> 0 | E133: 0 | F133: =IF(A133>0,SUM('Asset data'!J133:CV133),0) -> 0 | G133: =IF(A133>0,'Asset data'!F133,0) -> 0 | H133: =IF(A133>0,SUM('Asset data'!CX133:GJ133),0) -> 0 | I133: 0 | J133: 0 | K133: 0 | L133: 0 | M133: =IF($A133>0,SUMPRODUCT('Age profile (years)'!$CT133:$GF133,'Asset data'!$CX133:$GJ133)/H133-0.5,0) -> 0 | N133: 0 | O133: =IF($A133>0,'Asset data'!G133,0) -> 0 | P133: 0 | Q133: 0 | R133: 0 | S133: 0 | T133: 0 | U133: 0 | W133: =IF($A133>0,SUMIF('Age profile (years)'!$CT133:$GF133,"<" & R133+0.5,'Asset data'!$CX133:$GJ133),0) -> 0 | X133: =IF($A133>0,SUMIF('Age profile (years)'!$CT133:$GF133,"<" & S133+0.5,'Asset data'!$CX133:$GJ133)-W133,0) -> 0 | Y133: =IF($A133>0,SUMIF('Age profile (years)'!$CT133:$GF133,"<" & T133+0.5,'Asset data'!$CX133:$GJ133)-X133-W133,0) -> 0 | Z133: =IF($A133>0,SUMIF('Age profile (years)'!$CT133:$GF133,"<" & U133+0.5,'Asset data'!$CX133:$GJ133)-Y133-X133-W133,0) -> 0 | AA133: 0 | AB133: 0 | AC133: 0 | AD133: 0 | AE133: 0 | AF133: 0 | AI133: =IF($A133>0,'RRR hist-forc'!K133,0) -> 0 | AJ133: 0
A134: ='Asset data'!A134 -> 0 | B134: ='Asset data'!B134 -> 0 | C134: ='Asset data'!C134 -> 0 | D134: ='Asset data'!E134 -> 0 | E134: 0 | F134: =IF(A134>0,SUM('Asset data'!J134:CV134),0) -> 0 | G134: =IF(A134>0,'Asset data'!F134,0) -> 0 | H134: =IF(A134>0,SUM('Asset data'!CX134:GJ134),0) -> 0 | I134: 0 | J134: 0 | K134: 0 | L134: 0 | M134: =IF($A134>0,SUMPRODUCT('Age profile (years)'!$CT134:$GF134,'Asset data'!$CX134:$GJ134)/H134-0.5,0) -> 0 | N134: 0 | O134: =IF($A134>0,'Asset data'!G134,0) -> 0 | P134: 0 | Q134: 0 | R134: 0 | S134: 0 | T134: 0 | U134: 0 | W134: =IF($A134>0,SUMIF('Age profile (years)'!$CT134:$GF134,"<" & R134+0.5,'Asset data'!$CX134:$GJ134),0) -> 0 | X134: =IF($A134>0,SUMIF('Age profile (years)'!$CT134:$GF134,"<" & S134+0.5,'Asset data'!$CX134:$GJ134)-W134,0) -> 0 | Y134: =IF($A134>0,SUMIF('Age profile (years)'!$CT134:$GF134,"<" & T134+0.5,'Asset data'!$CX134:$GJ134)-X134-W134,0) -> 0 | Z134: =IF($A134>0,SUMIF('Age profile (years)'!$CT134:$GF134,"<" & U134+0.5,'Asset data'!$CX134:$GJ134)-Y134-X134-W134,0) -> 0 | AA134: 0 | AB134: 0 | AC134: 0 | AD134: 0 | AE134: 0 | AF134: 0 | AI134: =IF($A134>0,'RRR hist-forc'!K134,0) -> 0 | AJ134: 0
A135: ='Asset data'!A135 -> 0 | B135: ='Asset data'!B135 -> 0 | C135: ='Asset data'!C135 -> 0 | D135: ='Asset data'!E135 -> 0 | E135: 0 | F135: =IF(A135>0,SUM('Asset data'!J135:CV135),0) -> 0 | G135: =IF(A135>0,'Asset data'!F135,0) -> 0 | H135: =IF(A135>0,SUM('Asset data'!CX135:GJ135),0) -> 0 | I135: 0 | J135: 0 | K135: 0 | L135: 0 | M135: =IF($A135>0,SUMPRODUCT('Age profile (years)'!$CT135:$GF135,'Asset data'!$CX135:$GJ135)/H135-0.5,0) -> 0 | N135: 0 | O135: =IF($A135>0,'Asset data'!G135,0) -> 0 | P135: 0 | Q135: 0 | R135: 0 | S135: 0 | T135: 0 | U135: 0 | W135: =IF($A135>0,SUMIF('Age profile (years)'!$CT135:$GF135,"<" & R135+0.5,'Asset data'!$CX135:$GJ135),0) -> 0 | X135: =IF($A135>0,SUMIF('Age profile (years)'!$CT135:$GF135,"<" & S135+0.5,'Asset data'!$CX135:$GJ135)-W135,0) -> 0 | Y135: =IF($A135>0,SUMIF('Age profile (years)'!$CT135:$GF135,"<" & T135+0.5,'Asset data'!$CX135:$GJ135)-X135-W135,0) -> 0 | Z135: =IF($A135>0,SUMIF('Age profile (years)'!$CT135:$GF135,"<" & U135+0.5,'Asset data'!$CX135:$GJ135)-Y135-X135-W135,0) -> 0 | AA135: 0 | AB135: 0 | AC135: 0 | AD135: 0 | AE135: 0 | AF135: 0 | AI135: =IF($A135>0,'RRR hist-forc'!K135,0) -> 0 | AJ135: 0
A136: ='Asset data'!A136 -> 0 | B136: ='Asset data'!B136 -> 0 | C136: ='Asset data'!C136 -> 0 | D136: ='Asset data'!E136 -> 0 | E136: 0 | F136: =IF(A136>0,SUM('Asset data'!J136:CV136),0) -> 0 | G136: =IF(A136>0,'Asset data'!F136,0) -> 0 | H136: =IF(A136>0,SUM('Asset data'!CX136:GJ136),0) -> 0 | I136: 0 | J136: 0 | K136: 0 | L136: 0 | M136: =IF($A136>0,SUMPRODUCT('Age profile (years)'!$CT136:$GF136,'Asset data'!$CX136:$GJ136)/H136-0.5,0) -> 0 | N136: 0 | O136: =IF($A136>0,'Asset data'!G136,0) -> 0 | P136: 0 | Q136: 0 | R136: 0 | S136: 0 | T136: 0 | U136: 0 | W136: =IF($A136>0,SUMIF('Age profile (years)'!$CT136:$GF136,"<" & R136+0.5,'Asset data'!$CX136:$GJ136),0) -> 0 | X136: =IF($A136>0,SUMIF('Age profile (years)'!$CT136:$GF136,"<" & S136+0.5,'Asset data'!$CX136:$GJ136)-W136,0) -> 0 | Y136: =IF($A136>0,SUMIF('Age profile (years)'!$CT136:$GF136,"<" & T136+0.5,'Asset data'!$CX136:$GJ136)-X136-W136,0) -> 0 | Z136: =IF($A136>0,SUMIF('Age profile (years)'!$CT136:$GF136,"<" & U136+0.5,'Asset data'!$CX136:$GJ136)-Y136-X136-W136,0) -> 0 | AA136: 0 | AB136: 0 | AC136: 0 | AD136: 0 | AE136: 0 | AF136: 0 | AI136: =IF($A136>0,'RRR hist-forc'!K136,0) -> 0 | AJ136: 0
A137: ='Asset data'!A137 -> 0 | B137: ='Asset data'!B137 -> 0 | C137: ='Asset data'!C137 -> 0 | D137: ='Asset data'!E137 -> 0 | E137: 0 | F137: =IF(A137>0,SUM('Asset data'!J137:CV137),0) -> 0 | G137: =IF(A137>0,'Asset data'!F137,0) -> 0 | H137: =IF(A137>0,SUM('Asset data'!CX137:GJ137),0) -> 0 | I137: 0 | J137: 0 | K137: 0 | L137: 0 | M137: =IF($A137>0,SUMPRODUCT('Age profile (years)'!$CT137:$GF137,'Asset data'!$CX137:$GJ137)/H137-0.5,0) -> 0 | N137: 0 | O137: =IF($A137>0,'Asset data'!G137,0) -> 0 | P137: 0 | Q137: 0 | R137: 0 | S137: 0 | T137: 0 | U137: 0 | W137: =IF($A137>0,SUMIF('Age profile (years)'!$CT137:$GF137,"<" & R137+0.5,'Asset data'!$CX137:$GJ137),0) -> 0 | X137: =IF($A137>0,SUMIF('Age profile (years)'!$CT137:$GF137,"<" & S137+0.5,'Asset data'!$CX137:$GJ137)-W137,0) -> 0 | Y137: =IF($A137>0,SUMIF('Age profile (years)'!$CT137:$GF137,"<" & T137+0.5,'Asset data'!$CX137:$GJ137)-X137-W137,0) -> 0 | Z137: =IF($A137>0,SUMIF('Age profile (years)'!$CT137:$GF137,"<" & U137+0.5,'Asset data'!$CX137:$GJ137)-Y137-X137-W137,0) -> 0 | AA137: 0 | AB137: 0 | AC137: 0 | AD137: 0 | AE137: 0 | AF137: 0 | AI137: =IF($A137>0,'RRR hist-forc'!K137,0) -> 0 | AJ137: 0
A138: ='Asset data'!A138 -> 0 | B138: ='Asset data'!B138 -> 0 | C138: ='Asset data'!C138 -> 0 | D138: ='Asset data'!E138 -> 0 | E138: 0 | F138: =IF(A138>0,SUM('Asset data'!J138:CV138),0) -> 0 | G138: =IF(A138>0,'Asset data'!F138,0) -> 0 | H138: =IF(A138>0,SUM('Asset data'!CX138:GJ138),0) -> 0 | I138: 0 | J138: 0 | K138: 0 | L138: 0 | M138: =IF($A138>0,SUMPRODUCT('Age profile (years)'!$CT138:$GF138,'Asset data'!$CX138:$GJ138)/H138-0.5,0) -> 0 | N138: 0 | O138: =IF($A138>0,'Asset data'!G138,0) -> 0 | P138: 0 | Q138: 0 | R138: 0 | S138: 0 | T138: 0 | U138: 0 | W138: =IF($A138>0,SUMIF('Age profile (years)'!$CT138:$GF138,"<" & R138+0.5,'Asset data'!$CX138:$GJ138),0) -> 0 | X138: =IF($A138>0,SUMIF('Age profile (years)'!$CT138:$GF138,"<" & S138+0.5,'Asset data'!$CX138:$GJ138)-W138,0) -> 0 | Y138: =IF($A138>0,SUMIF('Age profile (years)'!$CT138:$GF138,"<" & T138+0.5,'Asset data'!$CX138:$GJ138)-X138-W138,0) -> 0 | Z138: =IF($A138>0,SUMIF('Age profile (years)'!$CT138:$GF138,"<" & U138+0.5,'Asset data'!$CX138:$GJ138)-Y138-X138-W138,0) -> 0 | AA138: 0 | AB138: 0 | AC138: 0 | AD138: 0 | AE138: 0 | AF138: 0 | AI138: =IF($A138>0,'RRR hist-forc'!K138,0) -> 0 | AJ138: 0
A139: ='Asset data'!A139 -> 0 | B139: ='Asset data'!B139 -> 0 | C139: ='Asset data'!C139 -> 0 | D139: ='Asset data'!E139 -> 0 | E139: 0 | F139: =IF(A139>0,SUM('Asset data'!J139:CV139),0) -> 0 | G139: =IF(A139>0,'Asset data'!F139,0) -> 0 | H139: =IF(A139>0,SUM('Asset data'!CX139:GJ139),0) -> 0 | I139: 0 | J139: 0 | K139: 0 | L139: 0 | M139: =IF($A139>0,SUMPRODUCT('Age profile (years)'!$CT139:$GF139,'Asset data'!$CX139:$GJ139)/H139-0.5,0) -> 0 | N139: 0 | O139: =IF($A139>0,'Asset data'!G139,0) -> 0 | P139: 0 | Q139: 0 | R139: 0 | S139: 0 | T139: 0 | U139: 0 | W139: =IF($A139>0,SUMIF('Age profile (years)'!$CT139:$GF139,"<" & R139+0.5,'Asset data'!$CX139:$GJ139),0) -> 0 | X139: =IF($A139>0,SUMIF('Age profile (years)'!$CT139:$GF139,"<" & S139+0.5,'Asset data'!$CX139:$GJ139)-W139,0) -> 0 | Y139: =IF($A139>0,SUMIF('Age profile (years)'!$CT139:$GF139,"<" & T139+0.5,'Asset data'!$CX139:$GJ139)-X139-W139,0) -> 0 | Z139: =IF($A139>0,SUMIF('Age profile (years)'!$CT139:$GF139,"<" & U139+0.5,'Asset data'!$CX139:$GJ139)-Y139-X139-W139,0) -> 0 | AA139: 0 | AB139: 0 | AC139: 0 | AD139: 0 | AE139: 0 | AF139: 0 | AI139: =IF($A139>0,'RRR hist-forc'!K139,0) -> 0 | AJ139: 0
A140: ='Asset data'!A140 -> 0 | B140: ='Asset data'!B140 -> 0 | C140: ='Asset data'!C140 -> 0 | D140: ='Asset data'!E140 -> 0 | E140: 0 | F140: =IF(A140>0,SUM('Asset data'!J140:CV140),0) -> 0 | G140: =IF(A140>0,'Asset data'!F140,0) -> 0 | H140: =IF(A140>0,SUM('Asset data'!CX140:GJ140),0) -> 0 | I140: 0 | J140: 0 | K140: 0 | L140: 0 | M140: =IF($A140>0,SUMPRODUCT('Age profile (years)'!$CT140:$GF140,'Asset data'!$CX140:$GJ140)/H140-0.5,0) -> 0 | N140: 0 | O140: =IF($A140>0,'Asset data'!G140,0) -> 0 | P140: 0 | Q140: 0 | R140: 0 | S140: 0 | T140: 0 | U140: 0 | W140: =IF($A140>0,SUMIF('Age profile (years)'!$CT140:$GF140,"<" & R140+0.5,'Asset data'!$CX140:$GJ140),0) -> 0 | X140: =IF($A140>0,SUMIF('Age profile (years)'!$CT140:$GF140,"<" & S140+0.5,'Asset data'!$CX140:$GJ140)-W140,0) -> 0 | Y140: =IF($A140>0,SUMIF('Age profile (years)'!$CT140:$GF140,"<" & T140+0.5,'Asset data'!$CX140:$GJ140)-X140-W140,0) -> 0 | Z140: =IF($A140>0,SUMIF('Age profile (years)'!$CT140:$GF140,"<" & U140+0.5,'Asset data'!$CX140:$GJ140)-Y140-X140-W140,0) -> 0 | AA140: 0 | AB140: 0 | AC140: 0 | AD140: 0 | AE140: 0 | AF140: 0 | AI140: =IF($A140>0,'RRR hist-forc'!K140,0) -> 0 | AJ140: 0
A141: ='Asset data'!A141 -> 0 | B141: ='Asset data'!B141 -> 0 | C141: ='Asset data'!C141 -> 0 | D141: ='Asset data'!E141 -> 0 | E141: 0 | F141: =IF(A141>0,SUM('Asset data'!J141:CV141),0) -> 0 | G141: =IF(A141>0,'Asset data'!F141,0) -> 0 | H141: =IF(A141>0,SUM('Asset data'!CX141:GJ141),0) -> 0 | I141: 0 | J141: 0 | K141: 0 | L141: 0 | M141: =IF($A141>0,SUMPRODUCT('Age profile (years)'!$CT141:$GF141,'Asset data'!$CX141:$GJ141)/H141-0.5,0) -> 0 | N141: 0 | O141: =IF($A141>0,'Asset data'!G141,0) -> 0 | P141: 0 | Q141: 0 | R141: 0 | S141: 0 | T141: 0 | U141: 0 | W141: =IF($A141>0,SUMIF('Age profile (years)'!$CT141:$GF141,"<" & R141+0.5,'Asset data'!$CX141:$GJ141),0) -> 0 | X141: =IF($A141>0,SUMIF('Age profile (years)'!$CT141:$GF141,"<" & S141+0.5,'Asset data'!$CX141:$GJ141)-W141,0) -> 0 | Y141: =IF($A141>0,SUMIF('Age profile (years)'!$CT141:$GF141,"<" & T141+0.5,'Asset data'!$CX141:$GJ141)-X141-W141,0) -> 0 | Z141: =IF($A141>0,SUMIF('Age profile (years)'!$CT141:$GF141,"<" & U141+0.5,'Asset data'!$CX141:$GJ141)-Y141-X141-W141,0) -> 0 | AA141: 0 | AB141: 0 | AC141: 0 | AD141: 0 | AE141: 0 | AF141: 0 | AI141: =IF($A141>0,'RRR hist-forc'!K141,0) -> 0 | AJ141: 0
A142: ='Asset data'!A142 -> 0 | B142: ='Asset data'!B142 -> 0 | C142: ='Asset data'!C142 -> 0 | D142: ='Asset data'!E142 -> 0 | E142: 0 | F142: =IF(A142>0,SUM('Asset data'!J142:CV142),0) -> 0 | G142: =IF(A142>0,'Asset data'!F142,0) -> 0 | H142: =IF(A142>0,SUM('Asset data'!CX142:GJ142),0) -> 0 | I142: 0 | J142: 0 | K142: 0 | L142: 0 | M142: =IF($A142>0,SUMPRODUCT('Age profile (years)'!$CT142:$GF142,'Asset data'!$CX142:$GJ142)/H142-0.5,0) -> 0 | N142: 0 | O142: =IF($A142>0,'Asset data'!G142,0) -> 0 | P142: 0 | Q142: 0 | R142: 0 | S142: 0 | T142: 0 | U142: 0 | W142: =IF($A142>0,SUMIF('Age profile (years)'!$CT142:$GF142,"<" & R142+0.5,'Asset data'!$CX142:$GJ142),0) -> 0 | X142: =IF($A142>0,SUMIF('Age profile (years)'!$CT142:$GF142,"<" & S142+0.5,'Asset data'!$CX142:$GJ142)-W142,0) -> 0 | Y142: =IF($A142>0,SUMIF('Age profile (years)'!$CT142:$GF142,"<" & T142+0.5,'Asset data'!$CX142:$GJ142)-X142-W142,0) -> 0 | Z142: =IF($A142>0,SUMIF('Age profile (years)'!$CT142:$GF142,"<" & U142+0.5,'Asset data'!$CX142:$GJ142)-Y142-X142-W142,0) -> 0 | AA142: 0 | AB142: 0 | AC142: 0 | AD142: 0 | AE142: 0 | AF142: 0 | AI142: =IF($A142>0,'RRR hist-forc'!K142,0) -> 0 | AJ142: 0
AI206: =IF($A206>0,'RRR hist-forc'!K206,0) -> 0 | AJ206: =IF($A206>0,AI206*H206,0) -> 0

Sheet Asset data
A1: Meth all | D1: 3 | E1: =IF(D1=2,"all normal",IF(D1=1,"all deterministic","individual")) -> individual | L1: Profile type: | M1: 3 | N1: =VLOOKUP(APtype,IDtable,4) -> Installation date
F3: Unit | J3: Quantities | CX3: Replacement Cost (NOT depreciated)
F4: Cost | G4: Replacement life | I4: Rep | J4: =VLOOKUP(APtype,IDtable,4) -> Installation date | CX4: =VLOOKUP(APtype,IDtable,4) -> Installation date
A5: ID | B5: ID | C5: ID | D5: Asset category | E5: Asset ID | F5: $ ('000) | G5: mean | H5: SD | I5: Meth | J5: =IF(OR(APtype=1,APtype=2),0,IF(APtype=3,Now,9999)) -> 2015 | K5: =IF(OR(APtype=1,APtype=2),J5+1,IF(APtype=3,J5-1,9999)) -> 2014 | L5: 2013 | M5: 2012 | N5: 2011 | O5: 2010 | P5: 2009 | Q5: 2008 | R5: 2007 | S5: 2006 | T5: 2005 | U5: 2004 | V5: 2003 | W5: 2002 | X5: 2001 | Y5: 2000 | Z5: 1999 | AA5: 1998 | AB5: 1997 | AC5: 1996 | AD5: 1995 | AE5: 1994 | AF5: 1993 | AG5: 1992 | AH5: 1991 | AI5: 1990 | AJ5: 1989 | AK5: 1988 | AL5: 1987 | AM5: 1986 | AN5: 1985 | AO5: 1984 | AP5: 1983 | AQ5: =IF(OR(APtype=1,APtype=2),AP5+1,IF(APtype=3,AP5-1,9999)) -> 1982 | AR5: 1981 | AS5: 1980 | AT5: 1979 | AU5: 1978 | AV5: 1977 | AW5: 1976 | AX5: 1975 | AY5: 1974 | AZ5: 1973 | BA5: 1972 | BB5: 1971 | BC5: 1970 | BD5: 1969 | BE5: 1968 | BF5: 1967 | BG5: 1966 | BH5: 1965 | BI5: 1964 | BJ5: 1963 | BK5: 1962 | BL5: 1961 | BM5: 1960 | BN5: 1959 | BO5: 1958 | BP5: 1957 | BQ5: 1956 | BR5: 1955 | BS5: 1954 | BT5: 1953 | BU5: 1952 | BV5: 1951 | BW5: =IF(OR(APtype=1,APtype=2),BV5+1,IF(APtype=3,BV5-1,9999)) -> 1950 | BX5: 1949 | BY5: 1948 | BZ5: 1947 | CA5: 1946 | CB5: 1945 | CC5: 1944 | CD5: 1943 | CE5: 1942 | CF5: 1941 | CG5: 1940 | CH5: 1939 | CI5: 1938 | CJ5: 1937 | CK5: 1936 | CL5: 1935 | CM5: 1934 | CN5: 1933 | CO5: 1932 | CP5: 1931 | CQ5: 1930 | CR5: 1929 | CS5: 1928 | CT5: 1927 | CU5: 1926 | CV5: 1925 | CX5: =J5 -> 2015 | CY5: =K5 -> 2014 | CZ5: 2013 | DA5: 2012 | DB5: 2011 | DC5: 2010 | DD5: 2009 | DE5: 2008 | DF5: 2007 | DG5: 2006 | DH5: 2005 | DI5: 2004 | DJ5: 2003 | DK5: 2002 | DL5: 2001 | DM5: 2000 | DN5: 1999 | DO5: 1998 | DP5: 1997 | DQ5: 1996 | DR5: 1995 | DS5: 1994 | DT5: 1993 | DU5: 1992 | DV5: 1991 | DW5: 1990 | DX5: 1989 | DY5: 1988 | DZ5: 1987 | EA5: 1986 | EB5: 1985 | EC5: 1984 | ED5: 1983 | EE5: 1982 | EF5: 1981 | EG5: 1980 | EH5: 1979 | EI5: 1978 | EJ5: 1977 | EK5: 1976 | EL5: 1975 | EM5: 1974 | EN5: 1973 | EO5: 1972 | EP5: 1971 | EQ5: 1970 | ER5: 1969 | ES5: 1968 | ET5: 1967 | EU5: 1966 | EV5: 1965 | EW5: 1964 | EX5: 1963 | EY5: 1962 | EZ5: 1961 | FA5: 1960 | FB5: 1959 | FC5: 1958 | FD5: 1957 | FE5: 1956 | FF5: 1955 | FG5: 1954 | FH5: 1953 | FI5: 1952 | FJ5: 1951 | FK5: =BW5 -> 1950 | FL5: 1949 | FM5: 1948 | FN5: 1947 | FO5: 1946 | FP5: 1945 | FQ5: 1944 | FR5: 1943 | FS5: 1942 | FT5: 1941 | FU5: 1940 | FV5: 1939 | FW5: 1938 | FX5: 1937 | FY5: 1936 | FZ5: 1935 | GA5: 1934 | GB5: 1933 | GC5: 1932 | GD5: 1931 | GE5: 1930 | GF5: 1929 | GG5: 1928 | GH5: 1927 | GI5: 1926 | GJ5: 1925
A21: 1 | D21: POLES | E21: Pole Refurbished; STOBIE | F21: 8.833848673 | G21: 20 | H21: 4.472135955 | I21: 2 | J21: 3715 | K21: 2563 | L21: 3210 | M21: 3005 | N21: 1811 | O21: 917 | P21: 1232 | Q21: 2349 | R21: 2467 | S21: 430 | T21: 0 | U21: 0 | V21: 0 | W21: 0 | X21: 0 | Y21: 0 | Z21: 0 | AA21: 0 | AB21: 0 | AC21: 0 | AD21: 0 | AE21: 0 | AF21: 0 | AG21: 0 | AH21: 0 | AI21: 0 | AJ21: 0 | AK21: 0 | AL21: 0 | AM21: 0 | AN21: 0 | AO21: 0 | AP21: 0 | AQ21: 0 | AR21: 0 | AS21: 0 | AT21: 0 | AU21: 0 | AV21: 0 | AW21: 0 | AX21: 0 | AY21: 0 | AZ21: 0 | BA21: 0 | BB21: 0 | BC21: 0 | BD21: 0 | BE21: 0 | BF21: 0 | BG21: 0 | BH21: 0 | BI21: 0 | BJ21: 0 | BK21: 0 | BL21: 0 | BM21: 0 | BN21: 0 | BO21: 0 | BP21: 0 | BQ21: 0 | BR21: 0 | BS21: 0 | BT21: 0 | BU21: 0 | BV21: 0 | BW21: 0 | BX21: 0 | BY21: 0 | BZ21: 0 | CA21: 0 | CB21: 0 | CC21: 0 | CD21: 0 | CE21: 0 | CF21: 0 | CG21: 0 | CH21: 0 | CI21: 0 | CJ21: 0 | CK21: 0 | CL21: 0 | CM21: 0 | CN21: 0 | CO21: 0 | CP21: 0 | CQ21: 0 | CR21: 0 | CS21: 0 | CT21: 0 | CU21: 0 | CV21: 0 | CX21: =$F21*J21 -> 32817.74782 | CY21: =$F21*K21 -> 22641.15415 | CZ21: 28356.65424 | DA21: 26545.71526 | DB21: 15998.09995 | DC21: 8100.639233 | DD21: 10883.30157 | DE21: 20750.71053 | DF21: 21793.10468 | DG21: 3798.554929 | DH21: 0 | DI21: 0 | DJ21: 0 | DK21: 0 | DL21: 0 | DM21: 0 | DN21: 0 | DO21: 0 | DP21: 0 | DQ21: 0 | DR21: 0 | DS21: 0 | DT21: 0 | DU21: 0 | DV21: 0 | DW21: 0 | DX21: 0 | DY21: 0 | DZ21: 0 | EA21: 0 | EB21: 0 | EC21: 0 | ED21: 0 | EE21: 0 | EF21: 0 | EG21: 0 | EH21: 0 | EI21: 0 | EJ21: 0 | EK21: 0 | EL21: 0 | EM21: 0 | EN21: 0 | EO21: 0 | EP21: 0 | EQ21: 0 | ER21: 0 | ES21: 0 | ET21: 0 | EU21: 0 | EV21: 0 | EW21: 0 | EX21: 0 | EY21: 0 | EZ21: 0 | FA21: 0 | FB21: 0 | FC21: 0 | FD21: 0 | FE21: 0 | FF21: 0 | FG21: 0 | FH21: 0 | FI21: 0 | FJ21: 0 | FK21: =$F21*BW21 -> 0 | FL21: 0 | FM21: 0 | FN21: 0 | FO21: 0 | FP21: 0 | FQ21: 0 | FR21: 0 | FS21: 0 | FT21: 0 | FU21: 0 | FV21: 0 | FW21: 0 | FX21: 0 | FY21: 0 | FZ21: 0 | GA21: 0 | GB21: 0 | GC21: 0 | GD21: 0 | GE21: 0 | GF21: 0 | GG21: 0 | GH21: 0 | GI21: 0 | GJ21: 0
E22: Unused | F22: 4.80653544 | G22: 50 | H22: 7.071067812 | I22: 2 | CX22: =$F22*J22 ->  | CY22: =$F22*K22 ->  | CZ22: =$F22*L22 ->  | DA22: =$F22*M22 ->  | DB22: =$F22*N22 ->  | DC22: =$F22*O22 ->  | DD22: =$F22*P22 ->  | DE22: =$F22*Q22 ->  | DF22: =$F22*R22 ->  | DG22: =$F22*S22 ->  | DH22: =$F22*T22 ->  | DI22: =$F22*U22 ->  | DJ22: =$F22*V22 ->  | DK22: =$F22*W22 ->  | DL22: =$F22*X22 ->  | DM22: =$F22*Y22 ->  | DN22: =$F22*Z22 ->  | DO22: =$F22*AA22 ->  | DP22: =$F22*AB22 ->  | DQ22: =$F22*AC22 ->  | DR22: =$F22*AD22 ->  | DS22: =$F22*AE22 ->  | DT22: =$F22*AF22 ->  | DU22: =$F22*AG22 ->  | DV22: =$F22*AH22 ->  | DW22: =$F22*AI22 ->  | DX22: =$F22*AJ22 ->  | DY22: =$F22*AK22 ->  | DZ22: =$F22*AL22 ->  | EA22: =$F22*AM22 ->  | EB22: =$F22*AN22 ->  | EC22: =$F22*AO22 ->  | ED22: =$F22*AP22 ->  | EE22: =$F22*AQ22 ->  | EF22: =$F22*AR22 ->  | EG22: =$F22*AS22 ->  | EH22: =$F22*AT22 ->  | EI22: =$F22*AU22 ->  | EJ22: =$F22*AV22 ->  | EK22: =$F22*AW22 ->  | EL22: =$F22*AX22 ->  | EM22: =$F22*AY22 ->  | EN22: =$F22*AZ22 ->  | EO22: =$F22*BA22 ->  | EP22: =$F22*BB22 ->  | EQ22: =$F22*BC22 ->  | ER22: =$F22*BD22 ->  | ES22: =$F22*BE22 ->  | ET22: =$F22*BF22 ->  | EU22: =$F22*BG22 ->  | EV22: =$F22*BH22 ->  | EW22: =$F22*BI22 ->  | EX22: =$F22*BJ22 ->  | EY22: =$F22*BK22 ->  | EZ22: =$F22*BL22 ->  | FA22: =$F22*BM22 ->  | FB22: =$F22*BN22 ->  | FC22: =$F22*BO22 ->  | FD22: =$F22*BP22 ->  | FE22: =$F22*BQ22 ->  | FF22: =$F22*BR22 ->  | FG22: =$F22*BS22 ->  | FH22: =$F22*BT22 ->  | FI22: =$F22*BU22 ->  | FJ22: =$F22*BV22 ->  | FK22: =$F22*BW22 ->  | FL22: =$F22*BX22 ->  | FM22: =$F22*BY22 ->  | FN22: =$F22*BZ22 ->  | FO22: =$F22*CA22 ->  | FP22: =$F22*CB22 ->  | FQ22: =$F22*CC22 ->  | FR22: =$F22*CD22 ->  | FS22: =$F22*CE22 ->  | FT22: =$F22*CF22 ->  | FU22: =$F22*CG22 ->  | FV22: =$F22*CH22 ->  | FW22: =$F22*CI22 ->  | FX22: =$F22*CJ22 ->  | FY22: =$F22*CK22 ->  | FZ22: =$F22*CL22 ->  | GA22: =$F22*CM22 ->  | GB22: =$F22*CN22 ->  | GC22: =$F22*CO22 ->  | GD22: =$F22*CP22 ->  | GE22: =$F22*CQ22 ->  | GF22: =$F22*CR22 ->  | GG22: =$F22*CS22 ->  | GH22: =$F22*CT22 ->  | GI22: =$F22*CU22 ->  | GJ22: =$F22*CV22 -> 
A23: 1 | D23: POLES | E23: ˂ = 11 kV ; STOBIE | F23: 4.921259486 | G23: 76.00445522 | H23: 8.718053407 | I23: 2 | J23: 3139 | K23: 3118.926536 | L23: 3112.915113 | M23: 1993.788566 | N23: 1557.96422 | O23: 1445.747187 | P23: 1465.787166 | Q23: 1412.684361 | R23: 1206.769021 | S23: 1094.078952 | T23: 1080.052299 | U23: 1164.454815 | V23: 1072.037068 | W23: 1287.446386 | X23: 1552.700498 | Y23: 1691.213618 | Z23: 1136.158912 | AA23: 487.9271517 | AB23: 1844.5049 | AC23: 2409.328248 | AD23: 2367.498685 | AE23: 2510.770928 | AF23: 3992.460201 | AG23: 5188.861695 | AH23: 5072.6637 | AI23: 5629.556854 | AJ23: 6161.896064 | AK23: 4866.732279 | AL23: 5115.064096 | AM23: 5875.765761 | AN23: 6568.994358 | AO23: 7086.590559 | AP23: 6317.149806 | AQ23: 6283.755344 | AR23: 6965.279644 | AS23: 7315.331112 | AT23: 7964.897105 | AU23: 9420.878389 | AV23: 9545.724237 | AW23: 9045.08912 | AX23: 9833.729048 | AY23: 9286.643917 | AZ23: 9446.59865 | BA23: 11850.8699 | BB23: 13039.19085 | BC23: 12419.30711 | BD23: 12247.6911 | BE23: 12247.77211 | BF23: 15398.17219 | BG23: 18015.47373 | BH23: 17112.355 | BI23: 18187.55523 | BJ23: 18844.00133 | BK23: 18189.15168 | BL23: 17722.02122 | BM23: 15369.41946 | BN23: 15056.06015 | BO23: 14362.38998 | BP23: 14613.50416 | BQ23: 16844.84334 | BR23: 13657.86257 | BS23: 11682.5069 | BT23: 12333.26669 | BU23: 8180.364879 | BV23: 4469.211438 | BW23: 3632.607199 | BX23: 1549.53714 | BY23: 1167.463665 | BZ23: 1122.452811 | CA23: 1190.874501 | CB23: 1197.39472 | CC23: 830.6476422 | CD23: 1044.166385 | CE23: 1595.62292 | CF23: 2556.172029 | CG23: 3099.069597 | CH23: 3049.52738 | CI23: 2447.095663 | CJ23: 3382.930893 | CK23: 3854.31241 | CL23: 2553.710614 | CM23: 1253.860413 | CN23: 465.4096824 | CO23: 50.42594084 | CP23: 0 | CQ23: 0 | CR23: 0 | CS23: 0 | CT23: 0 | CU23: 0 | CV23: 0 | CX23: 15447.83353 | CY23: 15349.0468 | CZ23: 15319.46303 | DA23: 9811.950895 | DB23: 7667.146197 | DC23: 7114.897056 | DD23: 7213.518997 | DE23: 6952.186313 | DF23: 5938.823491 | DG23: 5384.246421 | DH23: 5315.217621 | DI23: 5730.584305 | DJ23: 5275.772592 | DK23: 6335.857739 | DL23: 7641.242052 | DM23: 8322.901061 | DN23: 5591.332822 | DO23: 2401.216124 | DP23: 9077.287235 | DQ23: 11856.9295 | DR23: 11651.07536 | DS23: 12356.15525 | DT23: 19647.93264 | DU23: 25535.73484 | DV23: 24963.89435 | DW23: 27704.51007 | DX23: 30324.28945 | DY23: 23950.45239 | DZ23: 25172.55771 | EA23: 28916.16799 | EB23: 32327.7258 | EC23: 34874.95101 | ED23: 31088.33341 | EE23: 30923.99059 | EF23: 34277.94852 | EG23: 36000.64263 | EH23: 39197.32543 | EI23: 46362.58714 | EJ23: 46976.98595 | EK23: 44513.23063 | EL23: 48394.33236 | EM23: 45701.98447 | EN23: 46489.16322 | EO23: 58321.2059 | EP23: 64169.24164 | EQ23: 61118.63295 | ER23: 60274.06602 | ES23: 60274.46469 | ET23: 75778.40093 | EU23: 88658.821 | EV23: 84214.33937 | EW23: 89505.67869 | EX23: 92736.22027 | EY23: 89513.53524 | EZ23: 87214.66506 | FA23: 75636.9013 | FB23: 74094.77885 | FC23: 70681.04791 | FD23: 71916.84597 | FE23: 82897.84509 | FF23: 67213.88575 | FG23: 57492.6479 | FH23: 60695.20567 | FI23: 40257.69826 | FJ23: 21994.14918 | FK23: 17877.00264 | FL23: 7625.674349 | FM23: 5745.391637 | FN23: 5523.881544 | FO23: 5860.602435 | FP23: 5892.690123 | FQ23: 4087.832588 | FR23: 5138.613729 | FS23: 7852.474433 | FT23: 12579.58585 | FU23: 15251.32565 | FV23: 15007.51555 | FW23: 12042.79274 | FX23: 16648.28075 | FY23: 18968.07151 | FZ23: 12567.47259 | GA23: 6170.572454 | GB23: 2290.401814 | GC23: 248.1591397 | GD23: 0 | GE23: 0 | GF23: 0 | GG23: 0 | GH23: 0 | GI23: 0 | GJ23: 0
A24: 1 | D24: POLES | E24: > 11 kV & <= 33 kV ; STOBIE | F24: 4.43153808 | G24: 80.15674898 | H24: 8.953030156 | I24: 2 | J24: 221 | K24: 298.5673331 | L24: 250.4759506 | M24: 344.654908 | N24: 267.5083152 | O24: 228.4340669 | P24: 269.5121228 | Q24: 307.5844673 | R24: 303.5768521 | S24: 123.0299646 | T24: 147.2798589 | U24: 146.2779551 | V24: 157.2988969 | W24: 141.0481177 | X24: 149.2836665 | Y24: 217.4131251 | Z24: 148.2817627 | AA24: 38.07234448 | AB24: 480.9138251 | AC24: 876.6658269 | AD24: 884.6810574 | AE24: 560.0642254 | AF24: 1113.115124 | AG24: 1492.836665 | AH24: 1419.699592 | AI24: 1586.741664 | AJ24: 1534.990858 | AK24: 1362.637285 | AL24: 1610.787356 | AM24: 2084.630145 | AN24: 2107.710001 | AO24: 1679.60746 | AP24: 1633.542912 | AQ24: 1700.990006 | AR24: 1636.591903 | AS24: 1379.621536 | AT24: 1209.651042 | AU24: 1555.355968 | AV24: 2453.445756 | AW24: 4404.80626 | AX24: 4932.685632 | AY24: 4785.069986 | AZ24: 4836.779171 | BA24: 5088.225603 | BB24: 6267.147639 | BC24: 6330.891894 | BD24: 5982.704586 | BE24: 6034.254133 | BF24: 6648.508636 | BG24: 6615.34924 | BH24: 5756.542856 | BI24: 7226.295408 | BJ24: 8070.94902 | BK24: 6330.20803 | BL24: 5230.969888 | BM24: 5250.039441 | BN24: 3852.48064 | BO24: 2159.996806 | BP24: 1682.561938 | BQ24: 1529.167417 | BR24: 1137.734967 | BS24: 1042.224497 | BT24: 1135.504854 | BU24: 3113.68991 | BV24: 2900.309976 | BW24: 380.1340155 | BX24: 41.69837415 | BY24: 77.51782978 | BZ24: 116.7330603 | CA24: 140.1907494 | CB24: 68.5486913 | CC24: 27.00137342 | CD24: 290.6167769 | CE24: 505.3710519 | CF24: 262.1048408 | CG24: 184.10842 | CH24: 516.8658936 | CI24: 828.8127025 | CJ24: 616.7480456 | CK24: 324.8594265 | CL24: 405.346986 | CM24: 236.6140301 | CN24: 185.2183596 | CO24: 150.3080929 | CP24: 0 | CQ24: 0 | CR24: 0 | CS24: 0 | CT24: 0 | CU24: 0 | CV24: 0 | CX24: 979.3699157 | CY24: 1323.112506 | CZ24: 1109.993713 | DA24: 1527.351349 | DB24: 1185.473286 | DC24: 1012.314266 | DD24: 1194.353235 | DE24: 1363.07228 | DF24: 1345.31238 | DG24: 545.2119732 | DH24: 652.6763033 | DI24: 648.2363284 | DJ24: 697.0760518 | DK24: 625.0601047 | DL24: 661.556253 | DM24: 963.474543 | DN24: 657.1162781 | DO24: 168.7190444 | DP24: 2131.187929 | DQ24: 3884.977996 | DR24: 3920.497795 | DS24: 2481.945942 | DT24: 4932.812061 | DU24: 6615.56253 | DV24: 6291.452803 | DW24: 7031.70611 | DX24: 6802.37044 | DY24: 6038.579019 | DZ24: 7138.265506 | EA24: 9238.117872 | EB24: 9340.39713 | EC24: 7443.244418 | ED24: 7239.107618 | EE24: 7538.001985 | EF24: 7252.619339 | EG24: 6113.845372 | EH24: 5360.614655 | EI24: 6892.619199 | EJ24: 10872.5383 | EK24: 19520.06668 | EL24: 21859.38422 | EM24: 21205.21986 | EN24: 21434.37108 | EO24: 22548.66552 | EP24: 27773.10342 | EQ24: 28055.58851 | ER24: 26512.5832 | ES24: 26741.02698 | ET24: 29463.1192 | EU24: 29316.17207 | EV24: 25510.33888 | EW24: 32023.60328 | EX24: 35766.71793 | EY24: 28052.55794 | EZ24: 23181.24225 | FA24: 23265.74971 | FB24: 17072.41466 | FC24: 9572.108099 | FD24: 7456.337302 | FE24: 6776.563639 | FF24: 5041.915834 | FG24: 4618.657546 | FH24: 5032.033001 | FI24: 13798.43541 | FJ24: 12852.8341 | FK24: 1684.578365 | FL24: 184.7879329 | FM24: 343.5232146 | FN24: 517.3070022 | FO24: 621.2606446 | FP24: 303.7761359 | FQ24: 119.6576145 | FR24: 1287.879314 | FS24: 2239.571061 | FT24: 1161.527583 | FU24: 815.883474 | FV24: 2290.51089 | FW24: 3672.915052 | FX24: 2733.14245 | FY24: 1439.626919 | FZ24: 1796.310604 | GA24: 1048.564085 | GB24: 820.8022138 | GC24: 666.0960374 | GD24: 0 | GE24: 0 | GF24: 0 | GG24: 0 | GH24: 0 | GI24: 0 | GJ24: 0
A25: 1 | D25: POLES | E25: > 33 kV & <= 66 kV ; STOBIE | F25: 6.798684425 | G25: 82.29113699 | H25: 9.071446246 | I25: 2 | J25: 77 | K25: 36.06853688 | L25: 61.11613194 | M25: 103.1960916 | N25: 96.18276501 | O25: 79.15040038 | P25: 60.11422813 | Q25: 82.15611178 | R25: 80.15230418 | S25: 39.07424829 | T25: 33.06282547 | U25: 29.05521026 | V25: 65.12374714 | W25: 13.02474943 | X25: 55.10470912 | Y25: 22.04188365 | Z25: 2.003807604 | AA25: 3.005711407 | AB25: 104.1979954 | AC25: 175.3331654 | AD25: 225.4283555 | AE25: 292.5559102 | AF25: 418.7957893 | AG25: 375.7139258 | AH25: 289.5501988 | AI25: 368.7005992 | AJ25: 423.8053083 | AK25: 394.7500981 | AL25: 345.6568118 | AM25: 213.7034351 | AN25: 164.3122236 | AO25: 160.3046084 | AP25: 214.4074137 | AQ25: 219.4169327 | AR25: 252.7776834 | AS25: 221.4207403 | AT25: 153.2912817 | AU25: 418.7957893 | AV25: 1106.959581 | AW25: 871.5252897 | AX25: 314.4667757 | AY25: 387.942984 | AZ25: 575.2465877 | BA25: 778.4137452 | BB25: 876.5176705 | BC25: 809.4097986 | BD25: 635.9854164 | BE25: 645.0970143 | BF25: 951.0820376 | BG25: 1118.777499 | BH25: 1063.201568 | BI25: 997.7602731 | BJ25: 925.2925871 | BK25: 869.9000817 | BL25: 596.3839184 | BM25: 372.5204935 | BN25: 363.7274177 | BO25: 439.4580417 | BP25: 629.485744 | BQ25: 1206.137916 | BR25: 1203.222978 | BS25: 724.8314358 | BT25: 2043.849416 | BU25: 1785.979945 | BV25: 128.974041 | BW25: 75.63891125 | BX25: 114.4280965 | BY25: 227.8864634 | BZ25: 349.0502601 | CA25: 381.9252881 | CB25: 169.6764819 | CC25: 180.3566096 | CD25: 298.6505229 | CE25: 228.799719 | CF25: 199.6201841 | CG25: 432.408093 | CH25: 674.9318235 | CI25: 567.2918344 | CJ25: 227.8864634 | CK25: 79.51782978 | CL25: 67.8810742 | CM25: 34.91026673 | CN25: 84.36647794 | CO25: 50.42594084 | CP25: 0 | CQ25: 0 | CR25: 0 | CS25: 0 | CT25: 0 | CU25: 0 | CV25: 0 | CX25: 523.4987007 | CY25: 245.2185999 | CZ25: 415.5092943 | DA25: 701.5976609 | DB25: 653.9162665 | DC25: 538.1185943 | DD25: 408.6976665 | DE25: 558.5534776 | DF25: 544.9302221 | DG25: 265.6534833 | DH25: 224.7837166 | DI25: 197.5372055 | DJ25: 442.7558054 | DK25: 88.55116108 | DL25: 374.6395277 | DM25: 149.8558111 | DN25: 13.62325555 | DO25: 20.43488333 | DP25: 708.4092887 | DQ25: 1192.034861 | DR25: 1532.61625 | DS25: 1988.995311 | DT25: 2847.26041 | DU25: 2554.360416 | DV25: 1968.560427 | DW25: 2506.679021 | DX25: 2881.318549 | DY25: 2683.781344 | DZ25: 2350.011583 | EA25: 1452.902216 | EB25: 1117.106955 | EC25: 1089.860444 | ED25: 1457.688344 | EE25: 1491.746483 | EF25: 1718.555699 | EG25: 1505.369738 | EH25: 1042.17905 | EI25: 2847.26041 | EJ25: 7525.868866 | EK25: 5925.225414 | EL25: 2137.96037 | EM25: 2637.501923 | EN25: 3910.920017 | EO25: 5292.189406 | EP25: 5959.167035 | EQ25: 5502.921792 | ER25: 4323.864145 | ES25: 4385.811024 | ET25: 6466.106636 | EU25: 7606.215157 | EV25: 7228.371942 | EW25: 6783.457229 | EX25: 6290.772301 | EY25: 5914.176137 | EZ25: 4054.626057 | FA25: 2532.649277 | FB25: 2472.86793 | FC25: 2987.736544 | FD25: 4279.674924 | FE25: 8200.151064 | FF25: 8180.333319 | FG25: 4927.900193 | FH25: 13895.48719 | FI25: 12142.31403 | FJ25: 876.8538037 | FK25: 514.2450879 | FL25: 777.9605176 | FM25: 1549.328149 | FN25: 2373.082567 | FO25: 2596.589508 | FP25: 1153.576855 | FQ25: 1226.187673 | FR25: 2030.430658 | FS25: 1555.537086 | FT25: 1357.154636 | FU25: 2939.806167 | FV25: 4588.648477 | FW25: 3856.838159 | FX25: 1549.328149 | FY25: 540.6166309 | FZ25: 461.502002 | GA25: 237.3438867 | GB25: 573.5810596 | GC25: 342.8300586 | GD25: 0 | GE25: 0 | GF25: 0 | GG25: 0 | GH25: 0 | GI25: 0 | GJ25: 0
E26: > 66 kV & < = 132 kV; Wood | F26: 10.74187251 | G26: 50 | H26: 7.071067812 | I26: 2
E27: > 132 kV; Wood | F27: 0.0001 | G27: 50 | H27: 7.071067812 | I27: 2
E28: ˂ = 1 kV; Concrete | F28: 10.21225459 | G28: 50 | H28: 7.071067812 | I28: 2
E29: > 1 kV & < = 11 kV; Concrete | F29: 12.23133165 | G29: 50 | H29: 7.071067812 | I29: 2
E30: ˃ 11 kV & < = 22 kV; Concrete | F30: 15.36887348 | G30: 50 | H30: 7.071067812 | I30: 2
E31: > 22 kV & < = 66 kV; Concrete | F31: 18.49680874 | G31: 50 | H31: 7.071067812 | I31: 2
E32: > 66 kV & < = 132 kV; Concrete | F32: 21.21201926 | G32: 50 | H32: 7.071067812 | I32: 2
E33: > 132 kV; Concrete | F33: 1151.461797 | G33: 50 | H33: 7.071067812 | I33: 2
E34: ˂ = 1 kV; Steel | F34: 9.233864229 | G34: 50 | H34: 7.071067812 | I34: 2
E35: > 1 kV & < = 11 kV; Steel | F35: 9.221057903 | G35: 50 | H35: 7.071067812 | I35: 2
E36: ˃ 11 kV & < = 22 kV; Steel | F36: 10.15017952 | G36: 50 | H36: 7.071067812 | I36: 2
E37: > 22 kV & < = 66 kV; Steel | F37: 20.83372953 | G37: 50 | H37: 7.071067812 | I37: 2
E38: > 66 kV & < = 132 kV; Steel | F38: 17.14329826 | G38: 50 | H38: 7.071067812 | I38: 2
E39: > 132 kV; Steel | F39: 0.0001 | G39: 50 | H39: 7.071067812 | I39: 2
E40: Other | F40: 0.0001 | G40: 50 | H40: 7.071067812 | I40: 2
E41: ˂ = 1 kV | F41: 0.7958953653 | G41: 50 | H41: 7.071067812 | I41: 2
E42: > 1 kV & < = 11 kV | F42: 1.844497196 | G42: 50 | H42: 7.071067812 | I42: 2
E43: ˃ 11 kV & < = 22 kV | F43: 1.656674132 | G43: 50 | H43: 7.071067812 | I43: 2
E44: > 22 kV & < = 66 kV | F44: 3.880845122 | G44: 50 | H44: 7.071067812 | I44: 2
E45: > 66 kV & < = 132 kV | F45: 0.0001 | G45: 50 | H45: 7.071067812 | I45: 2
E46: > 132 kV | F46: 0.0001 | G46: 50 | H46: 7.071067812 | I46: 2
E47: Other | F47: 0.0001 | G47: 50 | H47: 7.071067812 | I47: 2
A48: 2 | D48: OVERHEAD CONDUCTORS | E48: ˂ = 1 kV | F48: 42.40554609 | G48: 85.88511198 | H48: 9.267422078 | I48: 2 | J48: 18.88 | K48: 31 | L48: 335.95908 | M48: 374.409888 | N48: 424.900848 | O48: 411.307128 | P48: 306.441288 | Q48: 0.1533325387 | R48: 0.1533325387 | S48: 0 | T48: 0 | U48: 0 | V48: 0 | W48: 4.5473912 | X48: 4.5473912 | Y48: 0 | Z48: 1.010152737 | AA48: 1.010152737 | AB48: 0 | AC48: 0 | AD48: 0 | AE48: 0 | AF48: 99.10996736 | AG48: 99.10996736 | AH48: 6.550651744 | AI48: 118.0460487 | AJ48: 317.9310255 | AK48: 336.1682227 | AL48: 625.4093974 | AM48: 623.5137191 | AN48: 236.5126539 | AO48: 315.3215781 | AP48: 244.7832239 | AQ48: 38.49397017 | AR48: 97.665635 | AS48: 104.7436312 | AT48: 34.39115451 | AU48: 218.0323549 | AV48: 1014.70564 | AW48: 1114.954169 | AX48: 530.8443118 | AY48: 330.7979133 | AZ48: 391.3511716 | BA48: 770.4339887 | BB48: 967.6596373 | BC48: 1056.258716 | BD48: 1578.220385 | BE48: 1551.996188 | BF48: 4140.084957 | BG48: 4608.919441 | BH48: 2062.779886 | BI48: 1720.3279 | BJ48: 1452.662678 | BK48: 1651.895617 | BL48: 1383.672052 | BM48: 981.3185687 | BN48: 1759.467747 | BO48: 1742.596613 | BP48: 7510.527932 | BQ48: 19320.41421 | BR48: 12260.59426 | BS48: 39.75406924 | BT48: 40.58831872 | BU48: 21.75237857 | BV48: 17.31418122 | BW48: 11.17220723 | BX48: 0 | BY48: 0 | BZ48: 39.4895173 | CA48: 39.4895173 | CB48: 0 | CC48: 0 | CD48: 0 | CE48: 0 | CF48: 92.92632031 | CG48: 92.92632031 | CH48: 0 | CI48: 0 | CJ48: 0 | CK48: 0 | CL48: 0 | CM48: 0 | CN48: 0 | CO48: 0 | CP48: 0 | CQ48: 0 | CR48: 0 | CS48: 0 | CT48: 0 | CU48: 0 | CV48: 0 | CX48: 800.6167102 | CY48: 1314.571929 | CZ48: 14246.52825 | DA48: 15877.05576 | DB48: 18018.1525 | DC48: 17441.70338 | DD48: 12994.81016 | DE48: 6.502150036 | DF48: 6.502150036 | DG48: 0 | DH48: 0 | DI48: 0 | DJ48: 0 | DK48: 192.8346071 | DL48: 192.8346071 | DM48: 0 | DN48: 42.83607846 | DO48: 42.83607846 | DP48: 0 | DQ48: 0 | DR48: 0 | DS48: 0 | DT48: 4202.812289 | DU48: 4202.812289 | DV48: 277.7839645 | DW48: 5005.80716 | DX48: 13482.03875 | DY48: 14255.39706 | DZ48: 26520.82703 | EA48: 26440.43975 | EB48: 10029.44824 | EC48: 13371.38371 | ED48: 10380.16628 | EE48: 1632.357826 | EF48: 4141.564587 | EG48: 4441.71088 | EH48: 1458.375688 | EI48: 9245.781077 | EJ48: 43029.1468 | EK48: 47280.24041 | EL48: 22510.74293 | EM48: 14027.66616 | EN48: 16595.46014 | EO48: 32670.67402 | EP48: 41034.13535 | EQ48: 44791.22765 | ER48: 66925.29728 | ES48: 65813.24589 | ET48: 175562.5635 | EU48: 195443.7458 | EV48: 87473.30753 | EW48: 72951.44406 | EX48: 61600.95415 | EY48: 70049.53573 | EZ48: 58675.369 | FA48: 41613.3498 | FB48: 74611.19064 | FC48: 73895.76099 | FD48: 318488.0384 | FE48: 819292.7155 | FF48: 519917.1949 | FG48: 1685.793016 | FH48: 1721.16982 | FI48: 922.4214922 | FJ48: 734.21731 | FK48: 473.7635486 | FL48: 0 | FM48: 0 | FN48: 1674.574546 | FO48: 1674.574546 | FP48: 0 | FQ48: 0 | FR48: 0 | FS48: 0 | FT48: 3940.591359 | FU48: 3940.591359 | FV48: 0 | FW48: 0 | FX48: 0 | FY48: 0 | FZ48: 0 | GA48: 0 | GB48: 0 | GC48: 0 | GD48: 0 | GE48: 0 | GF48: 0 | GG48: 0 | GH48: 0 | GI48: 0 | GJ48: 0
A49: 2 | D49: OVERHEAD CONDUCTORS | E49: > 1 kV & < = 11 kV | F49: 19.38532173 | G49: 74.64392567 | H49: 8.639671618 | I49: 2 | J49: 280.335 | K49: 93 | L49: 159.618816 | M49: 149.4773601 | N49: 131.996289 | O49: 178.749717 | P49: 83.491092 | Q49: 0 | R49: 0 | S49: 0 | T49: 0.01498476941 | U49: 0.01498476941 | V49: 0 | W49: 0 | X49: 3.3028168 | Y49: 3.3028168 | Z49: 2.886149844 | AA49: 4.392317499 | AB49: 1.506167655 | AC49: 0 | AD49: 0 | AE49: 10.88411299 | AF49: 30.81284504 | AG49: 19.92873205 | AH49: 0.03573018239 | AI49: 95.59161064 | AJ49: 232.7833156 | AK49: 282.7631546 | AL49: 500.0897044 | AM49: 415.1643656 | AN49: 334.5492351 | AO49: 364.3603875 | AP49: 96.68603968 | AQ49: 7.199381084 | AR49: 91.16816381 | AS49: 97.09892819 | AT49: 73.72517259 | AU49: 276.5290742 | AV49: 816.2883957 | AW49: 724.4051734 | AX49: 229.9607788 | AY49: 333.6625703 | AZ49: 571.4783034 | BA49: 807.223557 | BB49: 1361.151785 | BC49: 1208.603859 | BD49: 1025.802552 | BE49: 1019.718896 | BF49: 2660.965458 | BG49: 2970.08011 | BH49: 1328.355706 | BI49: 958.6814324 | BJ49: 982.0321047 | BK49: 1882.494765 | BL49: 1672.730967 | BM49: 1036.00167 | BN49: 1686.673598 | BO49: 1690.289144 | BP49: 5750.702851 | BQ49: 11944.77872 | BR49: 6697.197339 | BS49: 0 | BT49: 0 | BU49: 0 | BV49: 0 | BW49: 0 | BX49: 0 | BY49: 0 | BZ49: 0 | CA49: 0 | CB49: 0 | CC49: 0 | CD49: 0 | CE49: 0 | CF49: 0 | CG49: 0 | CH49: 0 | CI49: 0 | CJ49: 0 | CK49: 0 | CL49: 0 | CM49: 0 | CN49: 0 | CO49: 0 | CP49: 0 | CQ49: 0 | CR49: 0 | CS49: 0 | CT49: 0 | CU49: 0 | CV49: 0 | CX49: 5434.384166 | CY49: 1802.834921 | CZ49: 3094.262102 | DA49: 2897.666716 | DB49: 2558.790529 | DC49: 3465.120773 | DD49: 1618.50168 | DE49: 0 | DF49: 0 | DG49: 0 | DH49: 0.290484576 | DI49: 0.290484576 | DJ49: 0 | DK49: 0 | DL49: 64.02616627 | DM49: 64.02616627 | DN49: 55.94894327 | DO49: 85.14648784 | DP49: 29.19754457 | DQ49: 0 | DR49: 0 | DS49: 210.992032 | DT49: 597.3169144 | DU49: 386.3248824 | DV49: 0.692641081 | DW49: 1853.074127 | DX49: 4512.579466 | DY49: 5481.454725 | DZ49: 9694.399812 | EA49: 8048.094797 | EB49: 6485.344555 | EC49: 7063.243337 | ED49: 1874.289986 | EE49: 139.5623185 | EF49: 1767.324187 | EG49: 1882.293962 | EH49: 1429.18619 | EI49: 5360.605071 | EJ49: 15824.01317 | EK49: 14042.82735 | EL49: 4457.863682 | EM49: 6468.156273 | EN49: 11078.29077 | EO49: 15648.28836 | EP49: 26386.36527 | EQ49: 23429.17465 | ER49: 19885.5125 | ES49: 19767.57886 | ET49: 51583.67151 | EU49: 57575.95849 | EV49: 25750.60273 | EW49: 18584.348 | EX49: 19037.0083 | EY49: 36492.76667 | EZ49: 32426.42796 | FA49: 20083.22569 | FB49: 32696.71035 | FC49: 32766.79886 | FD49: 111479.2249 | FE49: 231553.3784 | FF49: 129827.3251 | FG49: 0 | FH49: 0 | FI49: 0 | FJ49: 0 | FK49: 0 | FL49: 0 | FM49: 0 | FN49: 0 | FO49: 0 | FP49: 0 | FQ49: 0 | FR49: 0 | FS49: 0 | FT49: 0 | FU49: 0 | FV49: 0 | FW49: 0 | FX49: 0 | FY49: 0 | FZ49: 0 | GA49: 0 | GB49: 0 | GC49: 0 | GD49: 0 | GE49: 0 | GF49: 0 | GG49: 0 | GH49: 0 | GI49: 0 | GJ49: 0
A50: 2 | D50: OVERHEAD CONDUCTORS | E50: ˃ 11 kV & < = 22 kV ; SWER | F50: 28.77972266 | G50: 78.73157027 | H50: 8.873081216 | I50: 2 | J50: 52.32 | K50: 23 | L50: 9.951036 | M50: 8.552296 | N50: 33.250048 | O50: 5.155356 | P50: 10.79028 | Q50: 0 | R50: 0 | S50: 0 | T50: 0 | U50: 0 | V50: 0 | W50: 0 | X50: 0 | Y50: 0 | Z50: 0 | AA50: 0 | AB50: 0 | AC50: 5.672179318 | AD50: 5.672179318 | AE50: 0 | AF50: 0 | AG50: 0 | AH50: 24.7808484 | AI50: 83.48088441 | AJ50: 440.8067368 | AK50: 388.4820417 | AL50: 20.28113779 | AM50: 51.99373795 | AN50: 56.23826398 | AO50: 157.2897338 | AP50: 139.1394109 | AQ50: 12.34303133 | AR50: 61.28926013 | AS50: 48.94622879 | AT50: 69.01491059 | AU50: 71.09919081 | AV50: 374.4124715 | AW50: 501.8513801 | AX50: 478.3333063 | AY50: 551.9019527 | AZ50: 599.4923554 | BA50: 510.3233697 | BB50: 1653.178501 | BC50: 1940.383425 | BD50: 927.1510261 | BE50: 973.0788917 | BF50: 2840.570697 | BG50: 3133.608389 | BH50: 1408.572631 | BI50: 976.0005865 | BJ50: 942.8746216 | BK50: 982.2057633 | BL50: 798.6669133 | BM50: 918.0775438 | BN50: 3327.674272 | BO50: 2861.537893 | BP50: 144.8194087 | BQ50: 319.2776094 | BR50: 174.4582007 | BS50: 0 | BT50: 0 | BU50: 0 | BV50: 0 | BW50: 0 | BX50: 0 | BY50: 0 | BZ50: 0 | CA50: 0 | CB50: 0 | CC50: 0 | CD50: 0 | CE50: 0 | CF50: 0 | CG50: 0 | CH50: 0 | CI50: 0 | CJ50: 0 | CK50: 0 | CL50: 0 | CM50: 0 | CN50: 0 | CO50: 0 | CP50: 0 | CQ50: 0 | CR50: 0 | CS50: 0 | CT50: 0 | CU50: 0 | CV50: 0 | CX50: 1505.75509 | CY50: 661.9336212 | CZ50: 286.3880563 | DA50: 246.132707 | DB50: 956.9271598 | DC50: 148.3697159 | DD50: 310.5412658 | DE50: 0 | DF50: 0 | DG50: 0 | DH50: 0 | DI50: 0 | DJ50: 0 | DK50: 0 | DL50: 0 | DM50: 0 | DN50: 0 | DO50: 0 | DP50: 0 | DQ50: 163.2437476 | DR50: 163.2437476 | DS50: 0 | DT50: 0 | DU50: 0 | DV50: 713.1859442 | DW50: 2402.556701 | DX50: 12686.29563 | DY50: 11180.40542 | DZ50: 583.6855209 | EA50: 1496.365358 | EB50: 1618.52164 | EC50: 4526.754916 | ED50: 4004.393655 | EE50: 355.2290186 | EF50: 1763.887908 | EG50: 1408.65889 | EH50: 1986.229986 | EI50: 2046.214993 | EJ50: 10775.48709 | EK50: 14443.14354 | EL50: 13766.29989 | EM50: 15883.58513 | EN50: 17253.22372 | EO50: 14686.96505 | EP50: 47578.01875 | EQ50: 55843.69684 | ER50: 26683.14939 | ES50: 28004.94063 | ET50: 81750.83685 | EU50: 90184.38037 | EV50: 40538.32965 | EW50: 28089.02619 | EX50: 27135.67011 | EY50: 28267.60946 | EZ50: 22985.41226 | FA50: 26422.01709 | FB50: 95769.54264 | FC50: 82354.26693 | FD50: 4167.862418 | FE50: 9188.72105 | FF50: 5020.858632 | FG50: 0 | FH50: 0 | FI50: 0 | FJ50: 0 | FK50: 0 | FL50: 0 | FM50: 0 | FN50: 0 | FO50: 0 | FP50: 0 | FQ50: 0 | FR50: 0 | FS50: 0 | FT50: 0 | FU50: 0 | FV50: 0 | FW50: 0 | FX50: 0 | FY50: 0 | FZ50: 0 | GA50: 0 | GB50: 0 | GC50: 0 | GD50: 0 | GE50: 0 | GF50: 0 | GG50: 0 | GH50: 0 | GI50: 0 | GJ50: 0
E51: ˃ 11 kV & < = 22 kV ; Single-Phase | F51: 30.55047338 | G51: 50 | H51: 7.071067812 | I51: 2
E52: ˃ 11 kV & < = 22 kV ; Multiple-Phase | F52: 58.45200256 | G52: 50 | H52: 7.071067812 | I52: 2
A53: 2 | D53: OVERHEAD CONDUCTORS | E53: > 22 kV & < = 66 kV | F53: 17.00630529 | G53: 90.12092955 | H53: 9.493204388 | I53: 2 | J53: 31.13 | K53: 89 | L53: 0.8747775 | M53: 75.230865 | N53: 105.323211 | O53: 71.031933 | P53: 40.939587 | Q53: 10.847241 | R53: 11.7220185 | S53: 42.8640975 | T53: 64.2086685 | U53: 24.843681 | V53: 47.15050725 | W53: 173.4683782 | X53: 165.857814 | Y53: 41.0445603 | Z53: 3.2541723 | AA53: 0 | AB53: 0 | AC53: 0 | AD53: 14.696262 | AE53: 14.696262 | AF53: 20.38231575 | AG53: 20.38231575 | AH53: 23.094126 | AI53: 48.287718 | AJ53: 88.177572 | AK53: 175.1304555 | AL53: 113.8960305 | AM53: 438.9633495 | AN53: 597.8229435 | AO53: 168.8320575 | AP53: 13.4715735 | AQ53: 21.5195265 | AR53: 169.5318795 | AS53: 160.609149 | AT53: 170.2317015 | AU53: 368.456283 | AV53: 228.6668385 | AW53: 44.088786 | AX53: 54.98484441 | AY53: 202.5187825 | AZ53: 412.8576318 | BA53: 306.5186882 | BB53: 470.9495563 | BC53: 619.6355578 | BD53: 424.1862553 | BE53: 448.2748538 | BF53: 719.8301631 | BG53: 840.6513583 | BH53: 538.4383616 | BI53: 414.9988405 | BJ53: 474.8421341 | BK53: 585.5449542 | BL53: 578.8245843 | BM53: 323.1351271 | BN53: 171.3068354 | BO53: 181.0461073 | BP53: 181.6374202 | BQ53: 324.7699334 | BR53: 319.4829001 | BS53: 144.1760066 | BT53: 254.3805055 | BU53: 318.9031816 | BV53: 635.5396635 | BW53: 505.2769024 | BX53: 0 | BY53: 70.42710964 | BZ53: 204.8638444 | CA53: 188.00273 | CB53: 53.56599523 | CC53: 0 | CD53: 34.43528265 | CE53: 34.43528265 | CF53: 211.4117656 | CG53: 314.8915291 | CH53: 103.4797635 | CI53: 51.39205062 | CJ53: 50 | CK53: 9.565356291 | CL53: 9.565356291 | CM53: 0 | CN53: 0 | CO53: 0 | CP53: 236.003427 | CQ53: 236.003427 | CR53: 0 | CS53: 0 | CT53: 0 | CU53: 0 | CV53: 0 | CX53: 529.4062835 | CY53: 1513.56117 | CZ53: 14.87673322 | DA53: 1279.399057 | DB53: 1791.15868 | DC53: 1207.990738 | DD53: 696.2311148 | DE53: 184.4714919 | DF53: 199.3482252 | DG53: 728.9599279 | DH53: 1091.952218 | DI53: 422.4992235 | DJ53: 801.8559206 | DK53: 2950.056198 | DL53: 2820.628619 | DM53: 698.0163228 | DN53: 55.34144758 | DO53: 0 | DP53: 0 | DQ53: 0 | DR53: 249.9291181 | DS53: 249.9291181 | DT53: 346.6278841 | DU53: 346.6278841 | DV53: 392.7457571 | DW53: 821.1956738 | DX53: 1499.574709 | DY53: 2978.321991 | DZ53: 1936.950665 | EA53: 7465.144731 | EB53: 10166.75948 | EC53: 2871.209512 | ED53: 229.1016916 | EE53: 365.9676373 | EF53: 2883.110898 | EG53: 2731.368219 | EH53: 2895.012285 | EI53: 6266.080033 | EJ53: 3888.778064 | EK53: 749.7873544 | EL53: 935.0890501 | EM53: 3444.096241 | EN53: 7021.182925 | EO53: 5212.750387 | EP53: 8009.111928 | EQ53: 10537.71146 | ER53: 7213.840955 | ES53: 7623.499015 | ET53: 12241.65151 | EU53: 14296.37364 | EV53: 9156.847154 | EW53: 7057.596975 | EX53: 8075.310295 | EY53: 9957.95625 | EZ53: 9843.667588 | FA53: 5495.334619 | FB53: 2913.29634 | FC53: 3078.925371 | FD53: 3088.981419 | FE53: 5523.136635 | FF53: 5433.223733 | FG53: 2451.901184 | FH53: 4326.072535 | FI53: 5423.364862 | FJ53: 10808.18154 | FK53: 8592.893256 | FL53: 0 | FM53: 1197.704927 | FN53: 3483.97708 | FO53: 3197.231821 | FP53: 910.9596678 | FQ53: 0 | FR53: 585.6169293 | FS53: 585.6169293 | FT53: 3595.333027 | FU53: 5355.141476 | FV53: 1759.808449 | FW53: 873.9889021 | FX53: 850.3152643 | FY53: 162.6713692 | FZ53: 162.6713692 | GA53: 0 | GB53: 0 | GC53: 0 | GD53: 4013.546329 | GE53: 4013.546329 | GF53: 0 | GG53: 0 | GH53: 0 | GI53: 0 | GJ53: 0
A54: 2 | D54: OVERHEAD CONDUCTORS | E54: > 66 kV & < = 132 kV | F54: 292.3861714 | G54: 80.71020121 | H54: 8.983885641 | I54: 2 | J54: 0 | K54: 0 | L54: 0 | M54: 0 | N54: 0 | O54: 0 | P54: 0 | Q54: 0 | R54: 33 | S54: 0 | T54: 0 | U54: 0 | V54: 0 | W54: 0 | X54: 0 | Y54: 0 | Z54: 0 | AA54: 0 | AB54: 0 | AC54: 0 | AD54: 0 | AE54: 0 | AF54: 0 | AG54: 0 | AH54: 0 | AI54: 0 | AJ54: 0 | AK54: 0 | AL54: 0 | AM54: 0 | AN54: 0 | AO54: 0 | AP54: 0 | AQ54: 0 | AR54: 0 | AS54: 0 | AT54: 0 | AU54: 0 | AV54: 0 | AW54: 0 | AX54: 0 | AY54: 0 | AZ54: 0 | BA54: 0 | BB54: 0 | BC54: 0 | BD54: 0 | BE54: 0 | BF54: 0 | BG54: 0 | BH54: 0 | BI54: 0 | BJ54: 0 | BK54: 0 | BL54: 0 | BM54: 0 | BN54: 0 | BO54: 0 | BP54: 0 | BQ54: 0 | BR54: 0 | BS54: 0 | BT54: 0 | BU54: 0 | BV54: 0 | BW54: 0 | BX54: 0 | BY54: 0 | BZ54: 0 | CA54: 0 | CB54: 0 | CC54: 0 | CD54: 0 | CE54: 0 | CF54: 0 | CG54: 0 | CH54: 0 | CI54: 0 | CJ54: 0 | CK54: 0 | CL54: 0 | CM54: 0 | CN54: 0 | CO54: 0 | CP54: 0 | CQ54: 0 | CR54: 0 | CS54: 0 | CT54: 0 | CU54: 0 | CV54: 0 | CX54: 0 | CY54: 0 | CZ54: 0 | DA54: 0 | DB54: 0 | DC54: 0 | DD54: 0 | DE54: 0 | DF54: 9648.743656 | DG54: 0 | DH54: 0 | DI54: 0 | DJ54: 0 | DK54: 0 | DL54: 0 | DM54: 0 | DN54: 0 | DO54: 0 | DP54: 0 | DQ54: 0 | DR54: 0 | DS54: 0 | DT54: 0 | DU54: 0 | DV54: 0 | DW54: 0 | DX54: 0 | DY54: 0 | DZ54: 0 | EA54: 0 | EB54: 0 | EC54: 0 | ED54: 0 | EE54: 0 | EF54: 0 | EG54: 0 | EH54: 0 | EI54: 0 | EJ54: 0 | EK54: 0 | EL54: 0 | EM54: 0 | EN54: 0 | EO54: 0 | EP54: 0 | EQ54: 0 | ER54: 0 | ES54: 0 | ET54: 0 | EU54: 0 | EV54: 0 | EW54: 0 | EX54: 0 | EY54: 0 | EZ54: 0 | FA54: 0 | FB54: 0 | FC54: 0 | FD54: 0 | FE54: 0 | FF54: 0 | FG54: 0 | FH54: 0 | FI54: 0 | FJ54: 0 | FK54: 0 | FL54: 0 | FM54: 0 | FN54: 0 | FO54: 0 | FP54: 0 | FQ54: 0 | FR54: 0 | FS54: 0 | FT54: 0 | FU54: 0 | FV54: 0 | FW54: 0 | FX54: 0 | FY54: 0 | FZ54: 0 | GA54: 0 | GB54: 0 | GC54: 0 | GD54: 0 | GE54: 0 | GF54: 0 | GG54: 0 | GH54: 0 | GI54: 0 | GJ54: 0
E55: > 132 kV | F55: 911.106186 | G55: 50 | H55: 7.071067812 | I55: 2
E56: Other | F56: 0.0001 | G56: 50 | H56: 7.071067812 | I56: 2
A57: 3 | D57: UNDERGROUND CABLES | E57: ˂ = 1 kV | F57: 180.9344896 | G57: 74.63653217 | H57: 8.639243727 | I57: 2 | J57: 29 | K57: 138 | L57: 0 | M57: 112.0572738 | N57: 126.0187494 | O57: 89.96553521 | P57: 100.2041533 | Q57: 30.8810027 | R57: 6.68090892 | S57: 5.48021825 | T57: 12.82874042 | U57: 7.40460892 | V57: 97.46726467 | W57: 97.41117792 | X57: 1.09973452 | Y57: 45.62653494 | Z57: 50.08705989 | AA57: 51.5657961 | AB57: 47.97139531 | AC57: 2.11588169 | AD57: 0.15002301 | AE57: 14.65456315 | AF57: 14.69451139 | AG57: 0.16529308 | AH57: 445.3765592 | AI57: 450.0430492 | AJ57: 34.90506418 | AK57: 84.064992 | AL57: 70.21438718 | AM57: 55.33931264 | AN57: 196.2485514 | AO57: 210.6891889 | AP57: 112.8052177 | AQ57: 65.61773426 | AR57: 334.6213665 | AS57: 393.4311101 | AT57: 154.7627384 | AU57: 151.0194725 | AV57: 360.480253 | AW57: 532.5002692 | AX57: 302.6919396 | AY57: 218.9398755 | AZ57: 576.9526733 | BA57: 648.8386628 | BB57: 827.1787908 | BC57: 955.2026238 | BD57: 652.408186 | BE57: 584.6064842 | BF57: 454.5466125 | BG57: 482.9275628 | BH57: 501.1229681 | BI57: 356.8236982 | BJ57: 233.580152 | BK57: 174.6777134 | BL57: 314.0090315 | BM57: 328.4330574 | BN57: 124.778711 | BO57: 58.81551245 | BP57: 107.7111037 | BQ57: 124.2996048 | BR57: 67.8355095 | BS57: 0.9449059262 | BT57: 0.3261538135 | BU57: 0.5086842404 | BV57: 0.7230345515 | BW57: 0.5295841189 | BX57: 0 | BY57: 0 | BZ57: 0.2417588023 | CA57: 0.2417588023 | CB57: 0 | CC57: 0 | CD57: 0 | CE57: 0 | CF57: 1.956416656 | CG57: 4.684537822 | CH57: 2.728121166 | CI57: 0 | CJ57: 0 | CK57: 0 | CL57: 0 | CM57: 0 | CN57: 0 | CO57: 0 | CP57: 4.072438958 | CQ57: 4.072438958 | CR57: 0 | CS57: 0 | CT57: 0 | CU57: 0 | CV57: 0 | CX57: 5247.100198 | CY57: 24968.95956 | CZ57: 0 | DA57: 20275.02564 | DB57: 22801.13811 | DC57: 16277.86819 | DD57: 18130.38734 | DE57: 5587.438462 | DF57: 1208.806845 | DG57: 991.5604919 | DH57: 2321.1616 | DI57: 1339.749136 | DJ57: 17635.18979 | DK57: 17625.04176 | DL57: 198.9799041 | DM57: 8255.413811 | DN57: 9062.476617 | DO57: 9330.030998 | DP57: 8679.679926 | DQ57: 382.8359736 | DR57: 27.14433674 | DS57: 2651.515904 | DT57: 2658.743918 | DU57: 29.90721906 | DV57: 80583.98042 | DW57: 81428.3094 | DX57: 6315.529972 | DY57: 15210.25642 | DZ57: 12704.20431 | EA57: 10012.79029 | EB57: 35508.13149 | EC57: 38120.94085 | ED57: 20410.35449 | EE57: 11872.51126 | EF57: 60544.54615 | EG57: 71185.25709 | EH57: 28001.91708 | EI57: 27324.63118 | EJ57: 65223.31059 | EK57: 96347.66443 | EL57: 54767.41159 | EM57: 39613.77462 | EN57: 104390.6375 | EO57: 117397.2923 | EP57: 149665.1723 | EQ57: 172829.0992 | ER57: 118043.1421 | ES57: 105775.4758 | ET57: 82243.15934 | EU57: 87378.25208 | EV57: 90670.42846 | EW57: 64561.71371 | EX57: 42262.70557 | EY57: 31605.22291 | EZ57: 56815.06384 | FA57: 59424.8676 | FB57: 22576.77239 | FC57: 10641.75473 | FD57: 19488.65357 | FE57: 22490.08556 | FF57: 12273.78329 | FG57: 170.9660715 | FH57: 59.01247378 | FI57: 92.0385234 | FJ57: 130.8218875 | FK57: 95.82003226 | FL57: 0 | FM57: 0 | FN57: 43.74250551 | FO57: 43.74250551 | FP57: 0 | FQ57: 0 | FR57: 0 | FS57: 0 | FT57: 353.983249 | FU57: 847.5944598 | FV57: 493.6112108 | FW57: 0 | FX57: 0 | FY57: 0 | FZ57: 0 | GA57: 0 | GB57: 0 | GC57: 0 | GD57: 736.8446643 | GE57: 736.8446643 | GF57: 0 | GG57: 0 | GH57: 0 | GI57: 0 | GJ57: 0
A58: 3 | D58: UNDERGROUND CABLES | E58: > 1 kV & < = 11 kV | F58: 1299.105317 | G58: 68.74756675 | H58: 8.291415244 | I58: 2 | J58: 20.3 | K58: 63 | L58: 49.98804557 | M58: 144.817517 | N58: 173.3703481 | O58: 159.016376 | P58: 140.9460362 | Q58: 104.0810333 | R58: 86.6864025 | S58: 75.03976184 | T58: 65.98020854 | U58: 68.66392908 | V58: 67.51500122 | W58: 61.45323349 | X58: 40.41950898 | Y58: 13.23131168 | Z58: 3.088141764 | AA58: 11.6967145 | AB58: 10.9153856 | AC58: 2.312796647 | AD58: 1.605465 | AE58: 3.761427806 | AF58: 5.175462806 | AG58: 1.618844771 | AH58: 106.2319337 | AI58: 107.0990689 | AJ58: 10.73044726 | AK58: 13.09897726 | AL58: 9.039908776 | AM58: 15.93067747 | AN58: 42.98608114 | AO58: 54.75115232 | AP58: 31.78042177 | AQ58: 12.36858721 | AR58: 75.12644682 | AS58: 85.11601626 | AT58: 37.12920899 | AU58: 38.43463478 | AV58: 72.20017685 | AW58: 104.7824119 | AX58: 65.51981159 | AY58: 46.65063644 | AZ58: 87.55830193 | BA58: 121.0542953 | BB58: 198.4109465 | BC58: 199.3592361 | BD58: 117.2558102 | BE58: 129.3995739 | BF58: 114.7327293 | BG58: 115.8987 | BH58: 110.7910771 | BI58: 66.11351703 | BJ58: 48.75041465 | BK58: 46.71749023 | BL58: 69.70428905 | BM58: 65.73660285 | BN58: 30.79650105 | BO58: 14.21057539 | BP58: 16.34207182 | BQ58: 21.96265049 | BR58: 11.97290615 | BS58: 0.07166197381 | BT58: 0 | BU58: 0 | BV58: 0 | BW58: 0 | BX58: 0.09571321643 | BY58: 0.09571321643 | BZ58: 0 | CA58: 0 | CB58: 0 | CC58: 0 | CD58: 0 | CE58: 0 | CF58: 0 | CG58: 0 | CH58: 0 | CI58: 0 | CJ58: 0 | CK58: 0 | CL58: 0 | CM58: 0 | CN58: 0 | CO58: 0 | CP58: 0 | CQ58: 0 | CR58: 0 | CS58: 0 | CT58: 0 | CU58: 0 | CV58: 0 | CX58: 26371.83794 | CY58: 81843.63498 | CZ58: 64939.7358 | DA58: 188133.2063 | DB58: 225226.3411 | DC58: 206579.0196 | DD58: 183103.7451 | DE58: 135212.2238 | DF58: 112614.7664 | DG58: 97484.5536 | DH58: 85715.23974 | DI58: 89201.67536 | DJ58: 87709.09707 | DK58: 79834.22238 | DL58: 52509.19904 | DM58: 17188.86735 | DN58: 4011.821386 | DO58: 15195.26399 | DP58: 14180.23547 | DQ58: 3004.566421 | DR58: 2085.668118 | DS58: 4886.490863 | DT58: 6723.47125 | DU58: 2103.049849 | DV58: 138006.4699 | DW58: 139132.9699 | DX58: 13939.98109 | DY58: 17016.95101 | DZ58: 11743.79356 | EA58: 20695.62781 | EB58: 55843.44658 | EC58: 71127.51309 | ED58: 41286.1149 | EE58: 16068.09741 | EF58: 97597.16653 | EG58: 110574.6693 | EH58: 48234.75283 | EI58: 49930.6384 | EJ58: 93795.63364 | EK58: 136123.3885 | EL58: 85117.13562 | EM58: 60604.08985 | EN58: 113747.4556 | EO58: 157262.2787 | EP58: 257756.7156 | EQ58: 258988.6436 | ER58: 152327.6466 | ES58: 168103.6744 | ET58: 149049.8987 | EU58: 150564.6174 | EV58: 143929.2774 | EW58: 85888.42151 | EX58: 63331.92289 | EY58: 60690.93997 | EZ58: 90553.21254 | FA58: 85398.7703 | FB58: 40007.89826 | FC58: 18461.03404 | FD58: 21230.0724 | FE58: 28531.79603 | FF58: 15554.06604 | FG58: 93.09645122 | FH58: 0 | FI58: 0 | FJ58: 0 | FK58: 0 | FL58: 124.3415484 | FM58: 124.3415484 | FN58: 0 | FO58: 0 | FP58: 0 | FQ58: 0 | FR58: 0 | FS58: 0 | FT58: 0 | FU58: 0 | FV58: 0 | FW58: 0 | FX58: 0 | FY58: 0 | FZ58: 0 | GA58: 0 | GB58: 0 | GC58: 0 | GD58: 0 | GE58: 0 | GF58: 0 | GG58: 0 | GH58: 0 | GI58: 0 | GJ58: 0
A59: 3 | D59: UNDERGROUND CABLES | E59: > 11 kV & < = 22 kV | F59: 1397.986578 | G59: 74.26148457 | H59: 8.617510346 | I59: 2 | J59: 0.07 | K59: 3 | L59: 0.04715212033 | M59: 0.1566078097 | N59: 0.6177871454 | O59: 0.8356117616 | P59: 0.6403129907 | Q59: 0.5974899263 | R59: 0.4446158173 | S59: 0.2228551593 | T59: 0.6316039782 | U59: 0.6826137108 | V59: 0.2019027965 | W59: 0.2719565492 | X59: 0.3272282811 | Y59: 0.1434682127 | Z59: 0 | AA59: 0 | AB59: 0 | AC59: 0 | AD59: 0 | AE59: 0.15292424 | AF59: 0.15292424 | AG59: 0 | AH59: 0.5744888305 | AI59: 0.5744888305 | AJ59: 0.07754367814 | AK59: 0.8765199781 | AL59: 1.812936245 | AM59: 1.042056287 | AN59: 0.02809634204 | AO59: 0 | AP59: 0 | AQ59: 0 | AR59: 0.3619999296 | AS59: 0.3619999296 | AT59: 0.048757815 | AU59: 0.1152099398 | AV59: 0.3505880001 | AW59: 0.8409020969 | AX59: 1.346624738 | AY59: 1.304254407 | AZ59: 1.429076605 | BA59: 3.458958872 | BB59: 4.147001914 | BC59: 2.150142707 | BD59: 0.6958012597 | BE59: 0.8847696943 | BF59: 0.5856773363 | BG59: 1.016327066 | BH59: 1.435443059 | BI59: 2.812476306 | BJ59: 6.190267237 | BK59: 5.08815613 | BL59: 5.082172231 | BM59: 3.839276357 | BN59: 0 | BO59: 0.4934307994 | BP59: 0.4934307994 | BQ59: 0.04265244356 | BR59: 0.1770349201 | BS59: 0.1343824766 | BT59: 0 | BU59: 0 | BV59: 0 | BW59: 0 | BX59: 0 | BY59: 0 | BZ59: 0 | CA59: 0 | CB59: 0 | CC59: 0 | CD59: 0 | CE59: 0 | CF59: 0 | CG59: 0 | CH59: 0 | CI59: 0 | CJ59: 0 | CK59: 0 | CL59: 0 | CM59: 0 | CN59: 0 | CO59: 0 | CP59: 0 | CQ59: 0 | CR59: 0 | CS59: 0 | CT59: 0 | CU59: 0 | CV59: 0 | CX59: 97.85906049 | CY59: 4193.959735 | CZ59: 65.91803137 | DA59: 218.935616 | DB59: 863.6581376 | DC59: 1168.174027 | DD59: 895.148967 | DE59: 835.2828977 | DF59: 621.5669451 | DG59: 311.5485216 | DH59: 882.9738844 | DI59: 954.2848059 | DJ59: 282.2573997 | DK59: 380.1916057 | DL59: 457.460745 | DM59: 200.5666358 | DN59: 0 | DO59: 0 | DP59: 0 | DQ59: 0 | DR59: 0 | DS59: 213.786035 | DT59: 213.786035 | DU59: 0 | DV59: 803.1276745 | DW59: 803.1276745 | DX59: 108.4050213 | DY59: 1225.363165 | DZ59: 2534.460538 | EA59: 1456.780703 | EB59: 39.27830907 | EC59: 0 | ED59: 0 | EE59: 0 | EF59: 506.071043 | EG59: 506.071043 | EH59: 68.16277096 | EI59: 161.0619496 | EJ59: 490.1173187 | EK59: 1175.569845 | EL59: 1882.563311 | EM59: 1823.330155 | EN59: 1997.829913 | EO59: 4835.578079 | EP59: 5797.453016 | EQ59: 3005.870646 | ER59: 972.7208223 | ES59: 1236.896158 | ET59: 818.7690555 | EU59: 1420.811597 | EV59: 2006.73013 | EW59: 3931.804128 | EX59: 8653.910514 | EY59: 7113.173979 | EZ59: 7104.808568 | FA59: 5367.256818 | FB59: 0 | FC59: 689.8096349 | FD59: 689.8096349 | FE59: 59.62754363 | FF59: 247.4924422 | FG59: 187.8648986 | FH59: 0 | FI59: 0 | FJ59: 0 | FK59: 0 | FL59: 0 | FM59: 0 | FN59: 0 | FO59: 0 | FP59: 0 | FQ59: 0 | FR59: 0 | FS59: 0 | FT59: 0 | FU59: 0 | FV59: 0 | FW59: 0 | FX59: 0 | FY59: 0 | FZ59: 0 | GA59: 0 | GB59: 0 | GC59: 0 | GD59: 0 | GE59: 0 | GF59: 0 | GG59: 0 | GH59: 0 | GI59: 0 | GJ59: 0
A60: 3 | D60: UNDERGROUND CABLES | E60: > 22 kV & < = 33 kV | F60: 1614.496146 | G60: 92.8980692 | H60: 9.638364446 | I60: 2 | J60: 0.08 | K60: 3 | L60: 1.391868232 | M60: 4.77534661 | N60: 3.877458322 | O60: 1.787814683 | P60: 7.8050184 | Q60: 8.698764205 | R60: 5.885994794 | S60: 8.955090567 | T60: 6.163668268 | U60: 1.817996727 | V60: 1.405324431 | W60: 0.7478864371 | X60: 0.5816968517 | Y60: 0.3281300709 | Z60: 0.02145597629 | AA60: 0.2052412713 | AB60: 0.1924668395 | AC60: 0.7462605545 | AD60: 0.73757901 | AE60: 0 | AF60: 0.2218598015 | AG60: 0.7400783158 | AH60: 0.5617393984 | AI60: 0.9219594751 | AJ60: 0.949180806 | AK60: 0.6538083523 | AL60: 0.5830661373 | AM60: 0.05408371 | AN60: 0.08825060778 | AO60: 0.09899614609 | AP60: 0.1116823165 | AQ60: 0.04685306816 | AR60: 0.267032675 | AS60: 0.2839593917 | AT60: 0.190362713 | AU60: 0.1734359963 | AV60: 0 | AW60: 0.01311324691 | AX60: 0.01311324691 | AY60: 2.016943165 | AZ60: 2.156308072 | BA60: 1.266364687 | BB60: 1.12699978 | BC60: 0 | BD60: 0 | BE60: 2.486627069 | BF60: 2.486627069 | BG60: 4 | BH60: 4.710713744 | BI60: 0.01944146822 | BJ60: 2.624408001 | BK60: 2.798476572 | BL60: 3.933594804 | BM60: 4.48673433 | BN60: 0.75300094 | BO60: 1.552030516 | BP60: 2.091784376 | BQ60: 0.5655467031 | BR60: 0.04099282656 | BS60: 0.2968798997 | BT60: 0.2558870731 | BU60: 0.264767449 | BV60: 1.124574669 | BW60: 0.8598072201 | BX60: 0 | BY60: 0 | BZ60: 0.61424287 | CA60: 0.61424287 | CB60: 0 | CC60: 0 | CD60: 0 | CE60: 0 | CF60: 1.296265369 | CG60: 3.034849114 | CH60: 1.738583745 | CI60: 0 | CJ60: 0 | CK60: 0 | CL60: 0 | CM60: 0 | CN60: 0 | CO60: 0 | CP60: 0.4927794577 | CQ60: 0.4927794577 | CR60: 0 | CS60: 0 | CT60: 0 | CU60: 0 | CV60: 0 | CX60: 129.1596917 | CY60: 4843.488437 | CZ60: 2247.165897 | DA60: 7709.778696 | DB60: 6260.141517 | DC60: 2886.419914 | DD60: 12601.17212 | DE60: 14044.12128 | DF60: 9502.915909 | DG60: 14457.95921 | DH60: 9951.218662 | DI60: 2935.148709 | DJ60: 2268.890877 | DK60: 1207.45977 | DL60: 939.1473251 | DM60: 529.7647348 | DN60: 34.64059103 | DO60: 331.3612415 | DP60: 310.7369706 | DQ60: 1204.834789 | DR60: 1190.818469 | DS60: 0 | DT60: 358.1917945 | DU60: 1194.853588 | DV60: 906.9260936 | DW60: 1488.500019 | DX60: 1532.448753 | DY60: 1055.571065 | DZ60: 941.3580315 | EA60: 87.31794134 | EB60: 142.4802661 | EC60: 159.8288963 | ED60: 180.3106695 | EE60: 75.64409796 | EF60: 431.1232246 | EG60: 458.4513434 | EH60: 307.3398664 | EI60: 280.0117476 | EJ60: 0 | EK60: 21.17128659 | EL60: 21.17128659 | EM60: 3256.346966 | EN60: 3481.351071 | EO60: 2044.540906 | EP60: 1819.536801 | EQ60: 0 | ER60: 0 | ES60: 4014.649819 | ET60: 4014.649819 | EU60: 6457.984583 | EV60: 7605.429184 | EW60: 31.38817551 | EX60: 4237.096603 | EY60: 4518.129639 | EZ60: 6350.773649 | FA60: 7243.815284 | FB60: 1215.717115 | FC60: 2505.747286 | FD60: 3377.177813 | FE60: 913.0729724 | FF60: 66.18276049 | FG60: 479.3114538 | FH60: 413.1286933 | FI60: 427.4660259 | FJ60: 1815.621469 | FK60: 1388.155443 | FL60: 0 | FM60: 0 | FN60: 991.6927462 | FO60: 991.6927462 | FP60: 0 | FQ60: 0 | FR60: 0 | FS60: 0 | FT60: 2092.815442 | FU60: 4899.752197 | FV60: 2806.936755 | FW60: 0 | FX60: 0 | FY60: 0 | FZ60: 0 | GA60: 0 | GB60: 0 | GC60: 0 | GD60: 795.5905351 | GE60: 795.5905351 | GF60: 0 | GG60: 0 | GH60: 0 | GI60: 0 | GJ60: 0
A61: 3 | D61: UNDERGROUND CABLES | E61: > 33 kV & < = 66 kV | F61: 4308.561242 | G61: 109.0543379 | H61: 10.4429085 | I61: 2 | J61: 6 | K61: 0 | L61: 0.1442326722 | M61: 0.8950029504 | N61: 3.313314705 | O61: 2.622387137 | P61: 0.5497152527 | Q61: 0.4947732266 | R61: 0.03602121582 | S61: 0.03612088082 | T61: 0.2550105554 | U61: 0.2527250923 | V61: 0.01617448524 | W61: 0.09287633361 | X61: 0.07942223299 | Y61: 5.499002865 | Z61: 0 | AA61: 0 | AB61: 1.037351447 | AC61: 1.089242186 | AD61: 0.05189073856 | AE61: 0 | AF61: 0 | AG61: 2.205162737 | AH61: 3.545998556 | AI61: 1.398403728 | AJ61: 0.09433268781 | AK61: 0.750228935 | AL61: 1.163191392 | AM61: 0.449727235 | AN61: 0.06365495245 | AO61: 0.06550032055 | AP61: 0.001845368109 | AQ61: 0.07288972 | AR61: 0.07288972 | AS61: 5.547944493 | AT61: 6.078119157 | AU61: 0.6468806291 | AV61: 0.225960669 | AW61: 0.1167623312 | AX61: 0.4865939281 | AY61: 1.919731541 | AZ61: 1.739222528 | BA61: 0.3080683465 | BB61: 0.140103723 | BC61: 0.6413617355 | BD61: 1.227919418 | BE61: 0.7420820283 | BF61: 0.05295640597 | BG61: 0.0475693745 | BH61: 0.01434848241 | BI61: 0.08644862266 | BJ61: 0.1412902541 | BK61: 0.05484163142 | BL61: 0.005999275262 | BM61: 0.005999275262 | BN61: 0.00303956892 | BO61: 0.01565121721 | BP61: 0.01261164829 | BQ61: 0.01327229525 | BR61: 0.01327229525 | BS61: 0 | BT61: 0.3919038771 | BU61: 0.3919038771 | BV61: 0 | BW61: 0.001498686861 | BX61: 0.001498686861 | BY61: 0 | BZ61: 0 | CA61: 0 | CB61: 0 | CC61: 0 | CD61: 0 | CE61: 0 | CF61: 0 | CG61: 0 | CH61: 0.2880273352 | CI61: 0.2880273352 | CJ61: 0 | CK61: 0 | CL61: 0 | CM61: 0 | CN61: 0 | CO61: 0 | CP61: 0 | CQ61: 0 | CR61: 0 | CS61: 0 | CT61: 0 | CU61: 0 | CV61: 0 | CX61: 25851.36745 | CY61: 0 | CZ61: 621.4353014 | DA61: 3856.175023 | DB61: 14275.61932 | DC61: 11298.71558 | DD61: 2368.481832 | DE61: 2131.760748 | DF61: 155.1996144 | DG61: 155.6290271 | DH61: 1098.728595 | DI61: 1088.881538 | DJ61: 69.68876019 | DK61: 400.1633713 | DL61: 342.1955548 | DM61: 23692.79061 | DN61: 0 | DO61: 0 | DP61: 4469.49224 | DQ61: 4693.066665 | DR61: 223.574425 | DS61: 0 | DT61: 0 | DU61: 9501.078701 | DV61: 15278.15194 | DW61: 6025.108105 | DX61: 406.4381625 | DY61: 3232.407312 | DZ61: 5011.681348 | EA61: 1937.677334 | EB61: 274.261261 | EC61: 282.2121425 | ED61: 7.950881512 | EE61: 314.0498225 | EF61: 314.0498225 | EG61: 23903.65861 | EH61: 26187.94862 | EI61: 2787.124807 | EJ61: 973.5653808 | EK61: 503.0776545 | EL61: 2096.519739 | EM61: 8271.280911 | EN61: 7493.546776 | EO61: 1327.331338 | EP61: 603.6454709 | EQ61: 2763.346316 | ER61: 5290.566011 | ES61: 3197.305865 | ET61: 228.1659183 | EU61: 204.9555633 | EV61: 61.82131519 | EW61: 372.469185 | EX61: 608.7577126 | EY61: 236.2885276 | EZ61: 25.84824487 | FA61: 25.84824487 | FB61: 13.09616884 | FC61: 67.43422785 | FD61: 54.33805901 | FE61: 57.18449689 | FF61: 57.18449689 | FG61: 0 | FH61: 1688.541855 | FI61: 1688.541855 | FJ61: 0 | FK61: 6.457184125 | FL61: 6.457184125 | FM61: 0 | FN61: 0 | FO61: 0 | FP61: 0 | FQ61: 0 | FR61: 0 | FS61: 0 | FT61: 0 | FU61: 0 | FV61: 1240.983413 | FW61: 1240.983413 | FX61: 0 | FY61: 0 | FZ61: 0 | GA61: 0 | GB61: 0 | GC61: 0 | GD61: 0 | GE61: 0 | GF61: 0 | GG61: 0 | GH61: 0 | GI61: 0 | GJ61: 0
E62: > 66 kV & < = 132 kV | F62: 3019.570588 | G62: 50 | H62: 7.071067812 | I62: 2
E63: > 132 kV | F63: 0.0001 | G63: 50 | H63: 7.071067812 | I63: 2
E64: Other | F64: 0.0001 | G64: 50 | H64: 7.071067812 | I64: 2
A65: 4 | D65: SERVICE LINES | E65: ˂ = 11 kV ; Residential ; Simple Type | F65: 0.5321448202 | G65: 56.26862234 | H65: 7.501241387 | I65: 2 | J65: 13148 | K65: 13315 | L65: 5803 | M65: 6454 | N65: 7928 | O65: 8539 | P65: 8756 | Q65: 8607 | R65: 8302 | S65: 8357 | T65: 8631 | U65: 9607 | V65: 11477 | W65: 13145 | X65: 14986 | Y65: 14238 | Z65: 11711 | AA65: 10625 | AB65: 10196 | AC65: 11618 | AD65: 14504 | AE65: 15997 | AF65: 16273 | AG65: 16491 | AH65: 15826 | AI65: 15392 | AJ65: 15612 | AK65: 16043 | AL65: 16566 | AM65: 16276 | AN65: 16247 | AO65: 15054 | AP65: 12707 | AQ65: 11648 | AR65: 10039 | AS65: 7843 | AT65: 6923 | AU65: 7564 | AV65: 11936 | AW65: 15690 | AX65: 15583 | AY65: 17652 | AZ65: 14908 | BA65: 15049 | BB65: 10068 | BC65: 8741 | BD65: 8708 | BE65: 9871 | BF65: 9873 | BG65: 9841 | BH65: 9840 | BI65: 6875 | BJ65: 6878 | BK65: 21947 | BL65: 17738.49834 | BM65: 3407.084693 | BN65: 3401.427768 | BO65: 1695.461026 | BP65: 1695.461026 | BQ65: 390.3277767 | BR65: 390.3277767 | BS65: 138.1905793 | BT65: 138.1905793 | BU65: 115.5628821 | BV65: 116.3710142 | BW65: 68.69122364 | BX65: 67.8830916 | BY65: 29.90088559 | BZ65: 29.90088559 | CA65: 8.889452472 | CB65: 8.889452472 | CC65: 3.232528172 | CD65: 3.232528172 | CE65: 13.73824473 | CF65: 13.73824473 | CG65: 0 | CH65: 0 | CI65: 0 | CJ65: 0 | CK65: 0 | CL65: 0 | CM65: 0 | CN65: 0 | CO65: 0 | CP65: 0 | CQ65: 0 | CR65: 0 | CS65: 0 | CT65: 0 | CU65: 0 | CV65: 0 | CX65: 6996.640096 | CY65: 7085.508281 | CZ65: 3088.036392 | DA65: 3434.46267 | DB65: 4218.844135 | DC65: 4543.98462 | DD65: 4659.460046 | DE65: 4580.170468 | DF65: 4417.866298 | DG65: 4447.134263 | DH65: 4592.941943 | DI65: 5112.315288 | DJ65: 6107.426102 | DK65: 6995.043662 | DL65: 7974.722276 | DM65: 7576.67795 | DN65: 6231.94799 | DO65: 5654.038715 | DP65: 5425.748587 | DQ65: 6182.458521 | DR65: 7718.228473 | DS65: 8512.720689 | DT65: 8659.59266 | DU65: 8775.60023 | DV65: 8421.723925 | DW65: 8190.773073 | DX65: 8307.844933 | DY65: 8537.199351 | DZ65: 8815.511092 | EA65: 8661.189094 | EB65: 8645.756894 | EC65: 8010.908124 | ED65: 6761.964231 | EE65: 6198.422866 | EF65: 5342.20185 | EG65: 4173.611825 | EH65: 3684.03859 | EI65: 4025.14342 | EJ65: 6351.680574 | EK65: 8349.352229 | EL65: 8292.412734 | EM65: 9393.420367 | EN65: 7933.21498 | EO65: 8008.2474 | EP65: 5357.63405 | EQ65: 4651.477874 | ER65: 4633.917095 | ES65: 5252.80152 | ET65: 5253.86581 | EU65: 5236.837176 | EV65: 5236.305031 | EW65: 3658.495639 | EX65: 3660.092074 | EY65: 11678.98237 | EZ65: 9439.450011 | FA65: 1813.062471 | FB65: 1810.052168 | FC65: 902.2308029 | FD65: 902.2308029 | FE65: 207.7109046 | FF65: 207.7109046 | FG65: 73.537401 | FH65: 73.537401 | FI65: 61.49618914 | FJ65: 61.92623242 | FK65: 36.55367886 | FL65: 36.12363558 | FM65: 15.91160139 | FN65: 15.91160139 | FO65: 4.730476087 | FP65: 4.730476087 | FQ65: 1.720173123 | FR65: 1.720173123 | FS65: 7.310735772 | FT65: 7.310735772 | FU65: 0 | FV65: 0 | FW65: 0 | FX65: 0 | FY65: 0 | FZ65: 0 | GA65: 0 | GB65: 0 | GC65: 0 | GD65: 0 | GE65: 0 | GF65: 0 | GG65: 0 | GH65: 0 | GI65: 0 | GJ65: 0
E66: ˂ = 11 kV ; Commercial & Industrial ; Simple Type | F66: 0.792017314 | G66: 50 | H66: 7.071067812 | I66: 2
E67: ˂ = 11 kV ; Residential ; Complex Type | F67: 0.4708645922 | G67: 50 | H67: 7.071067812 | I67: 2
A68: 4 | D68: SERVICE LINES | E68: ˂ = 11 kV ; Commercial & Industrial ; Complex Type | F68: 0.5772966287 | G68: 54.77280954 | H68: 7.400865459 | I68: 2 | J68: 1958 | K68: 1709 | L68: 901 | M68: 864 | N68: 844 | O68: 831 | P68: 868 | Q68: 891 | R68: 909 | S68: 956 | T68: 922 | U68: 1349 | V68: 1740 | W68: 2211 | X68: 2454 | Y68: 2137 | Z68: 2025 | AA68: 1860 | AB68: 2012 | AC68: 2191 | AD68: 2126 | AE68: 1954 | AF68: 1909 | AG68: 1980 | AH68: 2048 | AI68: 2354 | AJ68: 2413 | AK68: 2354 | AL68: 2505 | AM68: 2251 | AN68: 1849 | AO68: 1836 | AP68: 1854 | AQ68: 1736 | AR68: 1608 | AS68: 1305 | AT68: 1070 | AU68: 1020 | AV68: 1111 | AW68: 1213 | AX68: 1197 | AY68: 1320 | AZ68: 1181 | BA68: 1402 | BB68: 933 | BC68: 943 | BD68: 937 | BE68: 1043 | BF68: 1045 | BG68: 1175 | BH68: 1173 | BI68: 781 | BJ68: 782 | BK68: 1481 | BL68: 977.1780687 | BM68: 271.4749591 | BN68: 268.8392799 | BO68: 135.7374795 | BP68: 135.7374795 | BQ68: 50.07790507 | BR68: 50.07790507 | BS68: 19.76759411 | BT68: 19.76759411 | BU68: 17.7908347 | BV68: 17.7908347 | BW68: 10.54271686 | BX68: 10.54271686 | BY68: 5.930278232 | BZ68: 5.930278232 | CA68: 1.976759411 | CB68: 1.976759411 | CC68: 0 | CD68: 0 | CE68: 5.930278232 | CF68: 5.930278232 | CG68: 0 | CH68: 0 | CI68: 0 | CJ68: 0 | CK68: 0 | CL68: 0 | CM68: 0 | CN68: 0 | CO68: 0 | CP68: 0 | CQ68: 0 | CR68: 0 | CS68: 0 | CT68: 0 | CU68: 0 | CV68: 0 | CX68: 1130.346799 | CY68: 986.5999385 | CZ68: 520.1442625 | DA68: 498.7842872 | DB68: 487.2383546 | DC68: 479.7334985 | DD68: 501.0934737 | DE68: 514.3712962 | DF68: 524.7626355 | DG68: 551.895577 | DH68: 532.2674917 | DI68: 778.7731521 | DJ68: 1004.496134 | DK68: 1276.402846 | DL68: 1416.685927 | DM68: 1233.682896 | DN68: 1169.025673 | DO68: 1073.771729 | DP68: 1161.520817 | DQ68: 1264.856913 | DR68: 1227.332633 | DS68: 1128.037612 | DT68: 1102.059264 | DU68: 1143.047325 | DV68: 1182.303496 | DW68: 1358.956264 | DX68: 1393.016765 | DY68: 1358.956264 | DZ68: 1446.128055 | EA68: 1299.494711 | EB68: 1067.421466 | EC68: 1059.91661 | ED68: 1070.30795 | EE68: 1002.186947 | EF68: 928.292979 | EG68: 753.3721005 | EH68: 617.7073927 | EI68: 588.8425613 | EJ68: 641.3765545 | EK68: 700.2608106 | EL68: 691.0240646 | EM68: 762.0315499 | EN68: 681.7873185 | EO68: 809.3698734 | EP68: 538.6177546 | EQ68: 544.3907209 | ER68: 540.9269411 | ES68: 602.1203837 | ET68: 603.274977 | EU68: 678.3235387 | EV68: 677.1689455 | EW68: 450.868667 | EX68: 451.4459636 | EY68: 854.9763071 | EZ68: 564.1216047 | FA68: 156.7215787 | FB68: 155.2000099 | FC68: 78.36078933 | FD68: 78.36078933 | FE68: 28.90980577 | FF68: 28.90980577 | FG68: 11.41176544 | FH68: 11.41176544 | FI68: 10.27058889 | FJ68: 10.27058889 | FK68: 6.086274899 | FL68: 6.086274899 | FM68: 3.423529631 | FN68: 3.423529631 | FO68: 1.141176544 | FP68: 1.141176544 | FQ68: 0 | FR68: 0 | FS68: 3.423529631 | FT68: 3.423529631 | FU68: 0 | FV68: 0 | FW68: 0 | FX68: 0 | FY68: 0 | FZ68: 0 | GA68: 0 | GB68: 0 | GC68: 0 | GD68: 0 | GE68: 0 | GF68: 0 | GG68: 0 | GH68: 0 | GI68: 0 | GJ68: 0
E69: ˂ = 11 kV ; Subdivision ; Complex Type | F69: 0.0001 | G69: 50 | H69: 7.071067812 | I69: 2
E70: > 11 kV & < = 22 kV ; Commercial & Industrial | F70: 0.0001 | G70: 50 | H70: 7.071067812 | I70: 2
E71: > 11 kV & < = 22 kV ; Subdivision | F71: 0.0001 | G71: 50 | H71: 7.071067812 | I71: 2
E72: > 22 kV & < = 33 kV ; Commercial & Industrial | F72: 0.0001 | G72: 50 | H72: 7.071067812 | I72: 2
E73: > 22 kV & < = 33 kV ; Subdivision | F73: 0.0001 | G73: 50 | H73: 7.071067812 | I73: 2
E74: > 33 kV & < = 66 kV ; Commercial & Industrial | F74: 0.0001 | G74: 50 | H74: 7.071067812 | I74: 2
E75: > 33 kV & < = 66 kV ; Subdivision | F75: 0.0001 | G75: 50 | H75: 7.071067812 | I75: 2
E76: > 66 kV & < = 132 kV ; Commercial & Industrial | F76: 0.0001 | G76: 50 | H76: 7.071067812 | I76: 2
E77: > 66 kV & < = 132 kV ; Subdivision | F77: 0.0001 | G77: 50 | H77: 7.071067812 | I77: 2
E78: > 132 kV ; Commercial & Industrial | F78: 0.0001 | G78: 50 | H78: 7.071067812 | I78: 2
E79: > 132 kV ; Subdivision | F79: 0.0001 | G79: 50 | H79: 7.071067812 | I79: 2
E80: Other | F80: 0.0001 | G80: 50 | H80: 7.071067812 | I80: 2
A81: 5 | D81: TRANSFORMERS | E81: Pole Mounted ; < = 22kV ; < = 60 kVA ; Single Phase | F81: 11.95138222 | G81: 62.7123214 | H81: 7.91911115 | I81: 2 | J81: 537 | K81: 299 | L81: 210 | M81: 311 | N81: 349 | O81: 366 | P81: 386 | Q81: 408 | R81: 440 | S81: 455 | T81: 438 | U81: 421 | V81: 467 | W81: 510 | X81: 600 | Y81: 661 | Z81: 586 | AA81: 556 | AB81: 597 | AC81: 736 | AD81: 1023 | AE81: 1024 | AF81: 831 | AG81: 961 | AH81: 1240 | AI81: 1162 | AJ81: 924 | AK81: 935 | AL81: 973 | AM81: 1046 | AN81: 1060 | AO81: 1038 | AP81: 1104 | AQ81: 1107 | AR81: 998 | AS81: 880 | AT81: 789 | AU81: 693 | AV81: 705 | AW81: 937 | AX81: 872 | AY81: 611 | AZ81: 581 | BA81: 654 | BB81: 960 | BC81: 934 | BD81: 597 | BE81: 517 | BF81: 656 | BG81: 840 | BH81: 707 | BI81: 497 | BJ81: 516 | BK81: 491 | BL81: 587 | BM81: 536 | BN81: 515 | BO81: 409 | BP81: 148 | BQ81: 319 | BR81: 215 | BS81: 17 | BT81: 9 | BU81: 3 | BV81: 4 | BW81: 2 | BX81: 1 | BY81: 1 | BZ81: 0 | CA81: 0 | CB81: 0 | CC81: 0 | CD81: 0 | CE81: 0 | CF81: 0 | CG81: 1 | CH81: 1 | CI81: 1 | CJ81: 0 | CK81: 0 | CL81: 0 | CM81: 0 | CN81: 0 | CO81: 0 | CP81: 0 | CQ81: 0 | CR81: 0 | CS81: 0 | CT81: 0 | CU81: 0 | CV81: 0 | CX81: 6417.892251 | CY81: 3573.463283 | CZ81: 2509.790266 | DA81: 3716.87987 | DB81: 4171.032394 | DC81: 4374.205892 | DD81: 4613.233536 | DE81: 4876.163945 | DF81: 5258.608176 | DG81: 5437.878909 | DH81: 5234.705411 | DI81: 5031.531914 | DJ81: 5581.295496 | DK81: 6095.204931 | DL81: 7170.829331 | DM81: 7899.863646 | DN81: 7003.50998 | DO81: 6644.968513 | DP81: 7134.975184 | DQ81: 8796.217312 | DR81: 12226.26401 | DS81: 12238.21539 | DT81: 9931.598623 | DU81: 11485.27831 | DV81: 14819.71395 | DW81: 13887.50614 | DX81: 11043.07717 | DY81: 11174.54237 | DZ81: 11628.6949 | EA81: 12501.1458 | EB81: 12668.46515 | EC81: 12405.53474 | ED81: 13194.32597 | EE81: 13230.18011 | EF81: 11927.47945 | EG81: 10517.21635 | EH81: 9429.64057 | EI81: 8282.307877 | EJ81: 8425.724463 | EK81: 11198.44514 | EL81: 10421.60529 | EM81: 7302.294535 | EN81: 6943.753068 | EO81: 7816.20397 | EP81: 11473.32693 | EQ81: 11162.59099 | ER81: 7134.975184 | ES81: 6178.864606 | ET81: 7840.106735 | EU81: 10039.16106 | EV81: 8449.627228 | EW81: 5939.836962 | EX81: 6166.913224 | EY81: 5868.128669 | EZ81: 7015.461362 | FA81: 6405.940869 | FB81: 6154.961842 | FC81: 4888.115327 | FD81: 1768.804568 | FE81: 3812.490927 | FF81: 2569.547177 | FG81: 203.1734977 | FH81: 107.56244 | FI81: 35.85414665 | FJ81: 47.80552887 | FK81: 23.90276444 | FL81: 11.95138222 | FM81: 11.95138222 | FN81: 0 | FO81: 0 | FP81: 0 | FQ81: 0 | FR81: 0 | FS81: 0 | FT81: 0 | FU81: 11.95138222 | FV81: 11.95138222 | FW81: 11.95138222 | FX81: 0 | FY81: 0 | FZ81: 0 | GA81: 0 | GB81: 0 | GC81: 0 | GD81: 0 | GE81: 0 | GF81: 0 | GG81: 0 | GH81: 0 | GI81: 0 | GJ81: 0
A82: 5 | D82: TRANSFORMERS | E82: Pole Mounted ; < = 22kV ; > 60 kVA and < = 600 kVA ; Single Phase | F82: 13.17130045 | G82: 71.88745398 | H82: 8.478646943 | I82: 2 | J82: 9 | K82: 18 | L82: 62 | M82: 116 | N82: 122 | O82: 172 | P82: 343 | Q82: 449 | R82: 465 | S82: 480 | T82: 479 | U82: 442 | V82: 335 | W82: 460 | X82: 467 | Y82: 249 | Z82: 206 | AA82: 179 | AB82: 137 | AC82: 141 | AD82: 188 | AE82: 198 | AF82: 173 | AG82: 175 | AH82: 231 | AI82: 258 | AJ82: 232 | AK82: 225 | AL82: 215 | AM82: 230 | AN82: 249 | AO82: 245 | AP82: 295 | AQ82: 276 | AR82: 216 | AS82: 191 | AT82: 287 | AU82: 286 | AV82: 147 | AW82: 149 | AX82: 166 | AY82: 144 | AZ82: 131 | BA82: 161 | BB82: 153 | BC82: 122 | BD82: 116 | BE82: 141 | BF82: 153 | BG82: 181 | BH82: 156 | BI82: 79 | BJ82: 64 | BK82: 50 | BL82: 145 | BM82: 135 | BN82: 36 | BO82: 56 | BP82: 101 | BQ82: 293 | BR82: 222 | BS82: 9 | BT82: 14 | BU82: 7 | BV82: 14 | BW82: 14 | BX82: 0 | BY82: 0 | BZ82: 0 | CA82: 0 | CB82: 0 | CC82: 0 | CD82: 0 | CE82: 0 | CF82: 0 | CG82: 0 | CH82: 0 | CI82: 0 | CJ82: 0 | CK82: 0 | CL82: 0 | CM82: 0 | CN82: 0 | CO82: 0 | CP82: 0 | CQ82: 0 | CR82: 0 | CS82: 0 | CT82: 0 | CU82: 0 | CV82: 0 | CX82: 118.541704 | CY82: 237.083408 | CZ82: 816.6206277 | DA82: 1527.870852 | DB82: 1606.898654 | DC82: 2265.463677 | DD82: 4517.756053 | DE82: 5913.9139 | DF82: 6124.654707 | DG82: 6322.224214 | DH82: 6309.052914 | DI82: 5821.714797 | DJ82: 4412.385649 | DK82: 6058.798205 | DL82: 6150.997308 | DM82: 3279.653811 | DN82: 2713.287892 | DO82: 2357.66278 | DP82: 1804.468161 | DQ82: 1857.153363 | DR82: 2476.204484 | DS82: 2607.917488 | DT82: 2278.634977 | DU82: 2304.977578 | DV82: 3042.570403 | DW82: 3398.195515 | DX82: 3055.741704 | DY82: 2963.5426 | DZ82: 2831.829596 | EA82: 3029.399103 | EB82: 3279.653811 | EC82: 3226.968609 | ED82: 3885.533632 | EE82: 3635.278923 | EF82: 2845.000896 | EG82: 2515.718385 | EH82: 3780.163228 | EI82: 3766.991928 | EJ82: 1936.181166 | EK82: 1962.523766 | EL82: 2186.435874 | EM82: 1896.667264 | EN82: 1725.440358 | EO82: 2120.579372 | EP82: 2015.208968 | EQ82: 1606.898654 | ER82: 1527.870852 | ES82: 1857.153363 | ET82: 2015.208968 | EU82: 2384.005381 | EV82: 2054.72287 | EW82: 1040.532735 | EX82: 842.9632286 | EY82: 658.5650223 | EZ82: 1909.838565 | FA82: 1778.12556 | FB82: 474.1668161 | FC82: 737.592825 | FD82: 1330.301345 | FE82: 3859.191031 | FF82: 2924.028699 | FG82: 118.541704 | FH82: 184.3982062 | FI82: 92.19910312 | FJ82: 184.3982062 | FK82: 184.3982062 | FL82: 0 | FM82: 0 | FN82: 0 | FO82: 0 | FP82: 0 | FQ82: 0 | FR82: 0 | FS82: 0 | FT82: 0 | FU82: 0 | FV82: 0 | FW82: 0 | FX82: 0 | FY82: 0 | FZ82: 0 | GA82: 0 | GB82: 0 | GC82: 0 | GD82: 0 | GE82: 0 | GF82: 0 | GG82: 0 | GH82: 0 | GI82: 0 | GJ82: 0
A83: 5 | D83: TRANSFORMERS | E83: Pole Mounted ; < = 22kV ; > 600 kVA ; Single Phase | F83: 13.17130045 | G83: 63.48884422 | H83: 7.967988719 | I83: 2 | J83: 0 | K83: 0 | L83: 0 | M83: 0 | N83: 0 | O83: 0 | P83: 1 | Q83: 1 | R83: 1 | S83: 1 | T83: 1 | U83: 1 | V83: 1 | W83: 1 | X83: 1 | Y83: 1 | Z83: 1 | AA83: 1 | AB83: 0 | AC83: 0 | AD83: 0 | AE83: 1 | AF83: 1 | AG83: 0 | AH83: 0 | AI83: 1 | AJ83: 2 | AK83: 2 | AL83: 1 | AM83: 0 | AN83: 0 | AO83: 0 | AP83: 2 | AQ83: 3 | AR83: 2 | AS83: 1 | AT83: 4 | AU83: 8 | AV83: 5 | AW83: 2 | AX83: 4 | AY83: 2 | AZ83: 0 | BA83: 4 | BB83: 29 | BC83: 26 | BD83: 1 | BE83: 2 | BF83: 6 | BG83: 8 | BH83: 6 | BI83: 4 | BJ83: 13 | BK83: 11 | BL83: 6 | BM83: 6 | BN83: 6 | BO83: 8 | BP83: 7 | BQ83: 13 | BR83: 8 | BS83: 1 | BT83: 1 | BU83: 0 | BV83: 1 | BW83: 1 | BX83: 0 | BY83: 0 | BZ83: 0 | CA83: 0 | CB83: 0 | CC83: 0 | CD83: 0 | CE83: 0 | CF83: 0 | CG83: 0 | CH83: 0 | CI83: 0 | CJ83: 0 | CK83: 0 | CL83: 0 | CM83: 0 | CN83: 0 | CO83: 0 | CP83: 0 | CQ83: 0 | CR83: 0 | CS83: 0 | CT83: 0 | CU83: 0 | CV83: 0 | CX83: 0 | CY83: 0 | CZ83: 0 | DA83: 0 | DB83: 0 | DC83: 0 | DD83: 13.17130045 | DE83: 13.17130045 | DF83: 13.17130045 | DG83: 13.17130045 | DH83: 13.17130045 | DI83: 13.17130045 | DJ83: 13.17130045 | DK83: 13.17130045 | DL83: 13.17130045 | DM83: 13.17130045 | DN83: 13.17130045 | DO83: 13.17130045 | DP83: 0 | DQ83: 0 | DR83: 0 | DS83: 13.17130045 | DT83: 13.17130045 | DU83: 0 | DV83: 0 | DW83: 13.17130045 | DX83: 26.34260089 | DY83: 26.34260089 | DZ83: 13.17130045 | EA83: 0 | EB83: 0 | EC83: 0 | ED83: 26.34260089 | EE83: 39.51390134 | EF83: 26.34260089 | EG83: 13.17130045 | EH83: 52.68520178 | EI83: 105.3704036 | EJ83: 65.85650223 | EK83: 26.34260089 | EL83: 52.68520178 | EM83: 26.34260089 | EN83: 0 | EO83: 52.68520178 | EP83: 381.9677129 | EQ83: 342.4538116 | ER83: 13.17130045 | ES83: 26.34260089 | ET83: 79.02780268 | EU83: 105.3704036 | EV83: 79.02780268 | EW83: 52.68520178 | EX83: 171.2269058 | EY83: 144.8843049 | EZ83: 79.02780268 | FA83: 79.02780268 | FB83: 79.02780268 | FC83: 105.3704036 | FD83: 92.19910312 | FE83: 171.2269058 | FF83: 105.3704036 | FG83: 13.17130045 | FH83: 13.17130045 | FI83: 0 | FJ83: 13.17130045 | FK83: 13.17130045 | FL83: 0 | FM83: 0 | FN83: 0 | FO83: 0 | FP83: 0 | FQ83: 0 | FR83: 0 | FS83: 0 | FT83: 0 | FU83: 0 | FV83: 0 | FW83: 0 | FX83: 0 | FY83: 0 | FZ83: 0 | GA83: 0 | GB83: 0 | GC83: 0 | GD83: 0 | GE83: 0 | GF83: 0 | GG83: 0 | GH83: 0 | GI83: 0 | GJ83: 0
A84: 5 | D84: TRANSFORMERS | E84: Pole Mounted ; < = 22kV ; < = 60 kVA ; Multiple Phase | F84: 16.82060787 | G84: 55.70732674 | H84: 7.463734102 | I84: 2 | J84: 175 | K84: 60 | L84: 23 | M84: 29 | N84: 26 | O84: 23 | P84: 12 | Q84: 2 | R84: 2 | S84: 3 | T84: 1 | U84: 2 | V84: 0 | W84: 1 | X84: 3 | Y84: 3 | Z84: 8 | AA84: 37 | AB84: 37 | AC84: 47 | AD84: 69 | AE84: 64 | AF84: 65 | AG84: 71 | AH84: 84 | AI84: 100 | AJ84: 85 | AK84: 67 | AL84: 66 | AM84: 70 | AN84: 77 | AO84: 63 | AP84: 80 | AQ84: 89 | AR84: 79 | AS84: 71 | AT84: 59 | AU84: 56 | AV84: 57 | AW84: 56 | AX84: 51 | AY84: 54 | AZ84: 51 | BA84: 42 | BB84: 44 | BC84: 34 | BD84: 36 | BE84: 35 | BF84: 35 | BG84: 40 | BH84: 31 | BI84: 23 | BJ84: 27 | BK84: 20 | BL84: 20 | BM84: 16 | BN84: 10 | BO84: 10 | BP84: 28 | BQ84: 56 | BR84: 32 | BS84: 2 | BT84: 1 | BU84: 0 | BV84: 0 | BW84: 0 | BX84: 0 | BY84: 0 | BZ84: 0 | CA84: 0 | CB84: 0 | CC84: 0 | CD84: 0 | CE84: 0 | CF84: 0 | CG84: 0 | CH84: 0 | CI84: 0 | CJ84: 0 | CK84: 0 | CL84: 0 | CM84: 0 | CN84: 0 | CO84: 0 | CP84: 0 | CQ84: 0 | CR84: 0 | CS84: 0 | CT84: 0 | CU84: 0 | CV84: 0 | CX84: 2943.606378 | CY84: 1009.236472 | CZ84: 386.8739811 | DA84: 487.7976283 | DB84: 437.3358047 | DC84: 386.8739811 | DD84: 201.8472945 | DE84: 33.64121574 | DF84: 33.64121574 | DG84: 50.46182362 | DH84: 16.82060787 | DI84: 33.64121574 | DJ84: 0 | DK84: 16.82060787 | DL84: 50.46182362 | DM84: 50.46182362 | DN84: 134.564863 | DO84: 622.3624913 | DP84: 622.3624913 | DQ84: 790.56857 | DR84: 1160.621943 | DS84: 1076.518904 | DT84: 1093.339512 | DU84: 1194.263159 | DV84: 1412.931061 | DW84: 1682.060787 | DX84: 1429.751669 | DY84: 1126.980727 | DZ84: 1110.16012 | EA84: 1177.442551 | EB84: 1295.186806 | EC84: 1059.698296 | ED84: 1345.64863 | EE84: 1497.034101 | EF84: 1328.828022 | EG84: 1194.263159 | EH84: 992.4158645 | EI84: 941.9540408 | EJ84: 958.7746487 | EK84: 941.9540408 | EL84: 857.8510015 | EM84: 908.3128251 | EN84: 857.8510015 | EO84: 706.4655306 | EP84: 740.1067464 | EQ84: 571.9006677 | ER84: 605.5418834 | ES84: 588.7212755 | ET84: 588.7212755 | EU84: 672.8243149 | EV84: 521.438844 | EW84: 386.8739811 | EX84: 454.1564125 | EY84: 336.4121574 | EZ84: 336.4121574 | FA84: 269.129726 | FB84: 168.2060787 | FC84: 168.2060787 | FD84: 470.9770204 | FE84: 941.9540408 | FF84: 538.2594519 | FG84: 33.64121574 | FH84: 16.82060787 | FI84: 0 | FJ84: 0 | FK84: 0 | FL84: 0 | FM84: 0 | FN84: 0 | FO84: 0 | FP84: 0 | FQ84: 0 | FR84: 0 | FS84: 0 | FT84: 0 | FU84: 0 | FV84: 0 | FW84: 0 | FX84: 0 | FY84: 0 | FZ84: 0 | GA84: 0 | GB84: 0 | GC84: 0 | GD84: 0 | GE84: 0 | GF84: 0 | GG84: 0 | GH84: 0 | GI84: 0 | GJ84: 0
A85: 5 | D85: TRANSFORMERS | E85: Pole Mounted ; < = 22kV ; > 60 kVA and < = 600 kVA ; Multiple Phase | F85: 16.30476083 | G85: 54.85905948 | H85: 7.406690184 | I85: 2 | J85: 366 | K85: 220 | L85: 191 | M85: 270 | N85: 333 | O85: 280 | P85: 101 | Q85: 13 | R85: 20 | S85: 18 | T85: 5 | U85: 7 | V85: 8 | W85: 6 | X85: 3 | Y85: 1 | Z85: 11 | AA85: 35 | AB85: 38 | AC85: 47 | AD85: 60 | AE85: 44 | AF85: 54 | AG85: 55 | AH85: 65 | AI85: 64 | AJ85: 68 | AK85: 81 | AL85: 76 | AM85: 66 | AN85: 72 | AO85: 64 | AP85: 66 | AQ85: 65 | AR85: 56 | AS85: 51 | AT85: 71 | AU85: 76 | AV85: 55 | AW85: 51 | AX85: 47 | AY85: 32 | AZ85: 32 | BA85: 33 | BB85: 27 | BC85: 31 | BD85: 19 | BE85: 21 | BF85: 20 | BG85: 38 | BH85: 40 | BI85: 22 | BJ85: 7 | BK85: 7 | BL85: 36 | BM85: 34 | BN85: 6 | BO85: 8 | BP85: 32 | BQ85: 77 | BR85: 49 | BS85: 1 | BT85: 2 | BU85: 1 | BV85: 3 | BW85: 0 | BX85: 0 | BY85: 0 | BZ85: 0 | CA85: 0 | CB85: 0 | CC85: 0 | CD85: 0 | CE85: 0 | CF85: 0 | CG85: 0 | CH85: 0 | CI85: 0 | CJ85: 0 | CK85: 0 | CL85: 0 | CM85: 0 | CN85: 0 | CO85: 0 | CP85: 0 | CQ85: 0 | CR85: 0 | CS85: 0 | CT85: 0 | CU85: 0 | CV85: 0 | CX85: 5967.542462 | CY85: 3587.047382 | CZ85: 3114.209318 | DA85: 4402.285423 | DB85: 5429.485355 | DC85: 4565.333031 | DD85: 1646.780843 | DE85: 211.9618907 | DF85: 326.0952165 | DG85: 293.4856949 | DH85: 81.52380413 | DI85: 114.1333258 | DJ85: 130.4380866 | DK85: 97.82856495 | DL85: 48.91428248 | DM85: 16.30476083 | DN85: 179.3523691 | DO85: 570.6666289 | DP85: 619.5809114 | DQ85: 766.3237588 | DR85: 978.2856495 | DS85: 717.4094763 | DT85: 880.4570846 | DU85: 896.7618454 | DV85: 1059.809454 | DW85: 1043.504693 | DX85: 1108.723736 | DY85: 1320.685627 | DZ85: 1239.161823 | EA85: 1076.114214 | EB85: 1173.942779 | EC85: 1043.504693 | ED85: 1076.114214 | EE85: 1059.809454 | EF85: 913.0666062 | EG85: 831.5428021 | EH85: 1157.638019 | EI85: 1239.161823 | EJ85: 896.7618454 | EK85: 831.5428021 | EL85: 766.3237588 | EM85: 521.7523464 | EN85: 521.7523464 | EO85: 538.0571072 | EP85: 440.2285423 | EQ85: 505.4475856 | ER85: 309.7904557 | ES85: 342.3999773 | ET85: 326.0952165 | EU85: 619.5809114 | EV85: 652.190433 | EW85: 358.7047382 | EX85: 114.1333258 | EY85: 114.1333258 | EZ85: 586.9713897 | FA85: 554.3618681 | FB85: 97.82856495 | FC85: 130.4380866 | FD85: 521.7523464 | FE85: 1255.466584 | FF85: 798.9332805 | FG85: 16.30476083 | FH85: 32.60952165 | FI85: 16.30476083 | FJ85: 48.91428248 | FK85: 0 | FL85: 0 | FM85: 0 | FN85: 0 | FO85: 0 | FP85: 0 | FQ85: 0 | FR85: 0 | FS85: 0 | FT85: 0 | FU85: 0 | FV85: 0 | FW85: 0 | FX85: 0 | FY85: 0 | FZ85: 0 | GA85: 0 | GB85: 0 | GC85: 0 | GD85: 0 | GE85: 0 | GF85: 0 | GG85: 0 | GH85: 0 | GI85: 0 | GJ85: 0
A86: 5 | D86: TRANSFORMERS | E86: Pole Mounted ; < = 22kV ; > 600 kVA ; Multiple Phase | F86: 46.04419824 | G86: 63.48884422 | H86: 7.967988719 | I86: 2 | J86: 0 | K86: 0 | L86: 0 | M86: 0 | N86: 1 | O86: 1 | P86: 0 | Q86: 0 | R86: 0 | S86: 0 | T86: 0 | U86: 0 | V86: 1 | W86: 1 | X86: 1 | Y86: 0 | Z86: 0 | AA86: 0 | AB86: 0 | AC86: 0 | AD86: 0 | AE86: 0 | AF86: 0 | AG86: 0 | AH86: 0 | AI86: 0 | AJ86: 0 | AK86: 0 | AL86: 0 | AM86: 0 | AN86: 0 | AO86: 0 | AP86: 0 | AQ86: 1 | AR86: 1 | AS86: 0 | AT86: 0 | AU86: 0 | AV86: 1 | AW86: 1 | AX86: 1 | AY86: 0 | AZ86: 0 | BA86: 0 | BB86: 1 | BC86: 4 | BD86: 0 | BE86: 0 | BF86: 0 | BG86: 0 | BH86: 0 | BI86: 1 | BJ86: 2 | BK86: 1 | BL86: 1 | BM86: 1 | BN86: 0 | BO86: 0 | BP86: 1 | BQ86: 2 | BR86: 1 | BS86: 0 | BT86: 0 | BU86: 0 | BV86: 0 | BW86: 0 | BX86: 0 | BY86: 0 | BZ86: 0 | CA86: 0 | CB86: 0 | CC86: 0 | CD86: 0 | CE86: 0 | CF86: 0 | CG86: 0 | CH86: 0 | CI86: 0 | CJ86: 0 | CK86: 0 | CL86: 0 | CM86: 0 | CN86: 0 | CO86: 0 | CP86: 0 | CQ86: 0 | CR86: 0 | CS86: 0 | CT86: 0 | CU86: 0 | CV86: 0 | CX86: =$F86*J86 -> 0 | CY86: =$F86*K86 -> 0 | CZ86: =$F86*L86 -> 0 | DA86: =$F86*M86 -> 0 | DB86: =$F86*N86 -> 46.04419824 | DC86: =$F86*O86 -> 46.04419824 | DD86: =$F86*P86 -> 0 | DE86: =$F86*Q86 -> 0 | DF86: =$F86*R86 -> 0 | DG86: =$F86*S86 -> 0 | DH86: =$F86*T86 -> 0 | DI86: =$F86*U86 -> 0 | DJ86: =$F86*V86 -> 46.04419824 | DK86: =$F86*W86 -> 46.04419824 | DL86: =$F86*X86 -> 46.04419824 | DM86: =$F86*Y86 -> 0 | DN86: =$F86*Z86 -> 0 | DO86: =$F86*AA86 -> 0 | DP86: =$F86*AB86 -> 0 | DQ86: =$F86*AC86 -> 0 | DR86: =$F86*AD86 -> 0 | DS86: =$F86*AE86 -> 0 | DT86: =$F86*AF86 -> 0 | DU86: =$F86*AG86 -> 0 | DV86: =$F86*AH86 -> 0 | DW86: =$F86*AI86 -> 0 | DX86: =$F86*AJ86 -> 0 | DY86: =$F86*AK86 -> 0 | DZ86: =$F86*AL86 -> 0 | EA86: =$F86*AM86 -> 0 | EB86: =$F86*AN86 -> 0 | EC86: =$F86*AO86 -> 0 | ED86: =$F86*AP86 -> 0 | EE86: =$F86*AQ86 -> 46.04419824 | EF86: =$F86*AR86 -> 46.04419824 | EG86: =$F86*AS86 -> 0 | EH86: =$F86*AT86 -> 0 | EI86: =$F86*AU86 -> 0 | EJ86: =$F86*AV86 -> 46.04419824 | EK86: =$F86*AW86 -> 46.04419824 | EL86: =$F86*AX86 -> 46.04419824 | EM86: =$F86*AY86 -> 0 | EN86: =$F86*AZ86 -> 0 | EO86: =$F86*BA86 -> 0 | EP86: =$F86*BB86 -> 46.04419824 | EQ86: =$F86*BC86 -> 184.176793 | ER86: =$F86*BD86 -> 0 | ES86: =$F86*BE86 -> 0 | ET86: =$F86*BF86 -> 0 | EU86: =$F86*BG86 -> 0 | EV86: =$F86*BH86 -> 0 | EW86: =$F86*BI86 -> 46.04419824 | EX86: =$F86*BJ86 -> 92.08839649 | EY86: =$F86*BK86 -> 46.04419824 | EZ86: =$F86*BL86 -> 46.04419824 | FA86: =$F86*BM86 -> 46.04419824 | FB86: =$F86*BN86 -> 0 | FC86: =$F86*BO86 -> 0 | FD86: =$F86*BP86 -> 46.04419824 | FE86: =$F86*BQ86 -> 92.08839649 | FF86: =$F86*BR86 -> 46.04419824 | FG86: =$F86*BS86 -> 0 | FH86: =$F86*BT86 -> 0 | FI86: =$F86*BU86 -> 0 | FJ86: =$F86*BV86 -> 0 | FK86: =$F86*BW86 -> 0 | FL86: =$F86*BX86 -> 0 | FM86: =$F86*BY86 -> 0 | FN86: =$F86*BZ86 -> 0 | FO86: =$F86*CA86 -> 0 | FP86: =$F86*CB86 -> 0 | FQ86: =$F86*CC86 -> 0 | FR86: =$F86*CD86 -> 0 | FS86: =$F86*CE86 -> 0 | FT86: =$F86*CF86 -> 0 | FU86: =$F86*CG86 -> 0 | FV86: =$F86*CH86 -> 0 | FW86: =$F86*CI86 -> 0 | FX86: =$F86*CJ86 -> 0 | FY86: =$F86*CK86 -> 0 | FZ86: =$F86*CL86 -> 0 | GA86: =$F86*CM86 -> 0 | GB86: =$F86*CN86 -> 0 | GC86: =$F86*CO86 -> 0 | GD86: =$F86*CP86 -> 0 | GE86: =$F86*CQ86 -> 0 | GF86: =$F86*CR86 -> 0 | GG86: =$F86*CS86 -> 0 | GH86: =$F86*CT86 -> 0 | GI86: =$F86*CU86 -> 0 | GJ86: =$F86*CV86 -> 0
A87: 5 | D87: TRANSFORMERS | E87: Kiosk Mounted ; < = 22kV ; < = 60 kVA ; Single Phase | F87: 47.71499164 | G87: 59.70763576 | H87: 7.727071616 | I87: 2 | J87: 4 | K87: 0 | L87: 1 | M87: 2 | N87: 2 | O87: 1 | P87: 4 | Q87: 8 | R87: 9 | S87: 10 | T87: 7 | U87: 6 | V87: 8 | W87: 5 | X87: 3 | Y87: 7 | Z87: 8 | AA87: 8 | AB87: 9 | AC87: 9 | AD87: 10 | AE87: 12 | AF87: 14 | AG87: 16 | AH87: 17 | AI87: 14 | AJ87: 19 | AK87: 31 | AL87: 25 | AM87: 8 | AN87: 4 | AO87: 2 | AP87: 1 | AQ87: 1 | AR87: 1 | AS87: 1 | AT87: 1 | AU87: 1 | AV87: 0 | AW87: 0 | AX87: 0 | AY87: 1 | AZ87: 1 | BA87: 0 | BB87: 2 | BC87: 2 | BD87: 0 | BE87: 0 | BF87: 0 | BG87: 1 | BH87: 1 | BI87: 2 | BJ87: 2 | BK87: 1 | BL87: 2 | BM87: 2 | BN87: 0 | BO87: 0 | BP87: 2 | BQ87: 3 | BR87: 2 | BS87: 1 | BT87: 0 | BU87: 0 | BV87: 0 | BW87: 0 | BX87: 0 | BY87: 0 | BZ87: 0 | CA87: 0 | CB87: 0 | CC87: 0 | CD87: 0 | CE87: 0 | CF87: 0 | CG87: 0 | CH87: 0 | CI87: 0 | CJ87: 0 | CK87: 0 | CL87: 0 | CM87: 0 | CN87: 0 | CO87: 0 | CP87: 0 | CQ87: 0 | CR87: 0 | CS87: 0 | CT87: 0 | CU87: 0 | CV87: 0 | CX87: 190.8599666 | CY87: 0 | CZ87: 47.71499164 | DA87: 95.42998328 | DB87: 95.42998328 | DC87: 47.71499164 | DD87: 190.8599666 | DE87: 381.7199331 | DF87: 429.4349247 | DG87: 477.1499164 | DH87: 334.0049415 | DI87: 286.2899498 | DJ87: 381.7199331 | DK87: 238.5749582 | DL87: 143.1449749 | DM87: 334.0049415 | DN87: 381.7199331 | DO87: 381.7199331 | DP87: 429.4349247 | DQ87: 429.4349247 | DR87: 477.1499164 | DS87: 572.5798997 | DT87: 668.0098829 | DU87: 763.4398662 | DV87: 811.1548578 | DW87: 668.0098829 | DX87: 906.5848411 | DY87: 1479.164741 | DZ87: 1192.874791 | EA87: 381.7199331 | EB87: 190.8599666 | EC87: 95.42998328 | ED87: 47.71499164 | EE87: 47.71499164 | EF87: 47.71499164 | EG87: 47.71499164 | EH87: 47.71499164 | EI87: 47.71499164 | EJ87: 0 | EK87: 0 | EL87: 0 | EM87: 47.71499164 | EN87: 47.71499164 | EO87: 0 | EP87: 95.42998328 | EQ87: 95.42998328 | ER87: 0 | ES87: 0 | ET87: 0 | EU87: 47.71499164 | EV87: 47.71499164 | EW87: 95.42998328 | EX87: 95.42998328 | EY87: 47.71499164 | EZ87: 95.42998328 | FA87: 95.42998328 | FB87: 0 | FC87: 0 | FD87: 95.42998328 | FE87: 143.1449749 | FF87: 95.42998328 | FG87: 47.71499164 | FH87: 0 | FI87: 0 | FJ87: 0 | FK87: 0 | FL87: 0 | FM87: 0 | FN87: 0 | FO87: 0 | FP87: 0 | FQ87: 0 | FR87: 0 | FS87: 0 | FT87: 0 | FU87: 0 | FV87: 0 | FW87: 0 | FX87: 0 | FY87: 0 | FZ87: 0 | GA87: 0 | GB87: 0 | GC87: 0 | GD87: 0 | GE87: 0 | GF87: 0 | GG87: 0 | GH87: 0 | GI87: 0 | GJ87: 0
A88: 5 | D88: TRANSFORMERS | E88: Kiosk Mounted ; < = 22kV ; > 60 kVA and < = 600 kVA ; Single Phase | F88: 65.99544495 | G88: 72.70798188 | H88: 8.526897553 | I88: 2 | J88: 0 | K88: 0 | L88: 13 | M88: 27 | N88: 41 | O88: 134 | P88: 263 | Q88: 245 | R88: 210 | S88: 253 | T88: 263 | U88: 238 | V88: 218 | W88: 172 | X88: 153 | Y88: 167 | Z88: 171 | AA88: 143 | AB88: 115 | AC88: 163 | AD88: 229 | AE88: 233 | AF88: 199 | AG88: 243 | AH88: 321 | AI88: 347 | AJ88: 305 | AK88: 277 | AL88: 341 | AM88: 378 | AN88: 304 | AO88: 190 | AP88: 162 | AQ88: 158 | AR88: 132 | AS88: 134 | AT88: 201 | AU88: 268 | AV88: 230 | AW88: 188 | AX88: 153 | AY88: 86 | AZ88: 48 | BA88: 43 | BB88: 38 | BC88: 21 | BD88: 6 | BE88: 17 | BF88: 30 | BG88: 79 | BH88: 80 | BI88: 32 | BJ88: 31 | BK88: 22 | BL88: 69 | BM88: 67 | BN88: 9 | BO88: 16 | BP88: 50 | BQ88: 104 | BR88: 63 | BS88: 4 | BT88: 6 | BU88: 2 | BV88: 5 | BW88: 5 | BX88: 0 | BY88: 0 | BZ88: 0 | CA88: 0 | CB88: 0 | CC88: 0 | CD88: 0 | CE88: 0 | CF88: 0 | CG88: 0 | CH88: 0 | CI88: 0 | CJ88: 0 | CK88: 0 | CL88: 0 | CM88: 0 | CN88: 0 | CO88: 0 | CP88: 0 | CQ88: 0 | CR88: 0 | CS88: 0 | CT88: 0 | CU88: 0 | CV88: 0 | CX88: 0 | CY88: 0 | CZ88: 857.9407844 | DA88: 1781.877014 | DB88: 2705.813243 | DC88: 8843.389623 | DD88: 17356.80202 | DE88: 16168.88401 | DF88: 13859.04344 | DG88: 16696.84757 | DH88: 17356.80202 | DI88: 15706.9159 | DJ88: 14387.007 | DK88: 11351.21653 | DL88: 10097.30308 | DM88: 11021.23931 | DN88: 11285.22109 | DO88: 9437.348628 | DP88: 7589.476169 | DQ88: 10757.25753 | DR88: 15112.95689 | DS88: 15376.93867 | DT88: 13133.09355 | DU88: 16036.89312 | DV88: 21184.53783 | DW88: 22900.4194 | DX88: 20128.61071 | DY88: 18280.73825 | DZ88: 22504.44673 | EA88: 24946.27819 | EB88: 20062.61527 | EC88: 12539.13454 | ED88: 10691.26208 | EE88: 10427.2803 | EF88: 8711.398734 | EG88: 8843.389623 | EH88: 13265.08444 | EI88: 17686.77925 | EJ88: 15178.95234 | EK88: 12407.14365 | EL88: 10097.30308 | EM88: 5675.608266 | EN88: 3167.781358 | EO88: 2837.804133 | EP88: 2507.826908 | EQ88: 1385.904344 | ER88: 395.9726697 | ES88: 1121.922564 | ET88: 1979.863349 | EU88: 5213.640151 | EV88: 5279.635596 | EW88: 2111.854238 | EX88: 2045.858793 | EY88: 1451.899789 | EZ88: 4553.685702 | FA88: 4421.694812 | FB88: 593.9590046 | FC88: 1055.927119 | FD88: 3299.772248 | FE88: 6863.526275 | FF88: 4157.713032 | FG88: 263.9817798 | FH88: 395.9726697 | FI88: 131.9908899 | FJ88: 329.9772248 | FK88: 329.9772248 | FL88: 0 | FM88: 0 | FN88: 0 | FO88: 0 | FP88: 0 | FQ88: 0 | FR88: 0 | FS88: 0 | FT88: 0 | FU88: 0 | FV88: 0 | FW88: 0 | FX88: 0 | FY88: 0 | FZ88: 0 | GA88: 0 | GB88: 0 | GC88: 0 | GD88: 0 | GE88: 0 | GF88: 0 | GG88: 0 | GH88: 0 | GI88: 0 | GJ88: 0
A89: 5 | D89: TRANSFORMERS | E89: Kiosk Mounted ; < = 22kV ; > 600 kVA ; Single Phase | F89: 65.99544495 | G89: 63.48884422 | H89: 7.967988719 | I89: 2 | J89: 0 | K89: 0 | L89: 2 | M89: 1 | N89: 0 | O89: 11 | P89: 33 | Q89: 39 | R89: 40 | S89: 53 | T89: 60 | U89: 61 | V89: 50 | W89: 38 | X89: 40 | Y89: 48 | Z89: 53 | AA89: 36 | AB89: 20 | AC89: 23 | AD89: 27 | AE89: 31 | AF89: 25 | AG89: 18 | AH89: 28 | AI89: 35 | AJ89: 34 | AK89: 27 | AL89: 27 | AM89: 28 | AN89: 15 | AO89: 10 | AP89: 17 | AQ89: 14 | AR89: 9 | AS89: 10 | AT89: 17 | AU89: 22 | AV89: 11 | AW89: 3 | AX89: 8 | AY89: 9 | AZ89: 17 | BA89: 17 | BB89: 7 | BC89: 5 | BD89: 5 | BE89: 4 | BF89: 7 | BG89: 12 | BH89: 8 | BI89: 5 | BJ89: 23 | BK89: 23 | BL89: 19 | BM89: 17 | BN89: 4 | BO89: 5 | BP89: 21 | BQ89: 33 | BR89: 15 | BS89: 1 | BT89: 2 | BU89: 1 | BV89: 6 | BW89: 6 | BX89: 0 | BY89: 0 | BZ89: 0 | CA89: 0 | CB89: 0 | CC89: 0 | CD89: 0 | CE89: 0 | CF89: 1 | CG89: 1 | CH89: 0 | CI89: 0 | CJ89: 0 | CK89: 0 | CL89: 0 | CM89: 0 | CN89: 0 | CO89: 0 | CP89: 0 | CQ89: 0 | CR89: 0 | CS89: 0 | CT89: 0 | CU89: 0 | CV89: 0 | CX89: 0 | CY89: 0 | CZ89: 131.9908899 | DA89: 65.99544495 | DB89: 0 | DC89: 725.9498945 | DD89: 2177.849683 | DE89: 2573.822353 | DF89: 2639.817798 | DG89: 3497.758582 | DH89: 3959.726697 | DI89: 4025.722142 | DJ89: 3299.772248 | DK89: 2507.826908 | DL89: 2639.817798 | DM89: 3167.781358 | DN89: 3497.758582 | DO89: 2375.836018 | DP89: 1319.908899 | DQ89: 1517.895234 | DR89: 1781.877014 | DS89: 2045.858793 | DT89: 1649.886124 | DU89: 1187.918009 | DV89: 1847.872459 | DW89: 2309.840573 | DX89: 2243.845128 | DY89: 1781.877014 | DZ89: 1781.877014 | EA89: 1847.872459 | EB89: 989.9316743 | EC89: 659.9544495 | ED89: 1121.922564 | EE89: 923.9362293 | EF89: 593.9590046 | EG89: 659.9544495 | EH89: 1121.922564 | EI89: 1451.899789 | EJ89: 725.9498945 | EK89: 197.9863349 | EL89: 527.9635596 | EM89: 593.9590046 | EN89: 1121.922564 | EO89: 1121.922564 | EP89: 461.9681147 | EQ89: 329.9772248 | ER89: 329.9772248 | ES89: 263.9817798 | ET89: 461.9681147 | EU89: 791.9453394 | EV89: 527.9635596 | EW89: 329.9772248 | EX89: 1517.895234 | EY89: 1517.895234 | EZ89: 1253.913454 | FA89: 1121.922564 | FB89: 263.9817798 | FC89: 329.9772248 | FD89: 1385.904344 | FE89: 2177.849683 | FF89: 989.9316743 | FG89: 65.99544495 | FH89: 131.9908899 | FI89: 65.99544495 | FJ89: 395.9726697 | FK89: 395.9726697 | FL89: 0 | FM89: 0 | FN89: 0 | FO89: 0 | FP89: 0 | FQ89: 0 | FR89: 0 | FS89: 0 | FT89: 65.99544495 | FU89: 65.99544495 | FV89: 0 | FW89: 0 | FX89: 0 | FY89: 0 | FZ89: 0 | GA89: 0 | GB89: 0 | GC89: 0 | GD89: 0 | GE89: 0 | GF89: 0 | GG89: 0 | GH89: 0 | GI89: 0 | GJ89: 0
A90: 5 | D90: TRANSFORMERS | E90: Kiosk Mounted ; < = 22kV ; < = 60 kVA ; Multiple Phase | F90: 98.19754384 | G90: 55.79963172 | H90: 7.469915108 | I90: 2 | J90: 3 | K90: 6 | L90: 0 | M90: 0 | N90: 0 | O90: 0 | P90: 0 | Q90: 0 | R90: 0 | S90: 0 | T90: 0 | U90: 0 | V90: 0 | W90: 0 | X90: 0 | Y90: 0 | Z90: 0 | AA90: 0 | AB90: 0 | AC90: 0 | AD90: 0 | AE90: 0 | AF90: 0 | AG90: 0 | AH90: 0 | AI90: 0 | AJ90: 1 | AK90: 1 | AL90: 1 | AM90: 0 | AN90: 0 | AO90: 0 | AP90: 0 | AQ90: 0 | AR90: 0 | AS90: 0 | AT90: 0 | AU90: 0 | AV90: 0 | AW90: 0 | AX90: 0 | AY90: 0 | AZ90: 0 | BA90: 0 | BB90: 0 | BC90: 0 | BD90: 0 | BE90: 0 | BF90: 0 | BG90: 0 | BH90: 0 | BI90: 0 | BJ90: 1 | BK90: 1 | BL90: 1 | BM90: 1 | BN90: 0 | BO90: 0 | BP90: 1 | BQ90: 2 | BR90: 1 | BS90: 0 | BT90: 0 | BU90: 0 | BV90: 0 | BW90: 0 | BX90: 0 | BY90: 0 | BZ90: 0 | CA90: 0 | CB90: 0 | CC90: 0 | CD90: 0 | CE90: 0 | CF90: 0 | CG90: 0 | CH90: 0 | CI90: 0 | CJ90: 0 | CK90: 0 | CL90: 0 | CM90: 0 | CN90: 0 | CO90: 0 | CP90: 0 | CQ90: 0 | CR90: 0 | CS90: 0 | CT90: 0 | CU90: 0 | CV90: 0 | CX90: 294.5926315 | CY90: 589.185263 | CZ90: 0 | DA90: 0 | DB90: 0 | DC90: 0 | DD90: 0 | DE90: 0 | DF90: 0 | DG90: 0 | DH90: 0 | DI90: 0 | DJ90: 0 | DK90: 0 | DL90: 0 | DM90: 0 | DN90: 0 | DO90: 0 | DP90: 0 | DQ90: 0 | DR90: 0 | DS90: 0 | DT90: 0 | DU90: 0 | DV90: 0 | DW90: 0 | DX90: 98.19754384 | DY90: 98.19754384 | DZ90: 98.19754384 | EA90: 0 | EB90: 0 | EC90: 0 | ED90: 0 | EE90: 0 | EF90: 0 | EG90: 0 | EH90: 0 | EI90: 0 | EJ90: 0 | EK90: 0 | EL90: 0 | EM90: 0 | EN90: 0 | EO90: 0 | EP90: 0 | EQ90: 0 | ER90: 0 | ES90: 0 | ET90: 0 | EU90: 0 | EV90: 0 | EW90: 0 | EX90: 98.19754384 | EY90: 98.19754384 | EZ90: 98.19754384 | FA90: 98.19754384 | FB90: 0 | FC90: 0 | FD90: 98.19754384 | FE90: 196.3950877 | FF90: 98.19754384 | FG90: 0 | FH90: 0 | FI90: 0 | FJ90: 0 | FK90: 0 | FL90: 0 | FM90: 0 | FN90: 0 | FO90: 0 | FP90: 0 | FQ90: 0 | FR90: 0 | FS90: 0 | FT90: 0 | FU90: 0 | FV90: 0 | FW90: 0 | FX90: 0 | FY90: 0 | FZ90: 0 | GA90: 0 | GB90: 0 | GC90: 0 | GD90: 0 | GE90: 0 | GF90: 0 | GG90: 0 | GH90: 0 | GI90: 0 | GJ90: 0
A91: 5 | D91: TRANSFORMERS | E91: Kiosk Mounted ; < = 22kV ; > 60 kVA and < = 600 kVA ; Multiple Phase | F91: 20.83127776 | G91: 55.38039241 | H91: 7.441800347 | I91: 2 | J91: 211 | K91: 193 | L91: 82 | M91: 161 | N91: 237 | O91: 174 | P91: 46 | Q91: 21 | R91: 31 | S91: 22 | T91: 16 | U91: 5 | V91: 7 | W91: 7 | X91: 2 | Y91: 2 | Z91: 2 | AA91: 23 | AB91: 23 | AC91: 28 | AD91: 52 | AE91: 47 | AF91: 56 | AG91: 61 | AH91: 42 | AI91: 33 | AJ91: 35 | AK91: 35 | AL91: 43 | AM91: 49 | AN91: 41 | AO91: 21 | AP91: 27 | AQ91: 28 | AR91: 23 | AS91: 24 | AT91: 18 | AU91: 20 | AV91: 24 | AW91: 25 | AX91: 20 | AY91: 16 | AZ91: 9 | BA91: 3 | BB91: 11 | BC91: 7 | BD91: 2 | BE91: 4 | BF91: 7 | BG91: 14 | BH91: 15 | BI91: 3 | BJ91: 6 | BK91: 6 | BL91: 15 | BM91: 16 | BN91: 2 | BO91: 5 | BP91: 11 | BQ91: 22 | BR91: 14 | BS91: 1 | BT91: 1 | BU91: 1 | BV91: 1 | BW91: 1 | BX91: 0 | BY91: 0 | BZ91: 0 | CA91: 0 | CB91: 0 | CC91: 0 | CD91: 0 | CE91: 0 | CF91: 0 | CG91: 0 | CH91: 0 | CI91: 0 | CJ91: 0 | CK91: 0 | CL91: 0 | CM91: 0 | CN91: 0 | CO91: 0 | CP91: 0 | CQ91: 0 | CR91: 0 | CS91: 0 | CT91: 0 | CU91: 0 | CV91: 0 | CX91: 4395.399608 | CY91: 4020.436608 | CZ91: 1708.164777 | DA91: 3353.83572 | DB91: 4937.01283 | DC91: 3624.642331 | DD91: 958.2387771 | DE91: 437.456833 | DF91: 645.7696107 | DG91: 458.2881108 | DH91: 333.3004442 | DI91: 104.1563888 | DJ91: 145.8189443 | DK91: 145.8189443 | DL91: 41.66255553 | DM91: 41.66255553 | DN91: 41.66255553 | DO91: 479.1193886 | DP91: 479.1193886 | DQ91: 583.2757774 | DR91: 1083.226444 | DS91: 979.0700549 | DT91: 1166.551555 | DU91: 1270.707944 | DV91: 874.9136661 | DW91: 687.4321662 | DX91: 729.0947217 | DY91: 729.0947217 | DZ91: 895.7449438 | EA91: 1020.73261 | EB91: 854.0823883 | EC91: 437.456833 | ED91: 562.4444996 | EE91: 583.2757774 | EF91: 479.1193886 | EG91: 499.9506663 | EH91: 374.9629997 | EI91: 416.6255553 | EJ91: 499.9506663 | EK91: 520.7819441 | EL91: 416.6255553 | EM91: 333.3004442 | EN91: 187.4814999 | EO91: 62.49383329 | EP91: 229.1440554 | EQ91: 145.8189443 | ER91: 41.66255553 | ES91: 83.32511105 | ET91: 145.8189443 | EU91: 291.6378887 | EV91: 312.4691665 | EW91: 62.49383329 | EX91: 124.9876666 | EY91: 124.9876666 | EZ91: 312.4691665 | FA91: 333.3004442 | FB91: 41.66255553 | FC91: 104.1563888 | FD91: 229.1440554 | FE91: 458.2881108 | FF91: 291.6378887 | FG91: 20.83127776 | FH91: 20.83127776 | FI91: 20.83127776 | FJ91: 20.83127776 | FK91: 20.83127776 | FL91: 0 | FM91: 0 | FN91: 0 | FO91: 0 | FP91: 0 | FQ91: 0 | FR91: 0 | FS91: 0 | FT91: 0 | FU91: 0 | FV91: 0 | FW91: 0 | FX91: 0 | FY91: 0 | FZ91: 0 | GA91: 0 | GB91: 0 | GC91: 0 | GD91: 0 | GE91: 0 | GF91: 0 | GG91: 0 | GH91: 0 | GI91: 0 | GJ91: 0
A92: 5 | D92: TRANSFORMERS | E92: Kiosk Mounted ; < = 22kV ; > 600 kVA ; Multiple Phase | F92: 69.67929396 | G92: 63.48884422 | H92: 7.967988719 | I92: 2 | J92: 59 | K92: 38 | L92: 23 | M92: 33 | N92: 41 | O92: 28 | P92: 7 | Q92: 7 | R92: 8 | S92: 3 | T92: 1 | U92: 1 | V92: 2 | W92: 3 | X92: 3 | Y92: 1 | Z92: 0 | AA92: 5 | AB92: 5 | AC92: 4 | AD92: 6 | AE92: 5 | AF92: 4 | AG92: 4 | AH92: 5 | AI92: 5 | AJ92: 1 | AK92: 2 | AL92: 3 | AM92: 3 | AN92: 2 | AO92: 1 | AP92: 3 | AQ92: 4 | AR92: 4 | AS92: 3 | AT92: 2 | AU92: 3 | AV92: 2 | AW92: 0 | AX92: 0 | AY92: 0 | AZ92: 2 | BA92: 2 | BB92: 1 | BC92: 1 | BD92: 0 | BE92: 2 | BF92: 2 | BG92: 3 | BH92: 3 | BI92: 1 | BJ92: 4 | BK92: 4 | BL92: 2 | BM92: 2 | BN92: 0 | BO92: 0 | BP92: 3 | BQ92: 7 | BR92: 4 | BS92: 0 | BT92: 0 | BU92: 0 | BV92: 1 | BW92: 1 | BX92: 0 | BY92: 0 | BZ92: 0 | CA92: 0 | CB92: 0 | CC92: 0 | CD92: 0 | CE92: 0 | CF92: 0 | CG92: 0 | CH92: 0 | CI92: 0 | CJ92: 0 | CK92: 0 | CL92: 0 | CM92: 0 | CN92: 0 | CO92: 0 | CP92: 0 | CQ92: 0 | CR92: 0 | CS92: 0 | CT92: 0 | CU92: 0 | CV92: 0 | CX92: 4111.078343 | CY92: 2647.81317 | CZ92: 1602.623761 | DA92: 2299.416701 | DB92: 2856.851052 | DC92: 1951.020231 | DD92: 487.7550577 | DE92: 487.7550577 | DF92: 557.4343517 | DG92: 209.0378819 | DH92: 69.67929396 | DI92: 69.67929396 | DJ92: 139.3585879 | DK92: 209.0378819 | DL92: 209.0378819 | DM92: 69.67929396 | DN92: 0 | DO92: 348.3964698 | DP92: 348.3964698 | DQ92: 278.7171758 | DR92: 418.0757637 | DS92: 348.3964698 | DT92: 278.7171758 | DU92: 278.7171758 | DV92: 348.3964698 | DW92: 348.3964698 | DX92: 69.67929396 | DY92: 139.3585879 | DZ92: 209.0378819 | EA92: 209.0378819 | EB92: 139.3585879 | EC92: 69.67929396 | ED92: 209.0378819 | EE92: 278.7171758 | EF92: 278.7171758 | EG92: 209.0378819 | EH92: 139.3585879 | EI92: 209.0378819 | EJ92: 139.3585879 | EK92: 0 | EL92: 0 | EM92: 0 | EN92: 139.3585879 | EO92: 139.3585879 | EP92: 69.67929396 | EQ92: 69.67929396 | ER92: 0 | ES92: 139.3585879 | ET92: 139.3585879 | EU92: 209.0378819 | EV92: 209.0378819 | EW92: 69.67929396 | EX92: 278.7171758 | EY92: 278.7171758 | EZ92: 139.3585879 | FA92: 139.3585879 | FB92: 0 | FC92: 0 | FD92: 209.0378819 | FE92: 487.7550577 | FF92: 278.7171758 | FG92: 0 | FH92: 0 | FI92: 0 | FJ92: 69.67929396 | FK92: 69.67929396 | FL92: 0 | FM92: 0 | FN92: 0 | FO92: 0 | FP92: 0 | FQ92: 0 | FR92: 0 | FS92: 0 | FT92: 0 | FU92: 0 | FV92: 0 | FW92: 0 | FX92: 0 | FY92: 0 | FZ92: 0 | GA92: 0 | GB92: 0 | GC92: 0 | GD92: 0 | GE92: 0 | GF92: 0 | GG92: 0 | GH92: 0 | GI92: 0 | GJ92: 0
A93: 5 | D93: TRANSFORMERS | E93: Ground Outdoor / Indoor Chamber Mounted; ˂ 22 kV ; < = 60 kVA ; Single Phase | F93: 16.94501973 | G93: 63.48884422 | H93: 7.967988719 | I93: 2 | J93: 0 | K93: 0 | L93: 0 | M93: 0 | N93: 0 | O93: 0 | P93: 0 | Q93: 0 | R93: 0 | S93: 0 | T93: 0 | U93: 0 | V93: 0 | W93: 0 | X93: 0 | Y93: 0 | Z93: 0 | AA93: 0 | AB93: 0 | AC93: 0 | AD93: 0 | AE93: 0 | AF93: 0 | AG93: 0 | AH93: 0 | AI93: 0 | AJ93: 0 | AK93: 1 | AL93: 2 | AM93: 1 | AN93: 0 | AO93: 0 | AP93: 0 | AQ93: 0 | AR93: 0 | AS93: 0 | AT93: 0 | AU93: 0 | AV93: 0 | AW93: 0 | AX93: 0 | AY93: 0 | AZ93: 1 | BA93: 1 | BB93: 0 | BC93: 0 | BD93: 0 | BE93: 0 | BF93: 0 | BG93: 0 | BH93: 0 | BI93: 0 | BJ93: 0 | BK93: 1 | BL93: 1 | BM93: 1 | BN93: 0 | BO93: 0 | BP93: 0 | BQ93: 1 | BR93: 1 | BS93: 0 | BT93: 0 | BU93: 0 | BV93: 0 | BW93: 0 | BX93: 0 | BY93: 0 | BZ93: 0 | CA93: 0 | CB93: 0 | CC93: 0 | CD93: 0 | CE93: 0 | CF93: 0 | CG93: 0 | CH93: 0 | CI93: 0 | CJ93: 0 | CK93: 0 | CL93: 0 | CM93: 0 | CN93: 0 | CO93: 0 | CP93: 0 | CQ93: 0 | CR93: 0 | CS93: 0 | CT93: 0 | CU93: 0 | CV93: 0 | CX93: 0 | CY93: 0 | CZ93: 0 | DA93: 0 | DB93: 0 | DC93: 0 | DD93: 0 | DE93: 0 | DF93: 0 | DG93: 0 | DH93: 0 | DI93: 0 | DJ93: 0 | DK93: 0 | DL93: 0 | DM93: 0 | DN93: 0 | DO93: 0 | DP93: 0 | DQ93: 0 | DR93: 0 | DS93: 0 | DT93: 0 | DU93: 0 | DV93: 0 | DW93: 0 | DX93: 0 | DY93: 16.94501973 | DZ93: 33.89003945 | EA93: 16.94501973 | EB93: 0 | EC93: 0 | ED93: 0 | EE93: 0 | EF93: 0 | EG93: 0 | EH93: 0 | EI93: 0 | EJ93: 0 | EK93: 0 | EL93: 0 | EM93: 0 | EN93: 16.94501973 | EO93: 16.94501973 | EP93: 0 | EQ93: 0 | ER93: 0 | ES93: 0 | ET93: 0 | EU93: 0 | EV93: 0 | EW93: 0 | EX93: 0 | EY93: 16.94501973 | EZ93: 16.94501973 | FA93: 16.94501973 | FB93: 0 | FC93: 0 | FD93: 0 | FE93: 16.94501973 | FF93: 16.94501973 | FG93: 0 | FH93: 0 | FI93: 0 | FJ93: 0 | FK93: 0 | FL93: 0 | FM93: 0 | FN93: 0 | FO93: 0 | FP93: 0 | FQ93: 0 | FR93: 0 | FS93: 0 | FT93: 0 | FU93: 0 | FV93: 0 | FW93: 0 | FX93: 0 | FY93: 0 | FZ93: 0 | GA93: 0 | GB93: 0 | GC93: 0 | GD93: 0 | GE93: 0 | GF93: 0 | GG93: 0 | GH93: 0 | GI93: 0 | GJ93: 0
A94: 5 | D94: TRANSFORMERS | E94: Ground Outdoor / Indoor Chamber Mounted; ˂ 22 kV ; > 60 kVA and < = 600 kVA ; Single Phase | F94: 80.43457638 | G94: 74.03917841 | H94: 8.604602164 | I94: 2 | J94: 0 | K94: 0 | L94: 0 | M94: 0 | N94: 0 | O94: 1 | P94: 2 | Q94: 1 | R94: 2 | S94: 2 | T94: 1 | U94: 1 | V94: 1 | W94: 2 | X94: 3 | Y94: 5 | Z94: 4 | AA94: 4 | AB94: 2 | AC94: 1 | AD94: 1 | AE94: 1 | AF94: 2 | AG94: 3 | AH94: 2 | AI94: 2 | AJ94: 3 | AK94: 5 | AL94: 7 | AM94: 9 | AN94: 9 | AO94: 7 | AP94: 15 | AQ94: 17 | AR94: 8 | AS94: 4 | AT94: 2 | AU94: 3 | AV94: 6 | AW94: 25 | AX94: 27 | AY94: 12 | AZ94: 20 | BA94: 21 | BB94: 17 | BC94: 17 | BD94: 17 | BE94: 17 | BF94: 14 | BG94: 14 | BH94: 10 | BI94: 5 | BJ94: 4 | BK94: 3 | BL94: 5 | BM94: 4 | BN94: 1 | BO94: 3 | BP94: 5 | BQ94: 6 | BR94: 3 | BS94: 0 | BT94: 0 | BU94: 0 | BV94: 1 | BW94: 1 | BX94: 0 | BY94: 0 | BZ94: 0 | CA94: 0 | CB94: 0 | CC94: 0 | CD94: 0 | CE94: 0 | CF94: 0 | CG94: 0 | CH94: 0 | CI94: 0 | CJ94: 0 | CK94: 0 | CL94: 0 | CM94: 0 | CN94: 0 | CO94: 0 | CP94: 0 | CQ94: 0 | CR94: 0 | CS94: 0 | CT94: 0 | CU94: 0 | CV94: 0 | CX94: 0 | CY94: 0 | CZ94: 0 | DA94: 0 | DB94: 0 | DC94: 80.43457638 | DD94: 160.8691528 | DE94: 80.43457638 | DF94: 160.8691528 | DG94: 160.8691528 | DH94: 80.43457638 | DI94: 80.43457638 | DJ94: 80.43457638 | DK94: 160.8691528 | DL94: 241.3037291 | DM94: 402.1728819 | DN94: 321.7383055 | DO94: 321.7383055 | DP94: 160.8691528 | DQ94: 80.43457638 | DR94: 80.43457638 | DS94: 80.43457638 | DT94: 160.8691528 | DU94: 241.3037291 | DV94: 160.8691528 | DW94: 160.8691528 | DX94: 241.3037291 | DY94: 402.1728819 | DZ94: 563.0420347 | EA94: 723.9111874 | EB94: 723.9111874 | EC94: 563.0420347 | ED94: 1206.518646 | EE94: 1367.387798 | EF94: 643.476611 | EG94: 321.7383055 | EH94: 160.8691528 | EI94: 241.3037291 | EJ94: 482.6074583 | EK94: 2010.86441 | EL94: 2171.733562 | EM94: 965.2149166 | EN94: 1608.691528 | EO94: 1689.126104 | EP94: 1367.387798 | EQ94: 1367.387798 | ER94: 1367.387798 | ES94: 1367.387798 | ET94: 1126.084069 | EU94: 1126.084069 | EV94: 804.3457638 | EW94: 402.1728819 | EX94: 321.7383055 | EY94: 241.3037291 | EZ94: 402.1728819 | FA94: 321.7383055 | FB94: 80.43457638 | FC94: 241.3037291 | FD94: 402.1728819 | FE94: 482.6074583 | FF94: 241.3037291 | FG94: 0 | FH94: 0 | FI94: 0 | FJ94: 80.43457638 | FK94: 80.43457638 | FL94: 0 | FM94: 0 | FN94: 0 | FO94: 0 | FP94: 0 | FQ94: 0 | FR94: 0 | FS94: 0 | FT94: 0 | FU94: 0 | FV94: 0 | FW94: 0 | FX94: 0 | FY94: 0 | FZ94: 0 | GA94: 0 | GB94: 0 | GC94: 0 | GD94: 0 | GE94: 0 | GF94: 0 | GG94: 0 | GH94: 0 | GI94: 0 | GJ94: 0
A95: 5 | D95: TRANSFORMERS | E95: Ground Outdoor / Indoor Chamber Mounted; ˂ 22 kV ; > 600 kVA ; Single Phase | F95: 88.75628195 | G95: 63.48884422 | H95: 7.967988719 | I95: 2 | J95: 0 | K95: 0 | L95: 0 | M95: 0 | N95: 0 | O95: 0 | P95: 0 | Q95: 0 | R95: 0 | S95: 0 | T95: 0 | U95: 1 | V95: 2 | W95: 2 | X95: 2 | Y95: 1 | Z95: 1 | AA95: 2 | AB95: 2 | AC95: 4 | AD95: 5 | AE95: 4 | AF95: 3 | AG95: 3 | AH95: 2 | AI95: 5 | AJ95: 5 | AK95: 4 | AL95: 8 | AM95: 7 | AN95: 6 | AO95: 7 | AP95: 9 | AQ95: 9 | AR95: 8 | AS95: 7 | AT95: 3 | AU95: 3 | AV95: 4 | AW95: 7 | AX95: 7 | AY95: 5 | AZ95: 3 | BA95: 1 | BB95: 5 | BC95: 6 | BD95: 4 | BE95: 5 | BF95: 4 | BG95: 2 | BH95: 0 | BI95: 0 | BJ95: 7 | BK95: 8 | BL95: 2 | BM95: 2 | BN95: 0 | BO95: 0 | BP95: 2 | BQ95: 2 | BR95: 0 | BS95: 0 | BT95: 1 | BU95: 1 | BV95: 2 | BW95: 2 | BX95: 0 | BY95: 0 | BZ95: 0 | CA95: 0 | CB95: 0 | CC95: 0 | CD95: 0 | CE95: 0 | CF95: 0 | CG95: 0 | CH95: 0 | CI95: 0 | CJ95: 0 | CK95: 0 | CL95: 0 | CM95: 0 | CN95: 0 | CO95: 0 | CP95: 0 | CQ95: 0 | CR95: 0 | CS95: 0 | CT95: 0 | CU95: 0 | CV95: 0 | CX95: 0 | CY95: 0 | CZ95: 0 | DA95: 0 | DB95: 0 | DC95: 0 | DD95: 0 | DE95: 0 | DF95: 0 | DG95: 0 | DH95: 0 | DI95: 88.75628195 | DJ95: 177.5125639 | DK95: 177.5125639 | DL95: 177.5125639 | DM95: 88.75628195 | DN95: 88.75628195 | DO95: 177.5125639 | DP95: 177.5125639 | DQ95: 355.0251278 | DR95: 443.7814098 | DS95: 355.0251278 | DT95: 266.2688459 | DU95: 266.2688459 | DV95: 177.5125639 | DW95: 443.7814098 | DX95: 443.7814098 | DY95: 355.0251278 | DZ95: 710.0502556 | EA95: 621.2939737 | EB95: 532.5376917 | EC95: 621.2939737 | ED95: 798.8065376 | EE95: 798.8065376 | EF95: 710.0502556 | EG95: 621.2939737 | EH95: 266.2688459 | EI95: 266.2688459 | EJ95: 355.0251278 | EK95: 621.2939737 | EL95: 621.2939737 | EM95: 443.7814098 | EN95: 266.2688459 | EO95: 88.75628195 | EP95: 443.7814098 | EQ95: 532.5376917 | ER95: 355.0251278 | ES95: 443.7814098 | ET95: 355.0251278 | EU95: 177.5125639 | EV95: 0 | EW95: 0 | EX95: 621.2939737 | EY95: 710.0502556 | EZ95: 177.5125639 | FA95: 177.5125639 | FB95: 0 | FC95: 0 | FD95: 177.5125639 | FE95: 177.5125639 | FF95: 0 | FG95: 0 | FH95: 88.75628195 | FI95: 88.75628195 | FJ95: 177.5125639 | FK95: 177.5125639 | FL95: 0 | FM95: 0 | FN95: 0 | FO95: 0 | FP95: 0 | FQ95: 0 | FR95: 0 | FS95: 0 | FT95: 0 | FU95: 0 | FV95: 0 | FW95: 0 | FX95: 0 | FY95: 0 | FZ95: 0 | GA95: 0 | GB95: 0 | GC95: 0 | GD95: 0 | GE95: 0 | GF95: 0 | GG95: 0 | GH95: 0 | GI95: 0 | GJ95: 0
E96: Ground Outdoor / Indoor Chamber Mounted; ˂ 22 kV ; < = 60 kVA ; Multiple Phase | F96: 15.66476166 | G96: 50 | H96: 7.071067812 | I96: 2
A97: 5 | D97: TRANSFORMERS | E97: Ground Outdoor / Indoor Chamber Mounted; ˂ 22 kV ; > 60 kVA and < = 600 kVA ; Multiple Phase | F97: 27.53077799 | G97: 67.38740508 | H97: 8.208983194 | I97: 2 | J97: 0 | K97: 0 | L97: 0 | M97: 0 | N97: 0 | O97: 0 | P97: 0 | Q97: 1 | R97: 1 | S97: 0 | T97: 0 | U97: 0 | V97: 0 | W97: 0 | X97: 0 | Y97: 0 | Z97: 0 | AA97: 0 | AB97: 0 | AC97: 0 | AD97: 0 | AE97: 0 | AF97: 0 | AG97: 0 | AH97: 0 | AI97: 0 | AJ97: 0 | AK97: 0 | AL97: 0 | AM97: 0 | AN97: 0 | AO97: 0 | AP97: 0 | AQ97: 0 | AR97: 0 | AS97: 0 | AT97: 0 | AU97: 0 | AV97: 0 | AW97: 0 | AX97: 0 | AY97: 0 | AZ97: 0 | BA97: 0 | BB97: 0 | BC97: 0 | BD97: 1 | BE97: 0 | BF97: 0 | BG97: 0 | BH97: 0 | BI97: 0 | BJ97: 0 | BK97: 0 | BL97: 0 | BM97: 2 | BN97: 0 | BO97: 0 | BP97: 0 | BQ97: 0 | BR97: 0 | BS97: 0 | BT97: 1 | BU97: 1 | BV97: 0 | BW97: 0 | BX97: 0 | BY97: 0 | BZ97: 0 | CA97: 0 | CB97: 0 | CC97: 0 | CD97: 0 | CE97: 0 | CF97: 0 | CG97: 0 | CH97: 0 | CI97: 0 | CJ97: 0 | CK97: 0 | CL97: 0 | CM97: 0 | CN97: 0 | CO97: 0 | CP97: 0 | CQ97: 0 | CR97: 0 | CS97: 0 | CT97: 0 | CU97: 0 | CV97: 0 | CX97: 0 | CY97: 0 | CZ97: 0 | DA97: 0 | DB97: 0 | DC97: 0 | DD97: 0 | DE97: 27.53077799 | DF97: 27.53077799 | DG97: 0 | DH97: 0 | DI97: 0 | DJ97: 0 | DK97: 0 | DL97: 0 | DM97: 0 | DN97: 0 | DO97: 0 | DP97: 0 | DQ97: 0 | DR97: 0 | DS97: 0 | DT97: 0 | DU97: 0 | DV97: 0 | DW97: 0 | DX97: 0 | DY97: 0 | DZ97: 0 | EA97: 0 | EB97: 0 | EC97: 0 | ED97: 0 | EE97: 0 | EF97: 0 | EG97: 0 | EH97: 0 | EI97: 0 | EJ97: 0 | EK97: 0 | EL97: 0 | EM97: 0 | EN97: 0 | EO97: 0 | EP97: 0 | EQ97: 0 | ER97: 27.53077799 | ES97: 0 | ET97: 0 | EU97: 0 | EV97: 0 | EW97: 0 | EX97: 0 | EY97: 0 | EZ97: 0 | FA97: 55.06155597 | FB97: 0 | FC97: 0 | FD97: 0 | FE97: 0 | FF97: 0 | FG97: 0 | FH97: 27.53077799 | FI97: 27.53077799 | FJ97: 0 | FK97: 0 | FL97: 0 | FM97: 0 | FN97: 0 | FO97: 0 | FP97: 0 | FQ97: 0 | FR97: 0 | FS97: 0 | FT97: 0 | FU97: 0 | FV97: 0 | FW97: 0 | FX97: 0 | FY97: 0 | FZ97: 0 | GA97: 0 | GB97: 0 | GC97: 0 | GD97: 0 | GE97: 0 | GF97: 0 | GG97: 0 | GH97: 0 | GI97: 0 | GJ97: 0
A98: 5 | D98: TRANSFORMERS | E98: Ground Outdoor / Indoor Chamber Mounted; ˂ 22 kV ; > 600 kVA ; Multiple Phase | F98: 143.2830478 | G98: 59.63000154 | H98: 7.722046461 | I98: 2 | J98: 0 | K98: 0 | L98: 0 | M98: 0 | N98: 0 | O98: 0 | P98: 0 | Q98: 0 | R98: 3 | S98: 0 | T98: 0 | U98: 0 | V98: 0 | W98: 0 | X98: 0 | Y98: 2 | Z98: 0 | AA98: 0 | AB98: 0 | AC98: 0 | AD98: 0 | AE98: 0 | AF98: 0 | AG98: 3 | AH98: 0 | AI98: 0 | AJ98: 4 | AK98: 2 | AL98: 0 | AM98: 8 | AN98: 0 | AO98: 5 | AP98: 1 | AQ98: 2 | AR98: 2 | AS98: 3 | AT98: 3 | AU98: 4 | AV98: 1 | AW98: 2 | AX98: 2 | AY98: 1 | AZ98: 1 | BA98: 11 | BB98: 5 | BC98: 2 | BD98: 1 | BE98: 5 | BF98: 3 | BG98: 2 | BH98: 7 | BI98: 1 | BJ98: 1 | BK98: 1 | BL98: 0 | BM98: 0 | BN98: 0 | BO98: 0 | BP98: 0 | BQ98: 0 | BR98: 0 | BS98: 0 | BT98: 0 | BU98: 0 | BV98: 0 | BW98: 0 | BX98: 0 | BY98: 0 | BZ98: 0 | CA98: 0 | CB98: 0 | CC98: 0 | CD98: 0 | CE98: 0 | CF98: 0 | CG98: 0 | CH98: 0 | CI98: 0 | CJ98: 0 | CK98: 0 | CL98: 0 | CM98: 0 | CN98: 0 | CO98: 0 | CP98: 0 | CQ98: 0 | CR98: 0 | CS98: 0 | CT98: 0 | CU98: 0 | CV98: 0 | CX98: 0 | CY98: 0 | CZ98: 0 | DA98: 0 | DB98: 0 | DC98: 0 | DD98: 0 | DE98: 0 | DF98: 429.8491435 | DG98: 0 | DH98: 0 | DI98: 0 | DJ98: 0 | DK98: 0 | DL98: 0 | DM98: 286.5660957 | DN98: 0 | DO98: 0 | DP98: 0 | DQ98: 0 | DR98: 0 | DS98: 0 | DT98: 0 | DU98: 429.8491435 | DV98: 0 | DW98: 0 | DX98: 573.1321914 | DY98: 286.5660957 | DZ98: 0 | EA98: 1146.264383 | EB98: 0 | EC98: 716.4152392 | ED98: 143.2830478 | EE98: 286.5660957 | EF98: 286.5660957 | EG98: 429.8491435 | EH98: 429.8491435 | EI98: 573.1321914 | EJ98: 143.2830478 | EK98: 286.5660957 | EL98: 286.5660957 | EM98: 143.2830478 | EN98: 143.2830478 | EO98: 1576.113526 | EP98: 716.4152392 | EQ98: 286.5660957 | ER98: 143.2830478 | ES98: 716.4152392 | ET98: 429.8491435 | EU98: 286.5660957 | EV98: 1002.981335 | EW98: 143.2830478 | EX98: 143.2830478 | EY98: 143.2830478 | EZ98: 0 | FA98: 0 | FB98: 0 | FC98: 0 | FD98: 0 | FE98: 0 | FF98: 0 | FG98: 0 | FH98: 0 | FI98: 0 | FJ98: 0 | FK98: 0 | FL98: 0 | FM98: 0 | FN98: 0 | FO98: 0 | FP98: 0 | FQ98: 0 | FR98: 0 | FS98: 0 | FT98: 0 | FU98: 0 | FV98: 0 | FW98: 0 | FX98: 0 | FY98: 0 | FZ98: 0 | GA98: 0 | GB98: 0 | GC98: 0 | GD98: 0 | GE98: 0 | GF98: 0 | GG98: 0 | GH98: 0 | GI98: 0 | GJ98: 0
A99: 5 | D99: TRANSFORMERS | E99: Ground Outdoor / Indoor Chamber Mounted; > = 22 kV & < = 33 kV ; < = 15 MVA | F99: 378.646592 | G99: 62.74431517 | H99: 7.921130928 | I99: 2 | J99: 2 | K99: 2 | L99: 6 | M99: 10 | N99: 6 | O99: 7 | P99: 5 | Q99: 3 | R99: 5 | S99: 2 | T99: 3 | U99: 6 | V99: 4 | W99: 11 | X99: 15 | Y99: 7 | Z99: 3 | AA99: 4 | AB99: 3 | AC99: 5 | AD99: 2 | AE99: 2 | AF99: 1 | AG99: 16 | AH99: 4 | AI99: 5 | AJ99: 11 | AK99: 38 | AL99: 4 | AM99: 10 | AN99: 1 | AO99: 11 | AP99: 20 | AQ99: 2 | AR99: 4 | AS99: 5 | AT99: 5 | AU99: 2 | AV99: 8 | AW99: 8 | AX99: 15 | AY99: 2 | AZ99: 4 | BA99: 1 | BB99: 5 | BC99: 21 | BD99: 4 | BE99: 1 | BF99: 17 | BG99: 11 | BH99: 1 | BI99: 7 | BJ99: 10 | BK99: 7 | BL99: 3 | BM99: 1 | BN99: 5 | BO99: 6 | BP99: 14 | BQ99: 11 | BR99: 8 | BS99: 3 | BT99: 1 | BU99: 6 | BV99: 1 | BW99: 2 | BX99: 0 | BY99: 1 | BZ99: 0 | CA99: 0 | CB99: 0 | CC99: 0 | CD99: 0 | CE99: 0 | CF99: 0 | CG99: 0 | CH99: 0 | CI99: 0 | CJ99: 0 | CK99: 0 | CL99: 0 | CM99: 0 | CN99: 0 | CO99: 0 | CP99: 0 | CQ99: 0 | CR99: 0 | CS99: 0 | CT99: 0 | CU99: 0 | CV99: 0 | CX99: 757.2931841 | CY99: 757.2931841 | CZ99: 2271.879552 | DA99: 3786.46592 | DB99: 2271.879552 | DC99: 2650.526144 | DD99: 1893.23296 | DE99: 1135.939776 | DF99: 1893.23296 | DG99: 757.2931841 | DH99: 1135.939776 | DI99: 2271.879552 | DJ99: 1514.586368 | DK99: 4165.112512 | DL99: 5679.698881 | DM99: 2650.526144 | DN99: 1135.939776 | DO99: 1514.586368 | DP99: 1135.939776 | DQ99: 1893.23296 | DR99: 757.2931841 | DS99: 757.2931841 | DT99: 378.646592 | DU99: 6058.345473 | DV99: 1514.586368 | DW99: 1893.23296 | DX99: 4165.112512 | DY99: 14388.5705 | DZ99: 1514.586368 | EA99: 3786.46592 | EB99: 378.646592 | EC99: 4165.112512 | ED99: 7572.931841 | EE99: 757.2931841 | EF99: 1514.586368 | EG99: 1893.23296 | EH99: 1893.23296 | EI99: 757.2931841 | EJ99: 3029.172736 | EK99: 3029.172736 | EL99: 5679.698881 | EM99: 757.2931841 | EN99: 1514.586368 | EO99: 378.646592 | EP99: 1893.23296 | EQ99: 7951.578433 | ER99: 1514.586368 | ES99: 378.646592 | ET99: 6436.992065 | EU99: 4165.112512 | EV99: 378.646592 | EW99: 2650.526144 | EX99: 3786.46592 | EY99: 2650.526144 | EZ99: 1135.939776 | FA99: 378.646592 | FB99: 1893.23296 | FC99: 2271.879552 | FD99: 5301.052289 | FE99: 4165.112512 | FF99: 3029.172736 | FG99: 1135.939776 | FH99: 378.646592 | FI99: 2271.879552 | FJ99: 378.646592 | FK99: 757.2931841 | FL99: 0 | FM99: 378.646592 | FN99: 0 | FO99: 0 | FP99: 0 | FQ99: 0 | FR99: 0 | FS99: 0 | FT99: 0 | FU99: 0 | FV99: 0 | FW99: 0 | FX99: 0 | FY99: 0 | FZ99: 0 | GA99: 0 | GB99: 0 | GC99: 0 | GD99: 0 | GE99: 0 | GF99: 0 | GG99: 0 | GH99: 0 | GI99: 0 | GJ99: 0
A100: 5 | D100: TRANSFORMERS | E100: Ground Outdoor / Indoor Chamber Mounted; > = 22 kV & < = 33 kV ; > 15 MVA and < = 40 MVA | F100: 1844.005796 | G100: 63.48884422 | H100: 7.967988719 | I100: 2 | J100: 0 | K100: 1 | L100: 0 | M100: 0 | N100: 0 | O100: 0 | P100: 0 | Q100: 0 | R100: 0 | S100: 1 | T100: 0 | U100: 0 | V100: 0 | W100: 1 | X100: 0 | Y100: 0 | Z100: 0 | AA100: 0 | AB100: 0 | AC100: 0 | AD100: 0 | AE100: 0 | AF100: 0 | AG100: 0 | AH100: 0 | AI100: 0 | AJ100: 0 | AK100: 1 | AL100: 0 | AM100: 0 | AN100: 0 | AO100: 0 | AP100: 1 | AQ100: 0 | AR100: 0 | AS100: 0 | AT100: 0 | AU100: 0 | AV100: 0 | AW100: 0 | AX100: 0 | AY100: 0 | AZ100: 0 | BA100: 0 | BB100: 0 | BC100: 0 | BD100: 0 | BE100: 0 | BF100: 0 | BG100: 0 | BH100: 0 | BI100: 0 | BJ100: 0 | BK100: 0 | BL100: 0 | BM100: 0 | BN100: 0 | BO100: 0 | BP100: 0 | BQ100: 0 | BR100: 0 | BS100: 0 | BT100: 0 | BU100: 0 | BV100: 0 | BW100: 0 | BX100: 0 | BY100: 0 | BZ100: 0 | CA100: 0 | CB100: 0 | CC100: 0 | CD100: 0 | CE100: 0 | CF100: 0 | CG100: 0 | CH100: 0 | CI100: 0 | CJ100: 0 | CK100: 0 | CL100: 0 | CM100: 0 | CN100: 0 | CO100: 0 | CP100: 0 | CQ100: 0 | CR100: 0 | CS100: 0 | CT100: 0 | CU100: 0 | CV100: 0 | CX100: 0 | CY100: 1844.005796 | CZ100: 0 | DA100: 0 | DB100: 0 | DC100: 0 | DD100: 0 | DE100: 0 | DF100: 0 | DG100: 1844.005796 | DH100: 0 | DI100: 0 | DJ100: 0 | DK100: 1844.005796 | DL100: 0 | DM100: 0 | DN100: 0 | DO100: 0 | DP100: 0 | DQ100: 0 | DR100: 0 | DS100: 0 | DT100: 0 | DU100: 0 | DV100: 0 | DW100: 0 | DX100: 0 | DY100: 1844.005796 | DZ100: 0 | EA100: 0 | EB100: 0 | EC100: 0 | ED100: 1844.005796 | EE100: 0 | EF100: 0 | EG100: 0 | EH100: 0 | EI100: 0 | EJ100: 0 | EK100: 0 | EL100: 0 | EM100: 0 | EN100: 0 | EO100: 0 | EP100: 0 | EQ100: 0 | ER100: 0 | ES100: 0 | ET100: 0 | EU100: 0 | EV100: 0 | EW100: 0 | EX100: 0 | EY100: 0 | EZ100: 0 | FA100: 0 | FB100: 0 | FC100: 0 | FD100: 0 | FE100: 0 | FF100: 0 | FG100: 0 | FH100: 0 | FI100: 0 | FJ100: 0 | FK100: 0 | FL100: 0 | FM100: 0 | FN100: 0 | FO100: 0 | FP100: 0 | FQ100: 0 | FR100: 0 | FS100: 0 | FT100: 0 | FU100: 0 | FV100: 0 | FW100: 0 | FX100: 0 | FY100: 0 | FZ100: 0 | GA100: 0 | GB100: 0 | GC100: 0 | GD100: 0 | GE100: 0 | GF100: 0 | GG100: 0 | GH100: 0 | GI100: 0 | GJ100: 0
E101: Ground Outdoor / Indoor Chamber Mounted; > = 22 kV & < = 33 kV ; > 40 MVA | F101: 634.3753382 | G101: 50 | H101: 7.071067812 | I101: 2
A102: 5 | D102: TRANSFORMERS | E102: Ground Outdoor / Indoor Chamber Mounted; > 33 kV & < = 66 kV ; < = 15 MVA | F102: 1099.038447 | G102: 68.3493402 | H102: 8.267365977 | I102: 2 | J102: 2 | K102: 4 | L102: 0 | M102: 0 | N102: 4 | O102: 3 | P102: 0 | Q102: 4 | R102: 0 | S102: 0 | T102: 0 | U102: 1 | V102: 0 | W102: 0 | X102: 5 | Y102: 0 | Z102: 1 | AA102: 0 | AB102: 0 | AC102: 0 | AD102: 0 | AE102: 0 | AF102: 0 | AG102: 3 | AH102: 1 | AI102: 2 | AJ102: 1 | AK102: 2 | AL102: 5 | AM102: 0 | AN102: 0 | AO102: 9 | AP102: 0 | AQ102: 0 | AR102: 1 | AS102: 0 | AT102: 5 | AU102: 5 | AV102: 0 | AW102: 0 | AX102: 3 | AY102: 0 | AZ102: 0 | BA102: 3 | BB102: 0 | BC102: 11 | BD102: 7 | BE102: 5 | BF102: 7 | BG102: 5 | BH102: 5 | BI102: 19 | BJ102: 5 | BK102: 14 | BL102: 5 | BM102: 0 | BN102: 2 | BO102: 5 | BP102: 0 | BQ102: 2 | BR102: 6 | BS102: 2 | BT102: 0 | BU102: 2 | BV102: 1 | BW102: 0 | BX102: 0 | BY102: 0 | BZ102: 0 | CA102: 0 | CB102: 0 | CC102: 0 | CD102: 1 | CE102: 0 | CF102: 0 | CG102: 0 | CH102: 0 | CI102: 0 | CJ102: 0 | CK102: 0 | CL102: 0 | CM102: 0 | CN102: 0 | CO102: 0 | CP102: 0 | CQ102: 0 | CR102: 0 | CS102: 0 | CT102: 0 | CU102: 0 | CV102: 0 | CX102: 2198.076893 | CY102: 4396.153786 | CZ102: 0 | DA102: 0 | DB102: 4396.153786 | DC102: 3297.11534 | DD102: 0 | DE102: 4396.153786 | DF102: 0 | DG102: 0 | DH102: 0 | DI102: 1099.038447 | DJ102: 0 | DK102: 0 | DL102: 5495.192233 | DM102: 0 | DN102: 1099.038447 | DO102: 0 | DP102: 0 | DQ102: 0 | DR102: 0 | DS102: 0 | DT102: 0 | DU102: 3297.11534 | DV102: 1099.038447 | DW102: 2198.076893 | DX102: 1099.038447 | DY102: 2198.076893 | DZ102: 5495.192233 | EA102: 0 | EB102: 0 | EC102: 9891.346019 | ED102: 0 | EE102: 0 | EF102: 1099.038447 | EG102: 0 | EH102: 5495.192233 | EI102: 5495.192233 | EJ102: 0 | EK102: 0 | EL102: 3297.11534 | EM102: 0 | EN102: 0 | EO102: 3297.11534 | EP102: 0 | EQ102: 12089.42291 | ER102: 7693.269126 | ES102: 5495.192233 | ET102: 7693.269126 | EU102: 5495.192233 | EV102: 5495.192233 | EW102: 20881.73048 | EX102: 5495.192233 | EY102: 15386.53825 | EZ102: 5495.192233 | FA102: 0 | FB102: 2198.076893 | FC102: 5495.192233 | FD102: 0 | FE102: 2198.076893 | FF102: 6594.230679 | FG102: 2198.076893 | FH102: 0 | FI102: 2198.076893 | FJ102: 1099.038447 | FK102: 0 | FL102: 0 | FM102: 0 | FN102: 0 | FO102: 0 | FP102: 0 | FQ102: 0 | FR102: 1099.038447 | FS102: 0 | FT102: 0 | FU102: 0 | FV102: 0 | FW102: 0 | FX102: 0 | FY102: 0 | FZ102: 0 | GA102: 0 | GB102: 0 | GC102: 0 | GD102: 0 | GE102: 0 | GF102: 0 | GG102: 0 | GH102: 0 | GI102: 0 | GJ102: 0
A103: 5 | D103: TRANSFORMERS | E103: Ground Outdoor / Indoor Chamber Mounted; > 33 kV & < = 66 kV ; > 15 MVA and < = 40 MVA | F103: 2357.509795 | G103: 59.25724444 | H103: 7.697872721 | I103: 2 | J103: 0 | K103: 2 | L103: 1 | M103: 8 | N103: 4 | O103: 4 | P103: 4 | Q103: 2 | R103: 4 | S103: 2 | T103: 5 | U103: 2 | V103: 5 | W103: 4 | X103: 4 | Y103: 0 | Z103: 1 | AA103: 0 | AB103: 0 | AC103: 2 | AD103: 0 | AE103: 3 | AF103: 0 | AG103: 1 | AH103: 5 | AI103: 1 | AJ103: 3 | AK103: 0 | AL103: 1 | AM103: 4 | AN103: 0 | AO103: 2 | AP103: 4 | AQ103: 2 | AR103: 0 | AS103: 4 | AT103: 1 | AU103: 4 | AV103: 0 | AW103: 0 | AX103: 0 | AY103: 0 | AZ103: 1 | BA103: 4 | BB103: 0 | BC103: 5 | BD103: 6 | BE103: 4 | BF103: 3 | BG103: 0 | BH103: 0 | BI103: 0 | BJ103: 0 | BK103: 0 | BL103: 0 | BM103: 0 | BN103: 0 | BO103: 0 | BP103: 3 | BQ103: 3 | BR103: 0 | BS103: 0 | BT103: 0 | BU103: 0 | BV103: 0 | BW103: 0 | BX103: 0 | BY103: 0 | BZ103: 0 | CA103: 0 | CB103: 0 | CC103: 0 | CD103: 0 | CE103: 0 | CF103: 0 | CG103: 0 | CH103: 0 | CI103: 0 | CJ103: 0 | CK103: 0 | CL103: 0 | CM103: 0 | CN103: 0 | CO103: 0 | CP103: 0 | CQ103: 0 | CR103: 0 | CS103: 0 | CT103: 0 | CU103: 0 | CV103: 0 | CX103: 0 | CY103: 4715.01959 | CZ103: 2357.509795 | DA103: 18860.07836 | DB103: 9430.03918 | DC103: 9430.03918 | DD103: 9430.03918 | DE103: 4715.01959 | DF103: 9430.03918 | DG103: 4715.01959 | DH103: 11787.54898 | DI103: 4715.01959 | DJ103: 11787.54898 | DK103: 9430.03918 | DL103: 9430.03918 | DM103: 0 | DN103: 2357.509795 | DO103: 0 | DP103: 0 | DQ103: 4715.01959 | DR103: 0 | DS103: 7072.529385 | DT103: 0 | DU103: 2357.509795 | DV103: 11787.54898 | DW103: 2357.509795 | DX103: 7072.529385 | DY103: 0 | DZ103: 2357.509795 | EA103: 9430.03918 | EB103: 0 | EC103: 4715.01959 | ED103: 9430.03918 | EE103: 4715.01959 | EF103: 0 | EG103: 9430.03918 | EH103: 2357.509795 | EI103: 9430.03918 | EJ103: 0 | EK103: 0 | EL103: 0 | EM103: 0 | EN103: 2357.509795 | EO103: 9430.03918 | EP103: 0 | EQ103: 11787.54898 | ER103: 14145.05877 | ES103: 9430.03918 | ET103: 7072.529385 | EU103: 0 | EV103: 0 | EW103: 0 | EX103: 0 | EY103: 0 | EZ103: 0 | FA103: 0 | FB103: 0 | FC103: 0 | FD103: 7072.529385 | FE103: 7072.529385 | FF103: 0 | FG103: 0 | FH103: 0 | FI103: 0 | FJ103: 0 | FK103: 0 | FL103: 0 | FM103: 0 | FN103: 0 | FO103: 0 | FP103: 0 | FQ103: 0 | FR103: 0 | FS103: 0 | FT103: 0 | FU103: 0 | FV103: 0 | FW103: 0 | FX103: 0 | FY103: 0 | FZ103: 0 | GA103: 0 | GB103: 0 | GC103: 0 | GD103: 0 | GE103: 0 | GF103: 0 | GG103: 0 | GH103: 0 | GI103: 0 | GJ103: 0
E104: Ground Outdoor / Indoor Chamber Mounted; > 33 kV & < = 66 kV ; > 40 MVA | F104: 351.1457261 | G104: 50 | H104: 7.071067812 | I104: 2
E105: Ground Outdoor / Indoor Chamber Mounted; > 66 kV & < = 132 kV ; < = 100 MVA | F105: 3122.741652 | G105: 50 | H105: 7.071067812 | I105: 2
E106: Ground Outdoor / Indoor Chamber Mounted; > 66 kV & < = 132 kV ; > 100 MVA | F106: 4267.16617 | G106: 50 | H106: 7.071067812 | I106: 2
E107: Ground Outdoor / Indoor Chamber Mounted; > 132 kV ; < = 100 MVA | F107: 0.0001 | G107: 50 | H107: 7.071067812 | I107: 2
E108: Ground Outdoor / Indoor Chamber Mounted; > 132 kV ; > 100 MVA | F108: 0.0001 | G108: 50 | H108: 7.071067812 | I108: 2
E109: Other | F109: 0.0001 | G109: 50 | H109: 7.071067812 | I109: 2
E110: ˂ = 11 kV ; Fuse | F110: 1.647177725 | G110: 50 | H110: 7.071067812 | I110: 2
A111: 6 | D111: SWITCHGEAR | E111: ˂ = 11 kV ; Switch | F111: 53.16708918 | G111: 59.60242287 | H111: 7.720260544 | I111: 2 | J111: 0 | K111: 22 | L111: 38 | M111: 16 | N111: 3 | O111: 5 | P111: 7 | Q111: 16 | R111: 2 | S111: 1 | T111: 2 | U111: 1 | V111: 1 | W111: 5 | X111: 0 | Y111: 0 | Z111: 0 | AA111: 0 | AB111: 4 | AC111: 11 | AD111: 0 | AE111: 2 | AF111: 0 | AG111: 7 | AH111: 13 | AI111: 29 | AJ111: 9 | AK111: 0 | AL111: 18 | AM111: 0 | AN111: 10 | AO111: 35 | AP111: 23 | AQ111: 14 | AR111: 26 | AS111: 27 | AT111: 2 | AU111: 46 | AV111: 20 | AW111: 29 | AX111: 7 | AY111: 6 | AZ111: 76 | BA111: 50 | BB111: 116 | BC111: 146 | BD111: 94 | BE111: 88 | BF111: 112 | BG111: 153 | BH111: 28 | BI111: 33 | BJ111: 8 | BK111: 9 | BL111: 0 | BM111: 3 | BN111: 5 | BO111: 79 | BP111: 3 | BQ111: 34 | BR111: 0 | BS111: 0 | BT111: 3 | BU111: 0 | BV111: 3 | BW111: 0 | BX111: 0 | BY111: 0 | BZ111: 0 | CA111: 0 | CB111: 0 | CC111: 11 | CD111: 0 | CE111: 8 | CF111: 0 | CG111: 0 | CH111: 0 | CI111: 0 | CJ111: 0 | CK111: 0 | CL111: 0 | CM111: 0 | CN111: 0 | CO111: 0 | CP111: 0 | CQ111: 0 | CR111: 0 | CS111: 0 | CT111: 0 | CU111: 0 | CV111: 0 | CX111: 0 | CY111: 1169.675962 | CZ111: 2020.349389 | DA111: 850.6734269 | DB111: 159.5012675 | DC111: 265.8354459 | DD111: 372.1696242 | DE111: 850.6734269 | DF111: 106.3341784 | DG111: 53.16708918 | DH111: 106.3341784 | DI111: 53.16708918 | DJ111: 53.16708918 | DK111: 265.8354459 | DL111: 0 | DM111: 0 | DN111: 0 | DO111: 0 | DP111: 212.6683567 | DQ111: 584.837981 | DR111: 0 | DS111: 106.3341784 | DT111: 0 | DU111: 372.1696242 | DV111: 691.1721593 | DW111: 1541.845586 | DX111: 478.5038026 | DY111: 0 | DZ111: 957.0076052 | EA111: 0 | EB111: 531.6708918 | EC111: 1860.848121 | ED111: 1222.843051 | EE111: 744.3392485 | EF111: 1382.344319 | EG111: 1435.511408 | EH111: 106.3341784 | EI111: 2445.686102 | EJ111: 1063.341784 | EK111: 1541.845586 | EL111: 372.1696242 | EM111: 319.0025351 | EN111: 4040.698778 | EO111: 2658.354459 | EP111: 6167.382345 | EQ111: 7762.39502 | ER111: 4997.706383 | ES111: 4678.703848 | ET111: 5954.713988 | EU111: 8134.564644 | EV111: 1488.678497 | EW111: 1754.513943 | EX111: 425.3367134 | EY111: 478.5038026 | EZ111: 0 | FA111: 159.5012675 | FB111: 265.8354459 | FC111: 4200.200045 | FD111: 159.5012675 | FE111: 1807.681032 | FF111: 0 | FG111: 0 | FH111: 159.5012675 | FI111: 0 | FJ111: 159.5012675 | FK111: 0 | FL111: 0 | FM111: 0 | FN111: 0 | FO111: 0 | FP111: 0 | FQ111: 584.837981 | FR111: 0 | FS111: 425.3367134 | FT111: 0 | FU111: 0 | FV111: 0 | FW111: 0 | FX111: 0 | FY111: 0 | FZ111: 0 | GA111: 0 | GB111: 0 | GC111: 0 | GD111: 0 | GE111: 0 | GF111: 0 | GG111: 0 | GH111: 0 | GI111: 0 | GJ111: 0
A112: 6 | D112: SWITCHGEAR | E112: ˂ = 11 kV ; Circuit Breaker | F112: 536.3196115 | G112: 63.345763 | H112: 7.959005151 | I112: 2 | J112: 0 | K112: 14 | L112: 73 | M112: 135 | N112: 34 | O112: 21 | P112: 32 | Q112: 13 | R112: 32 | S112: 13 | T112: 13 | U112: 17 | V112: 29 | W112: 31 | X112: 10 | Y112: 4 | Z112: 32 | AA112: 11 | AB112: 10 | AC112: 0 | AD112: 0 | AE112: 6 | AF112: 4 | AG112: 9 | AH112: 20 | AI112: 28 | AJ112: 0 | AK112: 26 | AL112: 0 | AM112: 31 | AN112: 0 | AO112: 0 | AP112: 4 | AQ112: 0 | AR112: 0 | AS112: 0 | AT112: 0 | AU112: 0 | AV112: 2 | AW112: 11 | AX112: 0 | AY112: 0 | AZ112: 0 | BA112: 37 | BB112: 43 | BC112: 45 | BD112: 40 | BE112: 14 | BF112: 78 | BG112: 58 | BH112: 2 | BI112: 85 | BJ112: 20 | BK112: 21 | BL112: 15 | BM112: 0 | BN112: 0 | BO112: 47 | BP112: 2 | BQ112: 10 | BR112: 0 | BS112: 9 | BT112: 20 | BU112: 0 | BV112: 17 | BW112: 0 | BX112: 0 | BY112: 0 | BZ112: 0 | CA112: 0 | CB112: 0 | CC112: 0 | CD112: 0 | CE112: 0 | CF112: 0 | CG112: 0 | CH112: 0 | CI112: 0 | CJ112: 0 | CK112: 0 | CL112: 0 | CM112: 0 | CN112: 0 | CO112: 0 | CP112: 0 | CQ112: 0 | CR112: 0 | CS112: 0 | CT112: 0 | CU112: 0 | CV112: 0 | CX112: 0 | CY112: 7508.47456 | CZ112: 39151.33164 | DA112: 72403.14755 | DB112: 18234.86679 | DC112: 11262.71184 | DD112: 17162.22757 | DE112: 6972.154949 | DF112: 17162.22757 | DG112: 6972.154949 | DH112: 6972.154949 | DI112: 9117.433395 | DJ112: 15553.26873 | DK112: 16625.90796 | DL112: 5363.196115 | DM112: 2145.278446 | DN112: 17162.22757 | DO112: 5899.515726 | DP112: 5363.196115 | DQ112: 0 | DR112: 0 | DS112: 3217.917669 | DT112: 2145.278446 | DU112: 4826.876503 | DV112: 10726.39223 | DW112: 15016.94912 | DX112: 0 | DY112: 13944.3099 | DZ112: 0 | EA112: 16625.90796 | EB112: 0 | EC112: 0 | ED112: 2145.278446 | EE112: 0 | EF112: 0 | EG112: 0 | EH112: 0 | EI112: 0 | EJ112: 1072.639223 | EK112: 5899.515726 | EL112: 0 | EM112: 0 | EN112: 0 | EO112: 19843.82562 | EP112: 23061.74329 | EQ112: 24134.38252 | ER112: 21452.78446 | ES112: 7508.47456 | ET112: 41832.92969 | EU112: 31106.53746 | EV112: 1072.639223 | EW112: 45587.16697 | EX112: 10726.39223 | EY112: 11262.71184 | EZ112: 8044.794172 | FA112: 0 | FB112: 0 | FC112: 25207.02174 | FD112: 1072.639223 | FE112: 5363.196115 | FF112: 0 | FG112: 4826.876503 | FH112: 10726.39223 | FI112: 0 | FJ112: 9117.433395 | FK112: 0 | FL112: 0 | FM112: 0 | FN112: 0 | FO112: 0 | FP112: 0 | FQ112: 0 | FR112: 0 | FS112: 0 | FT112: 0 | FU112: 0 | FV112: 0 | FW112: 0 | FX112: 0 | FY112: 0 | FZ112: 0 | GA112: 0 | GB112: 0 | GC112: 0 | GD112: 0 | GE112: 0 | GF112: 0 | GG112: 0 | GH112: 0 | GI112: 0 | GJ112: 0
A113: 6 | D113: SWITCHGEAR | E113: > 11 kV & < = 22 kV ; Switch | F113: 9.836411827 | G113: 61.02806033 | H113: 7.812045848 | I113: 2 | J113: 0 | K113: 0 | L113: 0 | M113: 0 | N113: 0 | O113: 0 | P113: 0 | Q113: 0 | R113: 0 | S113: 0 | T113: 0 | U113: 0 | V113: 0 | W113: 0 | X113: 0 | Y113: 0 | Z113: 0 | AA113: 0 | AB113: 0 | AC113: 0 | AD113: 0 | AE113: 0 | AF113: 0 | AG113: 0 | AH113: 0 | AI113: 0 | AJ113: 0 | AK113: 0 | AL113: 0 | AM113: 0 | AN113: 0 | AO113: 0 | AP113: 0 | AQ113: 0 | AR113: 0 | AS113: 0 | AT113: 0 | AU113: 0 | AV113: 0 | AW113: 0 | AX113: 0 | AY113: 0 | AZ113: 0 | BA113: 0 | BB113: 0 | BC113: 0 | BD113: 0 | BE113: 0 | BF113: 10 | BG113: 0 | BH113: 0 | BI113: 0 | BJ113: 0 | BK113: 0 | BL113: 0 | BM113: 0 | BN113: 0 | BO113: 0 | BP113: 0 | BQ113: 0 | BR113: 0 | BS113: 0 | BT113: 0 | BU113: 0 | BV113: 0 | BW113: 0 | BX113: 0 | BY113: 0 | BZ113: 0 | CA113: 0 | CB113: 0 | CC113: 0 | CD113: 0 | CE113: 0 | CF113: 0 | CG113: 0 | CH113: 0 | CI113: 0 | CJ113: 0 | CK113: 0 | CL113: 0 | CM113: 0 | CN113: 0 | CO113: 0 | CP113: 0 | CQ113: 0 | CR113: 0 | CS113: 0 | CT113: 0 | CU113: 0 | CV113: 0 | CX113: 0 | CY113: 0 | CZ113: 0 | DA113: 0 | DB113: 0 | DC113: 0 | DD113: 0 | DE113: 0 | DF113: 0 | DG113: 0 | DH113: 0 | DI113: 0 | DJ113: 0 | DK113: 0 | DL113: 0 | DM113: 0 | DN113: 0 | DO113: 0 | DP113: 0 | DQ113: 0 | DR113: 0 | DS113: 0 | DT113: 0 | DU113: 0 | DV113: 0 | DW113: 0 | DX113: 0 | DY113: 0 | DZ113: 0 | EA113: 0 | EB113: 0 | EC113: 0 | ED113: 0 | EE113: 0 | EF113: 0 | EG113: 0 | EH113: 0 | EI113: 0 | EJ113: 0 | EK113: 0 | EL113: 0 | EM113: 0 | EN113: 0 | EO113: 0 | EP113: 0 | EQ113: 0 | ER113: 0 | ES113: 0 | ET113: 98.36411827 | EU113: 0 | EV113: 0 | EW113: 0 | EX113: 0 | EY113: 0 | EZ113: 0 | FA113: 0 | FB113: 0 | FC113: 0 | FD113: 0 | FE113: 0 | FF113: 0 | FG113: 0 | FH113: 0 | FI113: 0 | FJ113: 0 | FK113: 0 | FL113: 0 | FM113: 0 | FN113: 0 | FO113: 0 | FP113: 0 | FQ113: 0 | FR113: 0 | FS113: 0 | FT113: 0 | FU113: 0 | FV113: 0 | FW113: 0 | FX113: 0 | FY113: 0 | FZ113: 0 | GA113: 0 | GB113: 0 | GC113: 0 | GD113: 0 | GE113: 0 | GF113: 0 | GG113: 0 | GH113: 0 | GI113: 0 | GJ113: 0
E114: > 11 kV & < = 22 kV ; Circuit Breaker | F114: 89.19023228 | G114: 50 | H114: 7.071067812 | I114: 2
A115: 6 | D115: SWITCHGEAR | E115: > 22 kV & < = 33 kV ; Switch | F115: 80.20714263 | G115: 62.58682533 | H115: 7.911183561 | I115: 2 | J115: 2 | K115: 59 | L115: 45 | M115: 36 | N115: 33 | O115: 38 | P115: 5 | Q115: 6 | R115: 15 | S115: 20 | T115: 20 | U115: 18 | V115: 6 | W115: 9 | X115: 9 | Y115: 4 | Z115: 0 | AA115: 0 | AB115: 0 | AC115: 9 | AD115: 0 | AE115: 0 | AF115: 3 | AG115: 17 | AH115: 14 | AI115: 4 | AJ115: 6 | AK115: 0 | AL115: 10 | AM115: 3 | AN115: 3 | AO115: 15 | AP115: 4 | AQ115: 3 | AR115: 11 | AS115: 8 | AT115: 7 | AU115: 7 | AV115: 6 | AW115: 13 | AX115: 2 | AY115: 17 | AZ115: 45 | BA115: 19 | BB115: 8 | BC115: 21 | BD115: 78 | BE115: 39 | BF115: 71 | BG115: 57 | BH115: 33 | BI115: 17 | BJ115: 4 | BK115: 3 | BL115: 0 | BM115: 0 | BN115: 7 | BO115: 28 | BP115: 24 | BQ115: 35 | BR115: 8 | BS115: 1 | BT115: 1 | BU115: 0 | BV115: 1 | BW115: 0 | BX115: 0 | BY115: 0 | BZ115: 0 | CA115: 0 | CB115: 0 | CC115: 4 | CD115: 0 | CE115: 4 | CF115: 4 | CG115: 0 | CH115: 0 | CI115: 0 | CJ115: 0 | CK115: 0 | CL115: 0 | CM115: 0 | CN115: 0 | CO115: 0 | CP115: 0 | CQ115: 0 | CR115: 0 | CS115: 0 | CT115: 0 | CU115: 0 | CV115: 0 | CX115: 160.4142853 | CY115: 4732.221415 | CZ115: 3609.321418 | DA115: 2887.457135 | DB115: 2646.835707 | DC115: 3047.87142 | DD115: 401.0357132 | DE115: 481.2428558 | DF115: 1203.107139 | DG115: 1604.142853 | DH115: 1604.142853 | DI115: 1443.728567 | DJ115: 481.2428558 | DK115: 721.8642837 | DL115: 721.8642837 | DM115: 320.8285705 | DN115: 0 | DO115: 0 | DP115: 0 | DQ115: 721.8642837 | DR115: 0 | DS115: 0 | DT115: 240.6214279 | DU115: 1363.521425 | DV115: 1122.899997 | DW115: 320.8285705 | DX115: 481.2428558 | DY115: 0 | DZ115: 802.0714263 | EA115: 240.6214279 | EB115: 240.6214279 | EC115: 1203.107139 | ED115: 320.8285705 | EE115: 240.6214279 | EF115: 882.278569 | EG115: 641.6571411 | EH115: 561.4499984 | EI115: 561.4499984 | EJ115: 481.2428558 | EK115: 1042.692854 | EL115: 160.4142853 | EM115: 1363.521425 | EN115: 3609.321418 | EO115: 1523.93571 | EP115: 641.6571411 | EQ115: 1684.349995 | ER115: 6256.157125 | ES115: 3128.078563 | ET115: 5694.707127 | EU115: 4571.80713 | EV115: 2646.835707 | EW115: 1363.521425 | EX115: 320.8285705 | EY115: 240.6214279 | EZ115: 0 | FA115: 0 | FB115: 561.4499984 | FC115: 2245.799994 | FD115: 1924.971423 | FE115: 2807.249992 | FF115: 641.6571411 | FG115: 80.20714263 | FH115: 80.20714263 | FI115: 0 | FJ115: 80.20714263 | FK115: 0 | FL115: 0 | FM115: 0 | FN115: 0 | FO115: 0 | FP115: 0 | FQ115: 320.8285705 | FR115: 0 | FS115: 320.8285705 | FT115: 320.8285705 | FU115: 0 | FV115: 0 | FW115: 0 | FX115: 0 | FY115: 0 | FZ115: 0 | GA115: 0 | GB115: 0 | GC115: 0 | GD115: 0 | GE115: 0 | GF115: 0 | GG115: 0 | GH115: 0 | GI115: 0 | GJ115: 0
A116: 6 | D116: SWITCHGEAR | E116: > 22 kV & < = 33 kV ; Circuit Breaker | F116: 297.2391494 | G116: 64.17309546 | H116: 8.010811161 | I116: 2 | J116: 0 | K116: 9 | L116: 23 | M116: 17 | N116: 14 | O116: 8 | P116: 5 | Q116: 2 | R116: 10 | S116: 8 | T116: 10 | U116: 7 | V116: 7 | W116: 2 | X116: 0 | Y116: 3 | Z116: 0 | AA116: 0 | AB116: 0 | AC116: 0 | AD116: 0 | AE116: 0 | AF116: 0 | AG116: 0 | AH116: 0 | AI116: 10 | AJ116: 2 | AK116: 0 | AL116: 0 | AM116: 0 | AN116: 0 | AO116: 0 | AP116: 0 | AQ116: 0 | AR116: 0 | AS116: 0 | AT116: 0 | AU116: 0 | AV116: 0 | AW116: 0 | AX116: 0 | AY116: 0 | AZ116: 0 | BA116: 0 | BB116: 0 | BC116: 0 | BD116: 0 | BE116: 20 | BF116: 18 | BG116: 0 | BH116: 5 | BI116: 0 | BJ116: 2 | BK116: 0 | BL116: 9 | BM116: 0 | BN116: 3 | BO116: 27 | BP116: 0 | BQ116: 0 | BR116: 0 | BS116: 20 | BT116: 0 | BU116: 0 | BV116: 4 | BW116: 0 | BX116: 0 | BY116: 0 | BZ116: 5 | CA116: 0 | CB116: 2 | CC116: 0 | CD116: 0 | CE116: 0 | CF116: 0 | CG116: 0 | CH116: 0 | CI116: 0 | CJ116: 1 | CK116: 0 | CL116: 0 | CM116: 0 | CN116: 0 | CO116: 0 | CP116: 0 | CQ116: 0 | CR116: 0 | CS116: 0 | CT116: 0 | CU116: 0 | CV116: 0 | CX116: 0 | CY116: 2675.152345 | CZ116: 6836.500437 | DA116: 5053.06554 | DB116: 4161.348092 | DC116: 2377.913195 | DD116: 1486.195747 | DE116: 594.4782989 | DF116: 2972.391494 | DG116: 2377.913195 | DH116: 2972.391494 | DI116: 2080.674046 | DJ116: 2080.674046 | DK116: 594.4782989 | DL116: 0 | DM116: 891.7174483 | DN116: 0 | DO116: 0 | DP116: 0 | DQ116: 0 | DR116: 0 | DS116: 0 | DT116: 0 | DU116: 0 | DV116: 0 | DW116: 2972.391494 | DX116: 594.4782989 | DY116: 0 | DZ116: 0 | EA116: 0 | EB116: 0 | EC116: 0 | ED116: 0 | EE116: 0 | EF116: 0 | EG116: 0 | EH116: 0 | EI116: 0 | EJ116: 0 | EK116: 0 | EL116: 0 | EM116: 0 | EN116: 0 | EO116: 0 | EP116: 0 | EQ116: 0 | ER116: 0 | ES116: 5944.782989 | ET116: 5350.30469 | EU116: 0 | EV116: 1486.195747 | EW116: 0 | EX116: 594.4782989 | EY116: 0 | EZ116: 2675.152345 | FA116: 0 | FB116: 891.7174483 | FC116: 8025.457035 | FD116: 0 | FE116: 0 | FF116: 0 | FG116: 5944.782989 | FH116: 0 | FI116: 0 | FJ116: 1188.956598 | FK116: 0 | FL116: 0 | FM116: 0 | FN116: 1486.195747 | FO116: 0 | FP116: 594.4782989 | FQ116: 0 | FR116: 0 | FS116: 0 | FT116: 0 | FU116: 0 | FV116: 0 | FW116: 0 | FX116: 297.2391494 | FY116: 0 | FZ116: 0 | GA116: 0 | GB116: 0 | GC116: 0 | GD116: 0 | GE116: 0 | GF116: 0 | GG116: 0 | GH116: 0 | GI116: 0 | GJ116: 0
A117: 6 | D117: SWITCHGEAR | E117: > 33 kV & < = 66 kV ; Switch | F117: 81.45123703 | G117: 68.84719902 | H117: 8.297421227 | I117: 2 | J117: 11 | K117: 71 | L117: 84 | M117: 72 | N117: 82 | O117: 69 | P117: 18 | Q117: 24 | R117: 18 | S117: 18 | T117: 11 | U117: 7 | V117: 20 | W117: 23 | X117: 12 | Y117: 3 | Z117: 2 | AA117: 9 | AB117: 1 | AC117: 12 | AD117: 0 | AE117: 0 | AF117: 0 | AG117: 31 | AH117: 13 | AI117: 0 | AJ117: 2 | AK117: 25 | AL117: 10 | AM117: 4 | AN117: 0 | AO117: 1 | AP117: 5 | AQ117: 0 | AR117: 0 | AS117: 20 | AT117: 10 | AU117: 7 | AV117: 16 | AW117: 4 | AX117: 3 | AY117: 0 | AZ117: 13 | BA117: 10 | BB117: 86 | BC117: 77 | BD117: 55 | BE117: 48 | BF117: 30 | BG117: 68 | BH117: 35 | BI117: 64 | BJ117: 21 | BK117: 25 | BL117: 4 | BM117: 0 | BN117: 30 | BO117: 33 | BP117: 0 | BQ117: 38 | BR117: 15 | BS117: 9 | BT117: 12 | BU117: 0 | BV117: 0 | BW117: 0 | BX117: 0 | BY117: 0 | BZ117: 0 | CA117: 0 | CB117: 0 | CC117: 0 | CD117: 0 | CE117: 0 | CF117: 7 | CG117: 0 | CH117: 0 | CI117: 6 | CJ117: 15 | CK117: 0 | CL117: 0 | CM117: 0 | CN117: 6 | CO117: 0 | CP117: 0 | CQ117: 0 | CR117: 0 | CS117: 0 | CT117: 0 | CU117: 0 | CV117: 0 | CX117: 895.9636073 | CY117: 5783.037829 | CZ117: 6841.90391 | DA117: 5864.489066 | DB117: 6679.001436 | DC117: 5620.135355 | DD117: 1466.122266 | DE117: 1954.829689 | DF117: 1466.122266 | DG117: 1466.122266 | DH117: 895.9636073 | DI117: 570.1586592 | DJ117: 1629.024741 | DK117: 1873.378452 | DL117: 977.4148443 | DM117: 244.3537111 | DN117: 162.9024741 | DO117: 733.0611332 | DP117: 81.45123703 | DQ117: 977.4148443 | DR117: 0 | DS117: 0 | DT117: 0 | DU117: 2524.988348 | DV117: 1058.866081 | DW117: 0 | DX117: 162.9024741 | DY117: 2036.280926 | DZ117: 814.5123703 | EA117: 325.8049481 | EB117: 0 | EC117: 81.45123703 | ED117: 407.2561851 | EE117: 0 | EF117: 0 | EG117: 1629.024741 | EH117: 814.5123703 | EI117: 570.1586592 | EJ117: 1303.219792 | EK117: 325.8049481 | EL117: 244.3537111 | EM117: 0 | EN117: 1058.866081 | EO117: 814.5123703 | EP117: 7004.806384 | EQ117: 6271.745251 | ER117: 4479.818036 | ES117: 3909.659377 | ET117: 2443.537111 | EU117: 5538.684118 | EV117: 2850.793296 | EW117: 5212.87917 | EX117: 1710.475978 | EY117: 2036.280926 | EZ117: 325.8049481 | FA117: 0 | FB117: 2443.537111 | FC117: 2687.890822 | FD117: 0 | FE117: 3095.147007 | FF117: 1221.768555 | FG117: 733.0611332 | FH117: 977.4148443 | FI117: 0 | FJ117: 0 | FK117: 0 | FL117: 0 | FM117: 0 | FN117: 0 | FO117: 0 | FP117: 0 | FQ117: 0 | FR117: 0 | FS117: 0 | FT117: 570.1586592 | FU117: 0 | FV117: 0 | FW117: 488.7074222 | FX117: 1221.768555 | FY117: 0 | FZ117: 0 | GA117: 0 | GB117: 488.7074222 | GC117: 0 | GD117: 0 | GE117: 0 | GF117: 0 | GG117: 0 | GH117: 0 | GI117: 0 | GJ117: 0
A118: 6 | D118: SWITCHGEAR | E118: > 33 kV & < = 66 kV ; Circuit Breaker | F118: 510.4752431 | G118: 56.60315116 | H118: 7.523506573 | I118: 2 | J118: 5 | K118: 8 | L118: 16 | M118: 41 | N118: 40 | O118: 30 | P118: 15 | Q118: 24 | R118: 16 | S118: 20 | T118: 11 | U118: 2 | V118: 12 | W118: 12 | X118: 8 | Y118: 8 | Z118: 2 | AA118: 7 | AB118: 1 | AC118: 1 | AD118: 1 | AE118: 0 | AF118: 0 | AG118: 2 | AH118: 8 | AI118: 0 | AJ118: 13 | AK118: 6 | AL118: 4 | AM118: 2 | AN118: 12 | AO118: 11 | AP118: 0 | AQ118: 10 | AR118: 0 | AS118: 0 | AT118: 0 | AU118: 0 | AV118: 0 | AW118: 0 | AX118: 0 | AY118: 0 | AZ118: 2 | BA118: 9 | BB118: 11 | BC118: 24 | BD118: 6 | BE118: 6 | BF118: 3 | BG118: 0 | BH118: 16 | BI118: 13 | BJ118: 0 | BK118: 0 | BL118: 0 | BM118: 0 | BN118: 2 | BO118: 7 | BP118: 0 | BQ118: 0 | BR118: 3 | BS118: 8 | BT118: 0 | BU118: 8 | BV118: 0 | BW118: 0 | BX118: 0 | BY118: 1 | BZ118: 0 | CA118: 0 | CB118: 0 | CC118: 0 | CD118: 0 | CE118: 0 | CF118: 0 | CG118: 0 | CH118: 0 | CI118: 0 | CJ118: 0 | CK118: 0 | CL118: 0 | CM118: 0 | CN118: 0 | CO118: 0 | CP118: 0 | CQ118: 0 | CR118: 0 | CS118: 0 | CT118: 0 | CU118: 0 | CV118: 0 | CX118: 2552.376215 | CY118: 4083.801944 | CZ118: 8167.603889 | DA118: 20929.48497 | DB118: 20419.00972 | DC118: 15314.25729 | DD118: 7657.128646 | DE118: 12251.40583 | DF118: 8167.603889 | DG118: 10209.50486 | DH118: 5615.227674 | DI118: 1020.950486 | DJ118: 6125.702917 | DK118: 6125.702917 | DL118: 4083.801944 | DM118: 4083.801944 | DN118: 1020.950486 | DO118: 3573.326701 | DP118: 510.4752431 | DQ118: 510.4752431 | DR118: 510.4752431 | DS118: 0 | DT118: 0 | DU118: 1020.950486 | DV118: 4083.801944 | DW118: 0 | DX118: 6636.17816 | DY118: 3062.851458 | DZ118: 2041.900972 | EA118: 1020.950486 | EB118: 6125.702917 | EC118: 5615.227674 | ED118: 0 | EE118: 5104.752431 | EF118: 0 | EG118: 0 | EH118: 0 | EI118: 0 | EJ118: 0 | EK118: 0 | EL118: 0 | EM118: 0 | EN118: 1020.950486 | EO118: 4594.277187 | EP118: 5615.227674 | EQ118: 12251.40583 | ER118: 3062.851458 | ES118: 3062.851458 | ET118: 1531.425729 | EU118: 0 | EV118: 8167.603889 | EW118: 6636.17816 | EX118: 0 | EY118: 0 | EZ118: 0 | FA118: 0 | FB118: 1020.950486 | FC118: 3573.326701 | FD118: 0 | FE118: 0 | FF118: 1531.425729 | FG118: 4083.801944 | FH118: 0 | FI118: 4083.801944 | FJ118: 0 | FK118: 0 | FL118: 0 | FM118: 510.4752431 | FN118: 0 | FO118: 0 | FP118: 0 | FQ118: 0 | FR118: 0 | FS118: 0 | FT118: 0 | FU118: 0 | FV118: 0 | FW118: 0 | FX118: 0 | FY118: 0 | FZ118: 0 | GA118: 0 | GB118: 0 | GC118: 0 | GD118: 0 | GE118: 0 | GF118: 0 | GG118: 0 | GH118: 0 | GI118: 0 | GJ118: 0
A119: 5 | D119: TRANSFORMERS | E119: POLE MOUNTED TRANSFORMER; > 22 kV ; < ≈ 60 kVA | F119: 8.673730944 | G119: 54.42428181 | H119: 7.377281465 | I119: 2 | J119: 29 | K119: 24 | L119: 6 | M119: 15 | N119: 17 | O119: 11 | P119: 8 | Q119: 9 | R119: 12 | S119: 15 | T119: 12 | U119: 10 | V119: 12 | W119: 13 | X119: 12 | Y119: 15 | Z119: 17 | AA119: 19 | AB119: 20 | AC119: 32 | AD119: 29 | AE119: 23 | AF119: 26 | AG119: 24 | AH119: 31 | AI119: 32 | AJ119: 27 | AK119: 34 | AL119: 27 | AM119: 17 | AN119: 11 | AO119: 10 | AP119: 9 | AQ119: 12 | AR119: 11 | AS119: 12 | AT119: 19 | AU119: 15 | AV119: 12 | AW119: 15 | AX119: 13 | AY119: 17 | AZ119: 18 | BA119: 25 | BB119: 26 | BC119: 21 | BD119: 25 | BE119: 22 | BF119: 19 | BG119: 18 | BH119: 14 | BI119: 22 | BJ119: 16 | BK119: 6 | BL119: 9 | BM119: 7 | BN119: 5 | BO119: 10 | BP119: 8 | BQ119: 4 | BR119: 3 | BS119: 1 | BT119: 1 | BU119: 0 | BV119: 0 | BW119: 0 | BX119: 0 | BY119: 0 | BZ119: 0 | CA119: 0 | CB119: 0 | CC119: 0 | CD119: 0 | CE119: 0 | CF119: 0 | CG119: 0 | CH119: 0 | CI119: 0 | CJ119: 0 | CK119: 0 | CL119: 0 | CM119: 0 | CN119: 0 | CO119: 0 | CP119: 0 | CQ119: 0 | CR119: 0 | CS119: 0 | CT119: 0 | CU119: 0 | CV119: 0 | CX119: 251.5381974 | CY119: 208.1695427 | CZ119: 52.04238567 | DA119: 130.1059642 | DB119: 147.4534261 | DC119: 95.41104039 | DD119: 69.38984756 | DE119: 78.0635785 | DF119: 104.0847713 | DG119: 130.1059642 | DH119: 104.0847713 | DI119: 86.73730944 | DJ119: 104.0847713 | DK119: 112.7585023 | DL119: 104.0847713 | DM119: 130.1059642 | DN119: 147.4534261 | DO119: 164.8008879 | DP119: 173.4746189 | DQ119: 277.5593902 | DR119: 251.5381974 | DS119: 199.4958117 | DT119: 225.5170046 | DU119: 208.1695427 | DV119: 268.8856593 | DW119: 277.5593902 | DX119: 234.1907355 | DY119: 294.9068521 | DZ119: 234.1907355 | EA119: 147.4534261 | EB119: 95.41104039 | EC119: 86.73730944 | ED119: 78.0635785 | EE119: 104.0847713 | EF119: 95.41104039 | EG119: 104.0847713 | EH119: 164.8008879 | EI119: 130.1059642 | EJ119: 104.0847713 | EK119: 130.1059642 | EL119: 112.7585023 | EM119: 147.4534261 | EN119: 156.127157 | EO119: 216.8432736 | EP119: 225.5170046 | EQ119: 182.1483498 | ER119: 216.8432736 | ES119: 190.8220808 | ET119: 164.8008879 | EU119: 156.127157 | EV119: 121.4322332 | EW119: 190.8220808 | EX119: 138.7796951 | EY119: 52.04238567 | EZ119: 78.0635785 | FA119: 60.71611661 | FB119: 43.36865472 | FC119: 86.73730944 | FD119: 69.38984756 | FE119: 34.69492378 | FF119: 26.02119283 | FG119: 8.673730944 | FH119: 8.673730944 | FI119: 0 | FJ119: 0 | FK119: 0 | FL119: 0 | FM119: 0 | FN119: 0 | FO119: 0 | FP119: 0 | FQ119: 0 | FR119: 0 | FS119: 0 | FT119: 0 | FU119: 0 | FV119: 0 | FW119: 0 | FX119: 0 | FY119: 0 | FZ119: 0 | GA119: 0 | GB119: 0 | GC119: 0 | GD119: 0 | GE119: 0 | GF119: 0 | GG119: 0 | GH119: 0 | GI119: 0 | GJ119: 0
